Workbook

Sheet StaKa M 3 S.
A1: Mixed: | L1: 1 | N1: 8 | O1: Auf Druckeinstellung achten!
A2: Verein: | O2: Ob eine oder 2 Seiten je Blatt!
A3: Name, Vorname | F3: 1. Serie | H3: 2. Serie: | J3: 3. Serie: | L3: Gesamt:
F7: Spielpunkte:
J8: Gesamtpunkte:
A11: Mixed: | L11: =L1+N1 -> 9
A12: Verein:
A13: Name, Vorname | F13: 1. Serie | H13: 2. Serie: | J13: 3. Serie: | L13: Gesamt:
F17: Spielpunkte:
J18: Gesamtpunkte:
A21: Mixed: | L21: =L1+2*N1 -> 17
A22: Verein:
A23: Name, Vorname | F23: 1. Serie | H23: 2. Serie: | J23: 3. Serie: | L23: Gesamt:
F27: Spielpunkte:
J28: Gesamtpunkte:
A29: Mixed: | L29: =L1+1 -> 2
A30: Verein:
A31: Name, Vorname | F31: 1. Serie | H31: 2. Serie: | J31: 3. Serie: | L31: Gesamt:
F35: Spielpunkte:
J36: Gesamtpunkte:
A39: Mixed: | L39: =L11+1 -> 10
A40: Verein:
A41: Name, Vorname | F41: 1. Serie | H41: 2. Serie: | J41: 3. Serie: | L41: Gesamt:
F45: Spielpunkte:
J46: Gesamtpunkte:
A49: Mixed: | L49: =L21+1 -> 18
A50: Verein:
A51: Name, Vorname | F51: 1. Serie | H51: 2. Serie: | J51: 3. Serie: | L51: Gesamt:
F55: Spielpunkte:
J56: Gesamtpunkte:
A57: Mixed: | L57: =L29+1 -> 3
A58: Verein:
A59: Name, Vorname | F59: 1. Serie | H59: 2. Serie: | J59: 3. Serie: | L59: Gesamt:
F63: Spielpunkte:
J64: Gesamtpunkte:
A67: Mixed: | L67: =L39+1 -> 11
A68: Verein:
A69: Name, Vorname | F69: 1. Serie | H69: 2. Serie: | J69: 3. Serie: | L69: Gesamt:
F73: Spielpunkte:
J74: Gesamtpunkte:
A77: Mixed: | L77: =L49+1 -> 19
A78: Verein:
A79: Name, Vorname | F79: 1. Serie | H79: 2. Serie: | J79: 3. Serie: | L79: Gesamt:
F83: Spielpunkte:
J84: Gesamtpunkte:
A85: Mixed: | L85: =L57+1 -> 4
A86: Verein:
A87: Name, Vorname | F87: 1. Serie | H87: 2. Serie: | J87: 3. Serie: | L87: Gesamt:
F91: Spielpunkte:
J92: Gesamtpunkte:
A95: Mixed: | L95: =L67+1 -> 12
A96: Verein:
A97: Name, Vorname | F97: 1. Serie | H97: 2. Serie: | J97: 3. Serie: | L97: Gesamt:
F101: Spielpunkte:
J102: Gesamtpunkte:
A105: Mixed: | L105: =L77+1 -> 20
A106: Verein:
A107: Name, Vorname | F107: 1. Serie | H107: 2. Serie: | J107: 3. Serie: | L107: Gesamt:
F111: Spielpunkte:
J112: Gesamtpunkte:
A113: Mixed: | L113: =L85+1 -> 5
A114: Verein:
A115: Name, Vorname | F115: 1. Serie | H115: 2. Serie: | J115: 3. Serie: | L115: Gesamt:
F119: Spielpunkte:
J120: Gesamtpunkte:
A123: Mixed: | L123: =L95+1 -> 13
A124: Verein:
A125: Name, Vorname | F125: 1. Serie | H125: 2. Serie: | J125: 3. Serie: | L125: Gesamt:
F129: Spielpunkte:
J130: Gesamtpunkte:
A133: Mixed: | L133: =L105+1 -> 21
A134: Verein:
A135: Name, Vorname | F135: 1. Serie | H135: 2. Serie: | J135: 3. Serie: | L135: Gesamt:
F139: Spielpunkte:
J140: Gesamtpunkte:
A141: Mixed: | L141: =L113+1 -> 6
A142: Verein:
A143: Name, Vorname | F143: 1. Serie | H143: 2. Serie: | J143: 3. Serie: | L143: Gesamt:
F147: Spielpunkte:
J148: Gesamtpunkte:
A151: Mixed: | L151: =L123+1 -> 14
A152: Verein:
A153: Name, Vorname | F153: 1. Serie | H153: 2. Serie: | J153: 3. Serie: | L153: Gesamt:
F157: Spielpunkte:
J158: Gesamtpunkte:
A161: Mixed: | L161: =L133+1 -> 22
A162: Verein:
A163: Name, Vorname | F163: 1. Serie | H163: 2. Serie: | J163: 3. Serie: | L163: Gesamt:
F167: Spielpunkte:
J168: Gesamtpunkte:
A169: Mixed: | L169: =L141+1 -> 7
A170: Verein:
A171: Name, Vorname | F171: 1. Serie | H171: 2. Serie: | J171: 3. Serie: | L171: Gesamt:
F175: Spielpunkte:
J176: Gesamtpunkte:
A179: Mixed: | L179: =L151+1 -> 15
A180: Verein:
A181: Name, Vorname | F181: 1. Serie | H181: 2. Serie: | J181: 3. Serie: | L181: Gesamt:
F185: Spielpunkte:
J186: Gesamtpunkte:
A189: Mixed: | L189: =L161+1 -> 23
A190: Verein:
A191: Name, Vorname | F191: 1. Serie | H191: 2. Serie: | J191: 3. Serie: | L191: Gesamt:
F195: Spielpunkte:
J196: Gesamtpunkte:
A197: Mixed: | L197: =L169+1 -> 8
A198: Verein:
A199: Name, Vorname | F199: 1. Serie | H199: 2. Serie: | J199: 3. Serie: | L199: Gesamt:
F203: Spielpunkte:
J204: Gesamtpunkte:
A207: Mixed: | L207: =L179+1 -> 16
A208: Verein:
A209: Name, Vorname | F209: 1. Serie | H209: 2. Serie: | J209: 3. Serie: | L209: Gesamt:
F213: Spielpunkte:
J214: Gesamtpunkte:
A217: Mixed: | L217: =L189+1 -> 24
A218: Verein:
A219: Name, Vorname | F219: 1. Serie | H219: 2. Serie: | J219: 3. Serie: | L219: Gesamt:
F223: Spielpunkte:
J224: Gesamtpunkte:

Sheet StaKa E 3 S. Damen
A1: Name, Vorname | D1: =(INDEX('Startgeld Damen'!C$4:C$219,MATCH(H1,'Startgeld Damen'!A$4:A$219,0)))&", "&(INDEX('Startgeld Damen'!D$4:D$219,MATCH(H1,'Startgeld Damen'!A$4:A$219,0))) -> Pöppel, Susanne | H1: =I4 -> 101 | J1: Auf Druckeinstellung achten!
A2: Verein: | D2: =(INDEX('Startgeld Damen'!E$4:E$219,MATCH(H1,'Startgeld Damen'!A$4:A$219,0))) -> Recklinghausen | J2: Ob eine oder 2 Seiten je Blatt!
A3: Serie | B3: Tisch | C3: Platz | D3: Spielpunkte | E3: gew. | F3: ver.. | G3: v.G. | H3: Gesamtpunkte | J3: Achtung! Hier nur 48 Spieler!
A4: 1 | B4: =I6 -> 101 | C4: 1 | I4: 101 | J4: nächster Spieler dann 149
A5: 2 | B5: =IF(B4+C4>I$7,B4+C4-I$7,B4+C4) -> 102 | C5: =C4+1 -> 2 | J5: Den Tisch jeweils um 12 erhöhen!
A6: 3 | B6: =IF(B5+C5>I$7,B5+C5-I$7,B5+C5) -> 104 | C6: =C5+1 -> 3 | I6: 101 | J6: nächster Tisch dann 113
A7: Summe: | J7: tatsächliche Tischanzahl bei den
A8: zur 2.Serie: 1 Tisch +1 Platz weiter (opt. zur 3. Serie: 2 Tische +1 Platz weiter) | J8: übersteigenden abziehen!
A10: Name, Vorname | D10: =(INDEX('Startgeld Damen'!C$4:C$219,MATCH(H10,'Startgeld Damen'!A$4:A$219,0)))&", "&(INDEX('Startgeld Damen'!D$4:D$219,MATCH(H10,'Startgeld Damen'!A$4:A$219,0))) -> , | H10: =H1+1 -> 102
A11: Verein: | D11: =(INDEX('Startgeld Damen'!E$4:E$219,MATCH(H10,'Startgeld Damen'!A$4:A$219,0))) -> 0
A12: Serie | B12: Tisch | C12: Platz | D12: Spielpunkte | E12: gew. | F12: ver.. | G12: v.G. | H12: Gesamtpunkte
A13: 1 | B13: =B4 -> 101 | C13: =C4+1 -> 2
A14: 2 | B14: =IF(B13+C13>I$7,B13+C13-I$7,B13+C13) -> 103 | C14: =C13+1 -> 3
A15: 3 | B15: =IF(B14+C14>I$7,B14+C14-I$7,B14+C14) -> 106 | C15: =C14+1 -> 4
A16: Summe:
A17: zur 2.Serie: 2 Tische +1 Platz weiter (opt. zur 3. Serie: 3 Tische +1 Platz weiter)
A19: Name, Vorname | D19: =(INDEX('Startgeld Damen'!C$4:C$219,MATCH(H19,'Startgeld Damen'!A$4:A$219,0)))&", "&(INDEX('Startgeld Damen'!D$4:D$219,MATCH(H19,'Startgeld Damen'!A$4:A$219,0))) -> , | H19: =H10+1 -> 103
A20: Verein: | D20: =(INDEX('Startgeld Damen'!E$4:E$219,MATCH(H19,'Startgeld Damen'!A$4:A$219,0))) -> 0
A21: Serie | B21: Tisch | C21: Platz | D21: Spielpunkte | E21: gew. | F21: ver.. | G21: v.G. | H21: Gesamtpunkte
A22: 1 | B22: =B4 -> 101 | C22: =C13+1 -> 3
A23: 2 | B23: =IF(B22+C22>I$7,B22+C22-I$7,B22+C22) -> 104 | C23: =C22+1 -> 4
A24: 3 | B24: =IF(B23+C23+1>I$7,B23+C23+1-I$7,B23+C23+1) -> 109 | C24: =C23-3 -> 1
A25: Summe:
A26: zur 2.Serie: 3 Tische +1 Platz weiter (opt. zur 3. Serie: 4 Tische +1 Platz weiter)
A27: zur 2.Serie: 4 Tische +1 Platz weiter (opt. zur 3. Serie: 1 Tisch 1 Platz weiter)
A28: Name, Vorname | D28: =(INDEX('Startgeld Damen'!C$4:C$219,MATCH(H28,'Startgeld Damen'!A$4:A$219,0)))&", "&(INDEX('Startgeld Damen'!D$4:D$219,MATCH(H28,'Startgeld Damen'!A$4:A$219,0))) -> , | H28: =H19+1 -> 104
A29: Verein: | D29: =(INDEX('Startgeld Damen'!E$4:E$219,MATCH(H28,'Startgeld Damen'!A$4:A$219,0))) -> 0
A30: Serie | B30: Tisch | C30: Platz | D30: Spielpunkte | E30: gew. | F30: ver.. | G30: v.G. | H30: Gesamtpunkte
A31: 1 | B31: =B4 -> 101 | C31: =C22+1 -> 4
A32: 2 | B32: =IF(B31+C31+1>I$7,B31+C31+1-I$7,B31+C31+1) -> 106 | C32: =C31+-3 -> 1
A33: 3 | B33: =IF(B32+C32>I$7,B32+C32-I$7,B32+C32) -> 107 | C33: =C32+1 -> 2
A34: Summe:
A35: Name, Vorname | D35: =(INDEX('Startgeld Damen'!C$4:C$219,MATCH(H35,'Startgeld Damen'!A$4:A$219,0)))&", "&(INDEX('Startgeld Damen'!D$4:D$219,MATCH(H35,'Startgeld Damen'!A$4:A$219,0))) -> , | H35: =H28+1 -> 105
A36: Verein: | D36: =(INDEX('Startgeld Damen'!E$4:E$219,MATCH(H35,'Startgeld Damen'!A$4:A$219,0))) -> 0
A37: Serie | B37: Tisch | C37: Platz | D37: Spielpunkte | E37: gew. | F37: ver.. | G37: v.G. | H37: Gesamtpunkte
A38: 1 | B38: =B4+1 -> 102 | C38: =C4 -> 1
A39: 2 | B39: =IF(B38+C38>I$7,B38+C38-I$7,B38+C38) -> 103 | C39: =C38+1 -> 2
A40: 3 | B40: =IF(B39+C39>I$7,B39+C39-I$7,B39+C39) -> 105 | C40: =C39+1 -> 3
A41: Summe:
A42: zur 2.Serie: 1 Tisch +1 Platz weiter (opt. zur 3. Serie: 2 Tische +1 Platz weiter)
A44: Name, Vorname | D44: =(INDEX('Startgeld Damen'!C$4:C$219,MATCH(H44,'Startgeld Damen'!A$4:A$219,0)))&", "&(INDEX('Startgeld Damen'!D$4:D$219,MATCH(H44,'Startgeld Damen'!A$4:A$219,0))) -> , | H44: =H35+1 -> 106
A45: Verein: | D45: =(INDEX('Startgeld Damen'!E$4:E$219,MATCH(H44,'Startgeld Damen'!A$4:A$219,0))) -> 0
A46: Serie | B46: Tisch | C46: Platz | D46: Spielpunkte | E46: gew. | F46: ver.. | G46: v.G. | H46: Gesamtpunkte
A47: 1 | B47: =B38 -> 102 | C47: =C38+1 -> 2
A48: 2 | B48: =IF(B47+C47>I$7,B47+C47-I$7,B47+C47) -> 104 | C48: =C47+1 -> 3
A49: 3 | B49: =IF(B48+C48>I$7,B48+C48-I$7,B48+C48) -> 107 | C49: =C48+1 -> 4
A50: Summe:
A51: zur 2.Serie: 2 Tische +1 Platz weiter (opt. zur 3. Serie: 3 Tische +1 Platz weiter)
A53: Name, Vorname | D53: =(INDEX('Startgeld Damen'!C$4:C$219,MATCH(H53,'Startgeld Damen'!A$4:A$219,0)))&", "&(INDEX('Startgeld Damen'!D$4:D$219,MATCH(H53,'Startgeld Damen'!A$4:A$219,0))) -> , | H53: =H44+1 -> 107
A54: Verein: | D54: =(INDEX('Startgeld Damen'!E$4:E$219,MATCH(H53,'Startgeld Damen'!A$4:A$219,0))) -> 0
A55: Serie | B55: Tisch | C55: Platz | D55: Spielpunkte | E55: gew. | F55: ver.. | G55: v.G. | H55: Gesamtpunkte
A56: 1 | B56: =B38 -> 102 | C56: =C47+1 -> 3
A57: 2 | B57: =IF(B56+C56>I$7,B56+C56-I$7,B56+C56) -> 105 | C57: =C56+1 -> 4
A58: 3 | B58: =IF(B57+C57+1>I$7,B57+C57+1-I$7,B57+C57+1) -> 110 | C58: =C57-3 -> 1
A59: Summe:
A60: zur 2.Serie: 3 Tische +1 Platz weiter (opt. zur 3. Serie: 4 Tische +1 Platz weiter)
A61: zur 2.Serie: 4 Tische +1 Platz weiter (opt. zur 3. Serie: 1 Tisch 1 Platz weiter)
A62: Name, Vorname | D62: =(INDEX('Startgeld Damen'!C$4:C$219,MATCH(H62,'Startgeld Damen'!A$4:A$219,0)))&", "&(INDEX('Startgeld Damen'!D$4:D$219,MATCH(H62,'Startgeld Damen'!A$4:A$219,0))) -> , | H62: =H53+1 -> 108
A63: Verein: | D63: =(INDEX('Startgeld Damen'!E$4:E$219,MATCH(H62,'Startgeld Damen'!A$4:A$219,0))) -> 0
A64: Serie | B64: Tisch | C64: Platz | D64: Spielpunkte | E64: gew. | F64: ver.. | G64: v.G. | H64: Gesamtpunkte
A65: 1 | B65: =B38 -> 102 | C65: =C56+1 -> 4
A66: 2 | B66: =IF(B65+C65+1>I$7,B65+C65+1-I$7,B65+C65+1) -> 107 | C66: =C65+-3 -> 1
A67: 3 | B67: =IF(B66+C66>I$7,B66+C66-I$7,B66+C66) -> 108 | C67: =C66+1 -> 2
A68: Summe:
A69: Name, Vorname | D69: =(INDEX('Startgeld Damen'!C$4:C$219,MATCH(H69,'Startgeld Damen'!A$4:A$219,0)))&", "&(INDEX('Startgeld Damen'!D$4:D$219,MATCH(H69,'Startgeld Damen'!A$4:A$219,0))) -> , | H69: =H62+1 -> 109
A70: Verein: | D70: =(INDEX('Startgeld Damen'!E$4:E$219,MATCH(H69,'Startgeld Damen'!A$4:A$219,0))) -> 0
A71: Serie | B71: Tisch | C71: Platz | D71: Spielpunkte | E71: gew. | F71: ver.. | G71: v.G. | H71: Gesamtpunkte
A72: 1 | B72: =B38+1 -> 103 | C72: =C38 -> 1
A73: 2 | B73: =IF(B72+C72>I$7,B72+C72-I$7,B72+C72) -> 104 | C73: =C72+1 -> 2
A74: 3 | B74: =IF(B73+C73>I$7,B73+C73-I$7,B73+C73) -> 106 | C74: =C73+1 -> 3
A75: Summe:
A76: zur 2.Serie: 1 Tisch +1 Platz weiter (opt. zur 3. Serie: 2 Tische +1 Platz weiter)
A78: Name, Vorname | D78: =(INDEX('Startgeld Damen'!C$4:C$219,MATCH(H78,'Startgeld Damen'!A$4:A$219,0)))&", "&(INDEX('Startgeld Damen'!D$4:D$219,MATCH(H78,'Startgeld Damen'!A$4:A$219,0))) -> , | H78: =H69+1 -> 110
A79: Verein: | D79: =(INDEX('Startgeld Damen'!E$4:E$219,MATCH(H78,'Startgeld Damen'!A$4:A$219,0))) -> 0
A80: Serie | B80: Tisch | C80: Platz | D80: Spielpunkte | E80: gew. | F80: ver.. | G80: v.G. | H80: Gesamtpunkte
A81: 1 | B81: =B72 -> 103 | C81: =C72+1 -> 2
A82: 2 | B82: =IF(B81+C81>I$7,B81+C81-I$7,B81+C81) -> 105 | C82: =C81+1 -> 3
A83: 3 | B83: =IF(B82+C82>I$7,B82+C82-I$7,B82+C82) -> 108 | C83: =C82+1 -> 4
A84: Summe:
A85: zur 2.Serie: 2 Tische +1 Platz weiter (opt. zur 3. Serie: 3 Tische +1 Platz weiter)
A87: Name, Vorname | D87: =(INDEX('Startgeld Damen'!C$4:C$219,MATCH(H87,'Startgeld Damen'!A$4:A$219,0)))&", "&(INDEX('Startgeld Damen'!D$4:D$219,MATCH(H87,'Startgeld Damen'!A$4:A$219,0))) -> , | H87: =H78+1 -> 111
A88: Verein: | D88: =(INDEX('Startgeld Damen'!E$4:E$219,MATCH(H87,'Startgeld Damen'!A$4:A$219,0))) -> 0
A89: Serie | B89: Tisch | C89: Platz | D89: Spielpunkte | E89: gew. | F89: ver.. | G89: v.G. | H89: Gesamtpunkte
A90: 1 | B90: =B72 -> 103 | C90: =C81+1 -> 3
A91: 2 | B91: =IF(B90+C90>I$7,B90+C90-I$7,B90+C90) -> 106 | C91: =C90+1 -> 4
A92: 3 | B92: =IF(B91+C91+1>I$7,B91+C91+1-I$7,B91+C91+1) -> 111 | C92: =C91-3 -> 1
A93: Summe:
A94: zur 2.Serie: 3 Tische +1 Platz weiter (opt. zur 3. Serie: 4 Tische +1 Platz weiter)
A95: zur 2.Serie: 4 Tische +1 Platz weiter (opt. zur 3. Serie: 1 Tisch 1 Platz weiter)
A96: Name, Vorname | D96: =(INDEX('Startgeld Damen'!C$4:C$219,MATCH(H96,'Startgeld Damen'!A$4:A$219,0)))&", "&(INDEX('Startgeld Damen'!D$4:D$219,MATCH(H96,'Startgeld Damen'!A$4:A$219,0))) -> , | H96: =H87+1 -> 112
A97: Verein: | D97: =(INDEX('Startgeld Damen'!E$4:E$219,MATCH(H96,'Startgeld Damen'!A$4:A$219,0))) -> 0
A98: Serie | B98: Tisch | C98: Platz | D98: Spielpunkte | E98: gew. | F98: ver.. | G98: v.G. | H98: Gesamtpunkte
A99: 1 | B99: =B72 -> 103 | C99: =C90+1 -> 4
A100: 2 | B100: =IF(B99+C99+1>I$7,B99+C99+1-I$7,B99+C99+1) -> 108 | C100: =C99-3 -> 1
A101: 3 | B101: =IF(B100+C100>I$7,B100+C100-I$7,B100+C100) -> 109 | C101: =C100+1 -> 2
A102: Summe:
A103: Name, Vorname | D103: =(INDEX('Startgeld Damen'!C$4:C$219,MATCH(H103,'Startgeld Damen'!A$4:A$219,0)))&", "&(INDEX('Startgeld Damen'!D$4:D$219,MATCH(H103,'Startgeld Damen'!A$4:A$219,0))) -> , | H103: =H96+1 -> 113
A104: Verein: | D104: =(INDEX('Startgeld Damen'!E$4:E$219,MATCH(H103,'Startgeld Damen'!A$4:A$219,0))) -> 0
A105: Serie | B105: Tisch | C105: Platz | D105: Spielpunkte | E105: gew. | F105: ver.. | G105: v.G. | H105: Gesamtpunkte
A106: 1 | B106: =B72+1 -> 104 | C106: =C72 -> 1
A107: 2 | B107: =IF(B106+C106>I$7,B106+C106-I$7,B106+C106) -> 105 | C107: =C106+1 -> 2
A108: 3 | B108: =IF(B107+C107>I$7,B107+C107-I$7,B107+C107) -> 107 | C108: =C107+1 -> 3
A109: Summe:
A110: zur 2.Serie: 1 Tisch +1 Platz weiter (opt. zur 3. Serie: 2 Tische +1 Platz weiter)
A112: Name, Vorname | D112: =(INDEX('Startgeld Damen'!C$4:C$219,MATCH(H112,'Startgeld Damen'!A$4:A$219,0)))&", "&(INDEX('Startgeld Damen'!D$4:D$219,MATCH(H112,'Startgeld Damen'!A$4:A$219,0))) -> , | H112: =H103+1 -> 114
A113: Verein: | D113: =(INDEX('Startgeld Damen'!E$4:E$219,MATCH(H112,'Startgeld Damen'!A$4:A$219,0))) -> 0
A114: Serie | B114: Tisch | C114: Platz | D114: Spielpunkte | E114: gew. | F114: ver.. | G114: v.G. | H114: Gesamtpunkte
A115: 1 | B115: =B106 -> 104 | C115: =C106+1 -> 2
A116: 2 | B116: =IF(B115+C115>I$7,B115+C115-I$7,B115+C115) -> 106 | C116: =C115+1 -> 3
A117: 3 | B117: =IF(B116+C116>I$7,B116+C116-I$7,B116+C116) -> 109 | C117: =C116+1 -> 4
A118: Summe:
A119: zur 2.Serie: 2 Tische +1 Platz weiter (opt. zur 3. Serie: 3 Tische +1 Platz weiter)
A121: Name, Vorname | D121: =(INDEX('Startgeld Damen'!C$4:C$219,MATCH(H121,'Startgeld Damen'!A$4:A$219,0)))&", "&(INDEX('Startgeld Damen'!D$4:D$219,MATCH(H121,'Startgeld Damen'!A$4:A$219,0))) -> , | H121: =H112+1 -> 115
A122: Verein: | D122: =(INDEX('Startgeld Damen'!E$4:E$219,MATCH(H121,'Startgeld Damen'!A$4:A$219,0))) -> 0
A123: Serie | B123: Tisch | C123: Platz | D123: Spielpunkte | E123: gew. | F123: ver.. | G123: v.G. | H123: Gesamtpunkte
A124: 1 | B124: =B106 -> 104 | C124: =C115+1 -> 3
A125: 2 | B125: =IF(B124+C124>I$7,B124+C124-I$7,B124+C124) -> 107 | C125: =C124+1 -> 4
A126: 3 | B126: =IF(B125+C125+1>I$7,B125+C125+1-I$7,B125+C125+1) -> 112 | C126: =C125-3 -> 1
A127: Summe:
A128: zur 2.Serie: 3 Tische +1 Platz weiter (opt. zur 3. Serie: 4 Tische +1 Platz weiter)
A129: zur 2.Serie: 4 Tische +1 Platz weiter (opt. zur 3. Serie: 1 Tisch 1 Platz weiter)
A130: Name, Vorname | D130: =(INDEX('Startgeld Damen'!C$4:C$219,MATCH(H130,'Startgeld Damen'!A$4:A$219,0)))&", "&(INDEX('Startgeld Damen'!D$4:D$219,MATCH(H130,'Startgeld Damen'!A$4:A$219,0))) -> , | H130: =H121+1 -> 116
A131: Verein: | D131: =(INDEX('Startgeld Damen'!E$4:E$219,MATCH(H130,'Startgeld Damen'!A$4:A$219,0))) -> 0
A132: Serie | B132: Tisch | C132: Platz | D132: Spielpunkte | E132: gew. | F132: ver.. | G132: v.G. | H132: Gesamtpunkte
A133: 1 | B133: =B106 -> 104 | C133: =C124+1 -> 4
A134: 2 | B134: =IF(B133+C133+1>I$7,B133+C133+1-I$7,B133+C133+1) -> 109 | C134: =C133-3 -> 1
A135: 3 | B135: =IF(B134+C134>I$7,B134+C134-I$7,B134+C134) -> 110 | C135: =C134+1 -> 2
A136: Summe:
A137: Name, Vorname | D137: =(INDEX('Startgeld Damen'!C$4:C$219,MATCH(H137,'Startgeld Damen'!A$4:A$219,0)))&", "&(INDEX('Startgeld Damen'!D$4:D$219,MATCH(H137,'Startgeld Damen'!A$4:A$219,0))) -> , | H137: =H130+1 -> 117
A138: Verein: | D138: =(INDEX('Startgeld Damen'!E$4:E$219,MATCH(H137,'Startgeld Damen'!A$4:A$219,0))) -> 0
A139: Serie | B139: Tisch | C139: Platz | D139: Spielpunkte | E139: gew. | F139: ver.. | G139: v.G. | H139: Gesamtpunkte
A140: 1 | B140: =B106+1 -> 105 | C140: =C106 -> 1
A141: 2 | B141: =IF(B140+C140>I$7,B140+C140-I$7,B140+C140) -> 106 | C141: =C140+1 -> 2
A142: 3 | B142: =IF(B141+C141>I$7,B141+C141-I$7,B141+C141) -> 108 | C142: =C141+1 -> 3
A143: Summe:
A144: zur 2.Serie: 1 Tisch +1 Platz weiter (opt. zur 3. Serie: 2 Tische +1 Platz weiter)
A146: Name, Vorname | D146: =(INDEX('Startgeld Damen'!C$4:C$219,MATCH(H146,'Startgeld Damen'!A$4:A$219,0)))&", "&(INDEX('Startgeld Damen'!D$4:D$219,MATCH(H146,'Startgeld Damen'!A$4:A$219,0))) -> , | H146: =H137+1 -> 118
A147: Verein: | D147: =(INDEX('Startgeld Damen'!E$4:E$219,MATCH(H146,'Startgeld Damen'!A$4:A$219,0))) -> 0
A148: Serie | B148: Tisch | C148: Platz | D148: Spielpunkte | E148: gew. | F148: ver.. | G148: v.G. | H148: Gesamtpunkte
A149: 1 | B149: =B140 -> 105 | C149: =C140+1 -> 2
A150: 2 | B150: =IF(B149+C149>I$7,B149+C149-I$7,B149+C149) -> 107 | C150: =C149+1 -> 3
A151: 3 | B151: =IF(B150+C150>I$7,B150+C150-I$7,B150+C150) -> 110 | C151: =C150+1 -> 4
A152: Summe:
A153: zur 2.Serie: 2 Tische +1 Platz weiter (opt. zur 3. Serie: 3 Tische +1 Platz weiter)
A155: Name, Vorname | D155: =(INDEX('Startgeld Damen'!C$4:C$219,MATCH(H155,'Startgeld Damen'!A$4:A$219,0)))&", "&(INDEX('Startgeld Damen'!D$4:D$219,MATCH(H155,'Startgeld Damen'!A$4:A$219,0))) -> , | H155: =H146+1 -> 119
A156: Verein: | D156: =(INDEX('Startgeld Damen'!E$4:E$219,MATCH(H155,'Startgeld Damen'!A$4:A$219,0))) -> 0
A157: Serie | B157: Tisch | C157: Platz | D157: Spielpunkte | E157: gew. | F157: ver.. | G157: v.G. | H157: Gesamtpunkte
A158: 1 | B158: =B140 -> 105 | C158: =C149+1 -> 3
A159: 2 | B159: =IF(B158+C158>I$7,B158+C158-I$7,B158+C158) -> 108 | C159: =C158+1 -> 4
A160: 3 | B160: =IF(B159+C159+1>I$7,B159+C159+1-I$7,B159+C159+1) -> 113 | C160: =C159-3 -> 1
A161: Summe:
A162: zur 2.Serie: 3 Tische +1 Platz weiter (opt. zur 3. Serie: 4 Tische +1 Platz weiter)
A163: zur 2.Serie: 4 Tische +1 Platz weiter (opt. zur 3. Serie: 1 Tisch 1 Platz weiter)
A164: Name, Vorname | D164: =(INDEX('Startgeld Damen'!C$4:C$219,MATCH(H164,'Startgeld Damen'!A$4:A$219,0)))&", "&(INDEX('Startgeld Damen'!D$4:D$219,MATCH(H164,'Startgeld Damen'!A$4:A$219,0))) -> , | H164: =H155+1 -> 120
A165: Verein: | D165: =(INDEX('Startgeld Damen'!E$4:E$219,MATCH(H164,'Startgeld Damen'!A$4:A$219,0))) -> 0
A166: Serie | B166: Tisch | C166: Platz | D166: Spielpunkte | E166: gew. | F166: ver.. | G166: v.G. | H166: Gesamtpunkte
A167: 1 | B167: =B140 -> 105 | C167: =C158+1 -> 4
A168: 2 | B168: =IF(B167+C167+1>I$7,B167+C167+1-I$7,B167+C167+1) -> 110 | C168: =C167-3 -> 1
A169: 3 | B169: =IF(B168+C168>I$7,B168+C168-I$7,B168+C168) -> 111 | C169: =C168+1 -> 2
A170: Summe:
A171: Name, Vorname | D171: =(INDEX('Startgeld Damen'!C$4:C$219,MATCH(H171,'Startgeld Damen'!A$4:A$219,0)))&", "&(INDEX('Startgeld Damen'!D$4:D$219,MATCH(H171,'Startgeld Damen'!A$4:A$219,0))) -> , | H171: =H164+1 -> 121
A172: Verein: | D172: =(INDEX('Startgeld Damen'!E$4:E$219,MATCH(H171,'Startgeld Damen'!A$4:A$219,0))) -> 0
A173: Serie | B173: Tisch | C173: Platz | D173: Spielpunkte | E173: gew. | F173: ver.. | G173: v.G. | H173: Gesamtpunkte
A174: 1 | B174: =B140+1 -> 106 | C174: =C140 -> 1
A175: 2 | B175: =IF(B174+C174>I$7,B174+C174-I$7,B174+C174) -> 107 | C175: =C174+1 -> 2
A176: 3 | B176: =IF(B175+C175>I$7,B175+C175-I$7,B175+C175) -> 109 | C176: =C175+1 -> 3
A177: Summe:
A178: zur 2.Serie: 1 Tisch +1 Platz weiter (opt. zur 3. Serie: 2 Tische +1 Platz weiter)
A180: Name, Vorname | D180: =(INDEX('Startgeld Damen'!C$4:C$219,MATCH(H180,'Startgeld Damen'!A$4:A$219,0)))&", "&(INDEX('Startgeld Damen'!D$4:D$219,MATCH(H180,'Startgeld Damen'!A$4:A$219,0))) -> , | H180: =H171+1 -> 122
A181: Verein: | D181: =(INDEX('Startgeld Damen'!E$4:E$219,MATCH(H180,'Startgeld Damen'!A$4:A$219,0))) -> 0
A182: Serie | B182: Tisch | C182: Platz | D182: Spielpunkte | E182: gew. | F182: ver.. | G182: v.G. | H182: Gesamtpunkte
A183: 1 | B183: =B174 -> 106 | C183: =C174+1 -> 2
A184: 2 | B184: =IF(B183+C183>I$7,B183+C183-I$7,B183+C183) -> 108 | C184: =C183+1 -> 3
A185: 3 | B185: =IF(B184+C184>I$7,B184+C184-I$7,B184+C184) -> 111 | C185: =C184+1 -> 4
A186: Summe:
A187: zur 2.Serie: 2 Tische +1 Platz weiter (opt. zur 3. Serie: 3 Tische +1 Platz weiter)
A189: Name, Vorname | D189: =(INDEX('Startgeld Damen'!C$4:C$219,MATCH(H189,'Startgeld Damen'!A$4:A$219,0)))&", "&(INDEX('Startgeld Damen'!D$4:D$219,MATCH(H189,'Startgeld Damen'!A$4:A$219,0))) -> , | H189: =H180+1 -> 123
A190: Verein: | D190: =(INDEX('Startgeld Damen'!E$4:E$219,MATCH(H189,'Startgeld Damen'!A$4:A$219,0))) -> 0
A191: Serie | B191: Tisch | C191: Platz | D191: Spielpunkte | E191: gew. | F191: ver.. | G191: v.G. | H191: Gesamtpunkte
A192: 1 | B192: =B174 -> 106 | C192: =C183+1 -> 3
A193: 2 | B193: =IF(B192+C192>I$7,B192+C192-I$7,B192+C192) -> 109 | C193: =C192+1 -> 4
A194: 3 | B194: =IF(B193+C193+1>I$7,B193+C193+1-I$7,B193+C193+1) -> 114 | C194: =C193-3 -> 1
A195: Summe:
A196: zur 2.Serie: 3 Tische +1 Platz weiter (opt. zur 3. Serie: 4 Tische +1 Platz weiter)
A197: zur 2.Serie: 4 Tische +1 Platz weiter (opt. zur 3. Serie: 1 Tisch 1 Platz weiter)
A198: Name, Vorname | D198: =(INDEX('Startgeld Damen'!C$4:C$219,MATCH(H198,'Startgeld Damen'!A$4:A$219,0)))&", "&(INDEX('Startgeld Damen'!D$4:D$219,MATCH(H198,'Startgeld Damen'!A$4:A$219,0))) -> , | H198: =H189+1 -> 124
A199: Verein: | D199: =(INDEX('Startgeld Damen'!E$4:E$219,MATCH(H198,'Startgeld Damen'!A$4:A$219,0))) -> 0
A200: Serie | B200: Tisch | C200: Platz | D200: Spielpunkte | E200: gew. | F200: ver.. | G200: v.G. | H200: Gesamtpunkte
A201: 1 | B201: =B174 -> 106 | C201: =C192+1 -> 4
A202: 2 | B202: =IF(B201+C201+1>I$7,B201+C201+1-I$7,B201+C201+1) -> 111 | C202: =C201-3 -> 1
A203: 3 | B203: =IF(B202+C202>I$7,B202+C202-I$7,B202+C202) -> 112 | C203: =C202+1 -> 2
A204: Summe:
A205: Name, Vorname | D205: =(INDEX('Startgeld Damen'!C$4:C$219,MATCH(H205,'Startgeld Damen'!A$4:A$219,0)))&", "&(INDEX('Startgeld Damen'!D$4:D$219,MATCH(H205,'Startgeld Damen'!A$4:A$219,0))) -> , | H205: =H198+1 -> 125
A206: Verein: | D206: =(INDEX('Startgeld Damen'!E$4:E$219,MATCH(H205,'Startgeld Damen'!A$4:A$219,0))) -> 0
A207: Serie | B207: Tisch | C207: Platz | D207: Spielpunkte | E207: gew. | F207: ver.. | G207: v.G. | H207: Gesamtpunkte
A208: 1 | B208: =B174+1 -> 107 | C208: =C174 -> 1
A209: 2 | B209: =IF(B208+C208>I$7,B208+C208-I$7,B208+C208) -> 108 | C209: =C208+1 -> 2
A210: 3 | B210: =IF(B209+C209>I$7,B209+C209-I$7,B209+C209) -> 110 | C210: =C209+1 -> 3
A211: Summe:
A212: zur 2.Serie: 1 Tisch +1 Platz weiter (opt. zur 3. Serie: 2 Tische +1 Platz weiter)
... 184 more rows

Sheet StaKa E 3 S. Herren
A1: Name, Vorname | D1: =(INDEX('Startgeld Herren'!C$4:C$219,MATCH(H1,'Startgeld Herren'!A$4:A$219,0)))&", "&(INDEX('Startgeld Herren'!D$4:D$219,MATCH(H1,'Startgeld Herren'!A$4:A$219,0))) -> Wumpe, Fridolin | H1: =I4 -> 201 | J1: Auf Druckeinstellung achten!
A2: Verein: | D2: =(INDEX('Startgeld Herren'!E$4:E$219,MATCH(H1,'Startgeld Herren'!A$4:A$219,0))) -> Recklinghausen | J2: Ob eine oder 2 Seiten je Blatt!
A3: Serie | B3: Tisch | C3: Platz | D3: Spielpunkte | E3: gew. | F3: ver.. | G3: v.G. | H3: Gesamtpunkte | J3: Achtung! Hier nur 48 Spieler!
A4: 1 | B4: =I6 -> 201 | C4: 1 | I4: 201 | J4: nächster Spieler dann 249
A5: 2 | B5: =IF(B4+C4>I$7,B4+C4-I$7,B4+C4) -> 202 | C5: =C4+1 -> 2 | J5: Den Tisch jeweils um 12 erhöhen!
A6: 3 | B6: =IF(B5+C5>I$7,B5+C5-I$7,B5+C5) -> 204 | C6: =C5+1 -> 3 | I6: 201 | J6: nächster Tisch dann 213
A7: Summe: | J7: tatsächliche Tischanzahl bei den
A8: zur 2.Serie: 1 Tisch +1 Platz weiter (opt. zur 3. Serie: 2 Tische +1 Platz weiter) | J8: übersteigenden abziehen!
A10: Name, Vorname | D10: =(INDEX('Startgeld Herren'!C$4:C$219,MATCH(H10,'Startgeld Herren'!A$4:A$219,0)))&", "&(INDEX('Startgeld Herren'!D$4:D$219,MATCH(H10,'Startgeld Herren'!A$4:A$219,0))) -> , | H10: =H1+1 -> 202
A11: Verein: | D11: =(INDEX('Startgeld Herren'!E$4:E$219,MATCH(H10,'Startgeld Herren'!A$4:A$219,0))) -> 0
A12: Serie | B12: Tisch | C12: Platz | D12: Spielpunkte | E12: gew. | F12: ver.. | G12: v.G. | H12: Gesamtpunkte
A13: 1 | B13: =B4 -> 201 | C13: =C4+1 -> 2
A14: 2 | B14: =IF(B13+C13>I$7,B13+C13-I$7,B13+C13) -> 203 | C14: =C13+1 -> 3
A15: 3 | B15: =IF(B14+C14>I$7,B14+C14-I$7,B14+C14) -> 206 | C15: =C14+1 -> 4
A16: Summe:
A17: zur 2.Serie: 2 Tische +1 Platz weiter (opt. zur 3. Serie: 3 Tische +1 Platz weiter)
A19: Name, Vorname | D19: =(INDEX('Startgeld Herren'!C$4:C$219,MATCH(H19,'Startgeld Herren'!A$4:A$219,0)))&", "&(INDEX('Startgeld Herren'!D$4:D$219,MATCH(H19,'Startgeld Herren'!A$4:A$219,0))) -> , | H19: =H10+1 -> 203
A20: Verein: | D20: =(INDEX('Startgeld Herren'!E$4:E$219,MATCH(H19,'Startgeld Herren'!A$4:A$219,0))) -> 0
A21: Serie | B21: Tisch | C21: Platz | D21: Spielpunkte | E21: gew. | F21: ver.. | G21: v.G. | H21: Gesamtpunkte
A22: 1 | B22: =B4 -> 201 | C22: =C13+1 -> 3
A23: 2 | B23: =IF(B22+C22>I$7,B22+C22-I$7,B22+C22) -> 204 | C23: =C22+1 -> 4
A24: 3 | B24: =IF(B23+C23+1>I$7,B23+C23+1-I$7,B23+C23+1) -> 209 | C24: =C23-3 -> 1
A25: Summe:
A26: zur 2.Serie: 3 Tische +1 Platz weiter (opt. zur 3. Serie: 4 Tische +1 Platz weiter)
A27: zur 2.Serie: 4 Tische +1 Platz weiter (opt. zur 3. Serie: 1 Tisch 1 Platz weiter)
A28: Name, Vorname | D28: =(INDEX('Startgeld Herren'!C$4:C$219,MATCH(H28,'Startgeld Herren'!A$4:A$219,0)))&", "&(INDEX('Startgeld Herren'!D$4:D$219,MATCH(H28,'Startgeld Herren'!A$4:A$219,0))) -> , | H28: =H19+1 -> 204
A29: Verein: | D29: =(INDEX('Startgeld Herren'!E$4:E$219,MATCH(H28,'Startgeld Herren'!A$4:A$219,0))) -> 0
A30: Serie | B30: Tisch | C30: Platz | D30: Spielpunkte | E30: gew. | F30: ver.. | G30: v.G. | H30: Gesamtpunkte
A31: 1 | B31: =B4 -> 201 | C31: =C22+1 -> 4
A32: 2 | B32: =IF(B31+C31+1>I$7,B31+C31+1-I$7,B31+C31+1) -> 206 | C32: =C31+-3 -> 1
A33: 3 | B33: =IF(B32+C32>I$7,B32+C32-I$7,B32+C32) -> 207 | C33: =C32+1 -> 2
A34: Summe:
A35: Name, Vorname | D35: =(INDEX('Startgeld Herren'!C$4:C$219,MATCH(H35,'Startgeld Herren'!A$4:A$219,0)))&", "&(INDEX('Startgeld Herren'!D$4:D$219,MATCH(H35,'Startgeld Herren'!A$4:A$219,0))) -> , | H35: =H28+1 -> 205
A36: Verein: | D36: =(INDEX('Startgeld Herren'!E$4:E$219,MATCH(H35,'Startgeld Herren'!A$4:A$219,0))) -> 0
A37: Serie | B37: Tisch | C37: Platz | D37: Spielpunkte | E37: gew. | F37: ver.. | G37: v.G. | H37: Gesamtpunkte
A38: 1 | B38: =B4+1 -> 202 | C38: =C4 -> 1
A39: 2 | B39: =IF(B38+C38>I$7,B38+C38-I$7,B38+C38) -> 203 | C39: =C38+1 -> 2
A40: 3 | B40: =IF(B39+C39>I$7,B39+C39-I$7,B39+C39) -> 205 | C40: =C39+1 -> 3
A41: Summe:
A42: zur 2.Serie: 1 Tisch +1 Platz weiter (opt. zur 3. Serie: 2 Tische +1 Platz weiter)
A44: Name, Vorname | D44: =(INDEX('Startgeld Herren'!C$4:C$219,MATCH(H44,'Startgeld Herren'!A$4:A$219,0)))&", "&(INDEX('Startgeld Herren'!D$4:D$219,MATCH(H44,'Startgeld Herren'!A$4:A$219,0))) -> , | H44: =H35+1 -> 206
A45: Verein: | D45: =(INDEX('Startgeld Herren'!E$4:E$219,MATCH(H44,'Startgeld Herren'!A$4:A$219,0))) -> 0
A46: Serie | B46: Tisch | C46: Platz | D46: Spielpunkte | E46: gew. | F46: ver.. | G46: v.G. | H46: Gesamtpunkte
A47: 1 | B47: =B38 -> 202 | C47: =C38+1 -> 2
A48: 2 | B48: =IF(B47+C47>I$7,B47+C47-I$7,B47+C47) -> 204 | C48: =C47+1 -> 3
A49: 3 | B49: =IF(B48+C48>I$7,B48+C48-I$7,B48+C48) -> 207 | C49: =C48+1 -> 4
A50: Summe:
A51: zur 2.Serie: 2 Tische +1 Platz weiter (opt. zur 3. Serie: 3 Tische +1 Platz weiter)
A53: Name, Vorname | D53: =(INDEX('Startgeld Herren'!C$4:C$219,MATCH(H53,'Startgeld Herren'!A$4:A$219,0)))&", "&(INDEX('Startgeld Herren'!D$4:D$219,MATCH(H53,'Startgeld Herren'!A$4:A$219,0))) -> , | H53: =H44+1 -> 207
A54: Verein: | D54: =(INDEX('Startgeld Herren'!E$4:E$219,MATCH(H53,'Startgeld Herren'!A$4:A$219,0))) -> 0
A55: Serie | B55: Tisch | C55: Platz | D55: Spielpunkte | E55: gew. | F55: ver.. | G55: v.G. | H55: Gesamtpunkte
A56: 1 | B56: =B38 -> 202 | C56: =C47+1 -> 3
A57: 2 | B57: =IF(B56+C56>I$7,B56+C56-I$7,B56+C56) -> 205 | C57: =C56+1 -> 4
A58: 3 | B58: =IF(B57+C57+1>I$7,B57+C57+1-I$7,B57+C57+1) -> 210 | C58: =C57-3 -> 1
A59: Summe:
A60: zur 2.Serie: 3 Tische +1 Platz weiter (opt. zur 3. Serie: 4 Tische +1 Platz weiter)
A61: zur 2.Serie: 4 Tische +1 Platz weiter (opt. zur 3. Serie: 1 Tisch 1 Platz weiter)
A62: Name, Vorname | D62: =(INDEX('Startgeld Herren'!C$4:C$219,MATCH(H62,'Startgeld Herren'!A$4:A$219,0)))&", "&(INDEX('Startgeld Herren'!D$4:D$219,MATCH(H62,'Startgeld Herren'!A$4:A$219,0))) -> , | H62: =H53+1 -> 208
A63: Verein: | D63: =(INDEX('Startgeld Herren'!E$4:E$219,MATCH(H62,'Startgeld Herren'!A$4:A$219,0))) -> 0
A64: Serie | B64: Tisch | C64: Platz | D64: Spielpunkte | E64: gew. | F64: ver.. | G64: v.G. | H64: Gesamtpunkte
A65: 1 | B65: =B38 -> 202 | C65: =C56+1 -> 4
A66: 2 | B66: =IF(B65+C65+1>I$7,B65+C65+1-I$7,B65+C65+1) -> 207 | C66: =C65+-3 -> 1
A67: 3 | B67: =IF(B66+C66>I$7,B66+C66-I$7,B66+C66) -> 208 | C67: =C66+1 -> 2
A68: Summe:
A69: Name, Vorname | D69: =(INDEX('Startgeld Herren'!C$4:C$219,MATCH(H69,'Startgeld Herren'!A$4:A$219,0)))&", "&(INDEX('Startgeld Herren'!D$4:D$219,MATCH(H69,'Startgeld Herren'!A$4:A$219,0))) -> , | H69: =H62+1 -> 209
A70: Verein: | D70: =(INDEX('Startgeld Herren'!E$4:E$219,MATCH(H69,'Startgeld Herren'!A$4:A$219,0))) -> 0
A71: Serie | B71: Tisch | C71: Platz | D71: Spielpunkte | E71: gew. | F71: ver.. | G71: v.G. | H71: Gesamtpunkte
A72: 1 | B72: =B38+1 -> 203 | C72: =C38 -> 1
A73: 2 | B73: =IF(B72+C72>I$7,B72+C72-I$7,B72+C72) -> 204 | C73: =C72+1 -> 2
A74: 3 | B74: =IF(B73+C73>I$7,B73+C73-I$7,B73+C73) -> 206 | C74: =C73+1 -> 3
A75: Summe:
A76: zur 2.Serie: 1 Tisch +1 Platz weiter (opt. zur 3. Serie: 2 Tische +1 Platz weiter)
A78: Name, Vorname | D78: =(INDEX('Startgeld Herren'!C$4:C$219,MATCH(H78,'Startgeld Herren'!A$4:A$219,0)))&", "&(INDEX('Startgeld Herren'!D$4:D$219,MATCH(H78,'Startgeld Herren'!A$4:A$219,0))) -> , | H78: =H69+1 -> 210
A79: Verein: | D79: =(INDEX('Startgeld Herren'!E$4:E$219,MATCH(H78,'Startgeld Herren'!A$4:A$219,0))) -> 0
A80: Serie | B80: Tisch | C80: Platz | D80: Spielpunkte | E80: gew. | F80: ver.. | G80: v.G. | H80: Gesamtpunkte
A81: 1 | B81: =B72 -> 203 | C81: =C72+1 -> 2
A82: 2 | B82: =IF(B81+C81>I$7,B81+C81-I$7,B81+C81) -> 205 | C82: =C81+1 -> 3
A83: 3 | B83: =IF(B82+C82>I$7,B82+C82-I$7,B82+C82) -> 208 | C83: =C82+1 -> 4
A84: Summe:
A85: zur 2.Serie: 2 Tische +1 Platz weiter (opt. zur 3. Serie: 3 Tische +1 Platz weiter)
A87: Name, Vorname | D87: =(INDEX('Startgeld Herren'!C$4:C$219,MATCH(H87,'Startgeld Herren'!A$4:A$219,0)))&", "&(INDEX('Startgeld Herren'!D$4:D$219,MATCH(H87,'Startgeld Herren'!A$4:A$219,0))) -> , | H87: =H78+1 -> 211
A88: Verein: | D88: =(INDEX('Startgeld Herren'!E$4:E$219,MATCH(H87,'Startgeld Herren'!A$4:A$219,0))) -> 0
A89: Serie | B89: Tisch | C89: Platz | D89: Spielpunkte | E89: gew. | F89: ver.. | G89: v.G. | H89: Gesamtpunkte
A90: 1 | B90: =B72 -> 203 | C90: =C81+1 -> 3
A91: 2 | B91: =IF(B90+C90>I$7,B90+C90-I$7,B90+C90) -> 206 | C91: =C90+1 -> 4
A92: 3 | B92: =IF(B91+C91+1>I$7,B91+C91+1-I$7,B91+C91+1) -> 211 | C92: =C91-3 -> 1
A93: Summe:
A94: zur 2.Serie: 3 Tische +1 Platz weiter (opt. zur 3. Serie: 4 Tische +1 Platz weiter)
A95: zur 2.Serie: 4 Tische +1 Platz weiter (opt. zur 3. Serie: 1 Tisch 1 Platz weiter)
A96: Name, Vorname | D96: =(INDEX('Startgeld Herren'!C$4:C$219,MATCH(H96,'Startgeld Herren'!A$4:A$219,0)))&", "&(INDEX('Startgeld Herren'!D$4:D$219,MATCH(H96,'Startgeld Herren'!A$4:A$219,0))) -> , | H96: =H87+1 -> 212
A97: Verein: | D97: =(INDEX('Startgeld Herren'!E$4:E$219,MATCH(H96,'Startgeld Herren'!A$4:A$219,0))) -> 0
A98: Serie | B98: Tisch | C98: Platz | D98: Spielpunkte | E98: gew. | F98: ver.. | G98: v.G. | H98: Gesamtpunkte
A99: 1 | B99: =B72 -> 203 | C99: =C90+1 -> 4
A100: 2 | B100: =IF(B99+C99+1>I$7,B99+C99+1-I$7,B99+C99+1) -> 208 | C100: =C99-3 -> 1
A101: 3 | B101: =IF(B100+C100>I$7,B100+C100-I$7,B100+C100) -> 209 | C101: =C100+1 -> 2
A102: Summe:
A103: Name, Vorname | D103: =(INDEX('Startgeld Herren'!C$4:C$219,MATCH(H103,'Startgeld Herren'!A$4:A$219,0)))&", "&(INDEX('Startgeld Herren'!D$4:D$219,MATCH(H103,'Startgeld Herren'!A$4:A$219,0))) -> , | H103: =H96+1 -> 213
A104: Verein: | D104: =(INDEX('Startgeld Herren'!E$4:E$219,MATCH(H103,'Startgeld Herren'!A$4:A$219,0))) -> 0
A105: Serie | B105: Tisch | C105: Platz | D105: Spielpunkte | E105: gew. | F105: ver.. | G105: v.G. | H105: Gesamtpunkte
A106: 1 | B106: =B72+1 -> 204 | C106: =C72 -> 1
A107: 2 | B107: =IF(B106+C106>I$7,B106+C106-I$7,B106+C106) -> 205 | C107: =C106+1 -> 2
A108: 3 | B108: =IF(B107+C107>I$7,B107+C107-I$7,B107+C107) -> 207 | C108: =C107+1 -> 3
A109: Summe:
A110: zur 2.Serie: 1 Tisch +1 Platz weiter (opt. zur 3. Serie: 2 Tische +1 Platz weiter)
A112: Name, Vorname | D112: =(INDEX('Startgeld Herren'!C$4:C$219,MATCH(H112,'Startgeld Herren'!A$4:A$219,0)))&", "&(INDEX('Startgeld Herren'!D$4:D$219,MATCH(H112,'Startgeld Herren'!A$4:A$219,0))) -> , | H112: =H103+1 -> 214
A113: Verein: | D113: =(INDEX('Startgeld Herren'!E$4:E$219,MATCH(H112,'Startgeld Herren'!A$4:A$219,0))) -> 0
A114: Serie | B114: Tisch | C114: Platz | D114: Spielpunkte | E114: gew. | F114: ver.. | G114: v.G. | H114: Gesamtpunkte
A115: 1 | B115: =B106 -> 204 | C115: =C106+1 -> 2
A116: 2 | B116: =IF(B115+C115>I$7,B115+C115-I$7,B115+C115) -> 206 | C116: =C115+1 -> 3
A117: 3 | B117: =IF(B116+C116>I$7,B116+C116-I$7,B116+C116) -> 209 | C117: =C116+1 -> 4
A118: Summe:
A119: zur 2.Serie: 2 Tische +1 Platz weiter (opt. zur 3. Serie: 3 Tische +1 Platz weiter)
A121: Name, Vorname | D121: =(INDEX('Startgeld Herren'!C$4:C$219,MATCH(H121,'Startgeld Herren'!A$4:A$219,0)))&", "&(INDEX('Startgeld Herren'!D$4:D$219,MATCH(H121,'Startgeld Herren'!A$4:A$219,0))) -> , | H121: =H112+1 -> 215
A122: Verein: | D122: =(INDEX('Startgeld Herren'!E$4:E$219,MATCH(H121,'Startgeld Herren'!A$4:A$219,0))) -> 0
A123: Serie | B123: Tisch | C123: Platz | D123: Spielpunkte | E123: gew. | F123: ver.. | G123: v.G. | H123: Gesamtpunkte
A124: 1 | B124: =B106 -> 204 | C124: =C115+1 -> 3
A125: 2 | B125: =IF(B124+C124>I$7,B124+C124-I$7,B124+C124) -> 207 | C125: =C124+1 -> 4
A126: 3 | B126: =IF(B125+C125+1>I$7,B125+C125+1-I$7,B125+C125+1) -> 212 | C126: =C125-3 -> 1
A127: Summe:
A128: zur 2.Serie: 3 Tische +1 Platz weiter (opt. zur 3. Serie: 4 Tische +1 Platz weiter)
A129: zur 2.Serie: 4 Tische +1 Platz weiter (opt. zur 3. Serie: 1 Tisch 1 Platz weiter)
A130: Name, Vorname | D130: =(INDEX('Startgeld Herren'!C$4:C$219,MATCH(H130,'Startgeld Herren'!A$4:A$219,0)))&", "&(INDEX('Startgeld Herren'!D$4:D$219,MATCH(H130,'Startgeld Herren'!A$4:A$219,0))) -> , | H130: =H121+1 -> 216
A131: Verein: | D131: =(INDEX('Startgeld Herren'!E$4:E$219,MATCH(H130,'Startgeld Herren'!A$4:A$219,0))) -> 0
A132: Serie | B132: Tisch | C132: Platz | D132: Spielpunkte | E132: gew. | F132: ver.. | G132: v.G. | H132: Gesamtpunkte
A133: 1 | B133: =B106 -> 204 | C133: =C124+1 -> 4
A134: 2 | B134: =IF(B133+C133+1>I$7,B133+C133+1-I$7,B133+C133+1) -> 209 | C134: =C133-3 -> 1
A135: 3 | B135: =IF(B134+C134>I$7,B134+C134-I$7,B134+C134) -> 210 | C135: =C134+1 -> 2
A136: Summe:
A137: Name, Vorname | D137: =(INDEX('Startgeld Herren'!C$4:C$219,MATCH(H137,'Startgeld Herren'!A$4:A$219,0)))&", "&(INDEX('Startgeld Herren'!D$4:D$219,MATCH(H137,'Startgeld Herren'!A$4:A$219,0))) -> , | H137: =H130+1 -> 217
A138: Verein: | D138: =(INDEX('Startgeld Herren'!E$4:E$219,MATCH(H137,'Startgeld Herren'!A$4:A$219,0))) -> 0
A139: Serie | B139: Tisch | C139: Platz | D139: Spielpunkte | E139: gew. | F139: ver.. | G139: v.G. | H139: Gesamtpunkte
A140: 1 | B140: =B106+1 -> 205 | C140: =C106 -> 1
A141: 2 | B141: =IF(B140+C140>I$7,B140+C140-I$7,B140+C140) -> 206 | C141: =C140+1 -> 2
A142: 3 | B142: =IF(B141+C141>I$7,B141+C141-I$7,B141+C141) -> 208 | C142: =C141+1 -> 3
A143: Summe:
A144: zur 2.Serie: 1 Tisch +1 Platz weiter (opt. zur 3. Serie: 2 Tische +1 Platz weiter)
A146: Name, Vorname | D146: =(INDEX('Startgeld Herren'!C$4:C$219,MATCH(H146,'Startgeld Herren'!A$4:A$219,0)))&", "&(INDEX('Startgeld Herren'!D$4:D$219,MATCH(H146,'Startgeld Herren'!A$4:A$219,0))) -> , | H146: =H137+1 -> 218
A147: Verein: | D147: =(INDEX('Startgeld Herren'!E$4:E$219,MATCH(H146,'Startgeld Herren'!A$4:A$219,0))) -> 0
A148: Serie | B148: Tisch | C148: Platz | D148: Spielpunkte | E148: gew. | F148: ver.. | G148: v.G. | H148: Gesamtpunkte
A149: 1 | B149: =B140 -> 205 | C149: =C140+1 -> 2
A150: 2 | B150: =IF(B149+C149>I$7,B149+C149-I$7,B149+C149) -> 207 | C150: =C149+1 -> 3
A151: 3 | B151: =IF(B150+C150>I$7,B150+C150-I$7,B150+C150) -> 210 | C151: =C150+1 -> 4
A152: Summe:
A153: zur 2.Serie: 2 Tische +1 Platz weiter (opt. zur 3. Serie: 3 Tische +1 Platz weiter)
A155: Name, Vorname | D155: =(INDEX('Startgeld Herren'!C$4:C$219,MATCH(H155,'Startgeld Herren'!A$4:A$219,0)))&", "&(INDEX('Startgeld Herren'!D$4:D$219,MATCH(H155,'Startgeld Herren'!A$4:A$219,0))) -> , | H155: =H146+1 -> 219
A156: Verein: | D156: =(INDEX('Startgeld Herren'!E$4:E$219,MATCH(H155,'Startgeld Herren'!A$4:A$219,0))) -> 0
A157: Serie | B157: Tisch | C157: Platz | D157: Spielpunkte | E157: gew. | F157: ver.. | G157: v.G. | H157: Gesamtpunkte
A158: 1 | B158: =B140 -> 205 | C158: =C149+1 -> 3
A159: 2 | B159: =IF(B158+C158>I$7,B158+C158-I$7,B158+C158) -> 208 | C159: =C158+1 -> 4
A160: 3 | B160: =IF(B159+C159+1>I$7,B159+C159+1-I$7,B159+C159+1) -> 213 | C160: =C159-3 -> 1
A161: Summe:
A162: zur 2.Serie: 3 Tische +1 Platz weiter (opt. zur 3. Serie: 4 Tische +1 Platz weiter)
A163: zur 2.Serie: 4 Tische +1 Platz weiter (opt. zur 3. Serie: 1 Tisch 1 Platz weiter)
A164: Name, Vorname | D164: =(INDEX('Startgeld Herren'!C$4:C$219,MATCH(H164,'Startgeld Herren'!A$4:A$219,0)))&", "&(INDEX('Startgeld Herren'!D$4:D$219,MATCH(H164,'Startgeld Herren'!A$4:A$219,0))) -> , | H164: =H155+1 -> 220
A165: Verein: | D165: =(INDEX('Startgeld Herren'!E$4:E$219,MATCH(H164,'Startgeld Herren'!A$4:A$219,0))) -> 0
A166: Serie | B166: Tisch | C166: Platz | D166: Spielpunkte | E166: gew. | F166: ver.. | G166: v.G. | H166: Gesamtpunkte
A167: 1 | B167: =B140 -> 205 | C167: =C158+1 -> 4
A168: 2 | B168: =IF(B167+C167+1>I$7,B167+C167+1-I$7,B167+C167+1) -> 210 | C168: =C167-3 -> 1
A169: 3 | B169: =IF(B168+C168>I$7,B168+C168-I$7,B168+C168) -> 211 | C169: =C168+1 -> 2
A170: Summe:
A171: Name, Vorname | D171: =(INDEX('Startgeld Herren'!C$4:C$219,MATCH(H171,'Startgeld Herren'!A$4:A$219,0)))&", "&(INDEX('Startgeld Herren'!D$4:D$219,MATCH(H171,'Startgeld Herren'!A$4:A$219,0))) -> , | H171: =H164+1 -> 221
A172: Verein: | D172: =(INDEX('Startgeld Herren'!E$4:E$219,MATCH(H171,'Startgeld Herren'!A$4:A$219,0))) -> 0
A173: Serie | B173: Tisch | C173: Platz | D173: Spielpunkte | E173: gew. | F173: ver.. | G173: v.G. | H173: Gesamtpunkte
A174: 1 | B174: =B140+1 -> 206 | C174: =C140 -> 1
A175: 2 | B175: =IF(B174+C174>I$7,B174+C174-I$7,B174+C174) -> 207 | C175: =C174+1 -> 2
A176: 3 | B176: =IF(B175+C175>I$7,B175+C175-I$7,B175+C175) -> 209 | C176: =C175+1 -> 3
A177: Summe:
A178: zur 2.Serie: 1 Tisch +1 Platz weiter (opt. zur 3. Serie: 2 Tische +1 Platz weiter)
A180: Name, Vorname | D180: =(INDEX('Startgeld Herren'!C$4:C$219,MATCH(H180,'Startgeld Herren'!A$4:A$219,0)))&", "&(INDEX('Startgeld Herren'!D$4:D$219,MATCH(H180,'Startgeld Herren'!A$4:A$219,0))) -> , | H180: =H171+1 -> 222
A181: Verein: | D181: =(INDEX('Startgeld Herren'!E$4:E$219,MATCH(H180,'Startgeld Herren'!A$4:A$219,0))) -> 0
A182: Serie | B182: Tisch | C182: Platz | D182: Spielpunkte | E182: gew. | F182: ver.. | G182: v.G. | H182: Gesamtpunkte
A183: 1 | B183: =B174 -> 206 | C183: =C174+1 -> 2
A184: 2 | B184: =IF(B183+C183>I$7,B183+C183-I$7,B183+C183) -> 208 | C184: =C183+1 -> 3
A185: 3 | B185: =IF(B184+C184>I$7,B184+C184-I$7,B184+C184) -> 211 | C185: =C184+1 -> 4
A186: Summe:
A187: zur 2.Serie: 2 Tische +1 Platz weiter (opt. zur 3. Serie: 3 Tische +1 Platz weiter)
A189: Name, Vorname | D189: =(INDEX('Startgeld Herren'!C$4:C$219,MATCH(H189,'Startgeld Herren'!A$4:A$219,0)))&", "&(INDEX('Startgeld Herren'!D$4:D$219,MATCH(H189,'Startgeld Herren'!A$4:A$219,0))) -> , | H189: =H180+1 -> 223
A190: Verein: | D190: =(INDEX('Startgeld Herren'!E$4:E$219,MATCH(H189,'Startgeld Herren'!A$4:A$219,0))) -> 0
A191: Serie | B191: Tisch | C191: Platz | D191: Spielpunkte | E191: gew. | F191: ver.. | G191: v.G. | H191: Gesamtpunkte
A192: 1 | B192: =B174 -> 206 | C192: =C183+1 -> 3
A193: 2 | B193: =IF(B192+C192>I$7,B192+C192-I$7,B192+C192) -> 209 | C193: =C192+1 -> 4
A194: 3 | B194: =IF(B193+C193+1>I$7,B193+C193+1-I$7,B193+C193+1) -> 214 | C194: =C193-3 -> 1
A195: Summe:
A196: zur 2.Serie: 3 Tische +1 Platz weiter (opt. zur 3. Serie: 4 Tische +1 Platz weiter)
A197: zur 2.Serie: 4 Tische +1 Platz weiter (opt. zur 3. Serie: 1 Tisch 1 Platz weiter)
A198: Name, Vorname | D198: =(INDEX('Startgeld Herren'!C$4:C$219,MATCH(H198,'Startgeld Herren'!A$4:A$219,0)))&", "&(INDEX('Startgeld Herren'!D$4:D$219,MATCH(H198,'Startgeld Herren'!A$4:A$219,0))) -> , | H198: =H189+1 -> 224
A199: Verein: | D199: =(INDEX('Startgeld Herren'!E$4:E$219,MATCH(H198,'Startgeld Herren'!A$4:A$219,0))) -> 0
A200: Serie | B200: Tisch | C200: Platz | D200: Spielpunkte | E200: gew. | F200: ver.. | G200: v.G. | H200: Gesamtpunkte
A201: 1 | B201: =B174 -> 206 | C201: =C192+1 -> 4
A202: 2 | B202: =IF(B201+C201+1>I$7,B201+C201+1-I$7,B201+C201+1) -> 211 | C202: =C201-3 -> 1
A203: 3 | B203: =IF(B202+C202>I$7,B202+C202-I$7,B202+C202) -> 212 | C203: =C202+1 -> 2
A204: Summe:
A205: Name, Vorname | D205: =(INDEX('Startgeld Herren'!C$4:C$219,MATCH(H205,'Startgeld Herren'!A$4:A$219,0)))&", "&(INDEX('Startgeld Herren'!D$4:D$219,MATCH(H205,'Startgeld Herren'!A$4:A$219,0))) -> , | H205: =H198+1 -> 225
A206: Verein: | D206: =(INDEX('Startgeld Herren'!E$4:E$219,MATCH(H205,'Startgeld Herren'!A$4:A$219,0))) -> 0
A207: Serie | B207: Tisch | C207: Platz | D207: Spielpunkte | E207: gew. | F207: ver.. | G207: v.G. | H207: Gesamtpunkte
A208: 1 | B208: =B174+1 -> 207 | C208: =C174 -> 1
A209: 2 | B209: =IF(B208+C208>I$7,B208+C208-I$7,B208+C208) -> 208 | C209: =C208+1 -> 2
A210: 3 | B210: =IF(B209+C209>I$7,B209+C209-I$7,B209+C209) -> 210 | C210: =C209+1 -> 3
A211: Summe:
A212: zur 2.Serie: 1 Tisch +1 Platz weiter (opt. zur 3. Serie: 2 Tische +1 Platz weiter)
... 184 more rows

Sheet Startgeld Damen
A1: Turnier: | C1: Veranstaltung | E1: Datum | F1: H | G1: ja | H1: ja | I1: ja | J1: Einzel: | K1: Tandem: | L1: Mixed: | M1: 15 | O1: 15
A2: Summe: | F2: D | G2: E | H2: T | I2: M | J2: =SUM(J4:J219) -> 720 | K2: =SUM(K4:K219) -> 0 | L2: =SUM(L4:L219) -> 15
A3: Start Nr.: | C3: Name: | E3: Verein: | F3: S | G3: 1 | H3: Nr | I3: Nr | J3: =COUNT(G4:G219) -> 48 | K3: =COUNT(H4:H219) -> 0 | L3: =COUNT(I4:I219) -> 1
A4: 101 | C4: Pöppel | D4: Susanne | E4: Recklinghausen | G4: 1 | I4: 1 | J4: =COUNT(G4)*$M$1 -> 15 | K4: =COUNT(H4)*$N$1 -> 0 | L4: =COUNT(I4)*$O$1 -> 15 | M4: Startgeld Einzel | N4: Startgeld Tandem je Spieler | O4: Startgeld Mixed oder Mannschaft je Spieler | P4: erstellt durch:
A5: =A4+1 -> 102 | G5: 1 | J5: 15 | K5: 0 | L5: 0
A6: =A5+1 -> 103 | G6: 1 | J6: 15 | K6: 0 | L6: 0 | P6: Hans-A. Knobbe
A7: 104 | G7: 1 | J7: 15 | K7: 0 | L7: 0 | P7: Extersche Strasse 8
A8: 105 | G8: 1 | J8: 15 | K8: 0 | L8: 0 | P8: 32105 Bad Salzuflen
A9: 106 | G9: 1 | J9: 15 | K9: 0 | L9: 0 | P9: Tel.: 05222 - 15008
A10: 107 | G10: 1 | J10: 15 | K10: 0 | L10: 0
A11: 108 | G11: 1 | J11: 15 | K11: 0 | L11: 0 | P11: IB der VG OWL (LV04/VG49)
A12: 109 | G12: 1 | J12: 15 | K12: 0 | L12: 0 | M12: Startkarten in 4 Gruppen aufteilen! Oder per "Zufallszahl" setzen! Danach erst die Listen drucken! . . Bei Benutzung der Teilnehmerliste zwingend alle 0-Werte bei Tandem und Mixed LÖSCHEN!
A13: 110 | G13: 1 | J13: 15 | K13: 0 | L13: 0 | P13: HKnobbe@aol.com
A14: 111 | G14: 1 | J14: 15 | K14: 0 | L14: 0 | P14: HansZocker@aol.com
A15: 112 | G15: 1 | J15: 15 | K15: 0 | L15: 0
A16: 113 | G16: 1 | J16: 15 | K16: 0 | L16: 0 | P16: Stand: September 2021
A17: 114 | G17: 1 | J17: 15 | K17: 0 | L17: 0
A18: 115 | G18: 1 | J18: 15 | K18: 0 | L18: 0
A19: 116 | G19: 1 | J19: 15 | K19: 0 | L19: 0
A20: 117 | G20: 1 | J20: 15 | K20: 0 | L20: 0
A21: 118 | G21: 1 | J21: 15 | K21: 0 | L21: 0
A22: 119 | G22: 1 | J22: 15 | K22: 0 | L22: 0
A23: 120 | G23: 1 | J23: 15 | K23: 0 | L23: 0
A24: 121 | G24: 1 | J24: 15 | K24: 0 | L24: 0
A25: 122 | G25: 1 | J25: 15 | K25: 0 | L25: 0
A26: 123 | G26: 1 | J26: 15 | K26: 0 | L26: 0
A27: 124 | G27: 1 | J27: 15 | K27: 0 | L27: 0
A28: 125 | G28: 1 | J28: 15 | K28: 0 | L28: 0
A29: 126 | G29: 1 | J29: 15 | K29: 0 | L29: 0
A30: 127 | G30: 1 | J30: 15 | K30: 0 | L30: 0
A31: 128 | G31: 1 | J31: 15 | K31: 0 | L31: 0
A32: 129 | G32: 1 | J32: 15 | K32: 0 | L32: 0
A33: 130 | G33: 1 | J33: 15 | K33: 0 | L33: 0
A34: 131 | G34: 1 | J34: 15 | K34: 0 | L34: 0
A35: 132 | G35: 1 | J35: 15 | K35: 0 | L35: 0
A36: 133 | G36: 1 | J36: 15 | K36: 0 | L36: 0
A37: 134 | G37: 1 | J37: 15 | K37: 0 | L37: 0
A38: 135 | G38: 1 | J38: 15 | K38: 0 | L38: 0
A39: 136 | G39: 1 | J39: 15 | K39: 0 | L39: 0
A40: 137 | G40: 1 | J40: 15 | K40: 0 | L40: 0
A41: 138 | G41: 1 | J41: 15 | K41: 0 | L41: 0
A42: 139 | G42: 1 | J42: 15 | K42: 0 | L42: 0
A43: 140 | G43: 1 | J43: 15 | K43: 0 | L43: 0
A44: 141 | G44: 1 | J44: 15 | K44: 0 | L44: 0
A45: 142 | G45: 1 | J45: 15 | K45: 0 | L45: 0
A46: 143 | G46: 1 | J46: 15 | K46: 0 | L46: 0
A47: 144 | G47: 1 | J47: 15 | K47: 0 | L47: 0
A48: 145 | G48: 1 | J48: 15 | K48: 0 | L48: 0
A49: 146 | G49: 1 | J49: 15 | K49: 0 | L49: 0
A50: 147 | G50: 1 | J50: 15 | K50: 0 | L50: 0
A51: 148 | G51: 1 | J51: 15 | K51: 0 | L51: 0
A52: 149 | J52: 0 | K52: 0 | L52: 0
A53: 150 | J53: 0 | K53: 0 | L53: 0
A54: 151 | J54: 0 | K54: 0 | L54: 0
A55: 152 | J55: 0 | K55: 0 | L55: 0
A56: 153 | J56: 0 | K56: 0 | L56: 0
A57: 154 | J57: 0 | K57: 0 | L57: 0
A58: 155 | J58: 0 | K58: 0 | L58: 0
A59: 156 | J59: 0 | K59: 0 | L59: 0
A60: 157 | J60: 0 | K60: 0 | L60: 0
A61: 158 | J61: 0 | K61: 0 | L61: 0
A62: 159 | J62: 0 | K62: 0 | L62: 0
A63: 160 | J63: 0 | K63: 0 | L63: 0
A64: 161 | J64: 0 | K64: 0 | L64: 0
A65: 162 | J65: 0 | K65: 0 | L65: 0
A66: 163 | J66: 0 | K66: 0 | L66: 0
A67: 164 | J67: 0 | K67: 0 | L67: 0
A68: 165 | J68: =COUNT(G68)*$M$1 -> 0 | K68: =COUNT(H68)*$N$1 -> 0 | L68: =COUNT(I68)*$O$1 -> 0
A69: 166 | J69: 0 | K69: 0 | L69: 0
A70: =A69+1 -> 167 | J70: 0 | K70: 0 | L70: 0
A71: 168 | J71: 0 | K71: 0 | L71: 0
A72: 169 | J72: 0 | K72: 0 | L72: 0
A73: 170 | J73: 0 | K73: 0 | L73: 0
A74: 171 | J74: 0 | K74: 0 | L74: 0
A75: 172 | J75: 0 | K75: 0 | L75: 0
A76: 173 | J76: 0 | K76: 0 | L76: 0
A77: 174 | J77: 0 | K77: 0 | L77: 0
A78: 175 | J78: 0 | K78: 0 | L78: 0
A79: 176 | J79: 0 | K79: 0 | L79: 0
A80: 177 | J80: 0 | K80: 0 | L80: 0
A81: 178 | J81: 0 | K81: 0 | L81: 0
A82: 179 | J82: 0 | K82: 0 | L82: 0
A83: 180 | J83: 0 | K83: 0 | L83: 0
A84: 181 | J84: 0 | K84: 0 | L84: 0
A85: 182 | J85: 0 | K85: 0 | L85: 0
A86: 183 | J86: 0 | K86: 0 | L86: 0
A87: 184 | J87: 0 | K87: 0 | L87: 0
A88: 185 | J88: 0 | K88: 0 | L88: 0
A89: 186 | J89: 0 | K89: 0 | L89: 0
A90: 187 | J90: 0 | K90: 0 | L90: 0
A91: 188 | J91: 0 | K91: 0 | L91: 0
A92: 189 | J92: 0 | K92: 0 | L92: 0
A93: 190 | J93: 0 | K93: 0 | L93: 0
A94: 191 | J94: 0 | K94: 0 | L94: 0
A95: 192 | J95: 0 | K95: 0 | L95: 0
A96: 193 | J96: 0 | K96: 0 | L96: 0
A97: 194 | J97: 0 | K97: 0 | L97: 0
A98: 195 | J98: 0 | K98: 0 | L98: 0
A99: 196 | J99: 0 | K99: 0 | L99: 0
J100: 0 | K100: 0 | L100: 0
J101: 0 | K101: 0 | L101: 0
J102: 0 | K102: 0 | L102: 0
J103: 0 | K103: 0 | L103: 0
J104: 0 | K104: 0 | L104: 0
J105: 0 | K105: 0 | L105: 0
J106: 0 | K106: 0 | L106: 0
J107: 0 | K107: 0 | L107: 0
J108: 0 | K108: 0 | L108: 0
J109: 0 | K109: 0 | L109: 0
J110: 0 | K110: 0 | L110: 0
J111: 0 | K111: 0 | L111: 0
J112: 0 | K112: 0 | L112: 0
J113: 0 | K113: 0 | L113: 0
J114: 0 | K114: 0 | L114: 0
J115: 0 | K115: 0 | L115: 0
J116: 0 | K116: 0 | L116: 0
J117: 0 | K117: 0 | L117: 0
J118: 0 | K118: 0 | L118: 0
J119: 0 | K119: 0 | L119: 0
J120: 0 | K120: 0 | L120: 0
J121: 0 | K121: 0 | L121: 0
J122: 0 | K122: 0 | L122: 0
J123: 0 | K123: 0 | L123: 0
J124: 0 | K124: 0 | L124: 0
J125: 0 | K125: 0 | L125: 0
J126: 0 | K126: 0 | L126: 0
J127: 0 | K127: 0 | L127: 0
J128: 0 | K128: 0 | L128: 0
J129: 0 | K129: 0 | L129: 0
J130: 0 | K130: 0 | L130: 0
J131: 0 | K131: 0 | L131: 0
J132: =COUNT(G132)*$M$1 -> 0 | K132: =COUNT(H132)*$N$1 -> 0 | L132: =COUNT(I132)*$O$1 -> 0
J133: 0 | K133: 0 | L133: 0
J134: 0 | K134: 0 | L134: 0
J135: 0 | K135: 0 | L135: 0
J136: 0 | K136: 0 | L136: 0
J137: 0 | K137: 0 | L137: 0
J138: 0 | K138: 0 | L138: 0
J139: 0 | K139: 0 | L139: 0
J140: 0 | K140: 0 | L140: 0
J141: 0 | K141: 0 | L141: 0
J142: 0 | K142: 0 | L142: 0
J143: 0 | K143: 0 | L143: 0
J144: 0 | K144: 0 | L144: 0
J145: 0 | K145: 0 | L145: 0
J146: 0 | K146: 0 | L146: 0
J147: 0 | K147: 0 | L147: 0
J148: 0 | K148: 0 | L148: 0
J149: 0 | K149: 0 | L149: 0
J150: 0 | K150: 0 | L150: 0
J151: 0 | K151: 0 | L151: 0
J152: 0 | K152: 0 | L152: 0
J153: 0 | K153: 0 | L153: 0
J154: 0 | K154: 0 | L154: 0
J155: 0 | K155: 0 | L155: 0
J156: 0 | K156: 0 | L156: 0
J157: 0 | K157: 0 | L157: 0
J158: 0 | K158: 0 | L158: 0
J159: 0 | K159: 0 | L159: 0
J160: 0 | K160: 0 | L160: 0
J161: 0 | K161: 0 | L161: 0
J162: 0 | K162: 0 | L162: 0
J163: 0 | K163: 0 | L163: 0
J164: 0 | K164: 0 | L164: 0
J165: 0 | K165: 0 | L165: 0
J166: 0 | K166: 0 | L166: 0
J167: 0 | K167: 0 | L167: 0
J168: 0 | K168: 0 | L168: 0
J169: 0 | K169: 0 | L169: 0
J170: 0 | K170: 0 | L170: 0
J171: 0 | K171: 0 | L171: 0
J172: 0 | K172: 0 | L172: 0
J173: 0 | K173: 0 | L173: 0
J174: 0 | K174: 0 | L174: 0
J175: 0 | K175: 0 | L175: 0
J176: 0 | K176: 0 | L176: 0
J177: 0 | K177: 0 | L177: 0
J178: 0 | K178: 0 | L178: 0
J179: 0 | K179: 0 | L179: 0
J180: 0 | K180: 0 | L180: 0
J181: 0 | K181: 0 | L181: 0
J182: 0 | K182: 0 | L182: 0
J183: 0 | K183: 0 | L183: 0
J184: 0 | K184: 0 | L184: 0
J185: 0 | K185: 0 | L185: 0
J186: 0 | K186: 0 | L186: 0
J187: 0 | K187: 0 | L187: 0
J188: 0 | K188: 0 | L188: 0
J189: 0 | K189: 0 | L189: 0
J190: 0 | K190: 0 | L190: 0
J191: 0 | K191: 0 | L191: 0
J192: 0 | K192: 0 | L192: 0
J193: 0 | K193: 0 | L193: 0
J194: 0 | K194: 0 | L194: 0
J195: 0 | K195: 0 | L195: 0
J196: =COUNT(G196)*$M$1 -> 0 | K196: =COUNT(H196)*$N$1 -> 0 | L196: =COUNT(I196)*$O$1 -> 0
J197: 0 | K197: 0 | L197: 0
J198: 0 | K198: 0 | L198: 0
J199: 0 | K199: 0 | L199: 0
J200: 0 | K200: 0 | L200: 0
... 19 more rows

Sheet Startgeld Herren
A1: Turnier: | C1: Veranstaltung | E1: Datum | F1: H | G1: ja | H1: ja | I1: ja | J1: Einzel: | K1: Tandem: | L1: Mixed: | O1: 15
A2: Summe: | F2: D | G2: E | H2: T | I2: M | J2: =SUM(J4:J219) -> 0 | K2: =SUM(K4:K219) -> 0 | L2: =SUM(L4:L219) -> 15
A3: Start Nr.: | C3: Name: | E3: Verein: | F3: S | G3: 1 | H3: Nr | I3: Nr | J3: =COUNT(G4:G219) -> 24 | K3: =COUNT(H4:H219) -> 0 | L3: =COUNT(I4:I219) -> 1
A4: 201 | C4: Wumpe | D4: Fridolin | E4: Recklinghausen | G4: 1 | I4: 1 | J4: =COUNT(G4)*$M$1 -> 0 | K4: =COUNT(H4)*$N$1 -> 0 | L4: =COUNT(I4)*$O$1 -> 15 | M4: Startgeld Einzel | N4: Startgeld Tandem je Spieler | O4: Startgeld Mixed oder Mannschaft je Spieler | P4: erstellt durch:
A5: =A4+1 -> 202 | G5: 1 | J5: 0 | K5: 0 | L5: 0
A6: 203 | G6: 1 | J6: 0 | K6: 0 | L6: 0 | P6: Hans-A. Knobbe
A7: 204 | G7: 1 | J7: 0 | K7: 0 | L7: 0 | P7: Extersche Strasse 8
A8: 205 | G8: 1 | J8: 0 | K8: 0 | L8: 0 | P8: 32105 Bad Salzuflen
A9: 206 | G9: 1 | J9: 0 | K9: 0 | L9: 0 | P9: Tel.: 05222 - 15008
A10: 207 | G10: 1 | J10: 0 | K10: 0 | L10: 0
A11: 208 | G11: 1 | J11: 0 | K11: 0 | L11: 0 | P11: IB der VG OWL (LV04/VG49)
A12: 209 | G12: 1 | J12: 0 | K12: 0 | L12: 0 | M12: Startkarten in 4 Gruppen aufteilen! Oder per "Zufallszahl" setzen! Danach erst die Listen drucken! . . Bei Benutzung der Teilnehmerliste zwingend alle 0-Werte bei Tandem und Mixed LÖSCHEN!
A13: 210 | G13: 1 | J13: 0 | K13: 0 | L13: 0 | P13: HKnobbe@aol.com
A14: 211 | G14: 1 | J14: 0 | K14: 0 | L14: 0 | P14: HansZocker@aol.com
A15: 212 | G15: 1 | J15: 0 | K15: 0 | L15: 0
A16: 213 | G16: 1 | J16: 0 | K16: 0 | L16: 0 | P16: Stand: September 2021
A17: 214 | G17: 1 | J17: 0 | K17: 0 | L17: 0
A18: 215 | G18: 1 | J18: 0 | K18: 0 | L18: 0
A19: 216 | G19: 1 | J19: 0 | K19: 0 | L19: 0
A20: 217 | G20: 1 | J20: 0 | K20: 0 | L20: 0
A21: 218 | G21: 1 | J21: 0 | K21: 0 | L21: 0
A22: 219 | G22: 1 | J22: 0 | K22: 0 | L22: 0
A23: 220 | G23: 1 | J23: 0 | K23: 0 | L23: 0
A24: 221 | G24: 1 | J24: 0 | K24: 0 | L24: 0
A25: 222 | G25: 1 | J25: 0 | K25: 0 | L25: 0
A26: 223 | G26: 1 | J26: 0 | K26: 0 | L26: 0
A27: 224 | G27: 1 | J27: 0 | K27: 0 | L27: 0
A28: 225 | J28: 0 | K28: 0 | L28: 0
A29: 226 | J29: 0 | K29: 0 | L29: 0
A30: 227 | J30: 0 | K30: 0 | L30: 0
A31: 228 | J31: 0 | K31: 0 | L31: 0
A32: 229 | J32: 0 | K32: 0 | L32: 0
A33: 230 | J33: 0 | K33: 0 | L33: 0
A34: 231 | J34: 0 | K34: 0 | L34: 0
A35: 232 | J35: 0 | K35: 0 | L35: 0
A36: 233 | J36: 0 | K36: 0 | L36: 0
A37: =A36+1 -> 234 | J37: 0 | K37: 0 | L37: 0
A38: 235 | J38: 0 | K38: 0 | L38: 0
A39: 236 | J39: 0 | K39: 0 | L39: 0
A40: 237 | J40: 0 | K40: 0 | L40: 0
A41: 238 | J41: 0 | K41: 0 | L41: 0
A42: 239 | J42: 0 | K42: 0 | L42: 0
A43: 240 | J43: 0 | K43: 0 | L43: 0
A44: 241 | J44: 0 | K44: 0 | L44: 0
A45: 242 | J45: 0 | K45: 0 | L45: 0
A46: 243 | J46: 0 | K46: 0 | L46: 0
A47: 244 | J47: 0 | K47: 0 | L47: 0
A48: 245 | J48: 0 | K48: 0 | L48: 0
A49: 246 | J49: 0 | K49: 0 | L49: 0
A50: 247 | J50: 0 | K50: 0 | L50: 0
A51: 248 | J51: 0 | K51: 0 | L51: 0
A52: 249 | J52: 0 | K52: 0 | L52: 0
A53: 250 | J53: 0 | K53: 0 | L53: 0
A54: 251 | J54: 0 | K54: 0 | L54: 0
A55: 252 | J55: 0 | K55: 0 | L55: 0
A56: 253 | J56: 0 | K56: 0 | L56: 0
A57: 254 | J57: 0 | K57: 0 | L57: 0
A58: 255 | J58: 0 | K58: 0 | L58: 0
A59: 256 | J59: 0 | K59: 0 | L59: 0
A60: 257 | J60: 0 | K60: 0 | L60: 0
A61: 258 | J61: 0 | K61: 0 | L61: 0
A62: 259 | J62: 0 | K62: 0 | L62: 0
A63: 260 | J63: 0 | K63: 0 | L63: 0
A64: 261 | J64: 0 | K64: 0 | L64: 0
A65: 262 | J65: 0 | K65: 0 | L65: 0
A66: 263 | J66: 0 | K66: 0 | L66: 0
A67: 264 | J67: 0 | K67: 0 | L67: 0
A68: 265 | J68: =COUNT(G68)*$M$1 -> 0 | K68: =COUNT(H68)*$N$1 -> 0 | L68: =COUNT(I68)*$O$1 -> 0
A69: =A68+1 -> 266 | J69: 0 | K69: 0 | L69: 0
A70: 267 | J70: 0 | K70: 0 | L70: 0
A71: 268 | J71: 0 | K71: 0 | L71: 0
A72: 269 | J72: 0 | K72: 0 | L72: 0
A73: 270 | J73: 0 | K73: 0 | L73: 0
A74: 271 | J74: 0 | K74: 0 | L74: 0
A75: 272 | J75: 0 | K75: 0 | L75: 0
A76: 273 | J76: 0 | K76: 0 | L76: 0
A77: 274 | J77: 0 | K77: 0 | L77: 0
A78: 275 | J78: 0 | K78: 0 | L78: 0
A79: 276 | J79: 0 | K79: 0 | L79: 0
A80: 277 | J80: 0 | K80: 0 | L80: 0
A81: 278 | J81: 0 | K81: 0 | L81: 0
A82: 279 | J82: 0 | K82: 0 | L82: 0
A83: 280 | J83: 0 | K83: 0 | L83: 0
A84: 281 | J84: 0 | K84: 0 | L84: 0
A85: 282 | J85: 0 | K85: 0 | L85: 0
A86: 283 | J86: 0 | K86: 0 | L86: 0
A87: 284 | J87: 0 | K87: 0 | L87: 0
A88: 285 | J88: 0 | K88: 0 | L88: 0
A89: 286 | J89: 0 | K89: 0 | L89: 0
A90: 287 | J90: 0 | K90: 0 | L90: 0
A91: 288 | J91: 0 | K91: 0 | L91: 0
A92: 289 | J92: 0 | K92: 0 | L92: 0
A93: 290 | J93: 0 | K93: 0 | L93: 0
A94: 291 | J94: 0 | K94: 0 | L94: 0
A95: 292 | J95: 0 | K95: 0 | L95: 0
A96: 293 | J96: 0 | K96: 0 | L96: 0
A97: 294 | J97: 0 | K97: 0 | L97: 0
A98: 295 | J98: 0 | K98: 0 | L98: 0
A99: 296 | J99: 0 | K99: 0 | L99: 0
J100: 0 | K100: 0 | L100: 0
J101: 0 | K101: 0 | L101: 0
J102: 0 | K102: 0 | L102: 0
J103: 0 | K103: 0 | L103: 0
J104: 0 | K104: 0 | L104: 0
J105: 0 | K105: 0 | L105: 0
J106: 0 | K106: 0 | L106: 0
J107: 0 | K107: 0 | L107: 0
J108: 0 | K108: 0 | L108: 0
J109: 0 | K109: 0 | L109: 0
J110: 0 | K110: 0 | L110: 0
J111: 0 | K111: 0 | L111: 0
J112: 0 | K112: 0 | L112: 0
J113: 0 | K113: 0 | L113: 0
J114: 0 | K114: 0 | L114: 0
J115: 0 | K115: 0 | L115: 0
J116: 0 | K116: 0 | L116: 0
J117: 0 | K117: 0 | L117: 0
J118: 0 | K118: 0 | L118: 0
J119: 0 | K119: 0 | L119: 0
J120: 0 | K120: 0 | L120: 0
J121: 0 | K121: 0 | L121: 0
J122: 0 | K122: 0 | L122: 0
J123: 0 | K123: 0 | L123: 0
J124: 0 | K124: 0 | L124: 0
J125: 0 | K125: 0 | L125: 0
J126: 0 | K126: 0 | L126: 0
J127: 0 | K127: 0 | L127: 0
J128: 0 | K128: 0 | L128: 0
J129: 0 | K129: 0 | L129: 0
J130: 0 | K130: 0 | L130: 0
J131: 0 | K131: 0 | L131: 0
J132: =COUNT(G132)*$M$1 -> 0 | K132: =COUNT(H132)*$N$1 -> 0 | L132: =COUNT(I132)*$O$1 -> 0
J133: 0 | K133: 0 | L133: 0
J134: 0 | K134: 0 | L134: 0
J135: 0 | K135: 0 | L135: 0
J136: 0 | K136: 0 | L136: 0
J137: 0 | K137: 0 | L137: 0
J138: 0 | K138: 0 | L138: 0
J139: 0 | K139: 0 | L139: 0
J140: 0 | K140: 0 | L140: 0
J141: 0 | K141: 0 | L141: 0
J142: 0 | K142: 0 | L142: 0
J143: 0 | K143: 0 | L143: 0
J144: 0 | K144: 0 | L144: 0
J145: 0 | K145: 0 | L145: 0
J146: 0 | K146: 0 | L146: 0
J147: 0 | K147: 0 | L147: 0
J148: 0 | K148: 0 | L148: 0
J149: 0 | K149: 0 | L149: 0
J150: 0 | K150: 0 | L150: 0
J151: 0 | K151: 0 | L151: 0
J152: 0 | K152: 0 | L152: 0
J153: 0 | K153: 0 | L153: 0
J154: 0 | K154: 0 | L154: 0
J155: 0 | K155: 0 | L155: 0
J156: 0 | K156: 0 | L156: 0
J157: 0 | K157: 0 | L157: 0
J158: 0 | K158: 0 | L158: 0
J159: 0 | K159: 0 | L159: 0
J160: 0 | K160: 0 | L160: 0
J161: 0 | K161: 0 | L161: 0
J162: 0 | K162: 0 | L162: 0
J163: 0 | K163: 0 | L163: 0
J164: 0 | K164: 0 | L164: 0
J165: 0 | K165: 0 | L165: 0
J166: 0 | K166: 0 | L166: 0
J167: 0 | K167: 0 | L167: 0
J168: 0 | K168: 0 | L168: 0
J169: 0 | K169: 0 | L169: 0
J170: 0 | K170: 0 | L170: 0
J171: 0 | K171: 0 | L171: 0
J172: 0 | K172: 0 | L172: 0
J173: 0 | K173: 0 | L173: 0
J174: 0 | K174: 0 | L174: 0
J175: 0 | K175: 0 | L175: 0
J176: 0 | K176: 0 | L176: 0
J177: 0 | K177: 0 | L177: 0
J178: 0 | K178: 0 | L178: 0
J179: 0 | K179: 0 | L179: 0
J180: 0 | K180: 0 | L180: 0
J181: 0 | K181: 0 | L181: 0
J182: 0 | K182: 0 | L182: 0
J183: 0 | K183: 0 | L183: 0
J184: 0 | K184: 0 | L184: 0
J185: 0 | K185: 0 | L185: 0
J186: 0 | K186: 0 | L186: 0
J187: 0 | K187: 0 | L187: 0
J188: 0 | K188: 0 | L188: 0
J189: 0 | K189: 0 | L189: 0
J190: 0 | K190: 0 | L190: 0
J191: 0 | K191: 0 | L191: 0
J192: 0 | K192: 0 | L192: 0
J193: 0 | K193: 0 | L193: 0
J194: 0 | K194: 0 | L194: 0
J195: 0 | K195: 0 | L195: 0
J196: =COUNT(G196)*$M$1 -> 0 | K196: =COUNT(H196)*$N$1 -> 0 | L196: =COUNT(I196)*$O$1 -> 0
J197: 0 | K197: 0 | L197: 0
J198: 0 | K198: 0 | L198: 0
J199: 0 | K199: 0 | L199: 0
J200: 0 | K200: 0 | L200: 0
... 19 more rows

Sheet Eingabe Damen
B1: 1 | C1: 11 | D1: 21 | E1: 31 | F1: Eingabe der Tischnummern : | G1: 41 | H1: 51 | I1: 201 | J1: 211 | K1: 301 | L1: 311 | N1: 1 | O1: 11 | P1: 21 | Q1: 31 | R1: Eingabe der Tischnummern : | S1: 41 | T1: 51 | U1: 201 | V1: 211 | W1: 301 | X1: 311 | Z1: 1 | AA1: 11 | AB1: 21 | AC1: 31 | AD1: Eingabe der Tischnummern : | AE1: 41 | AF1: 51 | AG1: 201 | AH1: 211 | AI1: 301 | AJ1: 311 | AL1: 1 | AM1: 11 | AN1: 21 | AO1: 31 | AP1: Eingabe der Tischnummern : | AQ1: 41 | AR1: 51 | AS1: 201 | AT1: 211 | AU1: 301 | AV1: 311 | AX1: 1 | AY1: 11 | AZ1: 21 | BA1: 31 | BB1: Eingabe der Tischnummern : | BC1: 41 | BD1: 51 | BE1: 201 | BF1: 211 | BG1: 301 | BH1: 311 | BP1: 1 | BQ1: 11 | BR1: 21 | BS1: 31 | BU1: 41 | BV1: 51 | BW1: 201 | BX1: 211 | BZ1: 301 | CA1: 311
B2: 2 | C2: 12 | D2: 22 | E2: 32 | G2: 42 | H2: 52 | I2: 202 | J2: 212 | K2: 302 | L2: 312 | N2: 2 | O2: 12 | P2: 22 | Q2: 32 | S2: 42 | T2: 52 | U2: 202 | V2: 212 | W2: 302 | X2: 312 | Z2: 2 | AA2: 12 | AB2: 22 | AC2: 32 | AE2: 42 | AF2: 52 | AG2: 202 | AH2: 212 | AI2: 302 | AJ2: 312 | AL2: 2 | AM2: 12 | AN2: 22 | AO2: 32 | AQ2: 42 | AR2: 52 | AS2: 202 | AT2: 212 | AU2: 302 | AV2: 312 | AX2: 2 | AY2: 12 | AZ2: 22 | BA2: 32 | BC2: 42 | BD2: 52 | BE2: 202 | BF2: 212 | BG2: 302 | BH2: 312 | BP2: 2 | BQ2: 12 | BR2: 22 | BS2: 32 | BU2: 42 | BV2: 52 | BW2: 202 | BX2: 212 | BZ2: 302 | CA2: 312
B3: 3 | C3: 13 | D3: 23 | E3: 33 | G3: 43 | H3: 53 | I3: 203 | J3: 213 | K3: 303 | L3: 313 | N3: 3 | O3: 13 | P3: 23 | Q3: 33 | S3: 43 | T3: 53 | U3: 203 | V3: 213 | W3: 303 | X3: 313 | Z3: 3 | AA3: 13 | AB3: 23 | AC3: 33 | AE3: 43 | AF3: 53 | AG3: 203 | AH3: 213 | AI3: 303 | AJ3: 313 | AL3: 3 | AM3: 13 | AN3: 23 | AO3: 33 | AQ3: 43 | AR3: 53 | AS3: 203 | AT3: 213 | AU3: 303 | AV3: 313 | AX3: 3 | AY3: 13 | AZ3: 23 | BA3: 33 | BC3: 43 | BD3: 53 | BE3: 203 | BF3: 213 | BG3: 303 | BH3: 313 | BP3: 3 | BQ3: 13 | BR3: 23 | BS3: 33 | BU3: 43 | BV3: 53 | BW3: 203 | BX3: 213 | BZ3: 303 | CA3: 313
B4: 4 | C4: 14 | D4: 24 | E4: 34 | G4: 44 | H4: 54 | I4: 204 | J4: 214 | K4: 304 | L4: 314 | N4: 4 | O4: 14 | P4: 24 | Q4: 34 | S4: 44 | T4: 54 | U4: 204 | V4: 214 | W4: 304 | X4: 314 | Z4: 4 | AA4: 14 | AB4: 24 | AC4: 34 | AE4: 44 | AF4: 54 | AG4: 204 | AH4: 214 | AI4: 304 | AJ4: 314 | AL4: 4 | AM4: 14 | AN4: 24 | AO4: 34 | AQ4: 44 | AR4: 54 | AS4: 204 | AT4: 214 | AU4: 304 | AV4: 314 | AX4: 4 | AY4: 14 | AZ4: 24 | BA4: 34 | BC4: 44 | BD4: 54 | BE4: 204 | BF4: 214 | BG4: 304 | BH4: 314 | BP4: 4 | BQ4: 14 | BR4: 24 | BS4: 34 | BU4: 44 | BV4: 54 | BW4: 204 | BX4: 214 | BZ4: 304 | CA4: 314
B5: 5 | C5: 15 | D5: 25 | E5: 35 | G5: 45 | H5: 401 | I5: 205 | J5: 215 | K5: 305 | L5: 315 | N5: 5 | O5: 15 | P5: 25 | Q5: 35 | S5: 45 | T5: 401 | U5: 205 | V5: 215 | W5: 305 | X5: 315 | Z5: 5 | AA5: 15 | AB5: 25 | AC5: 35 | AE5: 45 | AF5: 401 | AG5: 205 | AH5: 215 | AI5: 305 | AJ5: 315 | AL5: 5 | AM5: 15 | AN5: 25 | AO5: 35 | AQ5: 45 | AR5: 401 | AS5: 205 | AT5: 215 | AU5: 305 | AV5: 315 | AX5: 5 | AY5: 15 | AZ5: 25 | BA5: 35 | BC5: 45 | BD5: 401 | BE5: 205 | BF5: 215 | BG5: 305 | BH5: 315 | BP5: 5 | BQ5: 15 | BR5: 25 | BS5: 35 | BU5: 45 | BV5: 401 | BW5: 205 | BX5: 215 | BZ5: 305 | CA5: 315
B6: 6 | C6: 16 | D6: 26 | E6: 36 | G6: 46 | H6: 402 | I6: 206 | J6: 216 | K6: 306 | L6: 316 | N6: 6 | O6: 16 | P6: 26 | Q6: 36 | S6: 46 | T6: 402 | U6: 206 | V6: 216 | W6: 306 | X6: 316 | Z6: 6 | AA6: 16 | AB6: 26 | AC6: 36 | AE6: 46 | AF6: 402 | AG6: 206 | AH6: 216 | AI6: 306 | AJ6: 316 | AL6: 6 | AM6: 16 | AN6: 26 | AO6: 36 | AQ6: 46 | AR6: 402 | AS6: 206 | AT6: 216 | AU6: 306 | AV6: 316 | AX6: 6 | AY6: 16 | AZ6: 26 | BA6: 36 | BC6: 46 | BD6: 402 | BE6: 206 | BF6: 216 | BG6: 306 | BH6: 316 | BP6: 6 | BQ6: 16 | BR6: 26 | BS6: 36 | BU6: 46 | BV6: 402 | BW6: 206 | BX6: 216 | BZ6: 306 | CA6: 316
B7: 7 | C7: 17 | D7: 27 | E7: 37 | G7: 47 | H7: 403 | I7: Umsetzungen bitte in der jeweilige Serie in Spalte C vornehmen! | L7: =COUNT(F13:F228)-162 -> 1 | N7: 7 | O7: 17 | P7: 27 | Q7: 37 | S7: 47 | T7: 403 | U7: Umsetzungen bitte in der jeweilige Serie in Spalte C vornehmen! | X7: =COUNT(R13:R228)-162 -> 0 | Z7: 7 | AA7: 17 | AB7: 27 | AC7: 37 | AE7: 47 | AF7: 403 | AG7: Umsetzungen bitte in der jeweilige Serie in Spalte C vornehmen! | AJ7: =COUNT(AD13:AD228)-162 -> 0 | AL7: 7 | AM7: 17 | AN7: 27 | AO7: 37 | AQ7: 47 | AR7: 403 | AS7: Umsetzungen bitte in der jeweilige Serie in Spalte C vornehmen! | AV7: =COUNT(AP13:AP228)-162 -> 1 | AX7: 7 | AY7: 17 | AZ7: 27 | BA7: 37 | BC7: 47 | BD7: 403 | BE7: Umsetzungen bitte in der jeweilige Serie in Spalte C vornehmen! | BH7: =COUNT(BB13:BB228)-162 -> 1 | BP7: 7 | BQ7: 17 | BR7: 27 | BS7: 37 | BU7: 47 | BV7: 403 | BW7: 207 | BX7: 217 | BZ7: 307
B8: 8 | C8: 18 | D8: 28 | E8: 38 | G8: 48 | H8: 404 | N8: 8 | O8: 18 | P8: 28 | Q8: 38 | S8: 48 | T8: 404 | Z8: 8 | AA8: 18 | AB8: 28 | AC8: 38 | AE8: 48 | AF8: 404 | AL8: 8 | AM8: 18 | AN8: 28 | AO8: 38 | AQ8: 48 | AR8: 404 | AX8: 8 | AY8: 18 | AZ8: 28 | BA8: 38 | BC8: 48 | BD8: 404 | BP8: 8 | BQ8: 18 | BR8: 28 | BS8: 38 | BU8: 48 | BV8: 404 | BW8: 208 | BX8: 218 | BZ8: 308
B9: 9 | C9: 19 | D9: 29 | E9: 39 | G9: 49 | H9: 405 | N9: 9 | O9: 19 | P9: 29 | Q9: 39 | S9: 49 | T9: 405 | Z9: 9 | AA9: 19 | AB9: 29 | AC9: 39 | AE9: 49 | AF9: 405 | AL9: 9 | AM9: 19 | AN9: 29 | AO9: 39 | AQ9: 49 | AR9: 405 | AX9: 9 | AY9: 19 | AZ9: 29 | BA9: 39 | BC9: 49 | BD9: 405 | BP9: 9 | BQ9: 19 | BR9: 29 | BS9: 39 | BU9: 49 | BV9: 405 | BW9: 209 | BX9: 219 | BZ9: 309
B10: 10 | C10: 20 | D10: 30 | E10: 40 | G10: 50 | H10: 406 | N10: 10 | O10: 20 | P10: 30 | Q10: 40 | S10: 50 | T10: 406 | Z10: 10 | AA10: 20 | AB10: 30 | AC10: 40 | AE10: 50 | AF10: 406 | AL10: 10 | AM10: 20 | AN10: 30 | AO10: 40 | AQ10: 50 | AR10: 406 | AX10: 10 | AY10: 20 | AZ10: 30 | BA10: 40 | BC10: 50 | BD10: 406 | BP10: 10 | BQ10: 20 | BR10: 30 | BS10: 40 | BU10: 50 | BV10: 406 | BW10: 210 | BX10: 220 | BZ10: 310
B11: 1. Serie | G11: =COUNT(F13:F228)-162&" Tische eingegeben" -> 1 Tische eingegeben | L11: =SUM(L13:L228) -> 0 | N11: 2. Serie | S11: =COUNT(R13:R228)-162&" Tische eingegeben" -> 0 Tische eingegeben | X11: =SUM(X13:X228) -> 0 | Z11: 3. Serie | AE11: =COUNT(AD13:AD228)-162&" Tische eingegeben" -> 0 Tische eingegeben | AJ11: =SUM(AJ13:AJ228) -> 0 | AL11: 4. Serie | AQ11: =COUNT(AP13:AP228)-162&" Tische eingegeben" -> 1 Tische eingegeben | AV11: =SUM(AV13:AV228) -> 0 | AX11: 5. Serie | BC11: =COUNT(BB13:BB228)-162&" Tische eingegeben" -> 1 Tische eingegeben | BH11: =SUM(BH13:BH228) -> 0 | BI11: Abrechnung: | BJ11: =BJ12-BJ18 -> 0 | BO11: 1.Serie | BT11: 2.Serie | BY11: 3.Serie | CD11: 4.Serie | CI11: 5.Serie | CJ11: Verknüpfungen noch nicht angepasst!
B12: Nr. | C12: Spielername | F12: Tisch | G12: Sp.P. | H12: gew. | I12: verl. | J12: Punkte vorab | K12: Kontr. | L12: Verl-Geld | N12: Nr. | O12: Spielername | R12: Tisch | S12: Sp.P. | T12: gew. | U12: verl. | V12: Punkte vorab | W12: Kontr. | X12: Verl-Geld | Z12: Nr. | AA12: Spielername | AD12: Tisch | AE12: Sp.P. | AF12: gew. | AG12: verl. | AH12: Punkte vorab | AI12: Kontr. | AJ12: Verl-Geld | AL12: Nr. | AM12: Spielername | AP12: Tisch | AQ12: Sp.P. | AR12: gew. | AS12: verl. | AT12: Punkte vorab | AU12: Kontr. | AV12: Verl-Geld | AX12: Nr. | AY12: Spielername | BB12: Tisch | BC12: Sp.P. | BD12: gew. | BE12: verl. | BF12: Punkte vorab | BG12: Kontr. | BH12: Verl-Geld | BI12: Einnahmen: | BJ12: =BJ13+BJ14+BJ15+BJ16 -> 0 | BO12: Tisch | BP12: 1.Sp. | BQ12: 2.Sp. | BR12: 3.Sp. | BS12: 4.Sp. | BT12: Tisch | BU12: 1.Sp. | BV12: 2.Sp. | BW12: 3.Sp. | BX12: 4.Sp. | BY12: Tisch | BZ12: 1.Sp. | CA12: 2.Sp. | CB12: 3.Sp. | CC12: 4.Sp. | CD12: Tisch | CE12: 1.Sp. | CF12: 2.Sp. | CG12: 3.Sp. | CH12: 4.Sp. | CI12: Tisch | CJ12: 1.Sp. | CK12: 2.Sp. | CL12: 3.Sp. | CM12: 4.Sp. | CN12: Tisch | CO12: 1.Serie | CP12: 2.Serie | CQ12: 3.Serie | CR12: 4.Serie
A13: =IF(COUNTIF(B$13:B13,B13)>1,"X","") ->  | B13: =IF(ISBLANK(F13)," ",INDEX(BP:BP,MATCH(F13,BO:BO,0))) -> 101 | C13: =IF(ISBLANK(F13)," ",INDEX('Startgeld Damen'!$C:$C,MATCH($B13,'Startgeld Damen'!$A:$A,0))) -> Pöppel | F13: 101 | K13: =IF(ISBLANK(G13)," ",G13+(H13-I13)*50+IF(COUNT(G13:G16)=3,(I14+I15+I16)*40,(I14+I15+I16)*30)) ->  | L13: =IF(I13<4,I13*1,IF(I13>3,I13*1)) -> 0 | M13: =IF(COUNTIF(N$13:N13,N13)>1,"X","") ->  | N13: =IF(ISBLANK(R13)," ",INDEX(BU:BU,MATCH(R13,BT:BT,0))) ->  | O13: =IF(ISBLANK(R13)," ",INDEX('Startgeld Damen'!$C:$C,MATCH(N13,'Startgeld Damen'!$A:$A,0))) ->  | W13: =IF(ISBLANK(S13)," ",S13+(T13-U13)*50+IF(COUNT(S13:S16)=3,(U14+U15+U16)*40,(U14+U15+U16)*30)) ->  | X13: =IF(U13<4,U13*1,IF(U13>3,U13*1)) -> 0 | Y13: =IF(COUNTIF(Z$13:Z13,Z13)>1,"X","") ->  | Z13: =IF(ISBLANK(AD13)," ",INDEX(BZ:BZ,MATCH(AD13,BY:BY,0))) ->  | AA13: =IF(ISBLANK(AD13)," ",INDEX('Startgeld Damen'!$C:$C,MATCH(Z13,'Startgeld Damen'!$A:$A,0))) ->  | AI13: =IF(ISBLANK(AE13)," ",AE13+(AF13-AG13)*50+IF(COUNT(AE13:AE16)=3,(AG14+AG15+AG16)*40,(AG14+AG15+AG16)*30)) ->  | AJ13: =IF(AG13<4,AG13*1,IF(AG13>3,AG13*1)) -> 0 | AK13: =IF(COUNTIF(AL$13:AL13,AL13)>1,"X","") ->  | AL13: =IF(ISBLANK(AP13)," ",INDEX(CE:CE,MATCH(AP13,CD:CD,0))) ->  | AM13: =IF(ISBLANK(AP13)," ",INDEX('Startgeld Damen'!$C:$C,MATCH(AL13,'Startgeld Damen'!$A:$A,0))) ->  | AP13: 1 | AU13: =IF(ISBLANK(AQ13)," ",AQ13+(AR13-AS13)*50+IF(COUNT(AQ13:AQ16)=3,(AS14+AS15+AS16)*40,(AS14+AS15+AS16)*30)) ->  | AV13: =IF(AS13<4,AS13*1,IF(AS13>3,AS13*1)) -> 0 | AW13: =IF(COUNTIF(AX$13:AX13,AX13)>1,"X","") ->  | AX13: =IF(ISBLANK(BB13)," ",INDEX(CJ:CJ,MATCH(BB13,CI:CI,0))) ->  | AY13: =IF(ISBLANK(BB13)," ",INDEX('Startgeld Damen'!$C:$C,MATCH(AX13,'Startgeld Damen'!$A:$A,0))) ->  | BB13: 1 | BG13: =IF(ISBLANK(BC13)," ",BC13+(BD13-BE13)*50+IF(COUNT(BC13:BC16)=3,(BE14+BE15+BE16)*40,(BE14+BE15+BE16)*30)) ->  | BH13: =IF(BE13<4,BE13*1,IF(BE13>3,BE13*1)) -> 0 | BI13: =B11 -> 1. Serie | BJ13: =L11 -> 0 | BK13: =SUM(L13:L16) -> 0 | BL13: =SUM(X13:X16) -> 0 | BM13: =SUM(AJ13:AJ16) -> 0 | BN13: =SUM(AV13:AV16) -> 0 | BO13: 101 | BP13: ='1. Serie Damen'!$C2 -> 101 | BQ13: ='1. Serie Damen'!$C3 -> 102 | BR13: ='1. Serie Damen'!$C4 -> 103 | BS13: ='1. Serie Damen'!$C5 -> 104 | BT13: 101 | BU13: ='2. Serie Damen'!$C2 -> 101 | BV13: ='2. Serie Damen'!$C3 -> 102 | BW13: ='2. Serie Damen'!$C4 -> 103 | BX13: ='2. Serie Damen'!$C5 -> 104 | BY13: 101 | BZ13: ='3. Serie Damen'!$C2 -> 101 | CA13: ='3. Serie Damen'!$C3 -> 102 | CB13: ='3. Serie Damen'!$C4 -> 103 | CC13: ='3. Serie Damen'!$C5 -> 104 | CD13: 101 | CE13: ='4. Serie'!$C2 -> 101 | CF13: ='4. Serie'!$C3 -> 102 | CG13: ='4. Serie'!$C4 -> 103 | CH13: ='4. Serie'!$C5 -> 104 | CI13: 101 | CJ13: ='4. Serie'!$C2 -> 101 | CK13: ='4. Serie'!$C3 -> 102 | CL13: ='4. Serie'!$C4 -> 103 | CM13: ='4. Serie'!$C5 -> 104 | CN13: 1 | CO13: =F13 -> 101 | CP13: =R13 -> 0 | CQ13: =AD13 -> 0 | CR13: =AP13 -> 1 | CT13: =K13 ->  | CU13: =W13 ->  | CV13: =AI13 ->  | CW13: =AU13 -> 
A14: =IF(COUNTIF(B$13:B14,B14)>1,"X","") ->  | B14: =IF(ISBLANK(F13)," ",INDEX(BQ:BQ,MATCH(F13,BO:BO,0))) -> 102 | C14: =IF(ISBLANK(F13)," ",INDEX('Startgeld Damen'!$C:$C,MATCH($B14,'Startgeld Damen'!$A:$A,0))) -> 0 | F14: =F13 -> 101 | K14: =IF(ISBLANK(G14)," ",G14+(H14-I14)*50+IF(COUNT(G13:G16)=3,(I13+I15+I16)*40,(I13+I15+I16)*30)) ->  | L14: 0 | M14: =IF(COUNTIF(N$13:N14,N14)>1,"X","") -> X | N14: =IF(ISBLANK(R13)," ",INDEX(BV:BV,MATCH(R13,BT:BT,0))) ->  | O14: =IF(ISBLANK(R13)," ",INDEX('Startgeld Damen'!$C:$C,MATCH(N14,'Startgeld Damen'!$A:$A,0))) ->  | R14: =R13 -> 0 | W14: =IF(ISBLANK(S14)," ",S14+(T14-U14)*50+IF(COUNT(S13:S16)=3,(U13+U15+U16)*40,(U13+U15+U16)*30)) ->  | X14: 0 | Y14: =IF(COUNTIF(Z$13:Z14,Z14)>1,"X","") -> X | Z14: =IF(ISBLANK(AD13)," ",INDEX(CA:CA,MATCH(AD13,BY:BY,0))) ->  | AA14: =IF(ISBLANK(AD13)," ",INDEX('Startgeld Damen'!$C:$C,MATCH(Z14,'Startgeld Damen'!$A:$A,0))) ->  | AD14: =AD13 -> 0 | AI14: =IF(ISBLANK(AE14)," ",AE14+(AF14-AG14)*50+IF(COUNT(AE13:AE16)=3,(AG13+AG15+AG16)*40,(AG13+AG15+AG16)*30)) ->  | AJ14: 0 | AK14: =IF(COUNTIF(AL$13:AL14,AL14)>1,"X","") -> X | AL14: =IF(ISBLANK(AP13)," ",INDEX(CF:CF,MATCH(AP13,CD:CD,0))) ->  | AM14: =IF(ISBLANK(AP13)," ",INDEX('Startgeld Damen'!$C:$C,MATCH(AL14,'Startgeld Damen'!$A:$A,0))) ->  | AP14: =AP13 -> 1 | AU14: =IF(ISBLANK(AQ14)," ",AQ14+(AR14-AS14)*50+IF(COUNT(AQ13:AQ16)=3,(AS13+AS15+AS16)*40,(AS13+AS15+AS16)*30)) ->  | AV14: 0 | AW14: =IF(COUNTIF(AX$13:AX14,AX14)>1,"X","") -> X | AX14: =IF(ISBLANK(BB13)," ",INDEX(CK:CK,MATCH(BB13,CI:CI,0))) ->  | AY14: =IF(ISBLANK(BB13)," ",INDEX('Startgeld Damen'!$C:$C,MATCH(AX14,'Startgeld Damen'!$A:$A,0))) ->  | BB14: =BB13 -> 1 | BG14: =IF(ISBLANK(BC14)," ",BC14+(BD14-BE14)*50+IF(COUNT(BC13:BC16)=3,(BE13+BE15+BE16)*40,(BE13+BE15+BE16)*30)) ->  | BH14: 0 | BI14: =N11 -> 2. Serie | BJ14: =X11 -> 0 | BO14: =BO13+1 -> 102 | BP14: ='1. Serie Damen'!$C6 -> 105 | BQ14: ='1. Serie Damen'!$C7 -> 106 | BR14: ='1. Serie Damen'!$C8 -> 107 | BS14: ='1. Serie Damen'!$C9 -> 108 | BT14: =BT13+1 -> 102 | BU14: ='2. Serie Damen'!$C6 -> 105 | BV14: ='2. Serie Damen'!$C7 -> 106 | BW14: ='2. Serie Damen'!$C8 -> 107 | BX14: ='2. Serie Damen'!$C9 -> 108 | BY14: =BY13+1 -> 102 | BZ14: ='3. Serie Damen'!$C6 -> 105 | CA14: ='3. Serie Damen'!$C7 -> 106 | CB14: ='3. Serie Damen'!$C8 -> 107 | CC14: ='3. Serie Damen'!$C9 -> 108 | CD14: =CD13+1 -> 102 | CE14: ='4. Serie'!$C6 -> 105 | CF14: ='4. Serie'!$C7 -> 106 | CG14: ='4. Serie'!$C8 -> 107 | CH14: ='4. Serie'!$C9 -> 108 | CI14: =CI13+1 -> 102 | CJ14: ='4. Serie'!$C6 -> 105 | CK14: ='4. Serie'!$C7 -> 106 | CL14: ='4. Serie'!$C8 -> 107 | CM14: ='4. Serie'!$C9 -> 108 | CN14: 2 | CO14: =F17 -> 0 | CP14: =R17 -> 0 | CQ14: =AD17 -> 0 | CR14: =AP17 -> 0
A15: =IF(COUNTIF(B$13:B15,B15)>1,"X","") ->  | B15: =IF(ISBLANK(F13)," ",INDEX(BR:BR,MATCH(F13,BO:BO,0))) -> 103 | C15: =IF(ISBLANK(F13)," ",INDEX('Startgeld Damen'!$C:$C,MATCH($B15,'Startgeld Damen'!$A:$A,0))) -> 0 | F15: =F13 -> 101 | K15: =IF(ISBLANK(G15)," ",G15+(H15-I15)*50+IF(COUNT(G13:G16)=3,(I13+I14+I16)*40,(I13+I14+I16)*30)) ->  | L15: 0 | M15: =IF(COUNTIF(N$13:N15,N15)>1,"X","") -> X | N15: =IF(ISBLANK(R13)," ",INDEX(BW:BW,MATCH(R13,BT:BT,0))) ->  | O15: =IF(ISBLANK(R13)," ",INDEX('Startgeld Damen'!$C:$C,MATCH(N15,'Startgeld Damen'!$A:$A,0))) ->  | R15: =R13 -> 0 | W15: =IF(ISBLANK(S15)," ",S15+(T15-U15)*50+IF(COUNT(S13:S16)=3,(U13+U14+U16)*40,(U13+U14+U16)*30)) ->  | X15: 0 | Y15: =IF(COUNTIF(Z$13:Z15,Z15)>1,"X","") -> X | Z15: =IF(ISBLANK(AD13)," ",INDEX(CB:CB,MATCH(AD13,BY:BY,0))) ->  | AA15: =IF(ISBLANK(AD13)," ",INDEX('Startgeld Damen'!$C:$C,MATCH(Z15,'Startgeld Damen'!$A:$A,0))) ->  | AD15: =AD13 -> 0 | AI15: =IF(ISBLANK(AE15)," ",AE15+(AF15-AG15)*50+IF(COUNT(AE13:AE16)=3,(AG13+AG14+AG16)*40,(AG13+AG14+AG16)*30)) ->  | AJ15: 0 | AK15: =IF(COUNTIF(AL$13:AL15,AL15)>1,"X","") -> X | AL15: =IF(ISBLANK(AP13)," ",INDEX(CG:CG,MATCH(AP13,CD:CD,0))) ->  | AM15: =IF(ISBLANK(AP13)," ",INDEX('Startgeld Damen'!$C:$C,MATCH(AL15,'Startgeld Damen'!$A:$A,0))) ->  | AP15: =AP13 -> 1 | AU15: =IF(ISBLANK(AQ15)," ",AQ15+(AR15-AS15)*50+IF(COUNT(AQ13:AQ16)=3,(AS13+AS14+AS16)*40,(AS13+AS14+AS16)*30)) ->  | AV15: 0 | AW15: =IF(COUNTIF(AX$13:AX15,AX15)>1,"X","") -> X | AX15: =IF(ISBLANK(BB13)," ",INDEX(CL:CL,MATCH(BB13,CI:CI,0))) ->  | AY15: =IF(ISBLANK(BB13)," ",INDEX('Startgeld Damen'!$C:$C,MATCH(AX15,'Startgeld Damen'!$A:$A,0))) ->  | BB15: =BB13 -> 1 | BG15: =IF(ISBLANK(BC15)," ",BC15+(BD15-BE15)*50+IF(COUNT(BC13:BC16)=3,(BE13+BE14+BE16)*40,(BE13+BE14+BE16)*30)) ->  | BH15: 0 | BI15: =Z11 -> 3. Serie | BJ15: =AJ11 -> 0 | BO15: =BO14+1 -> 103 | BP15: ='1. Serie Damen'!$C10 -> 109 | BQ15: ='1. Serie Damen'!$C11 -> 110 | BR15: ='1. Serie Damen'!$C12 -> 111 | BS15: ='1. Serie Damen'!$C13 -> 112 | BT15: =BT14+1 -> 103 | BU15: ='2. Serie Damen'!$C10 -> 109 | BV15: ='2. Serie Damen'!$C11 -> 110 | BW15: ='2. Serie Damen'!$C12 -> 111 | BX15: ='2. Serie Damen'!$C13 -> 112 | BY15: =BY14+1 -> 103 | BZ15: ='3. Serie Damen'!$C10 -> 109 | CA15: ='3. Serie Damen'!$C11 -> 110 | CB15: ='3. Serie Damen'!$C12 -> 111 | CC15: ='3. Serie Damen'!$C13 -> 112 | CD15: =CD14+1 -> 103 | CE15: ='4. Serie'!$C10 -> 109 | CF15: ='4. Serie'!$C11 -> 110 | CG15: ='4. Serie'!$C12 -> 111 | CH15: ='4. Serie'!$C13 -> 112 | CI15: =CI14+1 -> 103 | CJ15: ='4. Serie'!$C10 -> 109 | CK15: ='4. Serie'!$C11 -> 110 | CL15: ='4. Serie'!$C12 -> 111 | CM15: ='4. Serie'!$C13 -> 112 | CN15: 3 | CO15: =F21 -> 0 | CP15: =R21 -> 0 | CQ15: =AD21 -> 0 | CR15: =AP21 -> 0
A16: =IF(COUNTIF(B$13:B16,B16)>1,"X","") ->  | B16: =IF(ISBLANK(F13)," ",INDEX(BS:BS,MATCH(F13,BO:BO,0))) -> 104 | C16: =IF(ISBLANK(F13)," ",INDEX('Startgeld Damen'!$C:$C,MATCH($B16,'Startgeld Damen'!$A:$A,0))) -> 0 | F16: =F13 -> 101 | K16: =IF(ISBLANK(G16)," ",G16+(H16-I16)*50+IF(COUNT(G13:G16)=3,(I13+I14+I15)*40,(I13+I14+I15)*30)) ->  | L16: 0 | M16: =IF(COUNTIF(N$13:N16,N16)>1,"X","") -> X | N16: =IF(ISBLANK(R13)," ",INDEX(BX:BX,MATCH(R13,BT:BT,0))) ->  | O16: =IF(ISBLANK(R13)," ",INDEX('Startgeld Damen'!$C:$C,MATCH(N16,'Startgeld Damen'!$A:$A,0))) ->  | R16: =R13 -> 0 | W16: =IF(ISBLANK(S16)," ",S16+(T16-U16)*50+IF(COUNT(S13:S16)=3,(U13+U14+U15)*40,(U13+U14+U15)*30)) ->  | X16: 0 | Y16: =IF(COUNTIF(Z$13:Z16,Z16)>1,"X","") -> X | Z16: =IF(ISBLANK(AD13)," ",INDEX(CC:CC,MATCH(AD13,BY:BY,0))) ->  | AA16: =IF(ISBLANK(AD13)," ",INDEX('Startgeld Damen'!$C:$C,MATCH(Z16,'Startgeld Damen'!$A:$A,0))) ->  | AD16: =AD13 -> 0 | AI16: =IF(ISBLANK(AE16)," ",AE16+(AF16-AG16)*50+IF(COUNT(AE13:AE16)=3,(AG13+AG14+AG15)*40,(AG13+AG14+AG15)*30)) ->  | AJ16: 0 | AK16: =IF(COUNTIF(AL$13:AL16,AL16)>1,"X","") -> X | AL16: =IF(ISBLANK(AP13)," ",INDEX(CH:CH,MATCH(AP13,CD:CD,0))) ->  | AM16: =IF(ISBLANK(AP13)," ",INDEX('Startgeld Damen'!$C:$C,MATCH(AL16,'Startgeld Damen'!$A:$A,0))) ->  | AP16: =AP13 -> 1 | AU16: =IF(ISBLANK(AQ16)," ",AQ16+(AR16-AS16)*50+IF(COUNT(AQ13:AQ16)=3,(AS13+AS14+AS15)*40,(AS13+AS14+AS15)*30)) ->  | AV16: 0 | AW16: =IF(COUNTIF(AX$13:AX16,AX16)>1,"X","") -> X | AX16: =IF(ISBLANK(BB13)," ",INDEX(CM:CM,MATCH(BB13,CI:CI,0))) ->  | AY16: =IF(ISBLANK(BB13)," ",INDEX('Startgeld Damen'!$C:$C,MATCH(AX16,'Startgeld Damen'!$A:$A,0))) ->  | BB16: =BB13 -> 1 | BG16: =IF(ISBLANK(BC16)," ",BC16+(BD16-BE16)*50+IF(COUNT(BC13:BC16)=3,(BE13+BE14+BE15)*40,(BE13+BE14+BE15)*30)) ->  | BH16: 0 | BI16: =AL11 -> 4. Serie | BJ16: =AV11 -> 0 | BO16: 104 | BP16: ='1. Serie Damen'!$C14 -> 113 | BQ16: ='1. Serie Damen'!$C15 -> 114 | BR16: ='1. Serie Damen'!$C16 -> 115 | BS16: ='1. Serie Damen'!$C17 -> 116 | BT16: 104 | BU16: ='2. Serie Damen'!$C14 -> 113 | BV16: ='2. Serie Damen'!$C15 -> 114 | BW16: ='2. Serie Damen'!$C16 -> 115 | BX16: ='2. Serie Damen'!$C17 -> 116 | BY16: 104 | BZ16: ='3. Serie Damen'!$C14 -> 113 | CA16: ='3. Serie Damen'!$C15 -> 114 | CB16: ='3. Serie Damen'!$C16 -> 115 | CC16: ='3. Serie Damen'!$C17 -> 116 | CD16: 104 | CE16: ='4. Serie'!$C14 -> 113 | CF16: ='4. Serie'!$C15 -> 114 | CG16: ='4. Serie'!$C16 -> 115 | CH16: ='4. Serie'!$C17 -> 116 | CI16: 104 | CJ16: ='4. Serie'!$C14 -> 113 | CK16: ='4. Serie'!$C15 -> 114 | CL16: ='4. Serie'!$C16 -> 115 | CM16: ='4. Serie'!$C17 -> 116 | CN16: 4 | CO16: =F25 -> 0 | CP16: =R25 -> 0 | CQ16: =AD25 -> 0 | CR16: =AP25 -> 0
A17: =IF(COUNTIF(B$13:B17,B17)>1,"X","") ->  | B17: =IF(ISBLANK(F17)," ",INDEX(BP:BP,MATCH(F17,BO:BO,0))) ->  | C17: =IF(ISBLANK(F17)," ",INDEX('Startgeld Damen'!$C:$C,MATCH($B17,'Startgeld Damen'!$A:$A,0))) ->  | K17: =IF(ISBLANK(G17)," ",G17+(H17-I17)*50+IF(COUNT(G17:G20)=3,(I18+I19+I20)*40,(I18+I19+I20)*30)) ->  | L17: 0 | M17: =IF(COUNTIF(N$13:N17,N17)>1,"X","") -> X | N17: =IF(ISBLANK(R17)," ",INDEX(BU:BU,MATCH(R17,BT:BT,0))) ->  | O17: =IF(ISBLANK(R17)," ",INDEX('Startgeld Damen'!$C:$C,MATCH(N17,'Startgeld Damen'!$A:$A,0))) ->  | W17: =IF(ISBLANK(S17)," ",S17+(T17-U17)*50+IF(COUNT(S17:S20)=3,(U18+U19+U20)*40,(U18+U19+U20)*30)) ->  | X17: 0 | Y17: =IF(COUNTIF(Z$13:Z17,Z17)>1,"X","") -> X | Z17: =IF(ISBLANK(AD17)," ",INDEX(BZ:BZ,MATCH(AD17,BY:BY,0))) ->  | AA17: =IF(ISBLANK(AD17)," ",INDEX('Startgeld Damen'!$C:$C,MATCH(Z17,'Startgeld Damen'!$A:$A,0))) ->  | AI17: =IF(ISBLANK(AE17)," ",AE17+(AF17-AG17)*50+IF(COUNT(AE17:AE20)=3,(AG18+AG19+AG20)*40,(AG18+AG19+AG20)*30)) ->  | AJ17: 0 | AK17: =IF(COUNTIF(AL$13:AL17,AL17)>1,"X","") ->  | AL17: =IF(ISBLANK(AP17)," ",INDEX(CE:CE,MATCH(AP17,CD:CD,0))) ->  | AM17: =IF(ISBLANK(AP17)," ",INDEX('Startgeld Damen'!$C:$C,MATCH(AL17,'Startgeld Damen'!$A:$A,0))) ->  | AU17: =IF(ISBLANK(AQ17)," ",AQ17+(AR17-AS17)*50+IF(COUNT(AQ17:AQ20)=3,(AS18+AS19+AS20)*40,(AS18+AS19+AS20)*30)) ->  | AV17: 0 | AW17: =IF(COUNTIF(AX$13:AX17,AX17)>1,"X","") ->  | AX17: =IF(ISBLANK(BB17)," ",INDEX(CJ:CJ,MATCH(BB17,CI:CI,0))) ->  | AY17: =IF(ISBLANK(BB17)," ",INDEX('Startgeld Damen'!$C:$C,MATCH(AX17,'Startgeld Damen'!$A:$A,0))) ->  | BG17: =IF(ISBLANK(BC17)," ",BC17+(BD17-BE17)*50+IF(COUNT(BC17:BC20)=3,(BE18+BE19+BE20)*40,(BE18+BE19+BE20)*30)) ->  | BH17: 0 | BK17: =SUM(L17:L20) -> 0 | BL17: =SUM(X17:X20) -> 0 | BM17: =SUM(AJ17:AJ20) -> 0 | BN17: =SUM(AV17:AV20) -> 0 | BO17: 105 | BP17: ='1. Serie Damen'!$C18 -> 117 | BQ17: ='1. Serie Damen'!$C19 -> 118 | BR17: ='1. Serie Damen'!$C20 -> 119 | BS17: ='1. Serie Damen'!$C21 -> 120 | BT17: 105 | BU17: ='2. Serie Damen'!$C18 -> 117 | BV17: ='2. Serie Damen'!$C19 -> 118 | BW17: ='2. Serie Damen'!$C20 -> 119 | BX17: ='2. Serie Damen'!$C21 -> 120 | BY17: 105 | BZ17: ='3. Serie Damen'!$C18 -> 117 | CA17: ='3. Serie Damen'!$C19 -> 118 | CB17: ='3. Serie Damen'!$C20 -> 119 | CC17: ='3. Serie Damen'!$C21 -> 120 | CD17: 105 | CE17: ='4. Serie'!$C18 -> 117 | CF17: ='4. Serie'!$C19 -> 118 | CG17: ='4. Serie'!$C20 -> 119 | CH17: ='4. Serie'!$C21 -> 120 | CI17: 105 | CJ17: ='4. Serie'!$C18 -> 117 | CK17: ='4. Serie'!$C19 -> 118 | CL17: ='4. Serie'!$C20 -> 119 | CM17: ='4. Serie'!$C21 -> 120 | CN17: 5 | CO17: =F29 -> 0 | CP17: =R29 -> 0 | CQ17: =AD29 -> 0 | CR17: =AP29 -> 0
A18: =IF(COUNTIF(B$13:B18,B18)>1,"X","") -> X | B18: =IF(ISBLANK(F17)," ",INDEX(BQ:BQ,MATCH(F17,BO:BO,0))) ->  | C18: =IF(ISBLANK(F17)," ",INDEX('Startgeld Damen'!$C:$C,MATCH($B18,'Startgeld Damen'!$A:$A,0))) ->  | F18: =F17 -> 0 | K18: =IF(ISBLANK(G18)," ",G18+(H18-I18)*50+IF(COUNT(G17:G20)=3,(I17+I19+I20)*40,(I17+I19+I20)*30)) ->  | L18: 0 | M18: =IF(COUNTIF(N$13:N18,N18)>1,"X","") -> X | N18: =IF(ISBLANK(R17)," ",INDEX(BV:BV,MATCH(R17,BT:BT,0))) ->  | O18: =IF(ISBLANK(R17)," ",INDEX('Startgeld Damen'!$C:$C,MATCH(N18,'Startgeld Damen'!$A:$A,0))) ->  | R18: =R17 -> 0 | W18: =IF(ISBLANK(S18)," ",S18+(T18-U18)*50+IF(COUNT(S17:S20)=3,(U17+U19+U20)*40,(U17+U19+U20)*30)) ->  | X18: 0 | Y18: =IF(COUNTIF(Z$13:Z18,Z18)>1,"X","") -> X | Z18: =IF(ISBLANK(AD17)," ",INDEX(CA:CA,MATCH(AD17,BY:BY,0))) ->  | AA18: =IF(ISBLANK(AD17)," ",INDEX('Startgeld Damen'!$C:$C,MATCH(Z18,'Startgeld Damen'!$A:$A,0))) ->  | AD18: =AD17 -> 0 | AI18: =IF(ISBLANK(AE18)," ",AE18+(AF18-AG18)*50+IF(COUNT(AE17:AE20)=3,(AG17+AG19+AG20)*40,(AG17+AG19+AG20)*30)) ->  | AJ18: 0 | AK18: =IF(COUNTIF(AL$13:AL18,AL18)>1,"X","") -> X | AL18: =IF(ISBLANK(AP17)," ",INDEX(CF:CF,MATCH(AP17,CD:CD,0))) ->  | AM18: =IF(ISBLANK(AP17)," ",INDEX('Startgeld Damen'!$C:$C,MATCH(AL18,'Startgeld Damen'!$A:$A,0))) ->  | AP18: =AP17 -> 0 | AU18: =IF(ISBLANK(AQ18)," ",AQ18+(AR18-AS18)*50+IF(COUNT(AQ17:AQ20)=3,(AS17+AS19+AS20)*40,(AS17+AS19+AS20)*30)) ->  | AV18: 0 | AW18: =IF(COUNTIF(AX$13:AX18,AX18)>1,"X","") -> X | AX18: =IF(ISBLANK(BB17)," ",INDEX(CK:CK,MATCH(BB17,CI:CI,0))) ->  | AY18: =IF(ISBLANK(BB17)," ",INDEX('Startgeld Damen'!$C:$C,MATCH(AX18,'Startgeld Damen'!$A:$A,0))) ->  | BB18: =BB17 -> 0 | BG18: =IF(ISBLANK(BC18)," ",BC18+(BD18-BE18)*50+IF(COUNT(BC17:BC20)=3,(BE17+BE19+BE20)*40,(BE17+BE19+BE20)*30)) ->  | BH18: 0 | BI18: Ausgaben: | BJ18: =BJ19+BJ20+BJ21+BJ22+BJ23+BJ24+BJ25+BJ26+BJ27 -> 0 | BO18: 106 | BP18: ='1. Serie Damen'!$C22 -> 121 | BQ18: ='1. Serie Damen'!$C23 -> 122 | BR18: ='1. Serie Damen'!$C24 -> 123 | BS18: ='1. Serie Damen'!$C25 -> 124 | BT18: 106 | BU18: ='2. Serie Damen'!$C22 -> 121 | BV18: ='2. Serie Damen'!$C23 -> 122 | BW18: ='2. Serie Damen'!$C24 -> 123 | BX18: ='2. Serie Damen'!$C25 -> 124 | BY18: 106 | BZ18: ='3. Serie Damen'!$C22 -> 121 | CA18: ='3. Serie Damen'!$C23 -> 122 | CB18: ='3. Serie Damen'!$C24 -> 123 | CC18: ='3. Serie Damen'!$C25 -> 124 | CD18: 106 | CE18: ='4. Serie'!$C22 -> 121 | CF18: ='4. Serie'!$C23 -> 122 | CG18: ='4. Serie'!$C24 -> 123 | CH18: ='4. Serie'!$C25 -> 124 | CI18: 106 | CJ18: ='4. Serie'!$C22 -> 121 | CK18: ='4. Serie'!$C23 -> 122 | CL18: ='4. Serie'!$C24 -> 123 | CM18: ='4. Serie'!$C25 -> 124 | CN18: 6 | CO18: =F33 -> 0 | CP18: =R33 -> 0 | CQ18: =AD33 -> 0 | CR18: =AP33 -> 0
A19: =IF(COUNTIF(B$13:B19,B19)>1,"X","") -> X | B19: =IF(ISBLANK(F17)," ",INDEX(BR:BR,MATCH(F17,BO:BO,0))) ->  | C19: =IF(ISBLANK(F17)," ",INDEX('Startgeld Damen'!$C:$C,MATCH($B19,'Startgeld Damen'!$A:$A,0))) ->  | F19: =F17 -> 0 | K19: =IF(ISBLANK(G19)," ",G19+(H19-I19)*50+IF(COUNT(G17:G20)=3,(I17+I18+I20)*40,(I17+I18+I20)*30)) ->  | L19: 0 | M19: =IF(COUNTIF(N$13:N19,N19)>1,"X","") -> X | N19: =IF(ISBLANK(R17)," ",INDEX(BW:BW,MATCH(R17,BT:BT,0))) ->  | O19: =IF(ISBLANK(R17)," ",INDEX('Startgeld Damen'!$C:$C,MATCH(N19,'Startgeld Damen'!$A:$A,0))) ->  | R19: =R17 -> 0 | W19: =IF(ISBLANK(S19)," ",S19+(T19-U19)*50+IF(COUNT(S17:S20)=3,(U17+U18+U20)*40,(U17+U18+U20)*30)) ->  | X19: 0 | Y19: =IF(COUNTIF(Z$13:Z19,Z19)>1,"X","") -> X | Z19: =IF(ISBLANK(AD17)," ",INDEX(CB:CB,MATCH(AD17,BY:BY,0))) ->  | AA19: =IF(ISBLANK(AD17)," ",INDEX('Startgeld Damen'!$C:$C,MATCH(Z19,'Startgeld Damen'!$A:$A,0))) ->  | AD19: =AD17 -> 0 | AI19: =IF(ISBLANK(AE19)," ",AE19+(AF19-AG19)*50+IF(COUNT(AE17:AE20)=3,(AG17+AG18+AG20)*40,(AG17+AG18+AG20)*30)) ->  | AJ19: 0 | AK19: =IF(COUNTIF(AL$13:AL19,AL19)>1,"X","") -> X | AL19: =IF(ISBLANK(AP17)," ",INDEX(CG:CG,MATCH(AP17,CD:CD,0))) ->  | AM19: =IF(ISBLANK(AP17)," ",INDEX('Startgeld Damen'!$C:$C,MATCH(AL19,'Startgeld Damen'!$A:$A,0))) ->  | AP19: =AP17 -> 0 | AU19: =IF(ISBLANK(AQ19)," ",AQ19+(AR19-AS19)*50+IF(COUNT(AQ17:AQ20)=3,(AS17+AS18+AS20)*40,(AS17+AS18+AS20)*30)) ->  | AV19: 0 | AW19: =IF(COUNTIF(AX$13:AX19,AX19)>1,"X","") -> X | AX19: =IF(ISBLANK(BB17)," ",INDEX(CL:CL,MATCH(BB17,CI:CI,0))) ->  | AY19: =IF(ISBLANK(BB17)," ",INDEX('Startgeld Damen'!$C:$C,MATCH(AX19,'Startgeld Damen'!$A:$A,0))) ->  | BB19: =BB17 -> 0 | BG19: =IF(ISBLANK(BC19)," ",BC19+(BD19-BE19)*50+IF(COUNT(BC17:BC20)=3,(BE17+BE18+BE20)*40,(BE17+BE18+BE20)*30)) ->  | BH19: 0 | BI19: Helfer | BO19: 107 | BP19: ='1. Serie Damen'!$C26 -> 125 | BQ19: ='1. Serie Damen'!$C27 -> 126 | BR19: ='1. Serie Damen'!$C28 -> 127 | BS19: ='1. Serie Damen'!$C29 -> 128 | BT19: 107 | BU19: ='2. Serie Damen'!$C26 -> 125 | BV19: ='2. Serie Damen'!$C27 -> 126 | BW19: ='2. Serie Damen'!$C28 -> 127 | BX19: ='2. Serie Damen'!$C29 -> 128 | BY19: 107 | BZ19: ='3. Serie Damen'!$C26 -> 125 | CA19: ='3. Serie Damen'!$C27 -> 126 | CB19: ='3. Serie Damen'!$C28 -> 127 | CC19: ='3. Serie Damen'!$C29 -> 128 | CD19: 107 | CE19: ='4. Serie'!$C26 -> 125 | CF19: ='4. Serie'!$C27 -> 126 | CG19: ='4. Serie'!$C28 -> 127 | CH19: ='4. Serie'!$C29 -> 128 | CI19: 107 | CJ19: ='4. Serie'!$C26 -> 125 | CK19: ='4. Serie'!$C27 -> 126 | CL19: ='4. Serie'!$C28 -> 127 | CM19: ='4. Serie'!$C29 -> 128 | CN19: 7 | CO19: =F37 -> 0 | CP19: =R37 -> 0 | CQ19: =AD37 -> 0 | CR19: =AP37 -> 0
A20: =IF(COUNTIF(B$13:B20,B20)>1,"X","") -> X | B20: =IF(ISBLANK(F17)," ",INDEX(BS:BS,MATCH(F17,BO:BO,0))) ->  | C20: =IF(ISBLANK(F17)," ",INDEX('Startgeld Damen'!$C:$C,MATCH($B20,'Startgeld Damen'!$A:$A,0))) ->  | F20: =F17 -> 0 | K20: =IF(ISBLANK(G20)," ",G20+(H20-I20)*50+IF(COUNT(G17:G20)=3,(I17+I18+I19)*40,(I17+I18+I19)*30)) ->  | L20: 0 | M20: =IF(COUNTIF(N$13:N20,N20)>1,"X","") -> X | N20: =IF(ISBLANK(R17)," ",INDEX(BX:BX,MATCH(R17,BT:BT,0))) ->  | O20: =IF(ISBLANK(R17)," ",INDEX('Startgeld Damen'!$C:$C,MATCH(N20,'Startgeld Damen'!$A:$A,0))) ->  | R20: =R17 -> 0 | W20: =IF(ISBLANK(S20)," ",S20+(T20-U20)*50+IF(COUNT(S17:S20)=3,(U17+U18+U19)*40,(U17+U18+U19)*30)) ->  | X20: 0 | Y20: =IF(COUNTIF(Z$13:Z20,Z20)>1,"X","") -> X | Z20: =IF(ISBLANK(AD17)," ",INDEX(CC:CC,MATCH(AD17,BY:BY,0))) ->  | AA20: =IF(ISBLANK(AD17)," ",INDEX('Startgeld Damen'!$C:$C,MATCH(Z20,'Startgeld Damen'!$A:$A,0))) ->  | AD20: =AD17 -> 0 | AI20: =IF(ISBLANK(AE20)," ",AE20+(AF20-AG20)*50+IF(COUNT(AE17:AE20)=3,(AG17+AG18+AG19)*40,(AG17+AG18+AG19)*30)) ->  | AJ20: 0 | AK20: =IF(COUNTIF(AL$13:AL20,AL20)>1,"X","") -> X | AL20: =IF(ISBLANK(AP17)," ",INDEX(CH:CH,MATCH(AP17,CD:CD,0))) ->  | AM20: =IF(ISBLANK(AP17)," ",INDEX('Startgeld Damen'!$C:$C,MATCH(AL20,'Startgeld Damen'!$A:$A,0))) ->  | AP20: =AP17 -> 0 | AU20: =IF(ISBLANK(AQ20)," ",AQ20+(AR20-AS20)*50+IF(COUNT(AQ17:AQ20)=3,(AS17+AS18+AS19)*40,(AS17+AS18+AS19)*30)) ->  | AV20: 0 | AW20: =IF(COUNTIF(AX$13:AX20,AX20)>1,"X","") -> X | AX20: =IF(ISBLANK(BB17)," ",INDEX(CM:CM,MATCH(BB17,CI:CI,0))) ->  | AY20: =IF(ISBLANK(BB17)," ",INDEX('Startgeld Damen'!$C:$C,MATCH(AX20,'Startgeld Damen'!$A:$A,0))) ->  | BB20: =BB17 -> 0 | BG20: =IF(ISBLANK(BC20)," ",BC20+(BD20-BE20)*50+IF(COUNT(BC17:BC20)=3,(BE17+BE18+BE19)*40,(BE17+BE18+BE19)*30)) ->  | BH20: 0 | BI20: Helfer | BO20: 108 | BP20: ='1. Serie Damen'!$C30 -> 129 | BQ20: ='1. Serie Damen'!$C31 -> 130 | BR20: ='1. Serie Damen'!$C32 -> 131 | BS20: ='1. Serie Damen'!$C33 -> 132 | BT20: 108 | BU20: ='2. Serie Damen'!$C30 -> 129 | BV20: ='2. Serie Damen'!$C31 -> 130 | BW20: ='2. Serie Damen'!$C32 -> 131 | BX20: ='2. Serie Damen'!$C33 -> 132 | BY20: 108 | BZ20: ='3. Serie Damen'!$C30 -> 129 | CA20: ='3. Serie Damen'!$C31 -> 130 | CB20: ='3. Serie Damen'!$C32 -> 131 | CC20: ='3. Serie Damen'!$C33 -> 132 | CD20: 108 | CE20: ='4. Serie'!$C30 -> 129 | CF20: ='4. Serie'!$C31 -> 130 | CG20: ='4. Serie'!$C32 -> 131 | CH20: ='4. Serie'!$C33 -> 132 | CI20: 108 | CJ20: ='4. Serie'!$C30 -> 129 | CK20: ='4. Serie'!$C31 -> 130 | CL20: ='4. Serie'!$C32 -> 131 | CM20: ='4. Serie'!$C33 -> 132 | CN20: 8 | CO20: =F41 -> 0 | CP20: =R41 -> 0 | CQ20: =AD41 -> 0 | CR20: =AP41 -> 0
A21: =IF(COUNTIF(B$13:B21,B21)>1,"X","") -> X | B21: =IF(ISBLANK(F21)," ",INDEX(BP:BP,MATCH(F21,BO:BO,0))) ->  | C21: =IF(ISBLANK(F21)," ",INDEX('Startgeld Damen'!$C:$C,MATCH($B21,'Startgeld Damen'!$A:$A,0))) ->  | K21: =IF(ISBLANK(G21)," ",G21+(H21-I21)*50+IF(COUNT(G21:G24)=3,(I22+I23+I24)*40,(I22+I23+I24)*30)) ->  | L21: 0 | M21: =IF(COUNTIF(N$13:N21,N21)>1,"X","") -> X | N21: =IF(ISBLANK(R21)," ",INDEX(BU:BU,MATCH(R21,BT:BT,0))) ->  | O21: =IF(ISBLANK(R21)," ",INDEX('Startgeld Damen'!$C:$C,MATCH(N21,'Startgeld Damen'!$A:$A,0))) ->  | W21: =IF(ISBLANK(S21)," ",S21+(T21-U21)*50+IF(COUNT(S21:S24)=3,(U22+U23+U24)*40,(U22+U23+U24)*30)) ->  | X21: 0 | Y21: =IF(COUNTIF(Z$13:Z21,Z21)>1,"X","") -> X | Z21: =IF(ISBLANK(AD21)," ",INDEX(BZ:BZ,MATCH(AD21,BY:BY,0))) ->  | AA21: =IF(ISBLANK(AD21)," ",INDEX('Startgeld Damen'!$C:$C,MATCH(Z21,'Startgeld Damen'!$A:$A,0))) ->  | AI21: =IF(ISBLANK(AE21)," ",AE21+(AF21-AG21)*50+IF(COUNT(AE21:AE24)=3,(AG22+AG23+AG24)*40,(AG22+AG23+AG24)*30)) ->  | AJ21: 0 | AK21: =IF(COUNTIF(AL$13:AL21,AL21)>1,"X","") -> X | AL21: =IF(ISBLANK(AP21)," ",INDEX(CE:CE,MATCH(AP21,CD:CD,0))) ->  | AM21: =IF(ISBLANK(AP21)," ",INDEX('Startgeld Damen'!$C:$C,MATCH(AL21,'Startgeld Damen'!$A:$A,0))) ->  | AU21: =IF(ISBLANK(AQ21)," ",AQ21+(AR21-AS21)*50+IF(COUNT(AQ21:AQ24)=3,(AS22+AS23+AS24)*40,(AS22+AS23+AS24)*30)) ->  | AV21: 0 | AW21: =IF(COUNTIF(AX$13:AX21,AX21)>1,"X","") -> X | AX21: =IF(ISBLANK(BB21)," ",INDEX(CJ:CJ,MATCH(BB21,CI:CI,0))) ->  | AY21: =IF(ISBLANK(BB21)," ",INDEX('Startgeld Damen'!$C:$C,MATCH(AX21,'Startgeld Damen'!$A:$A,0))) ->  | BG21: =IF(ISBLANK(BC21)," ",BC21+(BD21-BE21)*50+IF(COUNT(BC21:BC24)=3,(BE22+BE23+BE24)*40,(BE22+BE23+BE24)*30)) ->  | BH21: 0 | BI21: Helfer | BK21: =SUM(L21:L24) -> 0 | BL21: =SUM(X21:X24) -> 0 | BM21: =SUM(AJ21:AJ24) -> 0 | BN21: =SUM(AV21:AV24) -> 0 | BO21: 109 | BP21: ='1. Serie Damen'!$C34 -> 133 | BQ21: ='1. Serie Damen'!$C35 -> 134 | BR21: ='1. Serie Damen'!$C36 -> 135 | BS21: ='1. Serie Damen'!$C37 -> 136 | BT21: 109 | BU21: ='2. Serie Damen'!$C34 -> 133 | BV21: ='2. Serie Damen'!$C35 -> 134 | BW21: ='2. Serie Damen'!$C36 -> 135 | BX21: ='2. Serie Damen'!$C37 -> 136 | BY21: 109 | BZ21: ='3. Serie Damen'!$C34 -> 133 | CA21: ='3. Serie Damen'!$C35 -> 134 | CB21: ='3. Serie Damen'!$C36 -> 135 | CC21: ='3. Serie Damen'!$C37 -> 136 | CD21: 109 | CE21: ='4. Serie'!$C34 -> 133 | CF21: ='4. Serie'!$C35 -> 134 | CG21: ='4. Serie'!$C36 -> 135 | CH21: ='4. Serie'!$C37 -> 136 | CI21: 109 | CJ21: ='4. Serie'!$C34 -> 133 | CK21: ='4. Serie'!$C35 -> 134 | CL21: ='4. Serie'!$C36 -> 135 | CM21: ='4. Serie'!$C37 -> 136 | CN21: 9 | CO21: =F45 -> 0 | CP21: =R45 -> 0 | CQ21: =AD45 -> 0 | CR21: =AP45 -> 0
A22: =IF(COUNTIF(B$13:B22,B22)>1,"X","") -> X | B22: =IF(ISBLANK(F21)," ",INDEX(BQ:BQ,MATCH(F21,BO:BO,0))) ->  | C22: =IF(ISBLANK(F21)," ",INDEX('Startgeld Damen'!$C:$C,MATCH($B22,'Startgeld Damen'!$A:$A,0))) ->  | F22: =F21 -> 0 | K22: =IF(ISBLANK(G22)," ",G22+(H22-I22)*50+IF(COUNT(G21:G24)=3,(I21+I23+I24)*40,(I21+I23+I24)*30)) ->  | L22: 0 | M22: =IF(COUNTIF(N$13:N22,N22)>1,"X","") -> X | N22: =IF(ISBLANK(R21)," ",INDEX(BV:BV,MATCH(R21,BT:BT,0))) ->  | O22: =IF(ISBLANK(R21)," ",INDEX('Startgeld Damen'!$C:$C,MATCH(N22,'Startgeld Damen'!$A:$A,0))) ->  | R22: =R21 -> 0 | W22: =IF(ISBLANK(S22)," ",S22+(T22-U22)*50+IF(COUNT(S21:S24)=3,(U21+U23+U24)*40,(U21+U23+U24)*30)) ->  | X22: 0 | Y22: =IF(COUNTIF(Z$13:Z22,Z22)>1,"X","") -> X | Z22: =IF(ISBLANK(AD21)," ",INDEX(CA:CA,MATCH(AD21,BY:BY,0))) ->  | AA22: =IF(ISBLANK(AD21)," ",INDEX('Startgeld Damen'!$C:$C,MATCH(Z22,'Startgeld Damen'!$A:$A,0))) ->  | AD22: =AD21 -> 0 | AI22: =IF(ISBLANK(AE22)," ",AE22+(AF22-AG22)*50+IF(COUNT(AE21:AE24)=3,(AG21+AG23+AG24)*40,(AG21+AG23+AG24)*30)) ->  | AJ22: 0 | AK22: =IF(COUNTIF(AL$13:AL22,AL22)>1,"X","") -> X | AL22: =IF(ISBLANK(AP21)," ",INDEX(CF:CF,MATCH(AP21,CD:CD,0))) ->  | AM22: =IF(ISBLANK(AP21)," ",INDEX('Startgeld Damen'!$C:$C,MATCH(AL22,'Startgeld Damen'!$A:$A,0))) ->  | AP22: =AP21 -> 0 | AU22: =IF(ISBLANK(AQ22)," ",AQ22+(AR22-AS22)*50+IF(COUNT(AQ21:AQ24)=3,(AS21+AS23+AS24)*40,(AS21+AS23+AS24)*30)) ->  | AV22: 0 | AW22: =IF(COUNTIF(AX$13:AX22,AX22)>1,"X","") -> X | AX22: =IF(ISBLANK(BB21)," ",INDEX(CK:CK,MATCH(BB21,CI:CI,0))) ->  | AY22: =IF(ISBLANK(BB21)," ",INDEX('Startgeld Damen'!$C:$C,MATCH(AX22,'Startgeld Damen'!$A:$A,0))) ->  | BB22: =BB21 -> 0 | BG22: =IF(ISBLANK(BC22)," ",BC22+(BD22-BE22)*50+IF(COUNT(BC21:BC24)=3,(BE21+BE23+BE24)*40,(BE21+BE23+BE24)*30)) ->  | BH22: 0 | BI22: Helfer | BO22: 110 | BP22: ='1. Serie Damen'!$C38 -> 137 | BQ22: ='1. Serie Damen'!$C39 -> 138 | BR22: ='1. Serie Damen'!$C40 -> 139 | BS22: ='1. Serie Damen'!$C41 -> 140 | BT22: 110 | BU22: ='2. Serie Damen'!$C38 -> 137 | BV22: ='2. Serie Damen'!$C39 -> 138 | BW22: ='2. Serie Damen'!$C40 -> 139 | BX22: ='2. Serie Damen'!$C41 -> 140 | BY22: 110 | BZ22: ='3. Serie Damen'!$C38 -> 137 | CA22: ='3. Serie Damen'!$C39 -> 138 | CB22: ='3. Serie Damen'!$C40 -> 139 | CC22: ='3. Serie Damen'!$C41 -> 140 | CD22: 110 | CE22: ='4. Serie'!$C38 -> 137 | CF22: ='4. Serie'!$C39 -> 138 | CG22: ='4. Serie'!$C40 -> 139 | CH22: ='4. Serie'!$C41 -> 140 | CI22: 110 | CJ22: ='4. Serie'!$C38 -> 137 | CK22: ='4. Serie'!$C39 -> 138 | CL22: ='4. Serie'!$C40 -> 139 | CM22: ='4. Serie'!$C41 -> 140 | CN22: 10 | CO22: =F49 -> 0 | CP22: =R49 -> 0 | CQ22: =AD49 -> 0 | CR22: =AP49 -> 0
A23: =IF(COUNTIF(B$13:B23,B23)>1,"X","") -> X | B23: =IF(ISBLANK(F21)," ",INDEX(BR:BR,MATCH(F21,BO:BO,0))) ->  | C23: =IF(ISBLANK(F21)," ",INDEX('Startgeld Damen'!$C:$C,MATCH($B23,'Startgeld Damen'!$A:$A,0))) ->  | F23: =F21 -> 0 | K23: =IF(ISBLANK(G23)," ",G23+(H23-I23)*50+IF(COUNT(G21:G24)=3,(I21+I22+I24)*40,(I21+I22+I24)*30)) ->  | L23: 0 | M23: =IF(COUNTIF(N$13:N23,N23)>1,"X","") -> X | N23: =IF(ISBLANK(R21)," ",INDEX(BW:BW,MATCH(R21,BT:BT,0))) ->  | O23: =IF(ISBLANK(R21)," ",INDEX('Startgeld Damen'!$C:$C,MATCH(N23,'Startgeld Damen'!$A:$A,0))) ->  | R23: =R21 -> 0 | W23: =IF(ISBLANK(S23)," ",S23+(T23-U23)*50+IF(COUNT(S21:S24)=3,(U21+U22+U24)*40,(U21+U22+U24)*30)) ->  | X23: 0 | Y23: =IF(COUNTIF(Z$13:Z23,Z23)>1,"X","") -> X | Z23: =IF(ISBLANK(AD21)," ",INDEX(CB:CB,MATCH(AD21,BY:BY,0))) ->  | AA23: =IF(ISBLANK(AD21)," ",INDEX('Startgeld Damen'!$C:$C,MATCH(Z23,'Startgeld Damen'!$A:$A,0))) ->  | AD23: =AD21 -> 0 | AI23: =IF(ISBLANK(AE23)," ",AE23+(AF23-AG23)*50+IF(COUNT(AE21:AE24)=3,(AG21+AG22+AG24)*40,(AG21+AG22+AG24)*30)) ->  | AJ23: 0 | AK23: =IF(COUNTIF(AL$13:AL23,AL23)>1,"X","") -> X | AL23: =IF(ISBLANK(AP21)," ",INDEX(CG:CG,MATCH(AP21,CD:CD,0))) ->  | AM23: =IF(ISBLANK(AP21)," ",INDEX('Startgeld Damen'!$C:$C,MATCH(AL23,'Startgeld Damen'!$A:$A,0))) ->  | AP23: =AP21 -> 0 | AU23: =IF(ISBLANK(AQ23)," ",AQ23+(AR23-AS23)*50+IF(COUNT(AQ21:AQ24)=3,(AS21+AS22+AS24)*40,(AS21+AS22+AS24)*30)) ->  | AV23: 0 | AW23: =IF(COUNTIF(AX$13:AX23,AX23)>1,"X","") -> X | AX23: =IF(ISBLANK(BB21)," ",INDEX(CL:CL,MATCH(BB21,CI:CI,0))) ->  | AY23: =IF(ISBLANK(BB21)," ",INDEX('Startgeld Damen'!$C:$C,MATCH(AX23,'Startgeld Damen'!$A:$A,0))) ->  | BB23: =BB21 -> 0 | BG23: =IF(ISBLANK(BC23)," ",BC23+(BD23-BE23)*50+IF(COUNT(BC21:BC24)=3,(BE21+BE22+BE24)*40,(BE21+BE22+BE24)*30)) ->  | BH23: 0 | BI23: Helfer | BO23: 111 | BP23: ='1. Serie Damen'!$C42 -> 141 | BQ23: ='1. Serie Damen'!$C43 -> 142 | BR23: ='1. Serie Damen'!$C44 -> 143 | BS23: ='1. Serie Damen'!$C45 -> 144 | BT23: 111 | BU23: ='2. Serie Damen'!$C42 -> 141 | BV23: ='2. Serie Damen'!$C43 -> 142 | BW23: ='2. Serie Damen'!$C44 -> 143 | BX23: ='2. Serie Damen'!$C45 -> 144 | BY23: 111 | BZ23: ='3. Serie Damen'!$C42 -> 141 | CA23: ='3. Serie Damen'!$C43 -> 142 | CB23: ='3. Serie Damen'!$C44 -> 143 | CC23: ='3. Serie Damen'!$C45 -> 144 | CD23: 111 | CE23: ='4. Serie'!$C42 -> 141 | CF23: ='4. Serie'!$C43 -> 142 | CG23: ='4. Serie'!$C44 -> 143 | CH23: ='4. Serie'!$C45 -> 144 | CI23: 111 | CJ23: ='4. Serie'!$C42 -> 141 | CK23: ='4. Serie'!$C43 -> 142 | CL23: ='4. Serie'!$C44 -> 143 | CM23: ='4. Serie'!$C45 -> 144 | CN23: 11 | CO23: =F53 -> 0 | CP23: =R53 -> 0 | CQ23: =AD53 -> 0 | CR23: =AP53 -> 0
A24: =IF(COUNTIF(B$13:B24,B24)>1,"X","") -> X | B24: =IF(ISBLANK(F21)," ",INDEX(BS:BS,MATCH(F21,BO:BO,0))) ->  | C24: =IF(ISBLANK(F21)," ",INDEX('Startgeld Damen'!$C:$C,MATCH($B24,'Startgeld Damen'!$A:$A,0))) ->  | F24: =F21 -> 0 | K24: =IF(ISBLANK(G24)," ",G24+(H24-I24)*50+IF(COUNT(G21:G24)=3,(I21+I22+I23)*40,(I21+I22+I23)*30)) ->  | L24: 0 | M24: =IF(COUNTIF(N$13:N24,N24)>1,"X","") -> X | N24: =IF(ISBLANK(R21)," ",INDEX(BX:BX,MATCH(R21,BT:BT,0))) ->  | O24: =IF(ISBLANK(R21)," ",INDEX('Startgeld Damen'!$C:$C,MATCH(N24,'Startgeld Damen'!$A:$A,0))) ->  | R24: =R21 -> 0 | W24: =IF(ISBLANK(S24)," ",S24+(T24-U24)*50+IF(COUNT(S21:S24)=3,(U21+U22+U23)*40,(U21+U22+U23)*30)) ->  | X24: 0 | Y24: =IF(COUNTIF(Z$13:Z24,Z24)>1,"X","") -> X | Z24: =IF(ISBLANK(AD21)," ",INDEX(CC:CC,MATCH(AD21,BY:BY,0))) ->  | AA24: =IF(ISBLANK(AD21)," ",INDEX('Startgeld Damen'!$C:$C,MATCH(Z24,'Startgeld Damen'!$A:$A,0))) ->  | AD24: =AD21 -> 0 | AI24: =IF(ISBLANK(AE24)," ",AE24+(AF24-AG24)*50+IF(COUNT(AE21:AE24)=3,(AG21+AG22+AG23)*40,(AG21+AG22+AG23)*30)) ->  | AJ24: 0 | AK24: =IF(COUNTIF(AL$13:AL24,AL24)>1,"X","") -> X | AL24: =IF(ISBLANK(AP21)," ",INDEX(CH:CH,MATCH(AP21,CD:CD,0))) ->  | AM24: =IF(ISBLANK(AP21)," ",INDEX('Startgeld Damen'!$C:$C,MATCH(AL24,'Startgeld Damen'!$A:$A,0))) ->  | AP24: =AP21 -> 0 | AU24: =IF(ISBLANK(AQ24)," ",AQ24+(AR24-AS24)*50+IF(COUNT(AQ21:AQ24)=3,(AS21+AS22+AS23)*40,(AS21+AS22+AS23)*30)) ->  | AV24: 0 | AW24: =IF(COUNTIF(AX$13:AX24,AX24)>1,"X","") -> X | AX24: =IF(ISBLANK(BB21)," ",INDEX(CM:CM,MATCH(BB21,CI:CI,0))) ->  | AY24: =IF(ISBLANK(BB21)," ",INDEX('Startgeld Damen'!$C:$C,MATCH(AX24,'Startgeld Damen'!$A:$A,0))) ->  | BB24: =BB21 -> 0 | BG24: =IF(ISBLANK(BC24)," ",BC24+(BD24-BE24)*50+IF(COUNT(BC21:BC24)=3,(BE21+BE22+BE23)*40,(BE21+BE22+BE23)*30)) ->  | BH24: 0 | BI24: Helfer | BO24: 112 | BP24: ='1. Serie Damen'!$C46 -> 145 | BQ24: ='1. Serie Damen'!$C47 -> 146 | BR24: ='1. Serie Damen'!$C48 -> 147 | BS24: ='1. Serie Damen'!$C49 -> 148 | BT24: 112 | BU24: ='2. Serie Damen'!$C46 -> 145 | BV24: ='2. Serie Damen'!$C47 -> 146 | BW24: ='2. Serie Damen'!$C48 -> 147 | BX24: ='2. Serie Damen'!$C49 -> 148 | BY24: 112 | BZ24: ='3. Serie Damen'!$C46 -> 145 | CA24: ='3. Serie Damen'!$C47 -> 146 | CB24: ='3. Serie Damen'!$C48 -> 147 | CC24: ='3. Serie Damen'!$C49 -> 148 | CD24: 112 | CE24: ='4. Serie'!$C46 -> 145 | CF24: ='4. Serie'!$C47 -> 146 | CG24: ='4. Serie'!$C48 -> 147 | CH24: ='4. Serie'!$C49 -> 148 | CI24: 112 | CJ24: ='4. Serie'!$C46 -> 145 | CK24: ='4. Serie'!$C47 -> 146 | CL24: ='4. Serie'!$C48 -> 147 | CM24: ='4. Serie'!$C49 -> 148 | CN24: 12 | CO24: =F57 -> 0 | CP24: =R57 -> 0 | CQ24: =AD57 -> 0 | CR24: =AP57 -> 0
A25: =IF(COUNTIF(B$13:B25,B25)>1,"X","") -> X | B25: =IF(ISBLANK(F25)," ",INDEX(BP:BP,MATCH(F25,BO:BO,0))) ->  | C25: =IF(ISBLANK(F25)," ",INDEX('Startgeld Damen'!$C:$C,MATCH($B25,'Startgeld Damen'!$A:$A,0))) ->  | K25: =IF(ISBLANK(G25)," ",G25+(H25-I25)*50+IF(COUNT(G25:G28)=3,(I26+I27+I28)*40,(I26+I27+I28)*30)) ->  | L25: 0 | M25: =IF(COUNTIF(N$13:N25,N25)>1,"X","") -> X | N25: =IF(ISBLANK(R25)," ",INDEX(BU:BU,MATCH(R25,BT:BT,0))) ->  | O25: =IF(ISBLANK(R25)," ",INDEX('Startgeld Damen'!$C:$C,MATCH(N25,'Startgeld Damen'!$A:$A,0))) ->  | W25: =IF(ISBLANK(S25)," ",S25+(T25-U25)*50+IF(COUNT(S25:S28)=3,(U26+U27+U28)*40,(U26+U27+U28)*30)) ->  | X25: 0 | Y25: =IF(COUNTIF(Z$13:Z25,Z25)>1,"X","") -> X | Z25: =IF(ISBLANK(AD25)," ",INDEX(BZ:BZ,MATCH(AD25,BY:BY,0))) ->  | AA25: =IF(ISBLANK(AD25)," ",INDEX('Startgeld Damen'!$C:$C,MATCH(Z25,'Startgeld Damen'!$A:$A,0))) ->  | AI25: =IF(ISBLANK(AE25)," ",AE25+(AF25-AG25)*50+IF(COUNT(AE25:AE28)=3,(AG26+AG27+AG28)*40,(AG26+AG27+AG28)*30)) ->  | AJ25: 0 | AK25: =IF(COUNTIF(AL$13:AL25,AL25)>1,"X","") -> X | AL25: =IF(ISBLANK(AP25)," ",INDEX(CE:CE,MATCH(AP25,CD:CD,0))) ->  | AM25: =IF(ISBLANK(AP25)," ",INDEX('Startgeld Damen'!$C:$C,MATCH(AL25,'Startgeld Damen'!$A:$A,0))) ->  | AU25: =IF(ISBLANK(AQ25)," ",AQ25+(AR25-AS25)*50+IF(COUNT(AQ25:AQ28)=3,(AS26+AS27+AS28)*40,(AS26+AS27+AS28)*30)) ->  | AV25: 0 | AW25: =IF(COUNTIF(AX$13:AX25,AX25)>1,"X","") -> X | AX25: =IF(ISBLANK(BB25)," ",INDEX(CJ:CJ,MATCH(BB25,CI:CI,0))) ->  | AY25: =IF(ISBLANK(BB25)," ",INDEX('Startgeld Damen'!$C:$C,MATCH(AX25,'Startgeld Damen'!$A:$A,0))) ->  | BG25: =IF(ISBLANK(BC25)," ",BC25+(BD25-BE25)*50+IF(COUNT(BC25:BC28)=3,(BE26+BE27+BE28)*40,(BE26+BE27+BE28)*30)) ->  | BH25: 0 | BI25: sonstiges | BK25: =SUM(L25:L28) -> 0 | BL25: =SUM(X25:X28) -> 0 | BM25: =SUM(AJ25:AJ28) -> 0 | BN25: =SUM(AV25:AV28) -> 0 | BO25: 113 | BP25: ='1. Serie Damen'!$C50 -> 149 | BQ25: ='1. Serie Damen'!$C51 -> 150 | BR25: ='1. Serie Damen'!$C52 -> 151 | BS25: ='1. Serie Damen'!$C53 -> 152 | BT25: 113 | BU25: ='2. Serie Damen'!$C50 -> 149 | BV25: ='2. Serie Damen'!$C51 -> 150 | BW25: ='2. Serie Damen'!$C52 -> 151 | BX25: ='2. Serie Damen'!$C53 -> 152 | BY25: 113 | BZ25: ='3. Serie Damen'!$C50 -> 149 | CA25: ='3. Serie Damen'!$C51 -> 150 | CB25: ='3. Serie Damen'!$C52 -> 151 | CC25: ='3. Serie Damen'!$C53 -> 152 | CD25: 113 | CE25: ='4. Serie'!$C50 -> 149 | CF25: ='4. Serie'!$C51 -> 150 | CG25: ='4. Serie'!$C52 -> 151 | CH25: ='4. Serie'!$C53 -> 152 | CI25: 113 | CJ25: ='4. Serie'!$C50 -> 149 | CK25: ='4. Serie'!$C51 -> 150 | CL25: ='4. Serie'!$C52 -> 151 | CM25: ='4. Serie'!$C53 -> 152 | CN25: 13 | CO25: =F61 -> 0 | CP25: =R61 -> 0 | CQ25: =AD61 -> 0 | CR25: =AP61 -> 0
A26: =IF(COUNTIF(B$13:B26,B26)>1,"X","") -> X | B26: =IF(ISBLANK(F25)," ",INDEX(BQ:BQ,MATCH(F25,BO:BO,0))) ->  | C26: =IF(ISBLANK(F25)," ",INDEX('Startgeld Damen'!$C:$C,MATCH($B26,'Startgeld Damen'!$A:$A,0))) ->  | F26: =F25 -> 0 | K26: =IF(ISBLANK(G26)," ",G26+(H26-I26)*50+IF(COUNT(G25:G28)=3,(I25+I27+I28)*40,(I25+I27+I28)*30)) ->  | L26: 0 | M26: =IF(COUNTIF(N$13:N26,N26)>1,"X","") -> X | N26: =IF(ISBLANK(R25)," ",INDEX(BV:BV,MATCH(R25,BT:BT,0))) ->  | O26: =IF(ISBLANK(R25)," ",INDEX('Startgeld Damen'!$C:$C,MATCH(N26,'Startgeld Damen'!$A:$A,0))) ->  | R26: =R25 -> 0 | W26: =IF(ISBLANK(S26)," ",S26+(T26-U26)*50+IF(COUNT(S25:S28)=3,(U25+U27+U28)*40,(U25+U27+U28)*30)) ->  | X26: 0 | Y26: =IF(COUNTIF(Z$13:Z26,Z26)>1,"X","") -> X | Z26: =IF(ISBLANK(AD25)," ",INDEX(CA:CA,MATCH(AD25,BY:BY,0))) ->  | AA26: =IF(ISBLANK(AD25)," ",INDEX('Startgeld Damen'!$C:$C,MATCH(Z26,'Startgeld Damen'!$A:$A,0))) ->  | AD26: =AD25 -> 0 | AI26: =IF(ISBLANK(AE26)," ",AE26+(AF26-AG26)*50+IF(COUNT(AE25:AE28)=3,(AG25+AG27+AG28)*40,(AG25+AG27+AG28)*30)) ->  | AJ26: 0 | AK26: =IF(COUNTIF(AL$13:AL26,AL26)>1,"X","") -> X | AL26: =IF(ISBLANK(AP25)," ",INDEX(CF:CF,MATCH(AP25,CD:CD,0))) ->  | AM26: =IF(ISBLANK(AP25)," ",INDEX('Startgeld Damen'!$C:$C,MATCH(AL26,'Startgeld Damen'!$A:$A,0))) ->  | AP26: =AP25 -> 0 | AU26: =IF(ISBLANK(AQ26)," ",AQ26+(AR26-AS26)*50+IF(COUNT(AQ25:AQ28)=3,(AS25+AS27+AS28)*40,(AS25+AS27+AS28)*30)) ->  | AV26: 0 | AW26: =IF(COUNTIF(AX$13:AX26,AX26)>1,"X","") -> X | AX26: =IF(ISBLANK(BB25)," ",INDEX(CK:CK,MATCH(BB25,CI:CI,0))) ->  | AY26: =IF(ISBLANK(BB25)," ",INDEX('Startgeld Damen'!$C:$C,MATCH(AX26,'Startgeld Damen'!$A:$A,0))) ->  | BB26: =BB25 -> 0 | BG26: =IF(ISBLANK(BC26)," ",BC26+(BD26-BE26)*50+IF(COUNT(BC25:BC28)=3,(BE25+BE27+BE28)*40,(BE25+BE27+BE28)*30)) ->  | BH26: 0 | BI26: sonstiges | BO26: 114 | BP26: ='1. Serie Damen'!$C54 -> 153 | BQ26: ='1. Serie Damen'!$C55 -> 154 | BR26: ='1. Serie Damen'!$C56 -> 155 | BS26: ='1. Serie Damen'!$C57 -> 156 | BT26: 114 | BU26: ='2. Serie Damen'!$C54 -> 153 | BV26: ='2. Serie Damen'!$C55 -> 154 | BW26: ='2. Serie Damen'!$C56 -> 155 | BX26: ='2. Serie Damen'!$C57 -> 156 | BY26: 114 | BZ26: ='3. Serie Damen'!$C54 -> 153 | CA26: ='3. Serie Damen'!$C55 -> 154 | CB26: ='3. Serie Damen'!$C56 -> 155 | CC26: ='3. Serie Damen'!$C57 -> 156 | CD26: 114 | CE26: ='4. Serie'!$C54 -> 153 | CF26: ='4. Serie'!$C55 -> 154 | CG26: ='4. Serie'!$C56 -> 155 | CH26: ='4. Serie'!$C57 -> 156 | CI26: 114 | CJ26: ='4. Serie'!$C54 -> 153 | CK26: ='4. Serie'!$C55 -> 154 | CL26: ='4. Serie'!$C56 -> 155 | CM26: ='4. Serie'!$C57 -> 156 | CN26: 14 | CO26: =F65 -> 0 | CP26: =R65 -> 0 | CQ26: =AD65 -> 0 | CR26: =AP65 -> 0
A27: =IF(COUNTIF(B$13:B27,B27)>1,"X","") -> X | B27: =IF(ISBLANK(F25)," ",INDEX(BR:BR,MATCH(F25,BO:BO,0))) ->  | C27: =IF(ISBLANK(F25)," ",INDEX('Startgeld Damen'!$C:$C,MATCH($B27,'Startgeld Damen'!$A:$A,0))) ->  | F27: =F25 -> 0 | K27: =IF(ISBLANK(G27)," ",G27+(H27-I27)*50+IF(COUNT(G25:G28)=3,(I25+I26+I28)*40,(I25+I26+I28)*30)) ->  | L27: 0 | M27: =IF(COUNTIF(N$13:N27,N27)>1,"X","") -> X | N27: =IF(ISBLANK(R25)," ",INDEX(BW:BW,MATCH(R25,BT:BT,0))) ->  | O27: =IF(ISBLANK(R25)," ",INDEX('Startgeld Damen'!$C:$C,MATCH(N27,'Startgeld Damen'!$A:$A,0))) ->  | R27: =R25 -> 0 | W27: =IF(ISBLANK(S27)," ",S27+(T27-U27)*50+IF(COUNT(S25:S28)=3,(U25+U26+U28)*40,(U25+U26+U28)*30)) ->  | X27: 0 | Y27: =IF(COUNTIF(Z$13:Z27,Z27)>1,"X","") -> X | Z27: =IF(ISBLANK(AD25)," ",INDEX(CB:CB,MATCH(AD25,BY:BY,0))) ->  | AA27: =IF(ISBLANK(AD25)," ",INDEX('Startgeld Damen'!$C:$C,MATCH(Z27,'Startgeld Damen'!$A:$A,0))) ->  | AD27: =AD25 -> 0 | AI27: =IF(ISBLANK(AE27)," ",AE27+(AF27-AG27)*50+IF(COUNT(AE25:AE28)=3,(AG25+AG26+AG28)*40,(AG25+AG26+AG28)*30)) ->  | AJ27: 0 | AK27: =IF(COUNTIF(AL$13:AL27,AL27)>1,"X","") -> X | AL27: =IF(ISBLANK(AP25)," ",INDEX(CG:CG,MATCH(AP25,CD:CD,0))) ->  | AM27: =IF(ISBLANK(AP25)," ",INDEX('Startgeld Damen'!$C:$C,MATCH(AL27,'Startgeld Damen'!$A:$A,0))) ->  | AP27: =AP25 -> 0 | AU27: =IF(ISBLANK(AQ27)," ",AQ27+(AR27-AS27)*50+IF(COUNT(AQ25:AQ28)=3,(AS25+AS26+AS28)*40,(AS25+AS26+AS28)*30)) ->  | AV27: 0 | AW27: =IF(COUNTIF(AX$13:AX27,AX27)>1,"X","") -> X | AX27: =IF(ISBLANK(BB25)," ",INDEX(CL:CL,MATCH(BB25,CI:CI,0))) ->  | AY27: =IF(ISBLANK(BB25)," ",INDEX('Startgeld Damen'!$C:$C,MATCH(AX27,'Startgeld Damen'!$A:$A,0))) ->  | BB27: =BB25 -> 0 | BG27: =IF(ISBLANK(BC27)," ",BC27+(BD27-BE27)*50+IF(COUNT(BC25:BC28)=3,(BE25+BE26+BE28)*40,(BE25+BE26+BE28)*30)) ->  | BH27: 0 | BI27: sonstiges | BO27: 115 | BP27: ='1. Serie Damen'!$C58 -> 157 | BQ27: ='1. Serie Damen'!$C59 -> 158 | BR27: ='1. Serie Damen'!$C60 -> 159 | BS27: ='1. Serie Damen'!$C61 -> 160 | BT27: 115 | BU27: ='2. Serie Damen'!$C58 -> 157 | BV27: ='2. Serie Damen'!$C59 -> 158 | BW27: ='2. Serie Damen'!$C60 -> 159 | BX27: ='2. Serie Damen'!$C61 -> 160 | BY27: 115 | BZ27: ='3. Serie Damen'!$C58 -> 157 | CA27: ='3. Serie Damen'!$C59 -> 158 | CB27: ='3. Serie Damen'!$C60 -> 159 | CC27: ='3. Serie Damen'!$C61 -> 160 | CD27: 115 | CE27: ='4. Serie'!$C58 -> 157 | CF27: ='4. Serie'!$C59 -> 158 | CG27: ='4. Serie'!$C60 -> 159 | CH27: ='4. Serie'!$C61 -> 160 | CI27: 115 | CJ27: ='4. Serie'!$C58 -> 157 | CK27: ='4. Serie'!$C59 -> 158 | CL27: ='4. Serie'!$C60 -> 159 | CM27: ='4. Serie'!$C61 -> 160 | CN27: 15 | CO27: =F69 -> 0 | CP27: =R69 -> 0 | CQ27: =AD69 -> 0 | CR27: =AP69 -> 0
A28: =IF(COUNTIF(B$13:B28,B28)>1,"X","") -> X | B28: =IF(ISBLANK(F25)," ",INDEX(BS:BS,MATCH(F25,BO:BO,0))) ->  | C28: =IF(ISBLANK(F25)," ",INDEX('Startgeld Damen'!$C:$C,MATCH($B28,'Startgeld Damen'!$A:$A,0))) ->  | F28: =F25 -> 0 | K28: =IF(ISBLANK(G28)," ",G28+(H28-I28)*50+IF(COUNT(G25:G28)=3,(I25+I26+I27)*40,(I25+I26+I27)*30)) ->  | L28: 0 | M28: =IF(COUNTIF(N$13:N28,N28)>1,"X","") -> X | N28: =IF(ISBLANK(R25)," ",INDEX(BX:BX,MATCH(R25,BT:BT,0))) ->  | O28: =IF(ISBLANK(R25)," ",INDEX('Startgeld Damen'!$C:$C,MATCH(N28,'Startgeld Damen'!$A:$A,0))) ->  | R28: =R25 -> 0 | W28: =IF(ISBLANK(S28)," ",S28+(T28-U28)*50+IF(COUNT(S25:S28)=3,(U25+U26+U27)*40,(U25+U26+U27)*30)) ->  | X28: 0 | Y28: =IF(COUNTIF(Z$13:Z28,Z28)>1,"X","") -> X | Z28: =IF(ISBLANK(AD25)," ",INDEX(CC:CC,MATCH(AD25,BY:BY,0))) ->  | AA28: =IF(ISBLANK(AD25)," ",INDEX('Startgeld Damen'!$C:$C,MATCH(Z28,'Startgeld Damen'!$A:$A,0))) ->  | AD28: =AD25 -> 0 | AI28: =IF(ISBLANK(AE28)," ",AE28+(AF28-AG28)*50+IF(COUNT(AE25:AE28)=3,(AG25+AG26+AG27)*40,(AG25+AG26+AG27)*30)) ->  | AJ28: 0 | AK28: =IF(COUNTIF(AL$13:AL28,AL28)>1,"X","") -> X | AL28: =IF(ISBLANK(AP25)," ",INDEX(CH:CH,MATCH(AP25,CD:CD,0))) ->  | AM28: =IF(ISBLANK(AP25)," ",INDEX('Startgeld Damen'!$C:$C,MATCH(AL28,'Startgeld Damen'!$A:$A,0))) ->  | AP28: =AP25 -> 0 | AU28: =IF(ISBLANK(AQ28)," ",AQ28+(AR28-AS28)*50+IF(COUNT(AQ25:AQ28)=3,(AS25+AS26+AS27)*40,(AS25+AS26+AS27)*30)) ->  | AV28: 0 | AW28: =IF(COUNTIF(AX$13:AX28,AX28)>1,"X","") -> X | AX28: =IF(ISBLANK(BB25)," ",INDEX(CM:CM,MATCH(BB25,CI:CI,0))) ->  | AY28: =IF(ISBLANK(BB25)," ",INDEX('Startgeld Damen'!$C:$C,MATCH(AX28,'Startgeld Damen'!$A:$A,0))) ->  | BB28: =BB25 -> 0 | BG28: =IF(ISBLANK(BC28)," ",BC28+(BD28-BE28)*50+IF(COUNT(BC25:BC28)=3,(BE25+BE26+BE27)*40,(BE25+BE26+BE27)*30)) ->  | BH28: 0 | BO28: 116 | BP28: ='1. Serie Damen'!$C62 -> 161 | BQ28: ='1. Serie Damen'!$C63 -> 162 | BR28: ='1. Serie Damen'!$C64 -> 163 | BS28: ='1. Serie Damen'!$C65 -> 164 | BT28: 116 | BU28: ='2. Serie Damen'!$C62 -> 161 | BV28: ='2. Serie Damen'!$C63 -> 162 | BW28: ='2. Serie Damen'!$C64 -> 163 | BX28: ='2. Serie Damen'!$C65 -> 164 | BY28: 116 | BZ28: ='3. Serie Damen'!$C62 -> 161 | CA28: ='3. Serie Damen'!$C63 -> 162 | CB28: ='3. Serie Damen'!$C64 -> 163 | CC28: ='3. Serie Damen'!$C65 -> 164 | CD28: 116 | CE28: ='4. Serie'!$C62 -> 161 | CF28: ='4. Serie'!$C63 -> 162 | CG28: ='4. Serie'!$C64 -> 163 | CH28: ='4. Serie'!$C65 -> 164 | CI28: 116 | CJ28: ='4. Serie'!$C62 -> 161 | CK28: ='4. Serie'!$C63 -> 162 | CL28: ='4. Serie'!$C64 -> 163 | CM28: ='4. Serie'!$C65 -> 164 | CN28: 16 | CO28: =F73 -> 0 | CP28: =R73 -> 0 | CQ28: =AD73 -> 0 | CR28: =AP73 -> 0
A29: =IF(COUNTIF(B$13:B29,B29)>1,"X","") -> X | B29: =IF(ISBLANK(F29)," ",INDEX(BP:BP,MATCH(F29,BO:BO,0))) ->  | C29: =IF(ISBLANK(F29)," ",INDEX('Startgeld Damen'!$C:$C,MATCH($B29,'Startgeld Damen'!$A:$A,0))) ->  | K29: =IF(ISBLANK(G29)," ",G29+(H29-I29)*50+IF(COUNT(G29:G32)=3,(I30+I31+I32)*40,(I30+I31+I32)*30)) ->  | L29: 0 | M29: =IF(COUNTIF(N$13:N29,N29)>1,"X","") -> X | N29: =IF(ISBLANK(R29)," ",INDEX(BU:BU,MATCH(R29,BT:BT,0))) ->  | O29: =IF(ISBLANK(R29)," ",INDEX('Startgeld Damen'!$C:$C,MATCH(N29,'Startgeld Damen'!$A:$A,0))) ->  | W29: =IF(ISBLANK(S29)," ",S29+(T29-U29)*50+IF(COUNT(S29:S32)=3,(U30+U31+U32)*40,(U30+U31+U32)*30)) ->  | X29: 0 | Y29: =IF(COUNTIF(Z$13:Z29,Z29)>1,"X","") -> X | Z29: =IF(ISBLANK(AD29)," ",INDEX(BZ:BZ,MATCH(AD29,BY:BY,0))) ->  | AA29: =IF(ISBLANK(AD29)," ",INDEX('Startgeld Damen'!$C:$C,MATCH(Z29,'Startgeld Damen'!$A:$A,0))) ->  | AI29: =IF(ISBLANK(AE29)," ",AE29+(AF29-AG29)*50+IF(COUNT(AE29:AE32)=3,(AG30+AG31+AG32)*40,(AG30+AG31+AG32)*30)) ->  | AJ29: 0 | AK29: =IF(COUNTIF(AL$13:AL29,AL29)>1,"X","") -> X | AL29: =IF(ISBLANK(AP29)," ",INDEX(CE:CE,MATCH(AP29,CD:CD,0))) ->  | AM29: =IF(ISBLANK(AP29)," ",INDEX('Startgeld Damen'!$C:$C,MATCH(AL29,'Startgeld Damen'!$A:$A,0))) ->  | AU29: =IF(ISBLANK(AQ29)," ",AQ29+(AR29-AS29)*50+IF(COUNT(AQ29:AQ32)=3,(AS30+AS31+AS32)*40,(AS30+AS31+AS32)*30)) ->  | AV29: 0 | AW29: =IF(COUNTIF(AX$13:AX29,AX29)>1,"X","") -> X | AX29: =IF(ISBLANK(BB29)," ",INDEX(CJ:CJ,MATCH(BB29,CI:CI,0))) ->  | AY29: =IF(ISBLANK(BB29)," ",INDEX('Startgeld Damen'!$C:$C,MATCH(AX29,'Startgeld Damen'!$A:$A,0))) ->  | BG29: =IF(ISBLANK(BC29)," ",BC29+(BD29-BE29)*50+IF(COUNT(BC29:BC32)=3,(BE30+BE31+BE32)*40,(BE30+BE31+BE32)*30)) ->  | BH29: 0 | BK29: =SUM(L29:L32) -> 0 | BL29: =SUM(X29:X32) -> 0 | BM29: =SUM(AJ29:AJ32) -> 0 | BN29: =SUM(AV29:AV32) -> 0 | BO29: 117 | BP29: ='1. Serie Damen'!$C66 -> 165 | BQ29: ='1. Serie Damen'!$C67 -> 166 | BR29: ='1. Serie Damen'!$C68 -> 167 | BS29: ='1. Serie Damen'!$C69 -> 168 | BT29: 117 | BU29: ='2. Serie Damen'!$C66 -> 165 | BV29: ='2. Serie Damen'!$C67 -> 166 | BW29: ='2. Serie Damen'!$C68 -> 167 | BX29: ='2. Serie Damen'!$C69 -> 168 | BY29: 117 | BZ29: ='3. Serie Damen'!$C66 -> 165 | CA29: ='3. Serie Damen'!$C67 -> 166 | CB29: ='3. Serie Damen'!$C68 -> 167 | CC29: ='3. Serie Damen'!$C69 -> 168 | CD29: 117 | CE29: ='4. Serie'!$C66 -> 165 | CF29: ='4. Serie'!$C67 -> 166 | CG29: ='4. Serie'!$C68 -> 167 | CH29: ='4. Serie'!$C69 -> 168 | CI29: 117 | CJ29: ='4. Serie'!$C66 -> 165 | CK29: ='4. Serie'!$C67 -> 166 | CL29: ='4. Serie'!$C68 -> 167 | CM29: ='4. Serie'!$C69 -> 168 | CN29: 17 | CO29: =F77 -> 0 | CP29: =R77 -> 0 | CQ29: =AD77 -> 0 | CR29: =AP77 -> 0
A30: =IF(COUNTIF(B$13:B30,B30)>1,"X","") -> X | B30: =IF(ISBLANK(F29)," ",INDEX(BQ:BQ,MATCH(F29,BO:BO,0))) ->  | C30: =IF(ISBLANK(F29)," ",INDEX('Startgeld Damen'!$C:$C,MATCH($B30,'Startgeld Damen'!$A:$A,0))) ->  | F30: =F29 -> 0 | K30: =IF(ISBLANK(G30)," ",G30+(H30-I30)*50+IF(COUNT(G29:G32)=3,(I29+I31+I32)*40,(I29+I31+I32)*30)) ->  | L30: 0 | M30: =IF(COUNTIF(N$13:N30,N30)>1,"X","") -> X | N30: =IF(ISBLANK(R29)," ",INDEX(BV:BV,MATCH(R29,BT:BT,0))) ->  | O30: =IF(ISBLANK(R29)," ",INDEX('Startgeld Damen'!$C:$C,MATCH(N30,'Startgeld Damen'!$A:$A,0))) ->  | R30: =R29 -> 0 | W30: =IF(ISBLANK(S30)," ",S30+(T30-U30)*50+IF(COUNT(S29:S32)=3,(U29+U31+U32)*40,(U29+U31+U32)*30)) ->  | X30: 0 | Y30: =IF(COUNTIF(Z$13:Z30,Z30)>1,"X","") -> X | Z30: =IF(ISBLANK(AD29)," ",INDEX(CA:CA,MATCH(AD29,BY:BY,0))) ->  | AA30: =IF(ISBLANK(AD29)," ",INDEX('Startgeld Damen'!$C:$C,MATCH(Z30,'Startgeld Damen'!$A:$A,0))) ->  | AD30: =AD29 -> 0 | AI30: =IF(ISBLANK(AE30)," ",AE30+(AF30-AG30)*50+IF(COUNT(AE29:AE32)=3,(AG29+AG31+AG32)*40,(AG29+AG31+AG32)*30)) ->  | AJ30: 0 | AK30: =IF(COUNTIF(AL$13:AL30,AL30)>1,"X","") -> X | AL30: =IF(ISBLANK(AP29)," ",INDEX(CF:CF,MATCH(AP29,CD:CD,0))) ->  | AM30: =IF(ISBLANK(AP29)," ",INDEX('Startgeld Damen'!$C:$C,MATCH(AL30,'Startgeld Damen'!$A:$A,0))) ->  | AP30: =AP29 -> 0 | AU30: =IF(ISBLANK(AQ30)," ",AQ30+(AR30-AS30)*50+IF(COUNT(AQ29:AQ32)=3,(AS29+AS31+AS32)*40,(AS29+AS31+AS32)*30)) ->  | AV30: 0 | AW30: =IF(COUNTIF(AX$13:AX30,AX30)>1,"X","") -> X | AX30: =IF(ISBLANK(BB29)," ",INDEX(CK:CK,MATCH(BB29,CI:CI,0))) ->  | AY30: =IF(ISBLANK(BB29)," ",INDEX('Startgeld Damen'!$C:$C,MATCH(AX30,'Startgeld Damen'!$A:$A,0))) ->  | BB30: =BB29 -> 0 | BG30: =IF(ISBLANK(BC30)," ",BC30+(BD30-BE30)*50+IF(COUNT(BC29:BC32)=3,(BE29+BE31+BE32)*40,(BE29+BE31+BE32)*30)) ->  | BH30: 0 | BO30: 118 | BP30: ='1. Serie Damen'!$C70 -> 169 | BQ30: ='1. Serie Damen'!$C71 -> 170 | BR30: ='1. Serie Damen'!$C72 -> 171 | BS30: ='1. Serie Damen'!$C73 -> 172 | BT30: 118 | BU30: ='2. Serie Damen'!$C70 -> 169 | BV30: ='2. Serie Damen'!$C71 -> 170 | BW30: ='2. Serie Damen'!$C72 -> 171 | BX30: ='2. Serie Damen'!$C73 -> 172 | BY30: 118 | BZ30: ='3. Serie Damen'!$C70 -> 169 | CA30: ='3. Serie Damen'!$C71 -> 170 | CB30: ='3. Serie Damen'!$C72 -> 171 | CC30: ='3. Serie Damen'!$C73 -> 172 | CD30: 118 | CE30: ='4. Serie'!$C70 -> 169 | CF30: ='4. Serie'!$C71 -> 170 | CG30: ='4. Serie'!$C72 -> 171 | CH30: ='4. Serie'!$C73 -> 172 | CI30: 118 | CJ30: ='4. Serie'!$C70 -> 169 | CK30: ='4. Serie'!$C71 -> 170 | CL30: ='4. Serie'!$C72 -> 171 | CM30: ='4. Serie'!$C73 -> 172 | CN30: 18 | CO30: =F81 -> 0 | CP30: =R81 -> 0 | CQ30: =AD81 -> 0 | CR30: =AP81 -> 0
A31: =IF(COUNTIF(B$13:B31,B31)>1,"X","") -> X | B31: =IF(ISBLANK(F29)," ",INDEX(BR:BR,MATCH(F29,BO:BO,0))) ->  | C31: =IF(ISBLANK(F29)," ",INDEX('Startgeld Damen'!$C:$C,MATCH($B31,'Startgeld Damen'!$A:$A,0))) ->  | F31: =F29 -> 0 | K31: =IF(ISBLANK(G31)," ",G31+(H31-I31)*50+IF(COUNT(G29:G32)=3,(I29+I30+I32)*40,(I29+I30+I32)*30)) ->  | L31: 0 | M31: =IF(COUNTIF(N$13:N31,N31)>1,"X","") -> X | N31: =IF(ISBLANK(R29)," ",INDEX(BW:BW,MATCH(R29,BT:BT,0))) ->  | O31: =IF(ISBLANK(R29)," ",INDEX('Startgeld Damen'!$C:$C,MATCH(N31,'Startgeld Damen'!$A:$A,0))) ->  | R31: =R29 -> 0 | W31: =IF(ISBLANK(S31)," ",S31+(T31-U31)*50+IF(COUNT(S29:S32)=3,(U29+U30+U32)*40,(U29+U30+U32)*30)) ->  | X31: 0 | Y31: =IF(COUNTIF(Z$13:Z31,Z31)>1,"X","") -> X | Z31: =IF(ISBLANK(AD29)," ",INDEX(CB:CB,MATCH(AD29,BY:BY,0))) ->  | AA31: =IF(ISBLANK(AD29)," ",INDEX('Startgeld Damen'!$C:$C,MATCH(Z31,'Startgeld Damen'!$A:$A,0))) ->  | AD31: =AD29 -> 0 | AI31: =IF(ISBLANK(AE31)," ",AE31+(AF31-AG31)*50+IF(COUNT(AE29:AE32)=3,(AG29+AG30+AG32)*40,(AG29+AG30+AG32)*30)) ->  | AJ31: 0 | AK31: =IF(COUNTIF(AL$13:AL31,AL31)>1,"X","") -> X | AL31: =IF(ISBLANK(AP29)," ",INDEX(CG:CG,MATCH(AP29,CD:CD,0))) ->  | AM31: =IF(ISBLANK(AP29)," ",INDEX('Startgeld Damen'!$C:$C,MATCH(AL31,'Startgeld Damen'!$A:$A,0))) ->  | AP31: =AP29 -> 0 | AU31: =IF(ISBLANK(AQ31)," ",AQ31+(AR31-AS31)*50+IF(COUNT(AQ29:AQ32)=3,(AS29+AS30+AS32)*40,(AS29+AS30+AS32)*30)) ->  | AV31: 0 | AW31: =IF(COUNTIF(AX$13:AX31,AX31)>1,"X","") -> X | AX31: =IF(ISBLANK(BB29)," ",INDEX(CL:CL,MATCH(BB29,CI:CI,0))) ->  | AY31: =IF(ISBLANK(BB29)," ",INDEX('Startgeld Damen'!$C:$C,MATCH(AX31,'Startgeld Damen'!$A:$A,0))) ->  | BB31: =BB29 -> 0 | BG31: =IF(ISBLANK(BC31)," ",BC31+(BD31-BE31)*50+IF(COUNT(BC29:BC32)=3,(BE29+BE30+BE32)*40,(BE29+BE30+BE32)*30)) ->  | BH31: 0 | BO31: 119 | BP31: ='1. Serie Damen'!$C74 -> 173 | BQ31: ='1. Serie Damen'!$C75 -> 174 | BR31: ='1. Serie Damen'!$C76 -> 175 | BS31: ='1. Serie Damen'!$C77 -> 176 | BT31: 119 | BU31: ='2. Serie Damen'!$C74 -> 173 | BV31: ='2. Serie Damen'!$C75 -> 174 | BW31: ='2. Serie Damen'!$C76 -> 175 | BX31: ='2. Serie Damen'!$C77 -> 176 | BY31: 119 | BZ31: ='3. Serie Damen'!$C74 -> 173 | CA31: ='3. Serie Damen'!$C75 -> 174 | CB31: ='3. Serie Damen'!$C76 -> 175 | CC31: ='3. Serie Damen'!$C77 -> 176 | CD31: 119 | CE31: ='4. Serie'!$C74 -> 173 | CF31: ='4. Serie'!$C75 -> 174 | CG31: ='4. Serie'!$C76 -> 175 | CH31: ='4. Serie'!$C77 -> 176 | CI31: 119 | CJ31: ='4. Serie'!$C74 -> 173 | CK31: ='4. Serie'!$C75 -> 174 | CL31: ='4. Serie'!$C76 -> 175 | CM31: ='4. Serie'!$C77 -> 176 | CN31: 19 | CO31: =F85 -> 0 | CP31: =R85 -> 0 | CQ31: =AD85 -> 0 | CR31: =AP85 -> 0
A32: =IF(COUNTIF(B$13:B32,B32)>1,"X","") -> X | B32: =IF(ISBLANK(F29)," ",INDEX(BS:BS,MATCH(F29,BO:BO,0))) ->  | C32: =IF(ISBLANK(F29)," ",INDEX('Startgeld Damen'!$C:$C,MATCH($B32,'Startgeld Damen'!$A:$A,0))) ->  | F32: =F29 -> 0 | K32: =IF(ISBLANK(G32)," ",G32+(H32-I32)*50+IF(COUNT(G29:G32)=3,(I29+I30+I31)*40,(I29+I30+I31)*30)) ->  | L32: 0 | M32: =IF(COUNTIF(N$13:N32,N32)>1,"X","") -> X | N32: =IF(ISBLANK(R29)," ",INDEX(BX:BX,MATCH(R29,BT:BT,0))) ->  | O32: =IF(ISBLANK(R29)," ",INDEX('Startgeld Damen'!$C:$C,MATCH(N32,'Startgeld Damen'!$A:$A,0))) ->  | R32: =R29 -> 0 | W32: =IF(ISBLANK(S32)," ",S32+(T32-U32)*50+IF(COUNT(S29:S32)=3,(U29+U30+U31)*40,(U29+U30+U31)*30)) ->  | X32: 0 | Y32: =IF(COUNTIF(Z$13:Z32,Z32)>1,"X","") -> X | Z32: =IF(ISBLANK(AD29)," ",INDEX(CC:CC,MATCH(AD29,BY:BY,0))) ->  | AA32: =IF(ISBLANK(AD29)," ",INDEX('Startgeld Damen'!$C:$C,MATCH(Z32,'Startgeld Damen'!$A:$A,0))) ->  | AD32: =AD29 -> 0 | AI32: =IF(ISBLANK(AE32)," ",AE32+(AF32-AG32)*50+IF(COUNT(AE29:AE32)=3,(AG29+AG30+AG31)*40,(AG29+AG30+AG31)*30)) ->  | AJ32: 0 | AK32: =IF(COUNTIF(AL$13:AL32,AL32)>1,"X","") -> X | AL32: =IF(ISBLANK(AP29)," ",INDEX(CH:CH,MATCH(AP29,CD:CD,0))) ->  | AM32: =IF(ISBLANK(AP29)," ",INDEX('Startgeld Damen'!$C:$C,MATCH(AL32,'Startgeld Damen'!$A:$A,0))) ->  | AP32: =AP29 -> 0 | AU32: =IF(ISBLANK(AQ32)," ",AQ32+(AR32-AS32)*50+IF(COUNT(AQ29:AQ32)=3,(AS29+AS30+AS31)*40,(AS29+AS30+AS31)*30)) ->  | AV32: 0 | AW32: =IF(COUNTIF(AX$13:AX32,AX32)>1,"X","") -> X | AX32: =IF(ISBLANK(BB29)," ",INDEX(CM:CM,MATCH(BB29,CI:CI,0))) ->  | AY32: =IF(ISBLANK(BB29)," ",INDEX('Startgeld Damen'!$C:$C,MATCH(AX32,'Startgeld Damen'!$A:$A,0))) ->  | BB32: =BB29 -> 0 | BG32: =IF(ISBLANK(BC32)," ",BC32+(BD32-BE32)*50+IF(COUNT(BC29:BC32)=3,(BE29+BE30+BE31)*40,(BE29+BE30+BE31)*30)) ->  | BH32: 0 | BO32: 120 | BP32: ='1. Serie Damen'!$C78 -> 177 | BQ32: ='1. Serie Damen'!$C79 -> 178 | BR32: ='1. Serie Damen'!$C80 -> 179 | BS32: ='1. Serie Damen'!$C81 -> 180 | BT32: 120 | BU32: ='2. Serie Damen'!$C78 -> 177 | BV32: ='2. Serie Damen'!$C79 -> 178 | BW32: ='2. Serie Damen'!$C80 -> 179 | BX32: ='2. Serie Damen'!$C81 -> 180 | BY32: 120 | BZ32: ='3. Serie Damen'!$C78 -> 177 | CA32: ='3. Serie Damen'!$C79 -> 178 | CB32: ='3. Serie Damen'!$C80 -> 179 | CC32: ='3. Serie Damen'!$C81 -> 180 | CD32: 120 | CE32: ='4. Serie'!$C78 -> 177 | CF32: ='4. Serie'!$C79 -> 178 | CG32: ='4. Serie'!$C80 -> 179 | CH32: ='4. Serie'!$C81 -> 180 | CI32: 120 | CJ32: ='4. Serie'!$C78 -> 177 | CK32: ='4. Serie'!$C79 -> 178 | CL32: ='4. Serie'!$C80 -> 179 | CM32: ='4. Serie'!$C81 -> 180 | CN32: 20 | CO32: =F89 -> 0 | CP32: =R89 -> 0 | CQ32: =AD89 -> 0 | CR32: =AP89 -> 0
A33: =IF(COUNTIF(B$13:B33,B33)>1,"X","") -> X | B33: =IF(ISBLANK(F33)," ",INDEX(BP:BP,MATCH(F33,BO:BO,0))) ->  | C33: =IF(ISBLANK(F33)," ",INDEX('Startgeld Damen'!$C:$C,MATCH($B33,'Startgeld Damen'!$A:$A,0))) ->  | K33: =IF(ISBLANK(G33)," ",G33+(H33-I33)*50+IF(COUNT(G33:G36)=3,(I34+I35+I36)*40,(I34+I35+I36)*30)) ->  | L33: 0 | M33: =IF(COUNTIF(N$13:N33,N33)>1,"X","") -> X | N33: =IF(ISBLANK(R33)," ",INDEX(BU:BU,MATCH(R33,BT:BT,0))) ->  | O33: =IF(ISBLANK(R33)," ",INDEX('Startgeld Damen'!$C:$C,MATCH(N33,'Startgeld Damen'!$A:$A,0))) ->  | W33: =IF(ISBLANK(S33)," ",S33+(T33-U33)*50+IF(COUNT(S33:S36)=3,(U34+U35+U36)*40,(U34+U35+U36)*30)) ->  | X33: 0 | Y33: =IF(COUNTIF(Z$13:Z33,Z33)>1,"X","") -> X | Z33: =IF(ISBLANK(AD33)," ",INDEX(BZ:BZ,MATCH(AD33,BY:BY,0))) ->  | AA33: =IF(ISBLANK(AD33)," ",INDEX('Startgeld Damen'!$C:$C,MATCH(Z33,'Startgeld Damen'!$A:$A,0))) ->  | AI33: =IF(ISBLANK(AE33)," ",AE33+(AF33-AG33)*50+IF(COUNT(AE33:AE36)=3,(AG34+AG35+AG36)*40,(AG34+AG35+AG36)*30)) ->  | AJ33: 0 | AK33: =IF(COUNTIF(AL$13:AL33,AL33)>1,"X","") -> X | AL33: =IF(ISBLANK(AP33)," ",INDEX(CE:CE,MATCH(AP33,CD:CD,0))) ->  | AM33: =IF(ISBLANK(AP33)," ",INDEX('Startgeld Damen'!$C:$C,MATCH(AL33,'Startgeld Damen'!$A:$A,0))) ->  | AU33: =IF(ISBLANK(AQ33)," ",AQ33+(AR33-AS33)*50+IF(COUNT(AQ33:AQ36)=3,(AS34+AS35+AS36)*40,(AS34+AS35+AS36)*30)) ->  | AV33: 0 | AW33: =IF(COUNTIF(AX$13:AX33,AX33)>1,"X","") -> X | AX33: =IF(ISBLANK(BB33)," ",INDEX(CJ:CJ,MATCH(BB33,CI:CI,0))) ->  | AY33: =IF(ISBLANK(BB33)," ",INDEX('Startgeld Damen'!$C:$C,MATCH(AX33,'Startgeld Damen'!$A:$A,0))) ->  | BG33: =IF(ISBLANK(BC33)," ",BC33+(BD33-BE33)*50+IF(COUNT(BC33:BC36)=3,(BE34+BE35+BE36)*40,(BE34+BE35+BE36)*30)) ->  | BH33: 0 | BK33: =SUM(L33:L36) -> 0 | BL33: =SUM(X33:X36) -> 0 | BM33: =SUM(AJ33:AJ36) -> 0 | BN33: =SUM(AV33:AV36) -> 0 | BO33: 121 | BP33: ='1. Serie Damen'!$C82 -> 181 | BQ33: ='1. Serie Damen'!$C83 -> 182 | BR33: ='1. Serie Damen'!$C84 -> 183 | BS33: ='1. Serie Damen'!$C85 -> 184 | BT33: 121 | BU33: ='2. Serie Damen'!$C82 -> 181 | BV33: ='2. Serie Damen'!$C83 -> 182 | BW33: ='2. Serie Damen'!$C84 -> 183 | BX33: ='2. Serie Damen'!$C85 -> 184 | BY33: 121 | BZ33: ='3. Serie Damen'!$C82 -> 181 | CA33: ='3. Serie Damen'!$C83 -> 182 | CB33: ='3. Serie Damen'!$C84 -> 183 | CC33: ='3. Serie Damen'!$C85 -> 184 | CD33: 121 | CE33: ='4. Serie'!$C82 -> 181 | CF33: ='4. Serie'!$C83 -> 182 | CG33: ='4. Serie'!$C84 -> 183 | CH33: ='4. Serie'!$C85 -> 184 | CI33: 121 | CJ33: ='4. Serie'!$C82 -> 181 | CK33: ='4. Serie'!$C83 -> 182 | CL33: ='4. Serie'!$C84 -> 183 | CM33: ='4. Serie'!$C85 -> 184 | CN33: 21 | CO33: =F93 -> 0 | CP33: =R93 -> 0 | CQ33: =AD93 -> 0 | CR33: =AP93 -> 0
A34: =IF(COUNTIF(B$13:B34,B34)>1,"X","") -> X | B34: =IF(ISBLANK(F33)," ",INDEX(BQ:BQ,MATCH(F33,BO:BO,0))) ->  | C34: =IF(ISBLANK(F33)," ",INDEX('Startgeld Damen'!$C:$C,MATCH($B34,'Startgeld Damen'!$A:$A,0))) ->  | F34: =F33 -> 0 | K34: =IF(ISBLANK(G34)," ",G34+(H34-I34)*50+IF(COUNT(G33:G36)=3,(I33+I35+I36)*40,(I33+I35+I36)*30)) ->  | L34: 0 | M34: =IF(COUNTIF(N$13:N34,N34)>1,"X","") -> X | N34: =IF(ISBLANK(R33)," ",INDEX(BV:BV,MATCH(R33,BT:BT,0))) ->  | O34: =IF(ISBLANK(R33)," ",INDEX('Startgeld Damen'!$C:$C,MATCH(N34,'Startgeld Damen'!$A:$A,0))) ->  | R34: =R33 -> 0 | W34: =IF(ISBLANK(S34)," ",S34+(T34-U34)*50+IF(COUNT(S33:S36)=3,(U33+U35+U36)*40,(U33+U35+U36)*30)) ->  | X34: 0 | Y34: =IF(COUNTIF(Z$13:Z34,Z34)>1,"X","") -> X | Z34: =IF(ISBLANK(AD33)," ",INDEX(CA:CA,MATCH(AD33,BY:BY,0))) ->  | AA34: =IF(ISBLANK(AD33)," ",INDEX('Startgeld Damen'!$C:$C,MATCH(Z34,'Startgeld Damen'!$A:$A,0))) ->  | AD34: =AD33 -> 0 | AI34: =IF(ISBLANK(AE34)," ",AE34+(AF34-AG34)*50+IF(COUNT(AE33:AE36)=3,(AG33+AG35+AG36)*40,(AG33+AG35+AG36)*30)) ->  | AJ34: 0 | AK34: =IF(COUNTIF(AL$13:AL34,AL34)>1,"X","") -> X | AL34: =IF(ISBLANK(AP33)," ",INDEX(CF:CF,MATCH(AP33,CD:CD,0))) ->  | AM34: =IF(ISBLANK(AP33)," ",INDEX('Startgeld Damen'!$C:$C,MATCH(AL34,'Startgeld Damen'!$A:$A,0))) ->  | AP34: =AP33 -> 0 | AU34: =IF(ISBLANK(AQ34)," ",AQ34+(AR34-AS34)*50+IF(COUNT(AQ33:AQ36)=3,(AS33+AS35+AS36)*40,(AS33+AS35+AS36)*30)) ->  | AV34: 0 | AW34: =IF(COUNTIF(AX$13:AX34,AX34)>1,"X","") -> X | AX34: =IF(ISBLANK(BB33)," ",INDEX(CK:CK,MATCH(BB33,CI:CI,0))) ->  | AY34: =IF(ISBLANK(BB33)," ",INDEX('Startgeld Damen'!$C:$C,MATCH(AX34,'Startgeld Damen'!$A:$A,0))) ->  | BB34: =BB33 -> 0 | BG34: =IF(ISBLANK(BC34)," ",BC34+(BD34-BE34)*50+IF(COUNT(BC33:BC36)=3,(BE33+BE35+BE36)*40,(BE33+BE35+BE36)*30)) ->  | BH34: 0 | BO34: 122 | BP34: ='1. Serie Damen'!$C86 -> 185 | BQ34: ='1. Serie Damen'!$C87 -> 186 | BR34: ='1. Serie Damen'!$C88 -> 187 | BS34: ='1. Serie Damen'!$C89 -> 188 | BT34: 122 | BU34: ='2. Serie Damen'!$C86 -> 185 | BV34: ='2. Serie Damen'!$C87 -> 186 | BW34: ='2. Serie Damen'!$C88 -> 187 | BX34: ='2. Serie Damen'!$C89 -> 188 | BY34: 122 | BZ34: ='3. Serie Damen'!$C86 -> 185 | CA34: ='3. Serie Damen'!$C87 -> 186 | CB34: ='3. Serie Damen'!$C88 -> 187 | CC34: ='3. Serie Damen'!$C89 -> 188 | CD34: 122 | CE34: ='4. Serie'!$C86 -> 185 | CF34: ='4. Serie'!$C87 -> 186 | CG34: ='4. Serie'!$C88 -> 187 | CH34: ='4. Serie'!$C89 -> 188 | CI34: 122 | CJ34: ='4. Serie'!$C86 -> 185 | CK34: ='4. Serie'!$C87 -> 186 | CL34: ='4. Serie'!$C88 -> 187 | CM34: ='4. Serie'!$C89 -> 188 | CN34: 22 | CO34: =F97 -> 0 | CP34: =R97 -> 0 | CQ34: =AD97 -> 0 | CR34: =AP97 -> 0
A35: =IF(COUNTIF(B$13:B35,B35)>1,"X","") -> X | B35: =IF(ISBLANK(F33)," ",INDEX(BR:BR,MATCH(F33,BO:BO,0))) ->  | C35: =IF(ISBLANK(F33)," ",INDEX('Startgeld Damen'!$C:$C,MATCH($B35,'Startgeld Damen'!$A:$A,0))) ->  | F35: =F33 -> 0 | K35: =IF(ISBLANK(G35)," ",G35+(H35-I35)*50+IF(COUNT(G33:G36)=3,(I33+I34+I36)*40,(I33+I34+I36)*30)) ->  | L35: 0 | M35: =IF(COUNTIF(N$13:N35,N35)>1,"X","") -> X | N35: =IF(ISBLANK(R33)," ",INDEX(BW:BW,MATCH(R33,BT:BT,0))) ->  | O35: =IF(ISBLANK(R33)," ",INDEX('Startgeld Damen'!$C:$C,MATCH(N35,'Startgeld Damen'!$A:$A,0))) ->  | R35: =R33 -> 0 | W35: =IF(ISBLANK(S35)," ",S35+(T35-U35)*50+IF(COUNT(S33:S36)=3,(U33+U34+U36)*40,(U33+U34+U36)*30)) ->  | X35: 0 | Y35: =IF(COUNTIF(Z$13:Z35,Z35)>1,"X","") -> X | Z35: =IF(ISBLANK(AD33)," ",INDEX(CB:CB,MATCH(AD33,BY:BY,0))) ->  | AA35: =IF(ISBLANK(AD33)," ",INDEX('Startgeld Damen'!$C:$C,MATCH(Z35,'Startgeld Damen'!$A:$A,0))) ->  | AD35: =AD33 -> 0 | AI35: =IF(ISBLANK(AE35)," ",AE35+(AF35-AG35)*50+IF(COUNT(AE33:AE36)=3,(AG33+AG34+AG36)*40,(AG33+AG34+AG36)*30)) ->  | AJ35: 0 | AK35: =IF(COUNTIF(AL$13:AL35,AL35)>1,"X","") -> X | AL35: =IF(ISBLANK(AP33)," ",INDEX(CG:CG,MATCH(AP33,CD:CD,0))) ->  | AM35: =IF(ISBLANK(AP33)," ",INDEX('Startgeld Damen'!$C:$C,MATCH(AL35,'Startgeld Damen'!$A:$A,0))) ->  | AP35: =AP33 -> 0 | AU35: =IF(ISBLANK(AQ35)," ",AQ35+(AR35-AS35)*50+IF(COUNT(AQ33:AQ36)=3,(AS33+AS34+AS36)*40,(AS33+AS34+AS36)*30)) ->  | AV35: 0 | AW35: =IF(COUNTIF(AX$13:AX35,AX35)>1,"X","") -> X | AX35: =IF(ISBLANK(BB33)," ",INDEX(CL:CL,MATCH(BB33,CI:CI,0))) ->  | AY35: =IF(ISBLANK(BB33)," ",INDEX('Startgeld Damen'!$C:$C,MATCH(AX35,'Startgeld Damen'!$A:$A,0))) ->  | BB35: =BB33 -> 0 | BG35: =IF(ISBLANK(BC35)," ",BC35+(BD35-BE35)*50+IF(COUNT(BC33:BC36)=3,(BE33+BE34+BE36)*40,(BE33+BE34+BE36)*30)) ->  | BH35: 0 | BO35: 123 | BP35: ='1. Serie Damen'!$C90 -> 189 | BQ35: ='1. Serie Damen'!$C91 -> 190 | BR35: ='1. Serie Damen'!$C92 -> 191 | BS35: ='1. Serie Damen'!$C93 -> 192 | BT35: 123 | BU35: ='2. Serie Damen'!$C90 -> 189 | BV35: ='2. Serie Damen'!$C91 -> 190 | BW35: ='2. Serie Damen'!$C92 -> 191 | BX35: ='2. Serie Damen'!$C93 -> 192 | BY35: 123 | BZ35: ='3. Serie Damen'!$C90 -> 189 | CA35: ='3. Serie Damen'!$C91 -> 190 | CB35: ='3. Serie Damen'!$C92 -> 191 | CC35: ='3. Serie Damen'!$C93 -> 192 | CD35: 123 | CE35: ='4. Serie'!$C90 -> 189 | CF35: ='4. Serie'!$C91 -> 190 | CG35: ='4. Serie'!$C92 -> 191 | CH35: ='4. Serie'!$C93 -> 192 | CI35: 123 | CJ35: ='4. Serie'!$C90 -> 189 | CK35: ='4. Serie'!$C91 -> 190 | CL35: ='4. Serie'!$C92 -> 191 | CM35: ='4. Serie'!$C93 -> 192 | CN35: 23 | CO35: =F101 -> 0 | CP35: =R101 -> 0 | CQ35: =AD101 -> 0 | CR35: =AP101 -> 0
A36: =IF(COUNTIF(B$13:B36,B36)>1,"X","") -> X | B36: =IF(ISBLANK(F33)," ",INDEX(BS:BS,MATCH(F33,BO:BO,0))) ->  | C36: =IF(ISBLANK(F33)," ",INDEX('Startgeld Damen'!$C:$C,MATCH($B36,'Startgeld Damen'!$A:$A,0))) ->  | F36: =F33 -> 0 | K36: =IF(ISBLANK(G36)," ",G36+(H36-I36)*50+IF(COUNT(G33:G36)=3,(I33+I34+I35)*40,(I33+I34+I35)*30)) ->  | L36: 0 | M36: =IF(COUNTIF(N$13:N36,N36)>1,"X","") -> X | N36: =IF(ISBLANK(R33)," ",INDEX(BX:BX,MATCH(R33,BT:BT,0))) ->  | O36: =IF(ISBLANK(R33)," ",INDEX('Startgeld Damen'!$C:$C,MATCH(N36,'Startgeld Damen'!$A:$A,0))) ->  | R36: =R33 -> 0 | W36: =IF(ISBLANK(S36)," ",S36+(T36-U36)*50+IF(COUNT(S33:S36)=3,(U33+U34+U35)*40,(U33+U34+U35)*30)) ->  | X36: 0 | Y36: =IF(COUNTIF(Z$13:Z36,Z36)>1,"X","") -> X | Z36: =IF(ISBLANK(AD33)," ",INDEX(CC:CC,MATCH(AD33,BY:BY,0))) ->  | AA36: =IF(ISBLANK(AD33)," ",INDEX('Startgeld Damen'!$C:$C,MATCH(Z36,'Startgeld Damen'!$A:$A,0))) ->  | AD36: =AD33 -> 0 | AI36: =IF(ISBLANK(AE36)," ",AE36+(AF36-AG36)*50+IF(COUNT(AE33:AE36)=3,(AG33+AG34+AG35)*40,(AG33+AG34+AG35)*30)) ->  | AJ36: 0 | AK36: =IF(COUNTIF(AL$13:AL36,AL36)>1,"X","") -> X | AL36: =IF(ISBLANK(AP33)," ",INDEX(CH:CH,MATCH(AP33,CD:CD,0))) ->  | AM36: =IF(ISBLANK(AP33)," ",INDEX('Startgeld Damen'!$C:$C,MATCH(AL36,'Startgeld Damen'!$A:$A,0))) ->  | AP36: =AP33 -> 0 | AU36: =IF(ISBLANK(AQ36)," ",AQ36+(AR36-AS36)*50+IF(COUNT(AQ33:AQ36)=3,(AS33+AS34+AS35)*40,(AS33+AS34+AS35)*30)) ->  | AV36: 0 | AW36: =IF(COUNTIF(AX$13:AX36,AX36)>1,"X","") -> X | AX36: =IF(ISBLANK(BB33)," ",INDEX(CM:CM,MATCH(BB33,CI:CI,0))) ->  | AY36: =IF(ISBLANK(BB33)," ",INDEX('Startgeld Damen'!$C:$C,MATCH(AX36,'Startgeld Damen'!$A:$A,0))) ->  | BB36: =BB33 -> 0 | BG36: =IF(ISBLANK(BC36)," ",BC36+(BD36-BE36)*50+IF(COUNT(BC33:BC36)=3,(BE33+BE34+BE35)*40,(BE33+BE34+BE35)*30)) ->  | BH36: 0 | BO36: 124 | BP36: ='1. Serie Damen'!$C94 -> 193 | BQ36: ='1. Serie Damen'!$C95 -> 194 | BR36: ='1. Serie Damen'!$C96 -> 195 | BS36: ='1. Serie Damen'!$C97 -> 196 | BT36: 124 | BU36: ='2. Serie Damen'!$C94 -> 193 | BV36: ='2. Serie Damen'!$C95 -> 194 | BW36: ='2. Serie Damen'!$C96 -> 195 | BX36: ='2. Serie Damen'!$C97 -> 196 | BY36: 124 | BZ36: ='3. Serie Damen'!$C94 -> 193 | CA36: ='3. Serie Damen'!$C95 -> 194 | CB36: ='3. Serie Damen'!$C96 -> 195 | CC36: ='3. Serie Damen'!$C97 -> 196 | CD36: 124 | CE36: ='4. Serie'!$C94 -> 193 | CF36: ='4. Serie'!$C95 -> 194 | CG36: ='4. Serie'!$C96 -> 195 | CH36: ='4. Serie'!$C97 -> 196 | CI36: 124 | CJ36: ='4. Serie'!$C94 -> 193 | CK36: ='4. Serie'!$C95 -> 194 | CL36: ='4. Serie'!$C96 -> 195 | CM36: ='4. Serie'!$C97 -> 196 | CN36: 24 | CO36: =F105 -> 0 | CP36: =R105 -> 0 | CQ36: =AD105 -> 0 | CR36: =AP105 -> 0
A37: =IF(COUNTIF(B$13:B37,B37)>1,"X","") -> X | B37: =IF(ISBLANK(F37)," ",INDEX(BP:BP,MATCH(F37,BO:BO,0))) ->  | C37: =IF(ISBLANK(F37)," ",INDEX('Startgeld Damen'!$C:$C,MATCH($B37,'Startgeld Damen'!$A:$A,0))) ->  | K37: =IF(ISBLANK(G37)," ",G37+(H37-I37)*50+IF(COUNT(G37:G40)=3,(I38+I39+I40)*40,(I38+I39+I40)*30)) ->  | L37: 0 | M37: =IF(COUNTIF(N$13:N37,N37)>1,"X","") -> X | N37: =IF(ISBLANK(R37)," ",INDEX(BU:BU,MATCH(R37,BT:BT,0))) ->  | O37: =IF(ISBLANK(R37)," ",INDEX('Startgeld Damen'!$C:$C,MATCH(N37,'Startgeld Damen'!$A:$A,0))) ->  | W37: =IF(ISBLANK(S37)," ",S37+(T37-U37)*50+IF(COUNT(S37:S40)=3,(U38+U39+U40)*40,(U38+U39+U40)*30)) ->  | X37: 0 | Y37: =IF(COUNTIF(Z$13:Z37,Z37)>1,"X","") -> X | Z37: =IF(ISBLANK(AD37)," ",INDEX(BZ:BZ,MATCH(AD37,BY:BY,0))) ->  | AA37: =IF(ISBLANK(AD37)," ",INDEX('Startgeld Damen'!$C:$C,MATCH(Z37,'Startgeld Damen'!$A:$A,0))) ->  | AI37: =IF(ISBLANK(AE37)," ",AE37+(AF37-AG37)*50+IF(COUNT(AE37:AE40)=3,(AG38+AG39+AG40)*40,(AG38+AG39+AG40)*30)) ->  | AJ37: 0 | AK37: =IF(COUNTIF(AL$13:AL37,AL37)>1,"X","") -> X | AL37: =IF(ISBLANK(AP37)," ",INDEX(CE:CE,MATCH(AP37,CD:CD,0))) ->  | AM37: =IF(ISBLANK(AP37)," ",INDEX('Startgeld Damen'!$C:$C,MATCH(AL37,'Startgeld Damen'!$A:$A,0))) ->  | AU37: =IF(ISBLANK(AQ37)," ",AQ37+(AR37-AS37)*50+IF(COUNT(AQ37:AQ40)=3,(AS38+AS39+AS40)*40,(AS38+AS39+AS40)*30)) ->  | AV37: 0 | AW37: =IF(COUNTIF(AX$13:AX37,AX37)>1,"X","") -> X | AX37: =IF(ISBLANK(BB37)," ",INDEX(CJ:CJ,MATCH(BB37,CI:CI,0))) ->  | AY37: =IF(ISBLANK(BB37)," ",INDEX('Startgeld Damen'!$C:$C,MATCH(AX37,'Startgeld Damen'!$A:$A,0))) ->  | BG37: =IF(ISBLANK(BC37)," ",BC37+(BD37-BE37)*50+IF(COUNT(BC37:BC40)=3,(BE38+BE39+BE40)*40,(BE38+BE39+BE40)*30)) ->  | BH37: 0 | BK37: =SUM(L37:L40) -> 0 | BL37: =SUM(X37:X40) -> 0 | BM37: =SUM(AJ37:AJ40) -> 0 | BN37: =SUM(AV37:AV40) -> 0 | BO37: 125 | BP37: ='1. Serie Damen'!$C98 -> 0 | BQ37: ='1. Serie Damen'!$C99 -> 0 | BR37: ='1. Serie Damen'!$C100 -> 0 | BS37: ='1. Serie Damen'!$C101 -> 0 | BT37: 125 | BU37: ='2. Serie Damen'!$C98 -> 0 | BV37: ='2. Serie Damen'!$C99 -> 0 | BW37: ='2. Serie Damen'!$C100 -> 0 | BX37: ='2. Serie Damen'!$C101 -> 0 | BY37: 125 | BZ37: ='3. Serie Damen'!$C98 -> 0 | CA37: ='3. Serie Damen'!$C99 -> 0 | CB37: ='3. Serie Damen'!$C100 -> 0 | CC37: ='3. Serie Damen'!$C101 -> 0 | CD37: 125 | CE37: ='4. Serie'!$C98 -> 0 | CF37: ='4. Serie'!$C99 -> 0 | CG37: ='4. Serie'!$C100 -> 0 | CH37: ='4. Serie'!$C101 -> 0 | CI37: 125 | CJ37: ='4. Serie'!$C98 -> 0 | CK37: ='4. Serie'!$C99 -> 0 | CL37: ='4. Serie'!$C100 -> 0 | CM37: ='4. Serie'!$C101 -> 0 | CN37: 25 | CO37: =F109 -> 0 | CP37: =R109 -> 0 | CQ37: =AD109 -> 0 | CR37: =AP109 -> 0
A38: =IF(COUNTIF(B$13:B38,B38)>1,"X","") -> X | B38: =IF(ISBLANK(F37)," ",INDEX(BQ:BQ,MATCH(F37,BO:BO,0))) ->  | C38: =IF(ISBLANK(F37)," ",INDEX('Startgeld Damen'!$C:$C,MATCH($B38,'Startgeld Damen'!$A:$A,0))) ->  | F38: =F37 -> 0 | K38: =IF(ISBLANK(G38)," ",G38+(H38-I38)*50+IF(COUNT(G37:G40)=3,(I37+I39+I40)*40,(I37+I39+I40)*30)) ->  | L38: 0 | M38: =IF(COUNTIF(N$13:N38,N38)>1,"X","") -> X | N38: =IF(ISBLANK(R37)," ",INDEX(BV:BV,MATCH(R37,BT:BT,0))) ->  | O38: =IF(ISBLANK(R37)," ",INDEX('Startgeld Damen'!$C:$C,MATCH(N38,'Startgeld Damen'!$A:$A,0))) ->  | R38: =R37 -> 0 | W38: =IF(ISBLANK(S38)," ",S38+(T38-U38)*50+IF(COUNT(S37:S40)=3,(U37+U39+U40)*40,(U37+U39+U40)*30)) ->  | X38: 0 | Y38: =IF(COUNTIF(Z$13:Z38,Z38)>1,"X","") -> X | Z38: =IF(ISBLANK(AD37)," ",INDEX(CA:CA,MATCH(AD37,BY:BY,0))) ->  | AA38: =IF(ISBLANK(AD37)," ",INDEX('Startgeld Damen'!$C:$C,MATCH(Z38,'Startgeld Damen'!$A:$A,0))) ->  | AD38: =AD37 -> 0 | AI38: =IF(ISBLANK(AE38)," ",AE38+(AF38-AG38)*50+IF(COUNT(AE37:AE40)=3,(AG37+AG39+AG40)*40,(AG37+AG39+AG40)*30)) ->  | AJ38: 0 | AK38: =IF(COUNTIF(AL$13:AL38,AL38)>1,"X","") -> X | AL38: =IF(ISBLANK(AP37)," ",INDEX(CF:CF,MATCH(AP37,CD:CD,0))) ->  | AM38: =IF(ISBLANK(AP37)," ",INDEX('Startgeld Damen'!$C:$C,MATCH(AL38,'Startgeld Damen'!$A:$A,0))) ->  | AP38: =AP37 -> 0 | AU38: =IF(ISBLANK(AQ38)," ",AQ38+(AR38-AS38)*50+IF(COUNT(AQ37:AQ40)=3,(AS37+AS39+AS40)*40,(AS37+AS39+AS40)*30)) ->  | AV38: 0 | AW38: =IF(COUNTIF(AX$13:AX38,AX38)>1,"X","") -> X | AX38: =IF(ISBLANK(BB37)," ",INDEX(CK:CK,MATCH(BB37,CI:CI,0))) ->  | AY38: =IF(ISBLANK(BB37)," ",INDEX('Startgeld Damen'!$C:$C,MATCH(AX38,'Startgeld Damen'!$A:$A,0))) ->  | BB38: =BB37 -> 0 | BG38: =IF(ISBLANK(BC38)," ",BC38+(BD38-BE38)*50+IF(COUNT(BC37:BC40)=3,(BE37+BE39+BE40)*40,(BE37+BE39+BE40)*30)) ->  | BH38: 0 | BO38: 126 | BP38: ='1. Serie Damen'!$C102 -> 0 | BQ38: ='1. Serie Damen'!$C103 -> 0 | BR38: ='1. Serie Damen'!$C104 -> 0 | BS38: ='1. Serie Damen'!$C105 -> 0 | BT38: 126 | BU38: ='2. Serie Damen'!$C102 -> 0 | BV38: ='2. Serie Damen'!$C103 -> 0 | BW38: ='2. Serie Damen'!$C104 -> 0 | BX38: ='2. Serie Damen'!$C105 -> 0 | BY38: 126 | BZ38: ='3. Serie Damen'!$C102 -> 0 | CA38: ='3. Serie Damen'!$C103 -> 0 | CB38: ='3. Serie Damen'!$C104 -> 0 | CC38: ='3. Serie Damen'!$C105 -> 0 | CD38: 126 | CE38: ='4. Serie'!$C102 -> 0 | CF38: ='4. Serie'!$C103 -> 0 | CG38: ='4. Serie'!$C104 -> 0 | CH38: ='4. Serie'!$C105 -> 0 | CI38: 126 | CJ38: ='4. Serie'!$C102 -> 0 | CK38: ='4. Serie'!$C103 -> 0 | CL38: ='4. Serie'!$C104 -> 0 | CM38: ='4. Serie'!$C105 -> 0 | CN38: 26 | CO38: =F113 -> 0 | CP38: =R113 -> 0 | CQ38: =AD113 -> 0 | CR38: =AP113 -> 0
A39: =IF(COUNTIF(B$13:B39,B39)>1,"X","") -> X | B39: =IF(ISBLANK(F37)," ",INDEX(BR:BR,MATCH(F37,BO:BO,0))) ->  | C39: =IF(ISBLANK(F37)," ",INDEX('Startgeld Damen'!$C:$C,MATCH($B39,'Startgeld Damen'!$A:$A,0))) ->  | F39: =F37 -> 0 | K39: =IF(ISBLANK(G39)," ",G39+(H39-I39)*50+IF(COUNT(G37:G40)=3,(I37+I38+I40)*40,(I37+I38+I40)*30)) ->  | L39: 0 | M39: =IF(COUNTIF(N$13:N39,N39)>1,"X","") -> X | N39: =IF(ISBLANK(R37)," ",INDEX(BW:BW,MATCH(R37,BT:BT,0))) ->  | O39: =IF(ISBLANK(R37)," ",INDEX('Startgeld Damen'!$C:$C,MATCH(N39,'Startgeld Damen'!$A:$A,0))) ->  | R39: =R37 -> 0 | W39: =IF(ISBLANK(S39)," ",S39+(T39-U39)*50+IF(COUNT(S37:S40)=3,(U37+U38+U40)*40,(U37+U38+U40)*30)) ->  | X39: 0 | Y39: =IF(COUNTIF(Z$13:Z39,Z39)>1,"X","") -> X | Z39: =IF(ISBLANK(AD37)," ",INDEX(CB:CB,MATCH(AD37,BY:BY,0))) ->  | AA39: =IF(ISBLANK(AD37)," ",INDEX('Startgeld Damen'!$C:$C,MATCH(Z39,'Startgeld Damen'!$A:$A,0))) ->  | AD39: =AD37 -> 0 | AI39: =IF(ISBLANK(AE39)," ",AE39+(AF39-AG39)*50+IF(COUNT(AE37:AE40)=3,(AG37+AG38+AG40)*40,(AG37+AG38+AG40)*30)) ->  | AJ39: 0 | AK39: =IF(COUNTIF(AL$13:AL39,AL39)>1,"X","") -> X | AL39: =IF(ISBLANK(AP37)," ",INDEX(CG:CG,MATCH(AP37,CD:CD,0))) ->  | AM39: =IF(ISBLANK(AP37)," ",INDEX('Startgeld Damen'!$C:$C,MATCH(AL39,'Startgeld Damen'!$A:$A,0))) ->  | AP39: =AP37 -> 0 | AU39: =IF(ISBLANK(AQ39)," ",AQ39+(AR39-AS39)*50+IF(COUNT(AQ37:AQ40)=3,(AS37+AS38+AS40)*40,(AS37+AS38+AS40)*30)) ->  | AV39: 0 | AW39: =IF(COUNTIF(AX$13:AX39,AX39)>1,"X","") -> X | AX39: =IF(ISBLANK(BB37)," ",INDEX(CL:CL,MATCH(BB37,CI:CI,0))) ->  | AY39: =IF(ISBLANK(BB37)," ",INDEX('Startgeld Damen'!$C:$C,MATCH(AX39,'Startgeld Damen'!$A:$A,0))) ->  | BB39: =BB37 -> 0 | BG39: =IF(ISBLANK(BC39)," ",BC39+(BD39-BE39)*50+IF(COUNT(BC37:BC40)=3,(BE37+BE38+BE40)*40,(BE37+BE38+BE40)*30)) ->  | BH39: 0 | BO39: 127 | BP39: ='1. Serie Damen'!$C106 -> 0 | BQ39: ='1. Serie Damen'!$C107 -> 0 | BR39: ='1. Serie Damen'!$C108 -> 0 | BS39: ='1. Serie Damen'!$C109 -> 0 | BT39: 127 | BU39: ='2. Serie Damen'!$C106 -> 0 | BV39: ='2. Serie Damen'!$C107 -> 0 | BW39: ='2. Serie Damen'!$C108 -> 0 | BX39: ='2. Serie Damen'!$C109 -> 0 | BY39: 127 | BZ39: ='3. Serie Damen'!$C106 -> 0 | CA39: ='3. Serie Damen'!$C107 -> 0 | CB39: ='3. Serie Damen'!$C108 -> 0 | CC39: ='3. Serie Damen'!$C109 -> 0 | CD39: 127 | CE39: ='4. Serie'!$C106 -> 0 | CF39: ='4. Serie'!$C107 -> 0 | CG39: ='4. Serie'!$C108 -> 0 | CH39: ='4. Serie'!$C109 -> 0 | CI39: 127 | CJ39: ='4. Serie'!$C106 -> 0 | CK39: ='4. Serie'!$C107 -> 0 | CL39: ='4. Serie'!$C108 -> 0 | CM39: ='4. Serie'!$C109 -> 0 | CN39: 27 | CO39: =F117 -> 0 | CP39: =R117 -> 0 | CQ39: =AD117 -> 0 | CR39: =AP117 -> 0
A40: =IF(COUNTIF(B$13:B40,B40)>1,"X","") -> X | B40: =IF(ISBLANK(F37)," ",INDEX(BS:BS,MATCH(F37,BO:BO,0))) ->  | C40: =IF(ISBLANK(F37)," ",INDEX('Startgeld Damen'!$C:$C,MATCH($B40,'Startgeld Damen'!$A:$A,0))) ->  | F40: =F37 -> 0 | K40: =IF(ISBLANK(G40)," ",G40+(H40-I40)*50+IF(COUNT(G37:G40)=3,(I37+I38+I39)*40,(I37+I38+I39)*30)) ->  | L40: 0 | M40: =IF(COUNTIF(N$13:N40,N40)>1,"X","") -> X | N40: =IF(ISBLANK(R37)," ",INDEX(BX:BX,MATCH(R37,BT:BT,0))) ->  | O40: =IF(ISBLANK(R37)," ",INDEX('Startgeld Damen'!$C:$C,MATCH(N40,'Startgeld Damen'!$A:$A,0))) ->  | R40: =R37 -> 0 | W40: =IF(ISBLANK(S40)," ",S40+(T40-U40)*50+IF(COUNT(S37:S40)=3,(U37+U38+U39)*40,(U37+U38+U39)*30)) ->  | X40: 0 | Y40: =IF(COUNTIF(Z$13:Z40,Z40)>1,"X","") -> X | Z40: =IF(ISBLANK(AD37)," ",INDEX(CC:CC,MATCH(AD37,BY:BY,0))) ->  | AA40: =IF(ISBLANK(AD37)," ",INDEX('Startgeld Damen'!$C:$C,MATCH(Z40,'Startgeld Damen'!$A:$A,0))) ->  | AD40: =AD37 -> 0 | AI40: =IF(ISBLANK(AE40)," ",AE40+(AF40-AG40)*50+IF(COUNT(AE37:AE40)=3,(AG37+AG38+AG39)*40,(AG37+AG38+AG39)*30)) ->  | AJ40: 0 | AK40: =IF(COUNTIF(AL$13:AL40,AL40)>1,"X","") -> X | AL40: =IF(ISBLANK(AP37)," ",INDEX(CH:CH,MATCH(AP37,CD:CD,0))) ->  | AM40: =IF(ISBLANK(AP37)," ",INDEX('Startgeld Damen'!$C:$C,MATCH(AL40,'Startgeld Damen'!$A:$A,0))) ->  | AP40: =AP37 -> 0 | AU40: =IF(ISBLANK(AQ40)," ",AQ40+(AR40-AS40)*50+IF(COUNT(AQ37:AQ40)=3,(AS37+AS38+AS39)*40,(AS37+AS38+AS39)*30)) ->  | AV40: 0 | AW40: =IF(COUNTIF(AX$13:AX40,AX40)>1,"X","") -> X | AX40: =IF(ISBLANK(BB37)," ",INDEX(CM:CM,MATCH(BB37,CI:CI,0))) ->  | AY40: =IF(ISBLANK(BB37)," ",INDEX('Startgeld Damen'!$C:$C,MATCH(AX40,'Startgeld Damen'!$A:$A,0))) ->  | BB40: =BB37 -> 0 | BG40: =IF(ISBLANK(BC40)," ",BC40+(BD40-BE40)*50+IF(COUNT(BC37:BC40)=3,(BE37+BE38+BE39)*40,(BE37+BE38+BE39)*30)) ->  | BH40: 0 | BO40: 128 | BP40: ='1. Serie Damen'!$C110 -> 0 | BQ40: ='1. Serie Damen'!$C111 -> 0 | BR40: ='1. Serie Damen'!$C112 -> 0 | BS40: ='1. Serie Damen'!$C113 -> 0 | BT40: 128 | BU40: ='2. Serie Damen'!$C110 -> 0 | BV40: ='2. Serie Damen'!$C111 -> 0 | BW40: ='2. Serie Damen'!$C112 -> 0 | BX40: ='2. Serie Damen'!$C113 -> 0 | BY40: 128 | BZ40: ='3. Serie Damen'!$C110 -> 0 | CA40: ='3. Serie Damen'!$C111 -> 0 | CB40: ='3. Serie Damen'!$C112 -> 0 | CC40: ='3. Serie Damen'!$C113 -> 0 | CD40: 128 | CE40: ='4. Serie'!$C110 -> 0 | CF40: ='4. Serie'!$C111 -> 0 | CG40: ='4. Serie'!$C112 -> 0 | CH40: ='4. Serie'!$C113 -> 0 | CI40: 128 | CJ40: ='4. Serie'!$C110 -> 0 | CK40: ='4. Serie'!$C111 -> 0 | CL40: ='4. Serie'!$C112 -> 0 | CM40: ='4. Serie'!$C113 -> 0 | CN40: 28 | CO40: =F121 -> 0 | CP40: =R121 -> 0 | CQ40: =AD121 -> 0 | CR40: =AP121 -> 0
A41: =IF(COUNTIF(B$13:B41,B41)>1,"X","") -> X | B41: =IF(ISBLANK(F41)," ",INDEX(BP:BP,MATCH(F41,BO:BO,0))) ->  | C41: =IF(ISBLANK(F41)," ",INDEX('Startgeld Damen'!$C:$C,MATCH($B41,'Startgeld Damen'!$A:$A,0))) ->  | K41: =IF(ISBLANK(G41)," ",G41+(H41-I41)*50+IF(COUNT(G41:G44)=3,(I42+I43+I44)*40,(I42+I43+I44)*30)) ->  | L41: 0 | M41: =IF(COUNTIF(N$13:N41,N41)>1,"X","") -> X | N41: =IF(ISBLANK(R41)," ",INDEX(BU:BU,MATCH(R41,BT:BT,0))) ->  | O41: =IF(ISBLANK(R41)," ",INDEX('Startgeld Damen'!$C:$C,MATCH(N41,'Startgeld Damen'!$A:$A,0))) ->  | W41: =IF(ISBLANK(S41)," ",S41+(T41-U41)*50+IF(COUNT(S41:S44)=3,(U42+U43+U44)*40,(U42+U43+U44)*30)) ->  | X41: 0 | Y41: =IF(COUNTIF(Z$13:Z41,Z41)>1,"X","") -> X | Z41: =IF(ISBLANK(AD41)," ",INDEX(BZ:BZ,MATCH(AD41,BY:BY,0))) ->  | AA41: =IF(ISBLANK(AD41)," ",INDEX('Startgeld Damen'!$C:$C,MATCH(Z41,'Startgeld Damen'!$A:$A,0))) ->  | AI41: =IF(ISBLANK(AE41)," ",AE41+(AF41-AG41)*50+IF(COUNT(AE41:AE44)=3,(AG42+AG43+AG44)*40,(AG42+AG43+AG44)*30)) ->  | AJ41: 0 | AK41: =IF(COUNTIF(AL$13:AL41,AL41)>1,"X","") -> X | AL41: =IF(ISBLANK(AP41)," ",INDEX(CE:CE,MATCH(AP41,CD:CD,0))) ->  | AM41: =IF(ISBLANK(AP41)," ",INDEX('Startgeld Damen'!$C:$C,MATCH(AL41,'Startgeld Damen'!$A:$A,0))) ->  | AU41: =IF(ISBLANK(AQ41)," ",AQ41+(AR41-AS41)*50+IF(COUNT(AQ41:AQ44)=3,(AS42+AS43+AS44)*40,(AS42+AS43+AS44)*30)) ->  | AV41: 0 | AW41: =IF(COUNTIF(AX$13:AX41,AX41)>1,"X","") -> X | AX41: =IF(ISBLANK(BB41)," ",INDEX(CJ:CJ,MATCH(BB41,CI:CI,0))) ->  | AY41: =IF(ISBLANK(BB41)," ",INDEX('Startgeld Damen'!$C:$C,MATCH(AX41,'Startgeld Damen'!$A:$A,0))) ->  | BG41: =IF(ISBLANK(BC41)," ",BC41+(BD41-BE41)*50+IF(COUNT(BC41:BC44)=3,(BE42+BE43+BE44)*40,(BE42+BE43+BE44)*30)) ->  | BH41: 0 | BK41: =SUM(L41:L44) -> 0 | BL41: =SUM(X41:X44) -> 0 | BM41: =SUM(AJ41:AJ44) -> 0 | BN41: =SUM(AV41:AV44) -> 0 | BO41: 129 | BP41: ='1. Serie Damen'!$C114 -> 0 | BQ41: ='1. Serie Damen'!$C115 -> 0 | BR41: ='1. Serie Damen'!$C116 -> 0 | BS41: ='1. Serie Damen'!$C117 -> 0 | BT41: 129 | BU41: ='2. Serie Damen'!$C114 -> 0 | BV41: ='2. Serie Damen'!$C115 -> 0 | BW41: ='2. Serie Damen'!$C116 -> 0 | BX41: ='2. Serie Damen'!$C117 -> 0 | BY41: 129 | BZ41: ='3. Serie Damen'!$C114 -> 0 | CA41: ='3. Serie Damen'!$C115 -> 0 | CB41: ='3. Serie Damen'!$C116 -> 0 | CC41: ='3. Serie Damen'!$C117 -> 0 | CD41: 129 | CE41: ='4. Serie'!$C114 -> 0 | CF41: ='4. Serie'!$C115 -> 0 | CG41: ='4. Serie'!$C116 -> 0 | CH41: ='4. Serie'!$C117 -> 0 | CI41: 129 | CJ41: ='4. Serie'!$C114 -> 0 | CK41: ='4. Serie'!$C115 -> 0 | CL41: ='4. Serie'!$C116 -> 0 | CM41: ='4. Serie'!$C117 -> 0 | CN41: 29 | CO41: =F125 -> 0 | CP41: =R125 -> 0 | CQ41: =AD125 -> 0 | CR41: =AP125 -> 0
A42: =IF(COUNTIF(B$13:B42,B42)>1,"X","") -> X | B42: =IF(ISBLANK(F41)," ",INDEX(BQ:BQ,MATCH(F41,BO:BO,0))) ->  | C42: =IF(ISBLANK(F41)," ",INDEX('Startgeld Damen'!$C:$C,MATCH($B42,'Startgeld Damen'!$A:$A,0))) ->  | F42: =F41 -> 0 | K42: =IF(ISBLANK(G42)," ",G42+(H42-I42)*50+IF(COUNT(G41:G44)=3,(I41+I43+I44)*40,(I41+I43+I44)*30)) ->  | L42: 0 | M42: =IF(COUNTIF(N$13:N42,N42)>1,"X","") -> X | N42: =IF(ISBLANK(R41)," ",INDEX(BV:BV,MATCH(R41,BT:BT,0))) ->  | O42: =IF(ISBLANK(R41)," ",INDEX('Startgeld Damen'!$C:$C,MATCH(N42,'Startgeld Damen'!$A:$A,0))) ->  | R42: =R41 -> 0 | W42: =IF(ISBLANK(S42)," ",S42+(T42-U42)*50+IF(COUNT(S41:S44)=3,(U41+U43+U44)*40,(U41+U43+U44)*30)) ->  | X42: 0 | Y42: =IF(COUNTIF(Z$13:Z42,Z42)>1,"X","") -> X | Z42: =IF(ISBLANK(AD41)," ",INDEX(CA:CA,MATCH(AD41,BY:BY,0))) ->  | AA42: =IF(ISBLANK(AD41)," ",INDEX('Startgeld Damen'!$C:$C,MATCH(Z42,'Startgeld Damen'!$A:$A,0))) ->  | AD42: =AD41 -> 0 | AI42: =IF(ISBLANK(AE42)," ",AE42+(AF42-AG42)*50+IF(COUNT(AE41:AE44)=3,(AG41+AG43+AG44)*40,(AG41+AG43+AG44)*30)) ->  | AJ42: 0 | AK42: =IF(COUNTIF(AL$13:AL42,AL42)>1,"X","") -> X | AL42: =IF(ISBLANK(AP41)," ",INDEX(CF:CF,MATCH(AP41,CD:CD,0))) ->  | AM42: =IF(ISBLANK(AP41)," ",INDEX('Startgeld Damen'!$C:$C,MATCH(AL42,'Startgeld Damen'!$A:$A,0))) ->  | AP42: =AP41 -> 0 | AU42: =IF(ISBLANK(AQ42)," ",AQ42+(AR42-AS42)*50+IF(COUNT(AQ41:AQ44)=3,(AS41+AS43+AS44)*40,(AS41+AS43+AS44)*30)) ->  | AV42: 0 | AW42: =IF(COUNTIF(AX$13:AX42,AX42)>1,"X","") -> X | AX42: =IF(ISBLANK(BB41)," ",INDEX(CK:CK,MATCH(BB41,CI:CI,0))) ->  | AY42: =IF(ISBLANK(BB41)," ",INDEX('Startgeld Damen'!$C:$C,MATCH(AX42,'Startgeld Damen'!$A:$A,0))) ->  | BB42: =BB41 -> 0 | BG42: =IF(ISBLANK(BC42)," ",BC42+(BD42-BE42)*50+IF(COUNT(BC41:BC44)=3,(BE41+BE43+BE44)*40,(BE41+BE43+BE44)*30)) ->  | BH42: 0 | BO42: 130 | BP42: ='1. Serie Damen'!$C118 -> 0 | BQ42: ='1. Serie Damen'!$C119 -> 0 | BR42: ='1. Serie Damen'!$C120 -> 0 | BS42: ='1. Serie Damen'!$C121 -> 0 | BT42: 130 | BU42: ='2. Serie Damen'!$C118 -> 0 | BV42: ='2. Serie Damen'!$C119 -> 0 | BW42: ='2. Serie Damen'!$C120 -> 0 | BX42: ='2. Serie Damen'!$C121 -> 0 | BY42: 130 | BZ42: ='3. Serie Damen'!$C118 -> 0 | CA42: ='3. Serie Damen'!$C119 -> 0 | CB42: ='3. Serie Damen'!$C120 -> 0 | CC42: ='3. Serie Damen'!$C121 -> 0 | CD42: 130 | CE42: ='4. Serie'!$C118 -> 0 | CF42: ='4. Serie'!$C119 -> 0 | CG42: ='4. Serie'!$C120 -> 0 | CH42: ='4. Serie'!$C121 -> 0 | CI42: 130 | CJ42: ='4. Serie'!$C118 -> 0 | CK42: ='4. Serie'!$C119 -> 0 | CL42: ='4. Serie'!$C120 -> 0 | CM42: ='4. Serie'!$C121 -> 0 | CN42: 30 | CO42: =F129 -> 0 | CP42: =R129 -> 0 | CQ42: =AD129 -> 0 | CR42: =AP129 -> 0
A43: =IF(COUNTIF(B$13:B43,B43)>1,"X","") -> X | B43: =IF(ISBLANK(F41)," ",INDEX(BR:BR,MATCH(F41,BO:BO,0))) ->  | C43: =IF(ISBLANK(F41)," ",INDEX('Startgeld Damen'!$C:$C,MATCH($B43,'Startgeld Damen'!$A:$A,0))) ->  | F43: =F41 -> 0 | K43: =IF(ISBLANK(G43)," ",G43+(H43-I43)*50+IF(COUNT(G41:G44)=3,(I41+I42+I44)*40,(I41+I42+I44)*30)) ->  | L43: 0 | M43: =IF(COUNTIF(N$13:N43,N43)>1,"X","") -> X | N43: =IF(ISBLANK(R41)," ",INDEX(BW:BW,MATCH(R41,BT:BT,0))) ->  | O43: =IF(ISBLANK(R41)," ",INDEX('Startgeld Damen'!$C:$C,MATCH(N43,'Startgeld Damen'!$A:$A,0))) ->  | R43: =R41 -> 0 | W43: =IF(ISBLANK(S43)," ",S43+(T43-U43)*50+IF(COUNT(S41:S44)=3,(U41+U42+U44)*40,(U41+U42+U44)*30)) ->  | X43: 0 | Y43: =IF(COUNTIF(Z$13:Z43,Z43)>1,"X","") -> X | Z43: =IF(ISBLANK(AD41)," ",INDEX(CB:CB,MATCH(AD41,BY:BY,0))) ->  | AA43: =IF(ISBLANK(AD41)," ",INDEX('Startgeld Damen'!$C:$C,MATCH(Z43,'Startgeld Damen'!$A:$A,0))) ->  | AD43: =AD41 -> 0 | AI43: =IF(ISBLANK(AE43)," ",AE43+(AF43-AG43)*50+IF(COUNT(AE41:AE44)=3,(AG41+AG42+AG44)*40,(AG41+AG42+AG44)*30)) ->  | AJ43: 0 | AK43: =IF(COUNTIF(AL$13:AL43,AL43)>1,"X","") -> X | AL43: =IF(ISBLANK(AP41)," ",INDEX(CG:CG,MATCH(AP41,CD:CD,0))) ->  | AM43: =IF(ISBLANK(AP41)," ",INDEX('Startgeld Damen'!$C:$C,MATCH(AL43,'Startgeld Damen'!$A:$A,0))) ->  | AP43: =AP41 -> 0 | AU43: =IF(ISBLANK(AQ43)," ",AQ43+(AR43-AS43)*50+IF(COUNT(AQ41:AQ44)=3,(AS41+AS42+AS44)*40,(AS41+AS42+AS44)*30)) ->  | AV43: 0 | AW43: =IF(COUNTIF(AX$13:AX43,AX43)>1,"X","") -> X | AX43: =IF(ISBLANK(BB41)," ",INDEX(CL:CL,MATCH(BB41,CI:CI,0))) ->  | AY43: =IF(ISBLANK(BB41)," ",INDEX('Startgeld Damen'!$C:$C,MATCH(AX43,'Startgeld Damen'!$A:$A,0))) ->  | BB43: =BB41 -> 0 | BG43: =IF(ISBLANK(BC43)," ",BC43+(BD43-BE43)*50+IF(COUNT(BC41:BC44)=3,(BE41+BE42+BE44)*40,(BE41+BE42+BE44)*30)) ->  | BH43: 0 | BO43: 131 | BP43: ='1. Serie Damen'!$C122 -> 0 | BQ43: ='1. Serie Damen'!$C123 -> 0 | BR43: ='1. Serie Damen'!$C124 -> 0 | BS43: ='1. Serie Damen'!$C125 -> 0 | BT43: 131 | BU43: ='2. Serie Damen'!$C122 -> 0 | BV43: ='2. Serie Damen'!$C123 -> 0 | BW43: ='2. Serie Damen'!$C124 -> 0 | BX43: ='2. Serie Damen'!$C125 -> 0 | BY43: 131 | BZ43: ='3. Serie Damen'!$C122 -> 0 | CA43: ='3. Serie Damen'!$C123 -> 0 | CB43: ='3. Serie Damen'!$C124 -> 0 | CC43: ='3. Serie Damen'!$C125 -> 0 | CD43: 131 | CE43: ='4. Serie'!$C122 -> 0 | CF43: ='4. Serie'!$C123 -> 0 | CG43: ='4. Serie'!$C124 -> 0 | CH43: ='4. Serie'!$C125 -> 0 | CI43: 131 | CJ43: ='4. Serie'!$C122 -> 0 | CK43: ='4. Serie'!$C123 -> 0 | CL43: ='4. Serie'!$C124 -> 0 | CM43: ='4. Serie'!$C125 -> 0 | CN43: 31 | CO43: =F133 -> 0 | CP43: =R133 -> 0 | CQ43: =AD133 -> 0 | CR43: =AP133 -> 0
A44: =IF(COUNTIF(B$13:B44,B44)>1,"X","") -> X | B44: =IF(ISBLANK(F41)," ",INDEX(BS:BS,MATCH(F41,BO:BO,0))) ->  | C44: =IF(ISBLANK(F41)," ",INDEX('Startgeld Damen'!$C:$C,MATCH($B44,'Startgeld Damen'!$A:$A,0))) ->  | F44: =F41 -> 0 | K44: =IF(ISBLANK(G44)," ",G44+(H44-I44)*50+IF(COUNT(G41:G44)=3,(I41+I42+I43)*40,(I41+I42+I43)*30)) ->  | L44: 0 | M44: =IF(COUNTIF(N$13:N44,N44)>1,"X","") -> X | N44: =IF(ISBLANK(R41)," ",INDEX(BX:BX,MATCH(R41,BT:BT,0))) ->  | O44: =IF(ISBLANK(R41)," ",INDEX('Startgeld Damen'!$C:$C,MATCH(N44,'Startgeld Damen'!$A:$A,0))) ->  | R44: =R41 -> 0 | W44: =IF(ISBLANK(S44)," ",S44+(T44-U44)*50+IF(COUNT(S41:S44)=3,(U41+U42+U43)*40,(U41+U42+U43)*30)) ->  | X44: 0 | Y44: =IF(COUNTIF(Z$13:Z44,Z44)>1,"X","") -> X | Z44: =IF(ISBLANK(AD41)," ",INDEX(CC:CC,MATCH(AD41,BY:BY,0))) ->  | AA44: =IF(ISBLANK(AD41)," ",INDEX('Startgeld Damen'!$C:$C,MATCH(Z44,'Startgeld Damen'!$A:$A,0))) ->  | AD44: =AD41 -> 0 | AI44: =IF(ISBLANK(AE44)," ",AE44+(AF44-AG44)*50+IF(COUNT(AE41:AE44)=3,(AG41+AG42+AG43)*40,(AG41+AG42+AG43)*30)) ->  | AJ44: 0 | AK44: =IF(COUNTIF(AL$13:AL44,AL44)>1,"X","") -> X | AL44: =IF(ISBLANK(AP41)," ",INDEX(CH:CH,MATCH(AP41,CD:CD,0))) ->  | AM44: =IF(ISBLANK(AP41)," ",INDEX('Startgeld Damen'!$C:$C,MATCH(AL44,'Startgeld Damen'!$A:$A,0))) ->  | AP44: =AP41 -> 0 | AU44: =IF(ISBLANK(AQ44)," ",AQ44+(AR44-AS44)*50+IF(COUNT(AQ41:AQ44)=3,(AS41+AS42+AS43)*40,(AS41+AS42+AS43)*30)) ->  | AV44: 0 | AW44: =IF(COUNTIF(AX$13:AX44,AX44)>1,"X","") -> X | AX44: =IF(ISBLANK(BB41)," ",INDEX(CM:CM,MATCH(BB41,CI:CI,0))) ->  | AY44: =IF(ISBLANK(BB41)," ",INDEX('Startgeld Damen'!$C:$C,MATCH(AX44,'Startgeld Damen'!$A:$A,0))) ->  | BB44: =BB41 -> 0 | BG44: =IF(ISBLANK(BC44)," ",BC44+(BD44-BE44)*50+IF(COUNT(BC41:BC44)=3,(BE41+BE42+BE43)*40,(BE41+BE42+BE43)*30)) ->  | BH44: 0 | BO44: 132 | BP44: ='1. Serie Damen'!$C126 -> 0 | BQ44: ='1. Serie Damen'!$C127 -> 0 | BR44: ='1. Serie Damen'!$C128 -> 0 | BS44: ='1. Serie Damen'!$C129 -> 0 | BT44: 132 | BU44: ='2. Serie Damen'!$C126 -> 0 | BV44: ='2. Serie Damen'!$C127 -> 0 | BW44: ='2. Serie Damen'!$C128 -> 0 | BX44: ='2. Serie Damen'!$C129 -> 0 | BY44: 132 | BZ44: ='3. Serie Damen'!$C126 -> 0 | CA44: ='3. Serie Damen'!$C127 -> 0 | CB44: ='3. Serie Damen'!$C128 -> 0 | CC44: ='3. Serie Damen'!$C129 -> 0 | CD44: 132 | CE44: ='4. Serie'!$C126 -> 0 | CF44: ='4. Serie'!$C127 -> 0 | CG44: ='4. Serie'!$C128 -> 0 | CH44: ='4. Serie'!$C129 -> 0 | CI44: 132 | CJ44: ='4. Serie'!$C126 -> 0 | CK44: ='4. Serie'!$C127 -> 0 | CL44: ='4. Serie'!$C128 -> 0 | CM44: ='4. Serie'!$C129 -> 0 | CN44: 32 | CO44: =F137 -> 0 | CP44: =R137 -> 0 | CQ44: =AD137 -> 0 | CR44: =AP137 -> 0
A45: =IF(COUNTIF(B$13:B45,B45)>1,"X","") -> X | B45: =IF(ISBLANK(F45)," ",INDEX(BP:BP,MATCH(F45,BO:BO,0))) ->  | C45: =IF(ISBLANK(F45)," ",INDEX('Startgeld Damen'!$C:$C,MATCH($B45,'Startgeld Damen'!$A:$A,0))) ->  | K45: =IF(ISBLANK(G45)," ",G45+(H45-I45)*50+IF(COUNT(G45:G48)=3,(I46+I47+I48)*40,(I46+I47+I48)*30)) ->  | L45: 0 | M45: =IF(COUNTIF(N$13:N45,N45)>1,"X","") -> X | N45: =IF(ISBLANK(R45)," ",INDEX(BU:BU,MATCH(R45,BT:BT,0))) ->  | O45: =IF(ISBLANK(R45)," ",INDEX('Startgeld Damen'!$C:$C,MATCH(N45,'Startgeld Damen'!$A:$A,0))) ->  | W45: =IF(ISBLANK(S45)," ",S45+(T45-U45)*50+IF(COUNT(S45:S48)=3,(U46+U47+U48)*40,(U46+U47+U48)*30)) ->  | X45: 0 | Y45: =IF(COUNTIF(Z$13:Z45,Z45)>1,"X","") -> X | Z45: =IF(ISBLANK(AD45)," ",INDEX(BZ:BZ,MATCH(AD45,BY:BY,0))) ->  | AA45: =IF(ISBLANK(AD45)," ",INDEX('Startgeld Damen'!$C:$C,MATCH(Z45,'Startgeld Damen'!$A:$A,0))) ->  | AI45: =IF(ISBLANK(AE45)," ",AE45+(AF45-AG45)*50+IF(COUNT(AE45:AE48)=3,(AG46+AG47+AG48)*40,(AG46+AG47+AG48)*30)) ->  | AJ45: 0 | AK45: =IF(COUNTIF(AL$13:AL45,AL45)>1,"X","") -> X | AL45: =IF(ISBLANK(AP45)," ",INDEX(CE:CE,MATCH(AP45,CD:CD,0))) ->  | AM45: =IF(ISBLANK(AP45)," ",INDEX('Startgeld Damen'!$C:$C,MATCH(AL45,'Startgeld Damen'!$A:$A,0))) ->  | AU45: =IF(ISBLANK(AQ45)," ",AQ45+(AR45-AS45)*50+IF(COUNT(AQ45:AQ48)=3,(AS46+AS47+AS48)*40,(AS46+AS47+AS48)*30)) ->  | AV45: 0 | AW45: =IF(COUNTIF(AX$13:AX45,AX45)>1,"X","") -> X | AX45: =IF(ISBLANK(BB45)," ",INDEX(CJ:CJ,MATCH(BB45,CI:CI,0))) ->  | AY45: =IF(ISBLANK(BB45)," ",INDEX('Startgeld Damen'!$C:$C,MATCH(AX45,'Startgeld Damen'!$A:$A,0))) ->  | BG45: =IF(ISBLANK(BC45)," ",BC45+(BD45-BE45)*50+IF(COUNT(BC45:BC48)=3,(BE46+BE47+BE48)*40,(BE46+BE47+BE48)*30)) ->  | BH45: 0 | BK45: =SUM(L45:L48) -> 0 | BL45: =SUM(X45:X48) -> 0 | BM45: =SUM(AJ45:AJ48) -> 0 | BN45: =SUM(AV45:AV48) -> 0 | BO45: 133 | BP45: ='1. Serie Damen'!$C130 -> 0 | BQ45: ='1. Serie Damen'!$C131 -> 0 | BR45: ='1. Serie Damen'!$C132 -> 0 | BS45: ='1. Serie Damen'!$C133 -> 0 | BT45: 133 | BU45: ='2. Serie Damen'!$C130 -> 0 | BV45: ='2. Serie Damen'!$C131 -> 0 | BW45: ='2. Serie Damen'!$C132 -> 0 | BX45: ='2. Serie Damen'!$C133 -> 0 | BY45: 133 | BZ45: ='3. Serie Damen'!$C130 -> 0 | CA45: ='3. Serie Damen'!$C131 -> 0 | CB45: ='3. Serie Damen'!$C132 -> 0 | CC45: ='3. Serie Damen'!$C133 -> 0 | CD45: 133 | CE45: ='4. Serie'!$C130 -> 0 | CF45: ='4. Serie'!$C131 -> 0 | CG45: ='4. Serie'!$C132 -> 0 | CH45: ='4. Serie'!$C133 -> 0 | CI45: 133 | CJ45: ='4. Serie'!$C130 -> 0 | CK45: ='4. Serie'!$C131 -> 0 | CL45: ='4. Serie'!$C132 -> 0 | CM45: ='4. Serie'!$C133 -> 0 | CN45: 33 | CO45: =F141 -> 0 | CP45: =R141 -> 0 | CQ45: =AD141 -> 0 | CR45: =AP141 -> 0
A46: =IF(COUNTIF(B$13:B46,B46)>1,"X","") -> X | B46: =IF(ISBLANK(F45)," ",INDEX(BQ:BQ,MATCH(F45,BO:BO,0))) ->  | C46: =IF(ISBLANK(F45)," ",INDEX('Startgeld Damen'!$C:$C,MATCH($B46,'Startgeld Damen'!$A:$A,0))) ->  | F46: =F45 -> 0 | K46: =IF(ISBLANK(G46)," ",G46+(H46-I46)*50+IF(COUNT(G45:G48)=3,(I45+I47+I48)*40,(I45+I47+I48)*30)) ->  | L46: 0 | M46: =IF(COUNTIF(N$13:N46,N46)>1,"X","") -> X | N46: =IF(ISBLANK(R45)," ",INDEX(BV:BV,MATCH(R45,BT:BT,0))) ->  | O46: =IF(ISBLANK(R45)," ",INDEX('Startgeld Damen'!$C:$C,MATCH(N46,'Startgeld Damen'!$A:$A,0))) ->  | R46: =R45 -> 0 | W46: =IF(ISBLANK(S46)," ",S46+(T46-U46)*50+IF(COUNT(S45:S48)=3,(U45+U47+U48)*40,(U45+U47+U48)*30)) ->  | X46: 0 | Y46: =IF(COUNTIF(Z$13:Z46,Z46)>1,"X","") -> X | Z46: =IF(ISBLANK(AD45)," ",INDEX(CA:CA,MATCH(AD45,BY:BY,0))) ->  | AA46: =IF(ISBLANK(AD45)," ",INDEX('Startgeld Damen'!$C:$C,MATCH(Z46,'Startgeld Damen'!$A:$A,0))) ->  | AD46: =AD45 -> 0 | AI46: =IF(ISBLANK(AE46)," ",AE46+(AF46-AG46)*50+IF(COUNT(AE45:AE48)=3,(AG45+AG47+AG48)*40,(AG45+AG47+AG48)*30)) ->  | AJ46: 0 | AK46: =IF(COUNTIF(AL$13:AL46,AL46)>1,"X","") -> X | AL46: =IF(ISBLANK(AP45)," ",INDEX(CF:CF,MATCH(AP45,CD:CD,0))) ->  | AM46: =IF(ISBLANK(AP45)," ",INDEX('Startgeld Damen'!$C:$C,MATCH(AL46,'Startgeld Damen'!$A:$A,0))) ->  | AP46: =AP45 -> 0 | AU46: =IF(ISBLANK(AQ46)," ",AQ46+(AR46-AS46)*50+IF(COUNT(AQ45:AQ48)=3,(AS45+AS47+AS48)*40,(AS45+AS47+AS48)*30)) ->  | AV46: 0 | AW46: =IF(COUNTIF(AX$13:AX46,AX46)>1,"X","") -> X | AX46: =IF(ISBLANK(BB45)," ",INDEX(CK:CK,MATCH(BB45,CI:CI,0))) ->  | AY46: =IF(ISBLANK(BB45)," ",INDEX('Startgeld Damen'!$C:$C,MATCH(AX46,'Startgeld Damen'!$A:$A,0))) ->  | BB46: =BB45 -> 0 | BG46: =IF(ISBLANK(BC46)," ",BC46+(BD46-BE46)*50+IF(COUNT(BC45:BC48)=3,(BE45+BE47+BE48)*40,(BE45+BE47+BE48)*30)) ->  | BH46: 0 | BO46: 134 | BP46: ='1. Serie Damen'!$C134 -> 0 | BQ46: ='1. Serie Damen'!$C135 -> 0 | BR46: ='1. Serie Damen'!$C136 -> 0 | BS46: ='1. Serie Damen'!$C137 -> 0 | BT46: 134 | BU46: ='2. Serie Damen'!$C134 -> 0 | BV46: ='2. Serie Damen'!$C135 -> 0 | BW46: ='2. Serie Damen'!$C136 -> 0 | BX46: ='2. Serie Damen'!$C137 -> 0 | BY46: 134 | BZ46: ='3. Serie Damen'!$C134 -> 0 | CA46: ='3. Serie Damen'!$C135 -> 0 | CB46: ='3. Serie Damen'!$C136 -> 0 | CC46: ='3. Serie Damen'!$C137 -> 0 | CD46: 134 | CE46: ='4. Serie'!$C134 -> 0 | CF46: ='4. Serie'!$C135 -> 0 | CG46: ='4. Serie'!$C136 -> 0 | CH46: ='4. Serie'!$C137 -> 0 | CI46: 134 | CJ46: ='4. Serie'!$C134 -> 0 | CK46: ='4. Serie'!$C135 -> 0 | CL46: ='4. Serie'!$C136 -> 0 | CM46: ='4. Serie'!$C137 -> 0 | CN46: 34 | CO46: =F145 -> 0 | CP46: =R145 -> 0 | CQ46: =AD145 -> 0 | CR46: =AP145 -> 0
A47: =IF(COUNTIF(B$13:B47,B47)>1,"X","") -> X | B47: =IF(ISBLANK(F45)," ",INDEX(BR:BR,MATCH(F45,BO:BO,0))) ->  | C47: =IF(ISBLANK(F45)," ",INDEX('Startgeld Damen'!$C:$C,MATCH($B47,'Startgeld Damen'!$A:$A,0))) ->  | F47: =F45 -> 0 | K47: =IF(ISBLANK(G47)," ",G47+(H47-I47)*50+IF(COUNT(G45:G48)=3,(I45+I46+I48)*40,(I45+I46+I48)*30)) ->  | L47: 0 | M47: =IF(COUNTIF(N$13:N47,N47)>1,"X","") -> X | N47: =IF(ISBLANK(R45)," ",INDEX(BW:BW,MATCH(R45,BT:BT,0))) ->  | O47: =IF(ISBLANK(R45)," ",INDEX('Startgeld Damen'!$C:$C,MATCH(N47,'Startgeld Damen'!$A:$A,0))) ->  | R47: =R45 -> 0 | W47: =IF(ISBLANK(S47)," ",S47+(T47-U47)*50+IF(COUNT(S45:S48)=3,(U45+U46+U48)*40,(U45+U46+U48)*30)) ->  | X47: 0 | Y47: =IF(COUNTIF(Z$13:Z47,Z47)>1,"X","") -> X | Z47: =IF(ISBLANK(AD45)," ",INDEX(CB:CB,MATCH(AD45,BY:BY,0))) ->  | AA47: =IF(ISBLANK(AD45)," ",INDEX('Startgeld Damen'!$C:$C,MATCH(Z47,'Startgeld Damen'!$A:$A,0))) ->  | AD47: =AD45 -> 0 | AI47: =IF(ISBLANK(AE47)," ",AE47+(AF47-AG47)*50+IF(COUNT(AE45:AE48)=3,(AG45+AG46+AG48)*40,(AG45+AG46+AG48)*30)) ->  | AJ47: 0 | AK47: =IF(COUNTIF(AL$13:AL47,AL47)>1,"X","") -> X | AL47: =IF(ISBLANK(AP45)," ",INDEX(CG:CG,MATCH(AP45,CD:CD,0))) ->  | AM47: =IF(ISBLANK(AP45)," ",INDEX('Startgeld Damen'!$C:$C,MATCH(AL47,'Startgeld Damen'!$A:$A,0))) ->  | AP47: =AP45 -> 0 | AU47: =IF(ISBLANK(AQ47)," ",AQ47+(AR47-AS47)*50+IF(COUNT(AQ45:AQ48)=3,(AS45+AS46+AS48)*40,(AS45+AS46+AS48)*30)) ->  | AV47: 0 | AW47: =IF(COUNTIF(AX$13:AX47,AX47)>1,"X","") -> X | AX47: =IF(ISBLANK(BB45)," ",INDEX(CL:CL,MATCH(BB45,CI:CI,0))) ->  | AY47: =IF(ISBLANK(BB45)," ",INDEX('Startgeld Damen'!$C:$C,MATCH(AX47,'Startgeld Damen'!$A:$A,0))) ->  | BB47: =BB45 -> 0 | BG47: =IF(ISBLANK(BC47)," ",BC47+(BD47-BE47)*50+IF(COUNT(BC45:BC48)=3,(BE45+BE46+BE48)*40,(BE45+BE46+BE48)*30)) ->  | BH47: 0 | BO47: 135 | BP47: ='1. Serie Damen'!$C138 -> 0 | BQ47: ='1. Serie Damen'!$C139 -> 0 | BR47: ='1. Serie Damen'!$C140 -> 0 | BS47: ='1. Serie Damen'!$C141 -> 0 | BT47: 135 | BU47: ='2. Serie Damen'!$C138 -> 0 | BV47: ='2. Serie Damen'!$C139 -> 0 | BW47: ='2. Serie Damen'!$C140 -> 0 | BX47: ='2. Serie Damen'!$C141 -> 0 | BY47: 135 | BZ47: ='3. Serie Damen'!$C138 -> 0 | CA47: ='3. Serie Damen'!$C139 -> 0 | CB47: ='3. Serie Damen'!$C140 -> 0 | CC47: ='3. Serie Damen'!$C141 -> 0 | CD47: 135 | CE47: ='4. Serie'!$C138 -> 0 | CF47: ='4. Serie'!$C139 -> 0 | CG47: ='4. Serie'!$C140 -> 0 | CH47: ='4. Serie'!$C141 -> 0 | CI47: 135 | CJ47: ='4. Serie'!$C138 -> 0 | CK47: ='4. Serie'!$C139 -> 0 | CL47: ='4. Serie'!$C140 -> 0 | CM47: ='4. Serie'!$C141 -> 0 | CN47: 35 | CO47: =F149 -> 0 | CP47: =R149 -> 0 | CQ47: =AD149 -> 0 | CR47: =AP149 -> 0
A48: =IF(COUNTIF(B$13:B48,B48)>1,"X","") -> X | B48: =IF(ISBLANK(F45)," ",INDEX(BS:BS,MATCH(F45,BO:BO,0))) ->  | C48: =IF(ISBLANK(F45)," ",INDEX('Startgeld Damen'!$C:$C,MATCH($B48,'Startgeld Damen'!$A:$A,0))) ->  | F48: =F45 -> 0 | K48: =IF(ISBLANK(G48)," ",G48+(H48-I48)*50+IF(COUNT(G45:G48)=3,(I45+I46+I47)*40,(I45+I46+I47)*30)) ->  | L48: 0 | M48: =IF(COUNTIF(N$13:N48,N48)>1,"X","") -> X | N48: =IF(ISBLANK(R45)," ",INDEX(BX:BX,MATCH(R45,BT:BT,0))) ->  | O48: =IF(ISBLANK(R45)," ",INDEX('Startgeld Damen'!$C:$C,MATCH(N48,'Startgeld Damen'!$A:$A,0))) ->  | R48: =R45 -> 0 | W48: =IF(ISBLANK(S48)," ",S48+(T48-U48)*50+IF(COUNT(S45:S48)=3,(U45+U46+U47)*40,(U45+U46+U47)*30)) ->  | X48: 0 | Y48: =IF(COUNTIF(Z$13:Z48,Z48)>1,"X","") -> X | Z48: =IF(ISBLANK(AD45)," ",INDEX(CC:CC,MATCH(AD45,BY:BY,0))) ->  | AA48: =IF(ISBLANK(AD45)," ",INDEX('Startgeld Damen'!$C:$C,MATCH(Z48,'Startgeld Damen'!$A:$A,0))) ->  | AD48: =AD45 -> 0 | AI48: =IF(ISBLANK(AE48)," ",AE48+(AF48-AG48)*50+IF(COUNT(AE45:AE48)=3,(AG45+AG46+AG47)*40,(AG45+AG46+AG47)*30)) ->  | AJ48: 0 | AK48: =IF(COUNTIF(AL$13:AL48,AL48)>1,"X","") -> X | AL48: =IF(ISBLANK(AP45)," ",INDEX(CH:CH,MATCH(AP45,CD:CD,0))) ->  | AM48: =IF(ISBLANK(AP45)," ",INDEX('Startgeld Damen'!$C:$C,MATCH(AL48,'Startgeld Damen'!$A:$A,0))) ->  | AP48: =AP45 -> 0 | AU48: =IF(ISBLANK(AQ48)," ",AQ48+(AR48-AS48)*50+IF(COUNT(AQ45:AQ48)=3,(AS45+AS46+AS47)*40,(AS45+AS46+AS47)*30)) ->  | AV48: 0 | AW48: =IF(COUNTIF(AX$13:AX48,AX48)>1,"X","") -> X | AX48: =IF(ISBLANK(BB45)," ",INDEX(CM:CM,MATCH(BB45,CI:CI,0))) ->  | AY48: =IF(ISBLANK(BB45)," ",INDEX('Startgeld Damen'!$C:$C,MATCH(AX48,'Startgeld Damen'!$A:$A,0))) ->  | BB48: =BB45 -> 0 | BG48: =IF(ISBLANK(BC48)," ",BC48+(BD48-BE48)*50+IF(COUNT(BC45:BC48)=3,(BE45+BE46+BE47)*40,(BE45+BE46+BE47)*30)) ->  | BH48: 0 | BO48: 136 | BP48: ='1. Serie Damen'!$C142 -> 0 | BQ48: ='1. Serie Damen'!$C143 -> 0 | BR48: ='1. Serie Damen'!$C144 -> 0 | BS48: ='1. Serie Damen'!$C145 -> 0 | BT48: 136 | BU48: ='2. Serie Damen'!$C142 -> 0 | BV48: ='2. Serie Damen'!$C143 -> 0 | BW48: ='2. Serie Damen'!$C144 -> 0 | BX48: ='2. Serie Damen'!$C145 -> 0 | BY48: 136 | BZ48: ='3. Serie Damen'!$C142 -> 0 | CA48: ='3. Serie Damen'!$C143 -> 0 | CB48: ='3. Serie Damen'!$C144 -> 0 | CC48: ='3. Serie Damen'!$C145 -> 0 | CD48: 136 | CE48: ='4. Serie'!$C142 -> 0 | CF48: ='4. Serie'!$C143 -> 0 | CG48: ='4. Serie'!$C144 -> 0 | CH48: ='4. Serie'!$C145 -> 0 | CI48: 136 | CJ48: ='4. Serie'!$C142 -> 0 | CK48: ='4. Serie'!$C143 -> 0 | CL48: ='4. Serie'!$C144 -> 0 | CM48: ='4. Serie'!$C145 -> 0 | CN48: 36 | CO48: =F153 -> 0 | CP48: =R153 -> 0 | CQ48: =AD153 -> 0 | CR48: =AP153 -> 0
A49: =IF(COUNTIF(B$13:B49,B49)>1,"X","") -> X | B49: =IF(ISBLANK(F49)," ",INDEX(BP:BP,MATCH(F49,BO:BO,0))) ->  | C49: =IF(ISBLANK(F49)," ",INDEX('Startgeld Damen'!$C:$C,MATCH($B49,'Startgeld Damen'!$A:$A,0))) ->  | K49: =IF(ISBLANK(G49)," ",G49+(H49-I49)*50+IF(COUNT(G49:G52)=3,(I50+I51+I52)*40,(I50+I51+I52)*30)) ->  | L49: 0 | M49: =IF(COUNTIF(N$13:N49,N49)>1,"X","") -> X | N49: =IF(ISBLANK(R49)," ",INDEX(BU:BU,MATCH(R49,BT:BT,0))) ->  | O49: =IF(ISBLANK(R49)," ",INDEX('Startgeld Damen'!$C:$C,MATCH(N49,'Startgeld Damen'!$A:$A,0))) ->  | W49: =IF(ISBLANK(S49)," ",S49+(T49-U49)*50+IF(COUNT(S49:S52)=3,(U50+U51+U52)*40,(U50+U51+U52)*30)) ->  | X49: 0 | Y49: =IF(COUNTIF(Z$13:Z49,Z49)>1,"X","") -> X | Z49: =IF(ISBLANK(AD49)," ",INDEX(BZ:BZ,MATCH(AD49,BY:BY,0))) ->  | AA49: =IF(ISBLANK(AD49)," ",INDEX('Startgeld Damen'!$C:$C,MATCH(Z49,'Startgeld Damen'!$A:$A,0))) ->  | AI49: =IF(ISBLANK(AE49)," ",AE49+(AF49-AG49)*50+IF(COUNT(AE49:AE52)=3,(AG50+AG51+AG52)*40,(AG50+AG51+AG52)*30)) ->  | AJ49: 0 | AK49: =IF(COUNTIF(AL$13:AL49,AL49)>1,"X","") -> X | AL49: =IF(ISBLANK(AP49)," ",INDEX(CE:CE,MATCH(AP49,CD:CD,0))) ->  | AM49: =IF(ISBLANK(AP49)," ",INDEX('Startgeld Damen'!$C:$C,MATCH(AL49,'Startgeld Damen'!$A:$A,0))) ->  | AU49: =IF(ISBLANK(AQ49)," ",AQ49+(AR49-AS49)*50+IF(COUNT(AQ49:AQ52)=3,(AS50+AS51+AS52)*40,(AS50+AS51+AS52)*30)) ->  | AV49: 0 | AW49: =IF(COUNTIF(AX$13:AX49,AX49)>1,"X","") -> X | AX49: =IF(ISBLANK(BB49)," ",INDEX(CJ:CJ,MATCH(BB49,CI:CI,0))) ->  | AY49: =IF(ISBLANK(BB49)," ",INDEX('Startgeld Damen'!$C:$C,MATCH(AX49,'Startgeld Damen'!$A:$A,0))) ->  | BG49: =IF(ISBLANK(BC49)," ",BC49+(BD49-BE49)*50+IF(COUNT(BC49:BC52)=3,(BE50+BE51+BE52)*40,(BE50+BE51+BE52)*30)) ->  | BH49: 0 | BK49: =SUM(L49:L52) -> 0 | BL49: =SUM(X49:X52) -> 0 | BM49: =SUM(AJ49:AJ52) -> 0 | BN49: =SUM(AV49:AV52) -> 0 | BO49: 137 | BP49: ='1. Serie Damen'!$C146 -> 0 | BQ49: ='1. Serie Damen'!$C147 -> 0 | BR49: ='1. Serie Damen'!$C148 -> 0 | BS49: ='1. Serie Damen'!$C149 -> 0 | BT49: 137 | BU49: ='2. Serie Damen'!$C146 -> 0 | BV49: ='2. Serie Damen'!$C147 -> 0 | BW49: ='2. Serie Damen'!$C148 -> 0 | BX49: ='2. Serie Damen'!$C149 -> 0 | BY49: 137 | BZ49: ='3. Serie Damen'!$C146 -> 0 | CA49: ='3. Serie Damen'!$C147 -> 0 | CB49: ='3. Serie Damen'!$C148 -> 0 | CC49: ='3. Serie Damen'!$C149 -> 0 | CD49: 137 | CE49: ='4. Serie'!$C146 -> 0 | CF49: ='4. Serie'!$C147 -> 0 | CG49: ='4. Serie'!$C148 -> 0 | CH49: ='4. Serie'!$C149 -> 0 | CI49: 137 | CJ49: ='4. Serie'!$C146 -> 0 | CK49: ='4. Serie'!$C147 -> 0 | CL49: ='4. Serie'!$C148 -> 0 | CM49: ='4. Serie'!$C149 -> 0 | CN49: 37 | CO49: =F157 -> 0 | CP49: =R157 -> 0 | CQ49: =AD157 -> 0 | CR49: =AP157 -> 0
A50: =IF(COUNTIF(B$13:B50,B50)>1,"X","") -> X | B50: =IF(ISBLANK(F49)," ",INDEX(BQ:BQ,MATCH(F49,BO:BO,0))) ->  | C50: =IF(ISBLANK(F49)," ",INDEX('Startgeld Damen'!$C:$C,MATCH($B50,'Startgeld Damen'!$A:$A,0))) ->  | F50: =F49 -> 0 | K50: =IF(ISBLANK(G50)," ",G50+(H50-I50)*50+IF(COUNT(G49:G52)=3,(I49+I51+I52)*40,(I49+I51+I52)*30)) ->  | L50: 0 | M50: =IF(COUNTIF(N$13:N50,N50)>1,"X","") -> X | N50: =IF(ISBLANK(R49)," ",INDEX(BV:BV,MATCH(R49,BT:BT,0))) ->  | O50: =IF(ISBLANK(R49)," ",INDEX('Startgeld Damen'!$C:$C,MATCH(N50,'Startgeld Damen'!$A:$A,0))) ->  | R50: =R49 -> 0 | W50: =IF(ISBLANK(S50)," ",S50+(T50-U50)*50+IF(COUNT(S49:S52)=3,(U49+U51+U52)*40,(U49+U51+U52)*30)) ->  | X50: 0 | Y50: =IF(COUNTIF(Z$13:Z50,Z50)>1,"X","") -> X | Z50: =IF(ISBLANK(AD49)," ",INDEX(CA:CA,MATCH(AD49,BY:BY,0))) ->  | AA50: =IF(ISBLANK(AD49)," ",INDEX('Startgeld Damen'!$C:$C,MATCH(Z50,'Startgeld Damen'!$A:$A,0))) ->  | AD50: =AD49 -> 0 | AI50: =IF(ISBLANK(AE50)," ",AE50+(AF50-AG50)*50+IF(COUNT(AE49:AE52)=3,(AG49+AG51+AG52)*40,(AG49+AG51+AG52)*30)) ->  | AJ50: 0 | AK50: =IF(COUNTIF(AL$13:AL50,AL50)>1,"X","") -> X | AL50: =IF(ISBLANK(AP49)," ",INDEX(CF:CF,MATCH(AP49,CD:CD,0))) ->  | AM50: =IF(ISBLANK(AP49)," ",INDEX('Startgeld Damen'!$C:$C,MATCH(AL50,'Startgeld Damen'!$A:$A,0))) ->  | AP50: =AP49 -> 0 | AU50: =IF(ISBLANK(AQ50)," ",AQ50+(AR50-AS50)*50+IF(COUNT(AQ49:AQ52)=3,(AS49+AS51+AS52)*40,(AS49+AS51+AS52)*30)) ->  | AV50: 0 | AW50: =IF(COUNTIF(AX$13:AX50,AX50)>1,"X","") -> X | AX50: =IF(ISBLANK(BB49)," ",INDEX(CK:CK,MATCH(BB49,CI:CI,0))) ->  | AY50: =IF(ISBLANK(BB49)," ",INDEX('Startgeld Damen'!$C:$C,MATCH(AX50,'Startgeld Damen'!$A:$A,0))) ->  | BB50: =BB49 -> 0 | BG50: =IF(ISBLANK(BC50)," ",BC50+(BD50-BE50)*50+IF(COUNT(BC49:BC52)=3,(BE49+BE51+BE52)*40,(BE49+BE51+BE52)*30)) ->  | BH50: 0 | BO50: 138 | BP50: ='1. Serie Damen'!$C150 -> 0 | BQ50: ='1. Serie Damen'!$C151 -> 0 | BR50: ='1. Serie Damen'!$C152 -> 0 | BS50: ='1. Serie Damen'!$C153 -> 0 | BT50: 138 | BU50: ='2. Serie Damen'!$C150 -> 0 | BV50: ='2. Serie Damen'!$C151 -> 0 | BW50: ='2. Serie Damen'!$C152 -> 0 | BX50: ='2. Serie Damen'!$C153 -> 0 | BY50: 138 | BZ50: ='3. Serie Damen'!$C150 -> 0 | CA50: ='3. Serie Damen'!$C151 -> 0 | CB50: ='3. Serie Damen'!$C152 -> 0 | CC50: ='3. Serie Damen'!$C153 -> 0 | CD50: 138 | CE50: ='4. Serie'!$C150 -> 0 | CF50: ='4. Serie'!$C151 -> 0 | CG50: ='4. Serie'!$C152 -> 0 | CH50: ='4. Serie'!$C153 -> 0 | CI50: 138 | CJ50: ='4. Serie'!$C150 -> 0 | CK50: ='4. Serie'!$C151 -> 0 | CL50: ='4. Serie'!$C152 -> 0 | CM50: ='4. Serie'!$C153 -> 0 | CN50: 38 | CO50: =F161 -> 0 | CP50: =R161 -> 0 | CQ50: =AD161 -> 0 | CR50: =AP161 -> 0
A51: =IF(COUNTIF(B$13:B51,B51)>1,"X","") -> X | B51: =IF(ISBLANK(F49)," ",INDEX(BR:BR,MATCH(F49,BO:BO,0))) ->  | C51: =IF(ISBLANK(F49)," ",INDEX('Startgeld Damen'!$C:$C,MATCH($B51,'Startgeld Damen'!$A:$A,0))) ->  | F51: =F49 -> 0 | K51: =IF(ISBLANK(G51)," ",G51+(H51-I51)*50+IF(COUNT(G49:G52)=3,(I49+I50+I52)*40,(I49+I50+I52)*30)) ->  | L51: 0 | M51: =IF(COUNTIF(N$13:N51,N51)>1,"X","") -> X | N51: =IF(ISBLANK(R49)," ",INDEX(BW:BW,MATCH(R49,BT:BT,0))) ->  | O51: =IF(ISBLANK(R49)," ",INDEX('Startgeld Damen'!$C:$C,MATCH(N51,'Startgeld Damen'!$A:$A,0))) ->  | R51: =R49 -> 0 | W51: =IF(ISBLANK(S51)," ",S51+(T51-U51)*50+IF(COUNT(S49:S52)=3,(U49+U50+U52)*40,(U49+U50+U52)*30)) ->  | X51: 0 | Y51: =IF(COUNTIF(Z$13:Z51,Z51)>1,"X","") -> X | Z51: =IF(ISBLANK(AD49)," ",INDEX(CB:CB,MATCH(AD49,BY:BY,0))) ->  | AA51: =IF(ISBLANK(AD49)," ",INDEX('Startgeld Damen'!$C:$C,MATCH(Z51,'Startgeld Damen'!$A:$A,0))) ->  | AD51: =AD49 -> 0 | AI51: =IF(ISBLANK(AE51)," ",AE51+(AF51-AG51)*50+IF(COUNT(AE49:AE52)=3,(AG49+AG50+AG52)*40,(AG49+AG50+AG52)*30)) ->  | AJ51: 0 | AK51: =IF(COUNTIF(AL$13:AL51,AL51)>1,"X","") -> X | AL51: =IF(ISBLANK(AP49)," ",INDEX(CG:CG,MATCH(AP49,CD:CD,0))) ->  | AM51: =IF(ISBLANK(AP49)," ",INDEX('Startgeld Damen'!$C:$C,MATCH(AL51,'Startgeld Damen'!$A:$A,0))) ->  | AP51: =AP49 -> 0 | AU51: =IF(ISBLANK(AQ51)," ",AQ51+(AR51-AS51)*50+IF(COUNT(AQ49:AQ52)=3,(AS49+AS50+AS52)*40,(AS49+AS50+AS52)*30)) ->  | AV51: 0 | AW51: =IF(COUNTIF(AX$13:AX51,AX51)>1,"X","") -> X | AX51: =IF(ISBLANK(BB49)," ",INDEX(CL:CL,MATCH(BB49,CI:CI,0))) ->  | AY51: =IF(ISBLANK(BB49)," ",INDEX('Startgeld Damen'!$C:$C,MATCH(AX51,'Startgeld Damen'!$A:$A,0))) ->  | BB51: =BB49 -> 0 | BG51: =IF(ISBLANK(BC51)," ",BC51+(BD51-BE51)*50+IF(COUNT(BC49:BC52)=3,(BE49+BE50+BE52)*40,(BE49+BE50+BE52)*30)) ->  | BH51: 0 | BO51: 139 | BP51: ='1. Serie Damen'!$C154 -> 0 | BQ51: ='1. Serie Damen'!$C155 -> 0 | BR51: ='1. Serie Damen'!$C156 -> 0 | BS51: ='1. Serie Damen'!$C157 -> 0 | BT51: 139 | BU51: ='2. Serie Damen'!$C154 -> 0 | BV51: ='2. Serie Damen'!$C155 -> 0 | BW51: ='2. Serie Damen'!$C156 -> 0 | BX51: ='2. Serie Damen'!$C157 -> 0 | BY51: 139 | BZ51: ='3. Serie Damen'!$C154 -> 0 | CA51: ='3. Serie Damen'!$C155 -> 0 | CB51: ='3. Serie Damen'!$C156 -> 0 | CC51: ='3. Serie Damen'!$C157 -> 0 | CD51: 139 | CE51: ='4. Serie'!$C154 -> 0 | CF51: ='4. Serie'!$C155 -> 0 | CG51: ='4. Serie'!$C156 -> 0 | CH51: ='4. Serie'!$C157 -> 0 | CI51: 139 | CJ51: ='4. Serie'!$C154 -> 0 | CK51: ='4. Serie'!$C155 -> 0 | CL51: ='4. Serie'!$C156 -> 0 | CM51: ='4. Serie'!$C157 -> 0 | CN51: 39 | CO51: =F165 -> 0 | CP51: =R165 -> 0 | CQ51: =AD165 -> 0 | CR51: =AP165 -> 0
A52: =IF(COUNTIF(B$13:B52,B52)>1,"X","") -> X | B52: =IF(ISBLANK(F49)," ",INDEX(BS:BS,MATCH(F49,BO:BO,0))) ->  | C52: =IF(ISBLANK(F49)," ",INDEX('Startgeld Damen'!$C:$C,MATCH($B52,'Startgeld Damen'!$A:$A,0))) ->  | F52: =F49 -> 0 | K52: =IF(ISBLANK(G52)," ",G52+(H52-I52)*50+IF(COUNT(G49:G52)=3,(I49+I50+I51)*40,(I49+I50+I51)*30)) ->  | L52: 0 | M52: =IF(COUNTIF(N$13:N52,N52)>1,"X","") -> X | N52: =IF(ISBLANK(R49)," ",INDEX(BX:BX,MATCH(R49,BT:BT,0))) ->  | O52: =IF(ISBLANK(R49)," ",INDEX('Startgeld Damen'!$C:$C,MATCH(N52,'Startgeld Damen'!$A:$A,0))) ->  | R52: =R49 -> 0 | W52: =IF(ISBLANK(S52)," ",S52+(T52-U52)*50+IF(COUNT(S49:S52)=3,(U49+U50+U51)*40,(U49+U50+U51)*30)) ->  | X52: 0 | Y52: =IF(COUNTIF(Z$13:Z52,Z52)>1,"X","") -> X | Z52: =IF(ISBLANK(AD49)," ",INDEX(CC:CC,MATCH(AD49,BY:BY,0))) ->  | AA52: =IF(ISBLANK(AD49)," ",INDEX('Startgeld Damen'!$C:$C,MATCH(Z52,'Startgeld Damen'!$A:$A,0))) ->  | AD52: =AD49 -> 0 | AI52: =IF(ISBLANK(AE52)," ",AE52+(AF52-AG52)*50+IF(COUNT(AE49:AE52)=3,(AG49+AG50+AG51)*40,(AG49+AG50+AG51)*30)) ->  | AJ52: 0 | AK52: =IF(COUNTIF(AL$13:AL52,AL52)>1,"X","") -> X | AL52: =IF(ISBLANK(AP49)," ",INDEX(CH:CH,MATCH(AP49,CD:CD,0))) ->  | AM52: =IF(ISBLANK(AP49)," ",INDEX('Startgeld Damen'!$C:$C,MATCH(AL52,'Startgeld Damen'!$A:$A,0))) ->  | AP52: =AP49 -> 0 | AU52: =IF(ISBLANK(AQ52)," ",AQ52+(AR52-AS52)*50+IF(COUNT(AQ49:AQ52)=3,(AS49+AS50+AS51)*40,(AS49+AS50+AS51)*30)) ->  | AV52: 0 | AW52: =IF(COUNTIF(AX$13:AX52,AX52)>1,"X","") -> X | AX52: =IF(ISBLANK(BB49)," ",INDEX(CM:CM,MATCH(BB49,CI:CI,0))) ->  | AY52: =IF(ISBLANK(BB49)," ",INDEX('Startgeld Damen'!$C:$C,MATCH(AX52,'Startgeld Damen'!$A:$A,0))) ->  | BB52: =BB49 -> 0 | BG52: =IF(ISBLANK(BC52)," ",BC52+(BD52-BE52)*50+IF(COUNT(BC49:BC52)=3,(BE49+BE50+BE51)*40,(BE49+BE50+BE51)*30)) ->  | BH52: 0 | BO52: 140 | BP52: ='1. Serie Damen'!$C158 -> 0 | BQ52: ='1. Serie Damen'!$C159 -> 0 | BR52: ='1. Serie Damen'!$C160 -> 0 | BS52: ='1. Serie Damen'!$C161 -> 0 | BT52: 140 | BU52: ='2. Serie Damen'!$C158 -> 0 | BV52: ='2. Serie Damen'!$C159 -> 0 | BW52: ='2. Serie Damen'!$C160 -> 0 | BX52: ='2. Serie Damen'!$C161 -> 0 | BY52: 140 | BZ52: ='3. Serie Damen'!$C158 -> 0 | CA52: ='3. Serie Damen'!$C159 -> 0 | CB52: ='3. Serie Damen'!$C160 -> 0 | CC52: ='3. Serie Damen'!$C161 -> 0 | CD52: 140 | CE52: ='4. Serie'!$C158 -> 0 | CF52: ='4. Serie'!$C159 -> 0 | CG52: ='4. Serie'!$C160 -> 0 | CH52: ='4. Serie'!$C161 -> 0 | CI52: 140 | CJ52: ='4. Serie'!$C158 -> 0 | CK52: ='4. Serie'!$C159 -> 0 | CL52: ='4. Serie'!$C160 -> 0 | CM52: ='4. Serie'!$C161 -> 0 | CN52: 40 | CO52: =F169 -> 0 | CP52: =R169 -> 0 | CQ52: =AD169 -> 0 | CR52: =AP169 -> 0
A53: =IF(COUNTIF(B$13:B53,B53)>1,"X","") -> X | B53: =IF(ISBLANK(F53)," ",INDEX(BP:BP,MATCH(F53,BO:BO,0))) ->  | C53: =IF(ISBLANK(F53)," ",INDEX('Startgeld Damen'!$C:$C,MATCH($B53,'Startgeld Damen'!$A:$A,0))) ->  | K53: =IF(ISBLANK(G53)," ",G53+(H53-I53)*50+IF(COUNT(G53:G56)=3,(I54+I55+I56)*40,(I54+I55+I56)*30)) ->  | L53: 0 | M53: =IF(COUNTIF(N$13:N53,N53)>1,"X","") -> X | N53: =IF(ISBLANK(R53)," ",INDEX(BU:BU,MATCH(R53,BT:BT,0))) ->  | O53: =IF(ISBLANK(R53)," ",INDEX('Startgeld Damen'!$C:$C,MATCH(N53,'Startgeld Damen'!$A:$A,0))) ->  | W53: =IF(ISBLANK(S53)," ",S53+(T53-U53)*50+IF(COUNT(S53:S56)=3,(U54+U55+U56)*40,(U54+U55+U56)*30)) ->  | X53: 0 | Y53: =IF(COUNTIF(Z$13:Z53,Z53)>1,"X","") -> X | Z53: =IF(ISBLANK(AD53)," ",INDEX(BZ:BZ,MATCH(AD53,BY:BY,0))) ->  | AA53: =IF(ISBLANK(AD53)," ",INDEX('Startgeld Damen'!$C:$C,MATCH(Z53,'Startgeld Damen'!$A:$A,0))) ->  | AI53: =IF(ISBLANK(AE53)," ",AE53+(AF53-AG53)*50+IF(COUNT(AE53:AE56)=3,(AG54+AG55+AG56)*40,(AG54+AG55+AG56)*30)) ->  | AJ53: 0 | AK53: =IF(COUNTIF(AL$13:AL53,AL53)>1,"X","") -> X | AL53: =IF(ISBLANK(AP53)," ",INDEX(CE:CE,MATCH(AP53,CD:CD,0))) ->  | AM53: =IF(ISBLANK(AP53)," ",INDEX('Startgeld Damen'!$C:$C,MATCH(AL53,'Startgeld Damen'!$A:$A,0))) ->  | AU53: =IF(ISBLANK(AQ53)," ",AQ53+(AR53-AS53)*50+IF(COUNT(AQ53:AQ56)=3,(AS54+AS55+AS56)*40,(AS54+AS55+AS56)*30)) ->  | AV53: 0 | AW53: =IF(COUNTIF(AX$13:AX53,AX53)>1,"X","") -> X | AX53: =IF(ISBLANK(BB53)," ",INDEX(CJ:CJ,MATCH(BB53,CI:CI,0))) ->  | AY53: =IF(ISBLANK(BB53)," ",INDEX('Startgeld Damen'!$C:$C,MATCH(AX53,'Startgeld Damen'!$A:$A,0))) ->  | BG53: =IF(ISBLANK(BC53)," ",BC53+(BD53-BE53)*50+IF(COUNT(BC53:BC56)=3,(BE54+BE55+BE56)*40,(BE54+BE55+BE56)*30)) ->  | BH53: 0 | BK53: =SUM(L53:L56) -> 0 | BL53: =SUM(X53:X56) -> 0 | BM53: =SUM(AJ53:AJ56) -> 0 | BN53: =SUM(AV53:AV56) -> 0 | BO53: 141 | BP53: ='1. Serie Damen'!$C162 -> 0 | BQ53: ='1. Serie Damen'!$C163 -> 0 | BR53: ='1. Serie Damen'!$C164 -> 0 | BS53: ='1. Serie Damen'!$C165 -> 0 | BT53: 141 | BU53: ='2. Serie Damen'!$C162 -> 0 | BV53: ='2. Serie Damen'!$C163 -> 0 | BW53: ='2. Serie Damen'!$C164 -> 0 | BX53: ='2. Serie Damen'!$C165 -> 0 | BY53: 141 | BZ53: ='3. Serie Damen'!$C162 -> 0 | CA53: ='3. Serie Damen'!$C163 -> 0 | CB53: ='3. Serie Damen'!$C164 -> 0 | CC53: ='3. Serie Damen'!$C165 -> 0 | CD53: 141 | CE53: ='4. Serie'!$C162 -> 0 | CF53: ='4. Serie'!$C163 -> 0 | CG53: ='4. Serie'!$C164 -> 0 | CH53: ='4. Serie'!$C165 -> 0 | CI53: 141 | CJ53: ='4. Serie'!$C162 -> 0 | CK53: ='4. Serie'!$C163 -> 0 | CL53: ='4. Serie'!$C164 -> 0 | CM53: ='4. Serie'!$C165 -> 0 | CN53: 41 | CO53: =F173 -> 0 | CP53: =R173 -> 0 | CQ53: =AD173 -> 0 | CR53: =AP173 -> 0
A54: =IF(COUNTIF(B$13:B54,B54)>1,"X","") -> X | B54: =IF(ISBLANK(F53)," ",INDEX(BQ:BQ,MATCH(F53,BO:BO,0))) ->  | C54: =IF(ISBLANK(F53)," ",INDEX('Startgeld Damen'!$C:$C,MATCH($B54,'Startgeld Damen'!$A:$A,0))) ->  | F54: =F53 -> 0 | K54: =IF(ISBLANK(G54)," ",G54+(H54-I54)*50+IF(COUNT(G53:G56)=3,(I53+I55+I56)*40,(I53+I55+I56)*30)) ->  | L54: 0 | M54: =IF(COUNTIF(N$13:N54,N54)>1,"X","") -> X | N54: =IF(ISBLANK(R53)," ",INDEX(BV:BV,MATCH(R53,BT:BT,0))) ->  | O54: =IF(ISBLANK(R53)," ",INDEX('Startgeld Damen'!$C:$C,MATCH(N54,'Startgeld Damen'!$A:$A,0))) ->  | R54: =R53 -> 0 | W54: =IF(ISBLANK(S54)," ",S54+(T54-U54)*50+IF(COUNT(S53:S56)=3,(U53+U55+U56)*40,(U53+U55+U56)*30)) ->  | X54: 0 | Y54: =IF(COUNTIF(Z$13:Z54,Z54)>1,"X","") -> X | Z54: =IF(ISBLANK(AD53)," ",INDEX(CA:CA,MATCH(AD53,BY:BY,0))) ->  | AA54: =IF(ISBLANK(AD53)," ",INDEX('Startgeld Damen'!$C:$C,MATCH(Z54,'Startgeld Damen'!$A:$A,0))) ->  | AD54: =AD53 -> 0 | AI54: =IF(ISBLANK(AE54)," ",AE54+(AF54-AG54)*50+IF(COUNT(AE53:AE56)=3,(AG53+AG55+AG56)*40,(AG53+AG55+AG56)*30)) ->  | AJ54: 0 | AK54: =IF(COUNTIF(AL$13:AL54,AL54)>1,"X","") -> X | AL54: =IF(ISBLANK(AP53)," ",INDEX(CF:CF,MATCH(AP53,CD:CD,0))) ->  | AM54: =IF(ISBLANK(AP53)," ",INDEX('Startgeld Damen'!$C:$C,MATCH(AL54,'Startgeld Damen'!$A:$A,0))) ->  | AP54: =AP53 -> 0 | AU54: =IF(ISBLANK(AQ54)," ",AQ54+(AR54-AS54)*50+IF(COUNT(AQ53:AQ56)=3,(AS53+AS55+AS56)*40,(AS53+AS55+AS56)*30)) ->  | AV54: 0 | AW54: =IF(COUNTIF(AX$13:AX54,AX54)>1,"X","") -> X | AX54: =IF(ISBLANK(BB53)," ",INDEX(CK:CK,MATCH(BB53,CI:CI,0))) ->  | AY54: =IF(ISBLANK(BB53)," ",INDEX('Startgeld Damen'!$C:$C,MATCH(AX54,'Startgeld Damen'!$A:$A,0))) ->  | BB54: =BB53 -> 0 | BG54: =IF(ISBLANK(BC54)," ",BC54+(BD54-BE54)*50+IF(COUNT(BC53:BC56)=3,(BE53+BE55+BE56)*40,(BE53+BE55+BE56)*30)) ->  | BH54: 0 | BO54: 142 | BP54: ='1. Serie Damen'!$C166 -> 0 | BQ54: ='1. Serie Damen'!$C167 -> 0 | BR54: ='1. Serie Damen'!$C168 -> 0 | BS54: ='1. Serie Damen'!$C169 -> 0 | BT54: 142 | BU54: ='2. Serie Damen'!$C166 -> 0 | BV54: ='2. Serie Damen'!$C167 -> 0 | BW54: ='2. Serie Damen'!$C168 -> 0 | BX54: ='2. Serie Damen'!$C169 -> 0 | BY54: 142 | BZ54: ='3. Serie Damen'!$C166 -> 0 | CA54: ='3. Serie Damen'!$C167 -> 0 | CB54: ='3. Serie Damen'!$C168 -> 0 | CC54: ='3. Serie Damen'!$C169 -> 0 | CD54: 142 | CE54: ='4. Serie'!$C166 -> 0 | CF54: ='4. Serie'!$C167 -> 0 | CG54: ='4. Serie'!$C168 -> 0 | CH54: ='4. Serie'!$C169 -> 0 | CI54: 142 | CJ54: ='4. Serie'!$C166 -> 0 | CK54: ='4. Serie'!$C167 -> 0 | CL54: ='4. Serie'!$C168 -> 0 | CM54: ='4. Serie'!$C169 -> 0 | CN54: 42 | CO54: =F177 -> 0 | CP54: =R177 -> 0 | CQ54: =AD177 -> 0 | CR54: =AP177 -> 0
A55: =IF(COUNTIF(B$13:B55,B55)>1,"X","") -> X | B55: =IF(ISBLANK(F53)," ",INDEX(BR:BR,MATCH(F53,BO:BO,0))) ->  | C55: =IF(ISBLANK(F53)," ",INDEX('Startgeld Damen'!$C:$C,MATCH($B55,'Startgeld Damen'!$A:$A,0))) ->  | F55: =F53 -> 0 | K55: =IF(ISBLANK(G55)," ",G55+(H55-I55)*50+IF(COUNT(G53:G56)=3,(I53+I54+I56)*40,(I53+I54+I56)*30)) ->  | L55: 0 | M55: =IF(COUNTIF(N$13:N55,N55)>1,"X","") -> X | N55: =IF(ISBLANK(R53)," ",INDEX(BW:BW,MATCH(R53,BT:BT,0))) ->  | O55: =IF(ISBLANK(R53)," ",INDEX('Startgeld Damen'!$C:$C,MATCH(N55,'Startgeld Damen'!$A:$A,0))) ->  | R55: =R53 -> 0 | W55: =IF(ISBLANK(S55)," ",S55+(T55-U55)*50+IF(COUNT(S53:S56)=3,(U53+U54+U56)*40,(U53+U54+U56)*30)) ->  | X55: 0 | Y55: =IF(COUNTIF(Z$13:Z55,Z55)>1,"X","") -> X | Z55: =IF(ISBLANK(AD53)," ",INDEX(CB:CB,MATCH(AD53,BY:BY,0))) ->  | AA55: =IF(ISBLANK(AD53)," ",INDEX('Startgeld Damen'!$C:$C,MATCH(Z55,'Startgeld Damen'!$A:$A,0))) ->  | AD55: =AD53 -> 0 | AI55: =IF(ISBLANK(AE55)," ",AE55+(AF55-AG55)*50+IF(COUNT(AE53:AE56)=3,(AG53+AG54+AG56)*40,(AG53+AG54+AG56)*30)) ->  | AJ55: 0 | AK55: =IF(COUNTIF(AL$13:AL55,AL55)>1,"X","") -> X | AL55: =IF(ISBLANK(AP53)," ",INDEX(CG:CG,MATCH(AP53,CD:CD,0))) ->  | AM55: =IF(ISBLANK(AP53)," ",INDEX('Startgeld Damen'!$C:$C,MATCH(AL55,'Startgeld Damen'!$A:$A,0))) ->  | AP55: =AP53 -> 0 | AU55: =IF(ISBLANK(AQ55)," ",AQ55+(AR55-AS55)*50+IF(COUNT(AQ53:AQ56)=3,(AS53+AS54+AS56)*40,(AS53+AS54+AS56)*30)) ->  | AV55: 0 | AW55: =IF(COUNTIF(AX$13:AX55,AX55)>1,"X","") -> X | AX55: =IF(ISBLANK(BB53)," ",INDEX(CL:CL,MATCH(BB53,CI:CI,0))) ->  | AY55: =IF(ISBLANK(BB53)," ",INDEX('Startgeld Damen'!$C:$C,MATCH(AX55,'Startgeld Damen'!$A:$A,0))) ->  | BB55: =BB53 -> 0 | BG55: =IF(ISBLANK(BC55)," ",BC55+(BD55-BE55)*50+IF(COUNT(BC53:BC56)=3,(BE53+BE54+BE56)*40,(BE53+BE54+BE56)*30)) ->  | BH55: 0 | BO55: 143 | BP55: ='1. Serie Damen'!$C170 -> 0 | BQ55: ='1. Serie Damen'!$C171 -> 0 | BR55: ='1. Serie Damen'!$C172 -> 0 | BS55: ='1. Serie Damen'!$C173 -> 0 | BT55: 143 | BU55: ='2. Serie Damen'!$C170 -> 0 | BV55: ='2. Serie Damen'!$C171 -> 0 | BW55: ='2. Serie Damen'!$C172 -> 0 | BX55: ='2. Serie Damen'!$C173 -> 0 | BY55: 143 | BZ55: ='3. Serie Damen'!$C170 -> 0 | CA55: ='3. Serie Damen'!$C171 -> 0 | CB55: ='3. Serie Damen'!$C172 -> 0 | CC55: ='3. Serie Damen'!$C173 -> 0 | CD55: 143 | CE55: ='4. Serie'!$C170 -> 0 | CF55: ='4. Serie'!$C171 -> 0 | CG55: ='4. Serie'!$C172 -> 0 | CH55: ='4. Serie'!$C173 -> 0 | CI55: 143 | CJ55: ='4. Serie'!$C170 -> 0 | CK55: ='4. Serie'!$C171 -> 0 | CL55: ='4. Serie'!$C172 -> 0 | CM55: ='4. Serie'!$C173 -> 0 | CN55: 43 | CO55: =F181 -> 0 | CP55: =R181 -> 0 | CQ55: =AD181 -> 0 | CR55: =AP181 -> 0
A56: =IF(COUNTIF(B$13:B56,B56)>1,"X","") -> X | B56: =IF(ISBLANK(F53)," ",INDEX(BS:BS,MATCH(F53,BO:BO,0))) ->  | C56: =IF(ISBLANK(F53)," ",INDEX('Startgeld Damen'!$C:$C,MATCH($B56,'Startgeld Damen'!$A:$A,0))) ->  | F56: =F53 -> 0 | K56: =IF(ISBLANK(G56)," ",G56+(H56-I56)*50+IF(COUNT(G53:G56)=3,(I53+I54+I55)*40,(I53+I54+I55)*30)) ->  | L56: 0 | M56: =IF(COUNTIF(N$13:N56,N56)>1,"X","") -> X | N56: =IF(ISBLANK(R53)," ",INDEX(BX:BX,MATCH(R53,BT:BT,0))) ->  | O56: =IF(ISBLANK(R53)," ",INDEX('Startgeld Damen'!$C:$C,MATCH(N56,'Startgeld Damen'!$A:$A,0))) ->  | R56: =R53 -> 0 | W56: =IF(ISBLANK(S56)," ",S56+(T56-U56)*50+IF(COUNT(S53:S56)=3,(U53+U54+U55)*40,(U53+U54+U55)*30)) ->  | X56: 0 | Y56: =IF(COUNTIF(Z$13:Z56,Z56)>1,"X","") -> X | Z56: =IF(ISBLANK(AD53)," ",INDEX(CC:CC,MATCH(AD53,BY:BY,0))) ->  | AA56: =IF(ISBLANK(AD53)," ",INDEX('Startgeld Damen'!$C:$C,MATCH(Z56,'Startgeld Damen'!$A:$A,0))) ->  | AD56: =AD53 -> 0 | AI56: =IF(ISBLANK(AE56)," ",AE56+(AF56-AG56)*50+IF(COUNT(AE53:AE56)=3,(AG53+AG54+AG55)*40,(AG53+AG54+AG55)*30)) ->  | AJ56: 0 | AK56: =IF(COUNTIF(AL$13:AL56,AL56)>1,"X","") -> X | AL56: =IF(ISBLANK(AP53)," ",INDEX(CH:CH,MATCH(AP53,CD:CD,0))) ->  | AM56: =IF(ISBLANK(AP53)," ",INDEX('Startgeld Damen'!$C:$C,MATCH(AL56,'Startgeld Damen'!$A:$A,0))) ->  | AP56: =AP53 -> 0 | AU56: =IF(ISBLANK(AQ56)," ",AQ56+(AR56-AS56)*50+IF(COUNT(AQ53:AQ56)=3,(AS53+AS54+AS55)*40,(AS53+AS54+AS55)*30)) ->  | AV56: 0 | AW56: =IF(COUNTIF(AX$13:AX56,AX56)>1,"X","") -> X | AX56: =IF(ISBLANK(BB53)," ",INDEX(CM:CM,MATCH(BB53,CI:CI,0))) ->  | AY56: =IF(ISBLANK(BB53)," ",INDEX('Startgeld Damen'!$C:$C,MATCH(AX56,'Startgeld Damen'!$A:$A,0))) ->  | BB56: =BB53 -> 0 | BG56: =IF(ISBLANK(BC56)," ",BC56+(BD56-BE56)*50+IF(COUNT(BC53:BC56)=3,(BE53+BE54+BE55)*40,(BE53+BE54+BE55)*30)) ->  | BH56: 0 | BO56: 144 | BP56: ='1. Serie Damen'!$C174 -> 0 | BQ56: ='1. Serie Damen'!$C175 -> 0 | BR56: ='1. Serie Damen'!$C176 -> 0 | BS56: ='1. Serie Damen'!$C177 -> 0 | BT56: 144 | BU56: ='2. Serie Damen'!$C174 -> 0 | BV56: ='2. Serie Damen'!$C175 -> 0 | BW56: ='2. Serie Damen'!$C176 -> 0 | BX56: ='2. Serie Damen'!$C177 -> 0 | BY56: 144 | BZ56: ='3. Serie Damen'!$C174 -> 0 | CA56: ='3. Serie Damen'!$C175 -> 0 | CB56: ='3. Serie Damen'!$C176 -> 0 | CC56: ='3. Serie Damen'!$C177 -> 0 | CD56: 144 | CE56: ='4. Serie'!$C174 -> 0 | CF56: ='4. Serie'!$C175 -> 0 | CG56: ='4. Serie'!$C176 -> 0 | CH56: ='4. Serie'!$C177 -> 0 | CI56: 144 | CJ56: ='4. Serie'!$C174 -> 0 | CK56: ='4. Serie'!$C175 -> 0 | CL56: ='4. Serie'!$C176 -> 0 | CM56: ='4. Serie'!$C177 -> 0 | CN56: 44 | CO56: =F185 -> 0 | CP56: =R185 -> 0 | CQ56: =AD185 -> 0 | CR56: =AP185 -> 0
A57: =IF(COUNTIF(B$13:B57,B57)>1,"X","") -> X | B57: =IF(ISBLANK(F57)," ",INDEX(BP:BP,MATCH(F57,BO:BO,0))) ->  | C57: =IF(ISBLANK(F57)," ",INDEX('Startgeld Damen'!$C:$C,MATCH($B57,'Startgeld Damen'!$A:$A,0))) ->  | K57: =IF(ISBLANK(G57)," ",G57+(H57-I57)*50+IF(COUNT(G57:G60)=3,(I58+I59+I60)*40,(I58+I59+I60)*30)) ->  | L57: 0 | M57: =IF(COUNTIF(N$13:N57,N57)>1,"X","") -> X | N57: =IF(ISBLANK(R57)," ",INDEX(BU:BU,MATCH(R57,BT:BT,0))) ->  | O57: =IF(ISBLANK(R57)," ",INDEX('Startgeld Damen'!$C:$C,MATCH(N57,'Startgeld Damen'!$A:$A,0))) ->  | W57: =IF(ISBLANK(S57)," ",S57+(T57-U57)*50+IF(COUNT(S57:S60)=3,(U58+U59+U60)*40,(U58+U59+U60)*30)) ->  | X57: 0 | Y57: =IF(COUNTIF(Z$13:Z57,Z57)>1,"X","") -> X | Z57: =IF(ISBLANK(AD57)," ",INDEX(BZ:BZ,MATCH(AD57,BY:BY,0))) ->  | AA57: =IF(ISBLANK(AD57)," ",INDEX('Startgeld Damen'!$C:$C,MATCH(Z57,'Startgeld Damen'!$A:$A,0))) ->  | AI57: =IF(ISBLANK(AE57)," ",AE57+(AF57-AG57)*50+IF(COUNT(AE57:AE60)=3,(AG58+AG59+AG60)*40,(AG58+AG59+AG60)*30)) ->  | AJ57: 0 | AK57: =IF(COUNTIF(AL$13:AL57,AL57)>1,"X","") -> X | AL57: =IF(ISBLANK(AP57)," ",INDEX(CE:CE,MATCH(AP57,CD:CD,0))) ->  | AM57: =IF(ISBLANK(AP57)," ",INDEX('Startgeld Damen'!$C:$C,MATCH(AL57,'Startgeld Damen'!$A:$A,0))) ->  | AU57: =IF(ISBLANK(AQ57)," ",AQ57+(AR57-AS57)*50+IF(COUNT(AQ57:AQ60)=3,(AS58+AS59+AS60)*40,(AS58+AS59+AS60)*30)) ->  | AV57: 0 | AW57: =IF(COUNTIF(AX$13:AX57,AX57)>1,"X","") -> X | AX57: =IF(ISBLANK(BB57)," ",INDEX(CJ:CJ,MATCH(BB57,CI:CI,0))) ->  | AY57: =IF(ISBLANK(BB57)," ",INDEX('Startgeld Damen'!$C:$C,MATCH(AX57,'Startgeld Damen'!$A:$A,0))) ->  | BG57: =IF(ISBLANK(BC57)," ",BC57+(BD57-BE57)*50+IF(COUNT(BC57:BC60)=3,(BE58+BE59+BE60)*40,(BE58+BE59+BE60)*30)) ->  | BH57: 0 | BK57: =SUM(L57:L60) -> 0 | BL57: =SUM(X57:X60) -> 0 | BM57: =SUM(AJ57:AJ60) -> 0 | BN57: =SUM(AV57:AV60) -> 0 | BO57: 145 | BP57: ='1. Serie Damen'!$C178 -> 0 | BQ57: ='1. Serie Damen'!$C179 -> 0 | BR57: ='1. Serie Damen'!$C180 -> 0 | BS57: ='1. Serie Damen'!$C181 -> 0 | BT57: 145 | BU57: ='2. Serie Damen'!$C178 -> 0 | BV57: ='2. Serie Damen'!$C179 -> 0 | BW57: ='2. Serie Damen'!$C180 -> 0 | BX57: ='2. Serie Damen'!$C181 -> 0 | BY57: 145 | BZ57: ='3. Serie Damen'!$C178 -> 0 | CA57: ='3. Serie Damen'!$C179 -> 0 | CB57: ='3. Serie Damen'!$C180 -> 0 | CC57: ='3. Serie Damen'!$C181 -> 0 | CD57: 145 | CE57: ='4. Serie'!$C178 -> 0 | CF57: ='4. Serie'!$C179 -> 0 | CG57: ='4. Serie'!$C180 -> 0 | CH57: ='4. Serie'!$C181 -> 0 | CI57: 145 | CJ57: ='4. Serie'!$C178 -> 0 | CK57: ='4. Serie'!$C179 -> 0 | CL57: ='4. Serie'!$C180 -> 0 | CM57: ='4. Serie'!$C181 -> 0 | CN57: 45 | CO57: =F189 -> 0 | CP57: =R189 -> 0 | CQ57: =AD189 -> 0 | CR57: =AP189 -> 0
A58: =IF(COUNTIF(B$13:B58,B58)>1,"X","") -> X | B58: =IF(ISBLANK(F57)," ",INDEX(BQ:BQ,MATCH(F57,BO:BO,0))) ->  | C58: =IF(ISBLANK(F57)," ",INDEX('Startgeld Damen'!$C:$C,MATCH($B58,'Startgeld Damen'!$A:$A,0))) ->  | F58: =F57 -> 0 | K58: =IF(ISBLANK(G58)," ",G58+(H58-I58)*50+IF(COUNT(G57:G60)=3,(I57+I59+I60)*40,(I57+I59+I60)*30)) ->  | L58: 0 | M58: =IF(COUNTIF(N$13:N58,N58)>1,"X","") -> X | N58: =IF(ISBLANK(R57)," ",INDEX(BV:BV,MATCH(R57,BT:BT,0))) ->  | O58: =IF(ISBLANK(R57)," ",INDEX('Startgeld Damen'!$C:$C,MATCH(N58,'Startgeld Damen'!$A:$A,0))) ->  | R58: =R57 -> 0 | W58: =IF(ISBLANK(S58)," ",S58+(T58-U58)*50+IF(COUNT(S57:S60)=3,(U57+U59+U60)*40,(U57+U59+U60)*30)) ->  | X58: 0 | Y58: =IF(COUNTIF(Z$13:Z58,Z58)>1,"X","") -> X | Z58: =IF(ISBLANK(AD57)," ",INDEX(CA:CA,MATCH(AD57,BY:BY,0))) ->  | AA58: =IF(ISBLANK(AD57)," ",INDEX('Startgeld Damen'!$C:$C,MATCH(Z58,'Startgeld Damen'!$A:$A,0))) ->  | AD58: =AD57 -> 0 | AI58: =IF(ISBLANK(AE58)," ",AE58+(AF58-AG58)*50+IF(COUNT(AE57:AE60)=3,(AG57+AG59+AG60)*40,(AG57+AG59+AG60)*30)) ->  | AJ58: 0 | AK58: =IF(COUNTIF(AL$13:AL58,AL58)>1,"X","") -> X | AL58: =IF(ISBLANK(AP57)," ",INDEX(CF:CF,MATCH(AP57,CD:CD,0))) ->  | AM58: =IF(ISBLANK(AP57)," ",INDEX('Startgeld Damen'!$C:$C,MATCH(AL58,'Startgeld Damen'!$A:$A,0))) ->  | AP58: =AP57 -> 0 | AU58: =IF(ISBLANK(AQ58)," ",AQ58+(AR58-AS58)*50+IF(COUNT(AQ57:AQ60)=3,(AS57+AS59+AS60)*40,(AS57+AS59+AS60)*30)) ->  | AV58: 0 | AW58: =IF(COUNTIF(AX$13:AX58,AX58)>1,"X","") -> X | AX58: =IF(ISBLANK(BB57)," ",INDEX(CK:CK,MATCH(BB57,CI:CI,0))) ->  | AY58: =IF(ISBLANK(BB57)," ",INDEX('Startgeld Damen'!$C:$C,MATCH(AX58,'Startgeld Damen'!$A:$A,0))) ->  | BB58: =BB57 -> 0 | BG58: =IF(ISBLANK(BC58)," ",BC58+(BD58-BE58)*50+IF(COUNT(BC57:BC60)=3,(BE57+BE59+BE60)*40,(BE57+BE59+BE60)*30)) ->  | BH58: 0 | BO58: 146 | BP58: ='1. Serie Damen'!$C182 -> 0 | BQ58: ='1. Serie Damen'!$C183 -> 0 | BR58: ='1. Serie Damen'!$C184 -> 0 | BS58: ='1. Serie Damen'!$C185 -> 0 | BT58: 146 | BU58: ='2. Serie Damen'!$C182 -> 0 | BV58: ='2. Serie Damen'!$C183 -> 0 | BW58: ='2. Serie Damen'!$C184 -> 0 | BX58: ='2. Serie Damen'!$C185 -> 0 | BY58: 146 | BZ58: ='3. Serie Damen'!$C182 -> 0 | CA58: ='3. Serie Damen'!$C183 -> 0 | CB58: ='3. Serie Damen'!$C184 -> 0 | CC58: ='3. Serie Damen'!$C185 -> 0 | CD58: 146 | CE58: ='4. Serie'!$C182 -> 0 | CF58: ='4. Serie'!$C183 -> 0 | CG58: ='4. Serie'!$C184 -> 0 | CH58: ='4. Serie'!$C185 -> 0 | CI58: 146 | CJ58: ='4. Serie'!$C182 -> 0 | CK58: ='4. Serie'!$C183 -> 0 | CL58: ='4. Serie'!$C184 -> 0 | CM58: ='4. Serie'!$C185 -> 0 | CN58: 46 | CO58: =F193 -> 0 | CP58: =R193 -> 0 | CQ58: =AD193 -> 0 | CR58: =AP193 -> 0
A59: =IF(COUNTIF(B$13:B59,B59)>1,"X","") -> X | B59: =IF(ISBLANK(F57)," ",INDEX(BR:BR,MATCH(F57,BO:BO,0))) ->  | C59: =IF(ISBLANK(F57)," ",INDEX('Startgeld Damen'!$C:$C,MATCH($B59,'Startgeld Damen'!$A:$A,0))) ->  | F59: =F57 -> 0 | K59: =IF(ISBLANK(G59)," ",G59+(H59-I59)*50+IF(COUNT(G57:G60)=3,(I57+I58+I60)*40,(I57+I58+I60)*30)) ->  | L59: 0 | M59: =IF(COUNTIF(N$13:N59,N59)>1,"X","") -> X | N59: =IF(ISBLANK(R57)," ",INDEX(BW:BW,MATCH(R57,BT:BT,0))) ->  | O59: =IF(ISBLANK(R57)," ",INDEX('Startgeld Damen'!$C:$C,MATCH(N59,'Startgeld Damen'!$A:$A,0))) ->  | R59: =R57 -> 0 | W59: =IF(ISBLANK(S59)," ",S59+(T59-U59)*50+IF(COUNT(S57:S60)=3,(U57+U58+U60)*40,(U57+U58+U60)*30)) ->  | X59: 0 | Y59: =IF(COUNTIF(Z$13:Z59,Z59)>1,"X","") -> X | Z59: =IF(ISBLANK(AD57)," ",INDEX(CB:CB,MATCH(AD57,BY:BY,0))) ->  | AA59: =IF(ISBLANK(AD57)," ",INDEX('Startgeld Damen'!$C:$C,MATCH(Z59,'Startgeld Damen'!$A:$A,0))) ->  | AD59: =AD57 -> 0 | AI59: =IF(ISBLANK(AE59)," ",AE59+(AF59-AG59)*50+IF(COUNT(AE57:AE60)=3,(AG57+AG58+AG60)*40,(AG57+AG58+AG60)*30)) ->  | AJ59: 0 | AK59: =IF(COUNTIF(AL$13:AL59,AL59)>1,"X","") -> X | AL59: =IF(ISBLANK(AP57)," ",INDEX(CG:CG,MATCH(AP57,CD:CD,0))) ->  | AM59: =IF(ISBLANK(AP57)," ",INDEX('Startgeld Damen'!$C:$C,MATCH(AL59,'Startgeld Damen'!$A:$A,0))) ->  | AP59: =AP57 -> 0 | AU59: =IF(ISBLANK(AQ59)," ",AQ59+(AR59-AS59)*50+IF(COUNT(AQ57:AQ60)=3,(AS57+AS58+AS60)*40,(AS57+AS58+AS60)*30)) ->  | AV59: 0 | AW59: =IF(COUNTIF(AX$13:AX59,AX59)>1,"X","") -> X | AX59: =IF(ISBLANK(BB57)," ",INDEX(CL:CL,MATCH(BB57,CI:CI,0))) ->  | AY59: =IF(ISBLANK(BB57)," ",INDEX('Startgeld Damen'!$C:$C,MATCH(AX59,'Startgeld Damen'!$A:$A,0))) ->  | BB59: =BB57 -> 0 | BG59: =IF(ISBLANK(BC59)," ",BC59+(BD59-BE59)*50+IF(COUNT(BC57:BC60)=3,(BE57+BE58+BE60)*40,(BE57+BE58+BE60)*30)) ->  | BH59: 0 | BO59: 147 | BP59: ='1. Serie Damen'!$C186 -> 0 | BQ59: ='1. Serie Damen'!$C187 -> 0 | BR59: ='1. Serie Damen'!$C188 -> 0 | BS59: ='1. Serie Damen'!$C189 -> 0 | BT59: 147 | BU59: ='2. Serie Damen'!$C186 -> 0 | BV59: ='2. Serie Damen'!$C187 -> 0 | BW59: ='2. Serie Damen'!$C188 -> 0 | BX59: ='2. Serie Damen'!$C189 -> 0 | BY59: 147 | BZ59: ='3. Serie Damen'!$C186 -> 0 | CA59: ='3. Serie Damen'!$C187 -> 0 | CB59: ='3. Serie Damen'!$C188 -> 0 | CC59: ='3. Serie Damen'!$C189 -> 0 | CD59: 147 | CE59: ='4. Serie'!$C186 -> 0 | CF59: ='4. Serie'!$C187 -> 0 | CG59: ='4. Serie'!$C188 -> 0 | CH59: ='4. Serie'!$C189 -> 0 | CI59: 147 | CJ59: ='4. Serie'!$C186 -> 0 | CK59: ='4. Serie'!$C187 -> 0 | CL59: ='4. Serie'!$C188 -> 0 | CM59: ='4. Serie'!$C189 -> 0 | CN59: 47 | CO59: =F197 -> 0 | CP59: =R197 -> 0 | CQ59: =AD197 -> 0 | CR59: =AP197 -> 0
A60: =IF(COUNTIF(B$13:B60,B60)>1,"X","") -> X | B60: =IF(ISBLANK(F57)," ",INDEX(BS:BS,MATCH(F57,BO:BO,0))) ->  | C60: =IF(ISBLANK(F57)," ",INDEX('Startgeld Damen'!$C:$C,MATCH($B60,'Startgeld Damen'!$A:$A,0))) ->  | F60: =F57 -> 0 | K60: =IF(ISBLANK(G60)," ",G60+(H60-I60)*50+IF(COUNT(G57:G60)=3,(I57+I58+I59)*40,(I57+I58+I59)*30)) ->  | L60: 0 | M60: =IF(COUNTIF(N$13:N60,N60)>1,"X","") -> X | N60: =IF(ISBLANK(R57)," ",INDEX(BX:BX,MATCH(R57,BT:BT,0))) ->  | O60: =IF(ISBLANK(R57)," ",INDEX('Startgeld Damen'!$C:$C,MATCH(N60,'Startgeld Damen'!$A:$A,0))) ->  | R60: =R57 -> 0 | W60: =IF(ISBLANK(S60)," ",S60+(T60-U60)*50+IF(COUNT(S57:S60)=3,(U57+U58+U59)*40,(U57+U58+U59)*30)) ->  | X60: 0 | Y60: =IF(COUNTIF(Z$13:Z60,Z60)>1,"X","") -> X | Z60: =IF(ISBLANK(AD57)," ",INDEX(CC:CC,MATCH(AD57,BY:BY,0))) ->  | AA60: =IF(ISBLANK(AD57)," ",INDEX('Startgeld Damen'!$C:$C,MATCH(Z60,'Startgeld Damen'!$A:$A,0))) ->  | AD60: =AD57 -> 0 | AI60: =IF(ISBLANK(AE60)," ",AE60+(AF60-AG60)*50+IF(COUNT(AE57:AE60)=3,(AG57+AG58+AG59)*40,(AG57+AG58+AG59)*30)) ->  | AJ60: 0 | AK60: =IF(COUNTIF(AL$13:AL60,AL60)>1,"X","") -> X | AL60: =IF(ISBLANK(AP57)," ",INDEX(CH:CH,MATCH(AP57,CD:CD,0))) ->  | AM60: =IF(ISBLANK(AP57)," ",INDEX('Startgeld Damen'!$C:$C,MATCH(AL60,'Startgeld Damen'!$A:$A,0))) ->  | AP60: =AP57 -> 0 | AU60: =IF(ISBLANK(AQ60)," ",AQ60+(AR60-AS60)*50+IF(COUNT(AQ57:AQ60)=3,(AS57+AS58+AS59)*40,(AS57+AS58+AS59)*30)) ->  | AV60: 0 | AW60: =IF(COUNTIF(AX$13:AX60,AX60)>1,"X","") -> X | AX60: =IF(ISBLANK(BB57)," ",INDEX(CM:CM,MATCH(BB57,CI:CI,0))) ->  | AY60: =IF(ISBLANK(BB57)," ",INDEX('Startgeld Damen'!$C:$C,MATCH(AX60,'Startgeld Damen'!$A:$A,0))) ->  | BB60: =BB57 -> 0 | BG60: =IF(ISBLANK(BC60)," ",BC60+(BD60-BE60)*50+IF(COUNT(BC57:BC60)=3,(BE57+BE58+BE59)*40,(BE57+BE58+BE59)*30)) ->  | BH60: 0 | BO60: 148 | BP60: ='1. Serie Damen'!$C190 -> 0 | BQ60: ='1. Serie Damen'!$C191 -> 0 | BR60: ='1. Serie Damen'!$C192 -> 0 | BS60: ='1. Serie Damen'!$C193 -> 0 | BT60: 148 | BU60: ='2. Serie Damen'!$C190 -> 0 | BV60: ='2. Serie Damen'!$C191 -> 0 | BW60: ='2. Serie Damen'!$C192 -> 0 | BX60: ='2. Serie Damen'!$C193 -> 0 | BY60: 148 | BZ60: ='3. Serie Damen'!$C190 -> 0 | CA60: ='3. Serie Damen'!$C191 -> 0 | CB60: ='3. Serie Damen'!$C192 -> 0 | CC60: ='3. Serie Damen'!$C193 -> 0 | CD60: 148 | CE60: ='4. Serie'!$C190 -> 0 | CF60: ='4. Serie'!$C191 -> 0 | CG60: ='4. Serie'!$C192 -> 0 | CH60: ='4. Serie'!$C193 -> 0 | CI60: 148 | CJ60: ='4. Serie'!$C190 -> 0 | CK60: ='4. Serie'!$C191 -> 0 | CL60: ='4. Serie'!$C192 -> 0 | CM60: ='4. Serie'!$C193 -> 0 | CN60: 48 | CO60: =F201 -> 0 | CP60: =R201 -> 0 | CQ60: =AD201 -> 0 | CR60: =AP201 -> 0
A61: =IF(COUNTIF(B$13:B61,B61)>1,"X","") -> X | B61: =IF(ISBLANK(F61)," ",INDEX(BP:BP,MATCH(F61,BO:BO,0))) ->  | C61: =IF(ISBLANK(F61)," ",INDEX('Startgeld Damen'!$C:$C,MATCH($B61,'Startgeld Damen'!$A:$A,0))) ->  | K61: =IF(ISBLANK(G61)," ",G61+(H61-I61)*50+IF(COUNT(G61:G64)=3,(I62+I63+I64)*40,(I62+I63+I64)*30)) ->  | L61: 0 | M61: =IF(COUNTIF(N$13:N61,N61)>1,"X","") -> X | N61: =IF(ISBLANK(R61)," ",INDEX(BU:BU,MATCH(R61,BT:BT,0))) ->  | O61: =IF(ISBLANK(R61)," ",INDEX('Startgeld Damen'!$C:$C,MATCH(N61,'Startgeld Damen'!$A:$A,0))) ->  | W61: =IF(ISBLANK(S61)," ",S61+(T61-U61)*50+IF(COUNT(S61:S64)=3,(U62+U63+U64)*40,(U62+U63+U64)*30)) ->  | X61: 0 | Y61: =IF(COUNTIF(Z$13:Z61,Z61)>1,"X","") -> X | Z61: =IF(ISBLANK(AD61)," ",INDEX(BZ:BZ,MATCH(AD61,BY:BY,0))) ->  | AA61: =IF(ISBLANK(AD61)," ",INDEX('Startgeld Damen'!$C:$C,MATCH(Z61,'Startgeld Damen'!$A:$A,0))) ->  | AI61: =IF(ISBLANK(AE61)," ",AE61+(AF61-AG61)*50+IF(COUNT(AE61:AE64)=3,(AG62+AG63+AG64)*40,(AG62+AG63+AG64)*30)) ->  | AJ61: 0 | AK61: =IF(COUNTIF(AL$13:AL61,AL61)>1,"X","") -> X | AL61: =IF(ISBLANK(AP61)," ",INDEX(CE:CE,MATCH(AP61,CD:CD,0))) ->  | AM61: =IF(ISBLANK(AP61)," ",INDEX('Startgeld Damen'!$C:$C,MATCH(AL61,'Startgeld Damen'!$A:$A,0))) ->  | AU61: =IF(ISBLANK(AQ61)," ",AQ61+(AR61-AS61)*50+IF(COUNT(AQ61:AQ64)=3,(AS62+AS63+AS64)*40,(AS62+AS63+AS64)*30)) ->  | AV61: 0 | AW61: =IF(COUNTIF(AX$13:AX61,AX61)>1,"X","") -> X | AX61: =IF(ISBLANK(BB61)," ",INDEX(CJ:CJ,MATCH(BB61,CI:CI,0))) ->  | AY61: =IF(ISBLANK(BB61)," ",INDEX('Startgeld Damen'!$C:$C,MATCH(AX61,'Startgeld Damen'!$A:$A,0))) ->  | BG61: =IF(ISBLANK(BC61)," ",BC61+(BD61-BE61)*50+IF(COUNT(BC61:BC64)=3,(BE62+BE63+BE64)*40,(BE62+BE63+BE64)*30)) ->  | BH61: 0 | BK61: =SUM(L61:L64) -> 0 | BL61: =SUM(X61:X64) -> 0 | BM61: =SUM(AJ61:AJ64) -> 0 | BN61: =SUM(AV61:AV64) -> 0 | BO61: 149 | BP61: ='1. Serie Damen'!$C194 -> 0 | BQ61: ='1. Serie Damen'!$C195 -> 0 | BR61: ='1. Serie Damen'!$C196 -> 0 | BS61: ='1. Serie Damen'!$C197 -> 0 | BT61: 149 | BU61: ='2. Serie Damen'!$C194 -> 0 | BV61: ='2. Serie Damen'!$C195 -> 0 | BW61: ='2. Serie Damen'!$C196 -> 0 | BX61: ='2. Serie Damen'!$C197 -> 0 | BY61: 149 | BZ61: ='3. Serie Damen'!$C194 -> 0 | CA61: ='3. Serie Damen'!$C195 -> 0 | CB61: ='3. Serie Damen'!$C196 -> 0 | CC61: ='3. Serie Damen'!$C197 -> 0 | CD61: 149 | CE61: ='4. Serie'!$C194 -> 0 | CF61: ='4. Serie'!$C195 -> 0 | CG61: ='4. Serie'!$C196 -> 0 | CH61: ='4. Serie'!$C197 -> 0 | CI61: 149 | CJ61: ='4. Serie'!$C194 -> 0 | CK61: ='4. Serie'!$C195 -> 0 | CL61: ='4. Serie'!$C196 -> 0 | CM61: ='4. Serie'!$C197 -> 0 | CN61: 49 | CO61: =F205 -> 0 | CP61: =R205 -> 0 | CQ61: =AD205 -> 0 | CR61: =AP205 -> 0
A62: =IF(COUNTIF(B$13:B62,B62)>1,"X","") -> X | B62: =IF(ISBLANK(F61)," ",INDEX(BQ:BQ,MATCH(F61,BO:BO,0))) ->  | C62: =IF(ISBLANK(F61)," ",INDEX('Startgeld Damen'!$C:$C,MATCH($B62,'Startgeld Damen'!$A:$A,0))) ->  | F62: =F61 -> 0 | K62: =IF(ISBLANK(G62)," ",G62+(H62-I62)*50+IF(COUNT(G61:G64)=3,(I61+I63+I64)*40,(I61+I63+I64)*30)) ->  | L62: 0 | M62: =IF(COUNTIF(N$13:N62,N62)>1,"X","") -> X | N62: =IF(ISBLANK(R61)," ",INDEX(BV:BV,MATCH(R61,BT:BT,0))) ->  | O62: =IF(ISBLANK(R61)," ",INDEX('Startgeld Damen'!$C:$C,MATCH(N62,'Startgeld Damen'!$A:$A,0))) ->  | R62: =R61 -> 0 | W62: =IF(ISBLANK(S62)," ",S62+(T62-U62)*50+IF(COUNT(S61:S64)=3,(U61+U63+U64)*40,(U61+U63+U64)*30)) ->  | X62: 0 | Y62: =IF(COUNTIF(Z$13:Z62,Z62)>1,"X","") -> X | Z62: =IF(ISBLANK(AD61)," ",INDEX(CA:CA,MATCH(AD61,BY:BY,0))) ->  | AA62: =IF(ISBLANK(AD61)," ",INDEX('Startgeld Damen'!$C:$C,MATCH(Z62,'Startgeld Damen'!$A:$A,0))) ->  | AD62: =AD61 -> 0 | AI62: =IF(ISBLANK(AE62)," ",AE62+(AF62-AG62)*50+IF(COUNT(AE61:AE64)=3,(AG61+AG63+AG64)*40,(AG61+AG63+AG64)*30)) ->  | AJ62: 0 | AK62: =IF(COUNTIF(AL$13:AL62,AL62)>1,"X","") -> X | AL62: =IF(ISBLANK(AP61)," ",INDEX(CF:CF,MATCH(AP61,CD:CD,0))) ->  | AM62: =IF(ISBLANK(AP61)," ",INDEX('Startgeld Damen'!$C:$C,MATCH(AL62,'Startgeld Damen'!$A:$A,0))) ->  | AP62: =AP61 -> 0 | AU62: =IF(ISBLANK(AQ62)," ",AQ62+(AR62-AS62)*50+IF(COUNT(AQ61:AQ64)=3,(AS61+AS63+AS64)*40,(AS61+AS63+AS64)*30)) ->  | AV62: 0 | AW62: =IF(COUNTIF(AX$13:AX62,AX62)>1,"X","") -> X | AX62: =IF(ISBLANK(BB61)," ",INDEX(CK:CK,MATCH(BB61,CI:CI,0))) ->  | AY62: =IF(ISBLANK(BB61)," ",INDEX('Startgeld Damen'!$C:$C,MATCH(AX62,'Startgeld Damen'!$A:$A,0))) ->  | BB62: =BB61 -> 0 | BG62: =IF(ISBLANK(BC62)," ",BC62+(BD62-BE62)*50+IF(COUNT(BC61:BC64)=3,(BE61+BE63+BE64)*40,(BE61+BE63+BE64)*30)) ->  | BH62: 0 | BO62: 150 | BP62: ='1. Serie Damen'!$C198 -> 0 | BQ62: ='1. Serie Damen'!$C199 -> 0 | BR62: ='1. Serie Damen'!$C200 -> 0 | BS62: ='1. Serie Damen'!$C201 -> 0 | BT62: 150 | BU62: ='2. Serie Damen'!$C198 -> 0 | BV62: ='2. Serie Damen'!$C199 -> 0 | BW62: ='2. Serie Damen'!$C200 -> 0 | BX62: ='2. Serie Damen'!$C201 -> 0 | BY62: 150 | BZ62: ='3. Serie Damen'!$C198 -> 0 | CA62: ='3. Serie Damen'!$C199 -> 0 | CB62: ='3. Serie Damen'!$C200 -> 0 | CC62: ='3. Serie Damen'!$C201 -> 0 | CD62: 150 | CE62: ='4. Serie'!$C198 -> 0 | CF62: ='4. Serie'!$C199 -> 0 | CG62: ='4. Serie'!$C200 -> 0 | CH62: ='4. Serie'!$C201 -> 0 | CI62: 150 | CJ62: ='4. Serie'!$C198 -> 0 | CK62: ='4. Serie'!$C199 -> 0 | CL62: ='4. Serie'!$C200 -> 0 | CM62: ='4. Serie'!$C201 -> 0 | CN62: 50 | CO62: =F209 -> 0 | CP62: =R209 -> 0 | CQ62: =AD209 -> 0 | CR62: =AP209 -> 0
A63: =IF(COUNTIF(B$13:B63,B63)>1,"X","") -> X | B63: =IF(ISBLANK(F61)," ",INDEX(BR:BR,MATCH(F61,BO:BO,0))) ->  | C63: =IF(ISBLANK(F61)," ",INDEX('Startgeld Damen'!$C:$C,MATCH($B63,'Startgeld Damen'!$A:$A,0))) ->  | F63: =F61 -> 0 | K63: =IF(ISBLANK(G63)," ",G63+(H63-I63)*50+IF(COUNT(G61:G64)=3,(I61+I62+I64)*40,(I61+I62+I64)*30)) ->  | L63: 0 | M63: =IF(COUNTIF(N$13:N63,N63)>1,"X","") -> X | N63: =IF(ISBLANK(R61)," ",INDEX(BW:BW,MATCH(R61,BT:BT,0))) ->  | O63: =IF(ISBLANK(R61)," ",INDEX('Startgeld Damen'!$C:$C,MATCH(N63,'Startgeld Damen'!$A:$A,0))) ->  | R63: =R61 -> 0 | W63: =IF(ISBLANK(S63)," ",S63+(T63-U63)*50+IF(COUNT(S61:S64)=3,(U61+U62+U64)*40,(U61+U62+U64)*30)) ->  | X63: 0 | Y63: =IF(COUNTIF(Z$13:Z63,Z63)>1,"X","") -> X | Z63: =IF(ISBLANK(AD61)," ",INDEX(CB:CB,MATCH(AD61,BY:BY,0))) ->  | AA63: =IF(ISBLANK(AD61)," ",INDEX('Startgeld Damen'!$C:$C,MATCH(Z63,'Startgeld Damen'!$A:$A,0))) ->  | AD63: =AD61 -> 0 | AI63: =IF(ISBLANK(AE63)," ",AE63+(AF63-AG63)*50+IF(COUNT(AE61:AE64)=3,(AG61+AG62+AG64)*40,(AG61+AG62+AG64)*30)) ->  | AJ63: 0 | AK63: =IF(COUNTIF(AL$13:AL63,AL63)>1,"X","") -> X | AL63: =IF(ISBLANK(AP61)," ",INDEX(CG:CG,MATCH(AP61,CD:CD,0))) ->  | AM63: =IF(ISBLANK(AP61)," ",INDEX('Startgeld Damen'!$C:$C,MATCH(AL63,'Startgeld Damen'!$A:$A,0))) ->  | AP63: =AP61 -> 0 | AU63: =IF(ISBLANK(AQ63)," ",AQ63+(AR63-AS63)*50+IF(COUNT(AQ61:AQ64)=3,(AS61+AS62+AS64)*40,(AS61+AS62+AS64)*30)) ->  | AV63: 0 | AW63: =IF(COUNTIF(AX$13:AX63,AX63)>1,"X","") -> X | AX63: =IF(ISBLANK(BB61)," ",INDEX(CL:CL,MATCH(BB61,CI:CI,0))) ->  | AY63: =IF(ISBLANK(BB61)," ",INDEX('Startgeld Damen'!$C:$C,MATCH(AX63,'Startgeld Damen'!$A:$A,0))) ->  | BB63: =BB61 -> 0 | BG63: =IF(ISBLANK(BC63)," ",BC63+(BD63-BE63)*50+IF(COUNT(BC61:BC64)=3,(BE61+BE62+BE64)*40,(BE61+BE62+BE64)*30)) ->  | BH63: 0 | BO63: 151 | BP63: ='1. Serie Damen'!$C202 -> 0 | BQ63: ='1. Serie Damen'!$C203 -> 0 | BR63: ='1. Serie Damen'!$C204 -> 0 | BS63: ='1. Serie Damen'!$C205 -> 0 | BT63: 151 | BU63: ='2. Serie Damen'!$C202 -> 0 | BV63: ='2. Serie Damen'!$C203 -> 0 | BW63: ='2. Serie Damen'!$C204 -> 0 | BX63: ='2. Serie Damen'!$C205 -> 0 | BY63: 151 | BZ63: ='3. Serie Damen'!$C202 -> 0 | CA63: ='3. Serie Damen'!$C203 -> 0 | CB63: ='3. Serie Damen'!$C204 -> 0 | CC63: ='3. Serie Damen'!$C205 -> 0 | CD63: 151 | CE63: ='4. Serie'!$C202 -> 0 | CF63: ='4. Serie'!$C203 -> 0 | CG63: ='4. Serie'!$C204 -> 0 | CH63: ='4. Serie'!$C205 -> 0 | CI63: 151 | CJ63: ='4. Serie'!$C202 -> 0 | CK63: ='4. Serie'!$C203 -> 0 | CL63: ='4. Serie'!$C204 -> 0 | CM63: ='4. Serie'!$C205 -> 0 | CN63: 51 | CO63: =F213 -> 0 | CP63: =R213 -> 0 | CQ63: =AD213 -> 0 | CR63: =AP213 -> 0
A64: =IF(COUNTIF(B$13:B64,B64)>1,"X","") -> X | B64: =IF(ISBLANK(F61)," ",INDEX(BS:BS,MATCH(F61,BO:BO,0))) ->  | C64: =IF(ISBLANK(F61)," ",INDEX('Startgeld Damen'!$C:$C,MATCH($B64,'Startgeld Damen'!$A:$A,0))) ->  | F64: =F61 -> 0 | K64: =IF(ISBLANK(G64)," ",G64+(H64-I64)*50+IF(COUNT(G61:G64)=3,(I61+I62+I63)*40,(I61+I62+I63)*30)) ->  | L64: 0 | M64: =IF(COUNTIF(N$13:N64,N64)>1,"X","") -> X | N64: =IF(ISBLANK(R61)," ",INDEX(BX:BX,MATCH(R61,BT:BT,0))) ->  | O64: =IF(ISBLANK(R61)," ",INDEX('Startgeld Damen'!$C:$C,MATCH(N64,'Startgeld Damen'!$A:$A,0))) ->  | R64: =R61 -> 0 | W64: =IF(ISBLANK(S64)," ",S64+(T64-U64)*50+IF(COUNT(S61:S64)=3,(U61+U62+U63)*40,(U61+U62+U63)*30)) ->  | X64: 0 | Y64: =IF(COUNTIF(Z$13:Z64,Z64)>1,"X","") -> X | Z64: =IF(ISBLANK(AD61)," ",INDEX(CC:CC,MATCH(AD61,BY:BY,0))) ->  | AA64: =IF(ISBLANK(AD61)," ",INDEX('Startgeld Damen'!$C:$C,MATCH(Z64,'Startgeld Damen'!$A:$A,0))) ->  | AD64: =AD61 -> 0 | AI64: =IF(ISBLANK(AE64)," ",AE64+(AF64-AG64)*50+IF(COUNT(AE61:AE64)=3,(AG61+AG62+AG63)*40,(AG61+AG62+AG63)*30)) ->  | AJ64: 0 | AK64: =IF(COUNTIF(AL$13:AL64,AL64)>1,"X","") -> X | AL64: =IF(ISBLANK(AP61)," ",INDEX(CH:CH,MATCH(AP61,CD:CD,0))) ->  | AM64: =IF(ISBLANK(AP61)," ",INDEX('Startgeld Damen'!$C:$C,MATCH(AL64,'Startgeld Damen'!$A:$A,0))) ->  | AP64: =AP61 -> 0 | AU64: =IF(ISBLANK(AQ64)," ",AQ64+(AR64-AS64)*50+IF(COUNT(AQ61:AQ64)=3,(AS61+AS62+AS63)*40,(AS61+AS62+AS63)*30)) ->  | AV64: 0 | AW64: =IF(COUNTIF(AX$13:AX64,AX64)>1,"X","") -> X | AX64: =IF(ISBLANK(BB61)," ",INDEX(CM:CM,MATCH(BB61,CI:CI,0))) ->  | AY64: =IF(ISBLANK(BB61)," ",INDEX('Startgeld Damen'!$C:$C,MATCH(AX64,'Startgeld Damen'!$A:$A,0))) ->  | BB64: =BB61 -> 0 | BG64: =IF(ISBLANK(BC64)," ",BC64+(BD64-BE64)*50+IF(COUNT(BC61:BC64)=3,(BE61+BE62+BE63)*40,(BE61+BE62+BE63)*30)) ->  | BH64: 0 | BO64: 152 | BP64: ='1. Serie Damen'!$C206 -> 0 | BQ64: ='1. Serie Damen'!$C207 -> 0 | BR64: ='1. Serie Damen'!$C208 -> 0 | BS64: ='1. Serie Damen'!$C209 -> 0 | BT64: 152 | BU64: ='2. Serie Damen'!$C206 -> 0 | BV64: ='2. Serie Damen'!$C207 -> 0 | BW64: ='2. Serie Damen'!$C208 -> 0 | BX64: ='2. Serie Damen'!$C209 -> 0 | BY64: 152 | BZ64: ='3. Serie Damen'!$C206 -> 0 | CA64: ='3. Serie Damen'!$C207 -> 0 | CB64: ='3. Serie Damen'!$C208 -> 0 | CC64: ='3. Serie Damen'!$C209 -> 0 | CD64: 152 | CE64: ='4. Serie'!$C206 -> 0 | CF64: ='4. Serie'!$C207 -> 0 | CG64: ='4. Serie'!$C208 -> 0 | CH64: ='4. Serie'!$C209 -> 0 | CI64: 152 | CJ64: ='4. Serie'!$C206 -> 0 | CK64: ='4. Serie'!$C207 -> 0 | CL64: ='4. Serie'!$C208 -> 0 | CM64: ='4. Serie'!$C209 -> 0 | CN64: 52 | CO64: =F217 -> 0 | CP64: =R217 -> 0 | CQ64: =AD217 -> 0 | CR64: =AP217 -> 0
A65: =IF(COUNTIF(B$13:B65,B65)>1,"X","") -> X | B65: =IF(ISBLANK(F65)," ",INDEX(BP:BP,MATCH(F65,BO:BO,0))) ->  | C65: =IF(ISBLANK(F65)," ",INDEX('Startgeld Damen'!$C:$C,MATCH($B65,'Startgeld Damen'!$A:$A,0))) ->  | K65: =IF(ISBLANK(G65)," ",G65+(H65-I65)*50+IF(COUNT(G65:G68)=3,(I66+I67+I68)*40,(I66+I67+I68)*30)) ->  | L65: 0 | M65: =IF(COUNTIF(N$13:N65,N65)>1,"X","") -> X | N65: =IF(ISBLANK(R65)," ",INDEX(BU:BU,MATCH(R65,BT:BT,0))) ->  | O65: =IF(ISBLANK(R65)," ",INDEX('Startgeld Damen'!$C:$C,MATCH(N65,'Startgeld Damen'!$A:$A,0))) ->  | W65: =IF(ISBLANK(S65)," ",S65+(T65-U65)*50+IF(COUNT(S65:S68)=3,(U66+U67+U68)*40,(U66+U67+U68)*30)) ->  | X65: 0 | Y65: =IF(COUNTIF(Z$13:Z65,Z65)>1,"X","") -> X | Z65: =IF(ISBLANK(AD65)," ",INDEX(BZ:BZ,MATCH(AD65,BY:BY,0))) ->  | AA65: =IF(ISBLANK(AD65)," ",INDEX('Startgeld Damen'!$C:$C,MATCH(Z65,'Startgeld Damen'!$A:$A,0))) ->  | AI65: =IF(ISBLANK(AE65)," ",AE65+(AF65-AG65)*50+IF(COUNT(AE65:AE68)=3,(AG66+AG67+AG68)*40,(AG66+AG67+AG68)*30)) ->  | AJ65: 0 | AK65: =IF(COUNTIF(AL$13:AL65,AL65)>1,"X","") -> X | AL65: =IF(ISBLANK(AP65)," ",INDEX(CE:CE,MATCH(AP65,CD:CD,0))) ->  | AM65: =IF(ISBLANK(AP65)," ",INDEX('Startgeld Damen'!$C:$C,MATCH(AL65,'Startgeld Damen'!$A:$A,0))) ->  | AU65: =IF(ISBLANK(AQ65)," ",AQ65+(AR65-AS65)*50+IF(COUNT(AQ65:AQ68)=3,(AS66+AS67+AS68)*40,(AS66+AS67+AS68)*30)) ->  | AV65: 0 | AW65: =IF(COUNTIF(AX$13:AX65,AX65)>1,"X","") -> X | AX65: =IF(ISBLANK(BB65)," ",INDEX(CJ:CJ,MATCH(BB65,CI:CI,0))) ->  | AY65: =IF(ISBLANK(BB65)," ",INDEX('Startgeld Damen'!$C:$C,MATCH(AX65,'Startgeld Damen'!$A:$A,0))) ->  | BG65: =IF(ISBLANK(BC65)," ",BC65+(BD65-BE65)*50+IF(COUNT(BC65:BC68)=3,(BE66+BE67+BE68)*40,(BE66+BE67+BE68)*30)) ->  | BH65: 0 | BK65: =SUM(L65:L68) -> 0 | BL65: =SUM(X65:X68) -> 0 | BM65: =SUM(AJ65:AJ68) -> 0 | BN65: =SUM(AV65:AV68) -> 0 | BO65: 153 | BP65: ='1. Serie Damen'!$C210 -> 0 | BQ65: ='1. Serie Damen'!$C211 -> 0 | BR65: ='1. Serie Damen'!$C212 -> 0 | BS65: ='1. Serie Damen'!$C213 -> 0 | BT65: 153 | BU65: ='2. Serie Damen'!$C210 -> 0 | BV65: ='2. Serie Damen'!$C211 -> 0 | BW65: ='2. Serie Damen'!$C212 -> 0 | BX65: ='2. Serie Damen'!$C213 -> 0 | BY65: 153 | BZ65: ='3. Serie Damen'!$C210 -> 0 | CA65: ='3. Serie Damen'!$C211 -> 0 | CB65: ='3. Serie Damen'!$C212 -> 0 | CC65: ='3. Serie Damen'!$C213 -> 0 | CD65: 153 | CE65: ='4. Serie'!$C210 -> 0 | CF65: ='4. Serie'!$C211 -> 0 | CG65: ='4. Serie'!$C212 -> 0 | CH65: ='4. Serie'!$C213 -> 0 | CI65: 153 | CJ65: ='4. Serie'!$C210 -> 0 | CK65: ='4. Serie'!$C211 -> 0 | CL65: ='4. Serie'!$C212 -> 0 | CM65: ='4. Serie'!$C213 -> 0 | CN65: 53 | CO65: =F221 -> 0 | CP65: =R221 -> 0 | CQ65: =AD221 -> 0 | CR65: =AP221 -> 0
A66: =IF(COUNTIF(B$13:B66,B66)>1,"X","") -> X | B66: =IF(ISBLANK(F65)," ",INDEX(BQ:BQ,MATCH(F65,BO:BO,0))) ->  | C66: =IF(ISBLANK(F65)," ",INDEX('Startgeld Damen'!$C:$C,MATCH($B66,'Startgeld Damen'!$A:$A,0))) ->  | F66: =F65 -> 0 | K66: =IF(ISBLANK(G66)," ",G66+(H66-I66)*50+IF(COUNT(G65:G68)=3,(I65+I67+I68)*40,(I65+I67+I68)*30)) ->  | L66: 0 | M66: =IF(COUNTIF(N$13:N66,N66)>1,"X","") -> X | N66: =IF(ISBLANK(R65)," ",INDEX(BV:BV,MATCH(R65,BT:BT,0))) ->  | O66: =IF(ISBLANK(R65)," ",INDEX('Startgeld Damen'!$C:$C,MATCH(N66,'Startgeld Damen'!$A:$A,0))) ->  | R66: =R65 -> 0 | W66: =IF(ISBLANK(S66)," ",S66+(T66-U66)*50+IF(COUNT(S65:S68)=3,(U65+U67+U68)*40,(U65+U67+U68)*30)) ->  | X66: 0 | Y66: =IF(COUNTIF(Z$13:Z66,Z66)>1,"X","") -> X | Z66: =IF(ISBLANK(AD65)," ",INDEX(CA:CA,MATCH(AD65,BY:BY,0))) ->  | AA66: =IF(ISBLANK(AD65)," ",INDEX('Startgeld Damen'!$C:$C,MATCH(Z66,'Startgeld Damen'!$A:$A,0))) ->  | AD66: =AD65 -> 0 | AI66: =IF(ISBLANK(AE66)," ",AE66+(AF66-AG66)*50+IF(COUNT(AE65:AE68)=3,(AG65+AG67+AG68)*40,(AG65+AG67+AG68)*30)) ->  | AJ66: 0 | AK66: =IF(COUNTIF(AL$13:AL66,AL66)>1,"X","") -> X | AL66: =IF(ISBLANK(AP65)," ",INDEX(CF:CF,MATCH(AP65,CD:CD,0))) ->  | AM66: =IF(ISBLANK(AP65)," ",INDEX('Startgeld Damen'!$C:$C,MATCH(AL66,'Startgeld Damen'!$A:$A,0))) ->  | AP66: =AP65 -> 0 | AU66: =IF(ISBLANK(AQ66)," ",AQ66+(AR66-AS66)*50+IF(COUNT(AQ65:AQ68)=3,(AS65+AS67+AS68)*40,(AS65+AS67+AS68)*30)) ->  | AV66: 0 | AW66: =IF(COUNTIF(AX$13:AX66,AX66)>1,"X","") -> X | AX66: =IF(ISBLANK(BB65)," ",INDEX(CK:CK,MATCH(BB65,CI:CI,0))) ->  | AY66: =IF(ISBLANK(BB65)," ",INDEX('Startgeld Damen'!$C:$C,MATCH(AX66,'Startgeld Damen'!$A:$A,0))) ->  | BB66: =BB65 -> 0 | BG66: =IF(ISBLANK(BC66)," ",BC66+(BD66-BE66)*50+IF(COUNT(BC65:BC68)=3,(BE65+BE67+BE68)*40,(BE65+BE67+BE68)*30)) ->  | BH66: 0 | BO66: 154 | BP66: ='1. Serie Damen'!$C214 -> 0 | BQ66: ='1. Serie Damen'!$C215 -> 0 | BR66: ='1. Serie Damen'!$C216 -> 0 | BS66: ='1. Serie Damen'!$C217 -> 0 | BT66: 154 | BU66: ='2. Serie Damen'!$C214 -> 0 | BV66: ='2. Serie Damen'!$C215 -> 0 | BW66: ='2. Serie Damen'!$C216 -> 0 | BX66: ='2. Serie Damen'!$C217 -> 0 | BY66: 154 | BZ66: ='3. Serie Damen'!$C214 -> 0 | CA66: ='3. Serie Damen'!$C215 -> 0 | CB66: ='3. Serie Damen'!$C216 -> 0 | CC66: ='3. Serie Damen'!$C217 -> 0 | CD66: 154 | CE66: ='4. Serie'!$C214 -> 0 | CF66: ='4. Serie'!$C215 -> 0 | CG66: ='4. Serie'!$C216 -> 0 | CH66: ='4. Serie'!$C217 -> 0 | CI66: 154 | CJ66: ='4. Serie'!$C214 -> 0 | CK66: ='4. Serie'!$C215 -> 0 | CL66: ='4. Serie'!$C216 -> 0 | CM66: ='4. Serie'!$C217 -> 0 | CN66: 54 | CO66: =F225 -> 0 | CP66: =R225 -> 0 | CQ66: =AD225 -> 0 | CR66: =AP225 -> 0
A67: =IF(COUNTIF(B$13:B67,B67)>1,"X","") -> X | B67: =IF(ISBLANK(F65)," ",INDEX(BR:BR,MATCH(F65,BO:BO,0))) ->  | C67: =IF(ISBLANK(F65)," ",INDEX('Startgeld Damen'!$C:$C,MATCH($B67,'Startgeld Damen'!$A:$A,0))) ->  | F67: =F65 -> 0 | K67: =IF(ISBLANK(G67)," ",G67+(H67-I67)*50+IF(COUNT(G65:G68)=3,(I65+I66+I68)*40,(I65+I66+I68)*30)) ->  | L67: 0 | M67: =IF(COUNTIF(N$13:N67,N67)>1,"X","") -> X | N67: =IF(ISBLANK(R65)," ",INDEX(BW:BW,MATCH(R65,BT:BT,0))) ->  | O67: =IF(ISBLANK(R65)," ",INDEX('Startgeld Damen'!$C:$C,MATCH(N67,'Startgeld Damen'!$A:$A,0))) ->  | R67: =R65 -> 0 | W67: =IF(ISBLANK(S67)," ",S67+(T67-U67)*50+IF(COUNT(S65:S68)=3,(U65+U66+U68)*40,(U65+U66+U68)*30)) ->  | X67: 0 | Y67: =IF(COUNTIF(Z$13:Z67,Z67)>1,"X","") -> X | Z67: =IF(ISBLANK(AD65)," ",INDEX(CB:CB,MATCH(AD65,BY:BY,0))) ->  | AA67: =IF(ISBLANK(AD65)," ",INDEX('Startgeld Damen'!$C:$C,MATCH(Z67,'Startgeld Damen'!$A:$A,0))) ->  | AD67: =AD65 -> 0 | AI67: =IF(ISBLANK(AE67)," ",AE67+(AF67-AG67)*50+IF(COUNT(AE65:AE68)=3,(AG65+AG66+AG68)*40,(AG65+AG66+AG68)*30)) ->  | AJ67: 0 | AK67: =IF(COUNTIF(AL$13:AL67,AL67)>1,"X","") -> X | AL67: =IF(ISBLANK(AP65)," ",INDEX(CG:CG,MATCH(AP65,CD:CD,0))) ->  | AM67: =IF(ISBLANK(AP65)," ",INDEX('Startgeld Damen'!$C:$C,MATCH(AL67,'Startgeld Damen'!$A:$A,0))) ->  | AP67: =AP65 -> 0 | AU67: =IF(ISBLANK(AQ67)," ",AQ67+(AR67-AS67)*50+IF(COUNT(AQ65:AQ68)=3,(AS65+AS66+AS68)*40,(AS65+AS66+AS68)*30)) ->  | AV67: 0 | AW67: =IF(COUNTIF(AX$13:AX67,AX67)>1,"X","") -> X | AX67: =IF(ISBLANK(BB65)," ",INDEX(CL:CL,MATCH(BB65,CI:CI,0))) ->  | AY67: =IF(ISBLANK(BB65)," ",INDEX('Startgeld Damen'!$C:$C,MATCH(AX67,'Startgeld Damen'!$A:$A,0))) ->  | BB67: =BB65 -> 0 | BG67: =IF(ISBLANK(BC67)," ",BC67+(BD67-BE67)*50+IF(COUNT(BC65:BC68)=3,(BE65+BE66+BE68)*40,(BE65+BE66+BE68)*30)) ->  | BH67: 0 | BO67: 155 | BP67: ='1. Serie Damen'!$C214 -> 0 | BQ67: ='1. Serie Damen'!$C215 -> 0 | BR67: ='1. Serie Damen'!$C216 -> 0 | BS67: ='1. Serie Damen'!$C217 -> 0 | BT67: 155 | BU67: ='2. Serie Damen'!$C214 -> 0 | BV67: ='2. Serie Damen'!$C215 -> 0 | BW67: ='2. Serie Damen'!$C216 -> 0 | BX67: ='2. Serie Damen'!$C217 -> 0 | BY67: 155 | BZ67: ='3. Serie Damen'!$C214 -> 0 | CA67: ='3. Serie Damen'!$C215 -> 0 | CB67: ='3. Serie Damen'!$C216 -> 0 | CC67: ='3. Serie Damen'!$C217 -> 0 | CD67: 155 | CE67: ='4. Serie'!$C214 -> 0 | CF67: ='4. Serie'!$C215 -> 0 | CG67: ='4. Serie'!$C216 -> 0 | CH67: ='4. Serie'!$C217 -> 0 | CI67: 155 | CJ67: ='4. Serie'!$C214 -> 0 | CK67: ='4. Serie'!$C215 -> 0 | CL67: ='4. Serie'!$C216 -> 0 | CM67: ='4. Serie'!$C217 -> 0 | CN67: 55 | CO67: =F225 -> 0 | CP67: =R225 -> 0 | CQ67: =AD225 -> 0 | CR67: =AP225 -> 0
A68: =IF(COUNTIF(B$13:B68,B68)>1,"X","") -> X | B68: =IF(ISBLANK(F65)," ",INDEX(BS:BS,MATCH(F65,BO:BO,0))) ->  | C68: =IF(ISBLANK(F65)," ",INDEX('Startgeld Damen'!$C:$C,MATCH($B68,'Startgeld Damen'!$A:$A,0))) ->  | F68: =F65 -> 0 | K68: =IF(ISBLANK(G68)," ",G68+(H68-I68)*50+IF(COUNT(G65:G68)=3,(I65+I66+I67)*40,(I65+I66+I67)*30)) ->  | L68: 0 | M68: =IF(COUNTIF(N$13:N68,N68)>1,"X","") -> X | N68: =IF(ISBLANK(R65)," ",INDEX(BX:BX,MATCH(R65,BT:BT,0))) ->  | O68: =IF(ISBLANK(R65)," ",INDEX('Startgeld Damen'!$C:$C,MATCH(N68,'Startgeld Damen'!$A:$A,0))) ->  | R68: =R65 -> 0 | W68: =IF(ISBLANK(S68)," ",S68+(T68-U68)*50+IF(COUNT(S65:S68)=3,(U65+U66+U67)*40,(U65+U66+U67)*30)) ->  | X68: 0 | Y68: =IF(COUNTIF(Z$13:Z68,Z68)>1,"X","") -> X | Z68: =IF(ISBLANK(AD65)," ",INDEX(CC:CC,MATCH(AD65,BY:BY,0))) ->  | AA68: =IF(ISBLANK(AD65)," ",INDEX('Startgeld Damen'!$C:$C,MATCH(Z68,'Startgeld Damen'!$A:$A,0))) ->  | AD68: =AD65 -> 0 | AI68: =IF(ISBLANK(AE68)," ",AE68+(AF68-AG68)*50+IF(COUNT(AE65:AE68)=3,(AG65+AG66+AG67)*40,(AG65+AG66+AG67)*30)) ->  | AJ68: 0 | AK68: =IF(COUNTIF(AL$13:AL68,AL68)>1,"X","") -> X | AL68: =IF(ISBLANK(AP65)," ",INDEX(CH:CH,MATCH(AP65,CD:CD,0))) ->  | AM68: =IF(ISBLANK(AP65)," ",INDEX('Startgeld Damen'!$C:$C,MATCH(AL68,'Startgeld Damen'!$A:$A,0))) ->  | AP68: =AP65 -> 0 | AU68: =IF(ISBLANK(AQ68)," ",AQ68+(AR68-AS68)*50+IF(COUNT(AQ65:AQ68)=3,(AS65+AS66+AS67)*40,(AS65+AS66+AS67)*30)) ->  | AV68: 0 | AW68: =IF(COUNTIF(AX$13:AX68,AX68)>1,"X","") -> X | AX68: =IF(ISBLANK(BB65)," ",INDEX(CM:CM,MATCH(BB65,CI:CI,0))) ->  | AY68: =IF(ISBLANK(BB65)," ",INDEX('Startgeld Damen'!$C:$C,MATCH(AX68,'Startgeld Damen'!$A:$A,0))) ->  | BB68: =BB65 -> 0 | BG68: =IF(ISBLANK(BC68)," ",BC68+(BD68-BE68)*50+IF(COUNT(BC65:BC68)=3,(BE65+BE66+BE67)*40,(BE65+BE66+BE67)*30)) ->  | BH68: 0 | BO68: 156 | BP68: ='1. Serie Damen'!$C214 -> 0 | BQ68: ='1. Serie Damen'!$C215 -> 0 | BR68: ='1. Serie Damen'!$C216 -> 0 | BS68: ='1. Serie Damen'!$C217 -> 0 | BT68: 156 | BU68: ='2. Serie Damen'!$C214 -> 0 | BV68: ='2. Serie Damen'!$C215 -> 0 | BW68: ='2. Serie Damen'!$C216 -> 0 | BX68: ='2. Serie Damen'!$C217 -> 0 | BY68: 156 | BZ68: ='3. Serie Damen'!$C214 -> 0 | CA68: ='3. Serie Damen'!$C215 -> 0 | CB68: ='3. Serie Damen'!$C216 -> 0 | CC68: ='3. Serie Damen'!$C217 -> 0 | CD68: 156 | CE68: ='4. Serie'!$C214 -> 0 | CF68: ='4. Serie'!$C215 -> 0 | CG68: ='4. Serie'!$C216 -> 0 | CH68: ='4. Serie'!$C217 -> 0 | CI68: 156 | CJ68: ='4. Serie'!$C214 -> 0 | CK68: ='4. Serie'!$C215 -> 0 | CL68: ='4. Serie'!$C216 -> 0 | CM68: ='4. Serie'!$C217 -> 0 | CN68: 56 | CO68: =F225 -> 0 | CP68: =R225 -> 0 | CQ68: =AD225 -> 0 | CR68: =AP225 -> 0
A69: =IF(COUNTIF(B$13:B69,B69)>1,"X","") -> X | B69: =IF(ISBLANK(F69)," ",INDEX(BP:BP,MATCH(F69,BO:BO,0))) ->  | C69: =IF(ISBLANK(F69)," ",INDEX('Startgeld Damen'!$C:$C,MATCH($B69,'Startgeld Damen'!$A:$A,0))) ->  | K69: =IF(ISBLANK(G69)," ",G69+(H69-I69)*50+IF(COUNT(G69:G72)=3,(I70+I71+I72)*40,(I70+I71+I72)*30)) ->  | L69: 0 | M69: =IF(COUNTIF(N$13:N69,N69)>1,"X","") -> X | N69: =IF(ISBLANK(R69)," ",INDEX(BU:BU,MATCH(R69,BT:BT,0))) ->  | O69: =IF(ISBLANK(R69)," ",INDEX('Startgeld Damen'!$C:$C,MATCH(N69,'Startgeld Damen'!$A:$A,0))) ->  | W69: =IF(ISBLANK(S69)," ",S69+(T69-U69)*50+IF(COUNT(S69:S72)=3,(U70+U71+U72)*40,(U70+U71+U72)*30)) ->  | X69: 0 | Y69: =IF(COUNTIF(Z$13:Z69,Z69)>1,"X","") -> X | Z69: =IF(ISBLANK(AD69)," ",INDEX(BZ:BZ,MATCH(AD69,BY:BY,0))) ->  | AA69: =IF(ISBLANK(AD69)," ",INDEX('Startgeld Damen'!$C:$C,MATCH(Z69,'Startgeld Damen'!$A:$A,0))) ->  | AI69: =IF(ISBLANK(AE69)," ",AE69+(AF69-AG69)*50+IF(COUNT(AE69:AE72)=3,(AG70+AG71+AG72)*40,(AG70+AG71+AG72)*30)) ->  | AJ69: 0 | AK69: =IF(COUNTIF(AL$13:AL69,AL69)>1,"X","") -> X | AL69: =IF(ISBLANK(AP69)," ",INDEX(CE:CE,MATCH(AP69,CD:CD,0))) ->  | AM69: =IF(ISBLANK(AP69)," ",INDEX('Startgeld Damen'!$C:$C,MATCH(AL69,'Startgeld Damen'!$A:$A,0))) ->  | AU69: =IF(ISBLANK(AQ69)," ",AQ69+(AR69-AS69)*50+IF(COUNT(AQ69:AQ72)=3,(AS70+AS71+AS72)*40,(AS70+AS71+AS72)*30)) ->  | AV69: 0 | AW69: =IF(COUNTIF(AX$13:AX69,AX69)>1,"X","") -> X | AX69: =IF(ISBLANK(BB69)," ",INDEX(CJ:CJ,MATCH(BB69,CI:CI,0))) ->  | AY69: =IF(ISBLANK(BB69)," ",INDEX('Startgeld Damen'!$C:$C,MATCH(AX69,'Startgeld Damen'!$A:$A,0))) ->  | BG69: =IF(ISBLANK(BC69)," ",BC69+(BD69-BE69)*50+IF(COUNT(BC69:BC72)=3,(BE70+BE71+BE72)*40,(BE70+BE71+BE72)*30)) ->  | BH69: 0 | BK69: =SUM(L69:L72) -> 0 | BL69: =SUM(X69:X72) -> 0 | BM69: =SUM(AJ69:AJ72) -> 0 | BN69: =SUM(AV69:AV72) -> 0
A70: =IF(COUNTIF(B$13:B70,B70)>1,"X","") -> X | B70: =IF(ISBLANK(F69)," ",INDEX(BQ:BQ,MATCH(F69,BO:BO,0))) ->  | C70: =IF(ISBLANK(F69)," ",INDEX('Startgeld Damen'!$C:$C,MATCH($B70,'Startgeld Damen'!$A:$A,0))) ->  | F70: =F69 -> 0 | K70: =IF(ISBLANK(G70)," ",G70+(H70-I70)*50+IF(COUNT(G69:G72)=3,(I69+I71+I72)*40,(I69+I71+I72)*30)) ->  | L70: 0 | M70: =IF(COUNTIF(N$13:N70,N70)>1,"X","") -> X | N70: =IF(ISBLANK(R69)," ",INDEX(BV:BV,MATCH(R69,BT:BT,0))) ->  | O70: =IF(ISBLANK(R69)," ",INDEX('Startgeld Damen'!$C:$C,MATCH(N70,'Startgeld Damen'!$A:$A,0))) ->  | R70: =R69 -> 0 | W70: =IF(ISBLANK(S70)," ",S70+(T70-U70)*50+IF(COUNT(S69:S72)=3,(U69+U71+U72)*40,(U69+U71+U72)*30)) ->  | X70: 0 | Y70: =IF(COUNTIF(Z$13:Z70,Z70)>1,"X","") -> X | Z70: =IF(ISBLANK(AD69)," ",INDEX(CA:CA,MATCH(AD69,BY:BY,0))) ->  | AA70: =IF(ISBLANK(AD69)," ",INDEX('Startgeld Damen'!$C:$C,MATCH(Z70,'Startgeld Damen'!$A:$A,0))) ->  | AD70: =AD69 -> 0 | AI70: =IF(ISBLANK(AE70)," ",AE70+(AF70-AG70)*50+IF(COUNT(AE69:AE72)=3,(AG69+AG71+AG72)*40,(AG69+AG71+AG72)*30)) ->  | AJ70: 0 | AK70: =IF(COUNTIF(AL$13:AL70,AL70)>1,"X","") -> X | AL70: =IF(ISBLANK(AP69)," ",INDEX(CF:CF,MATCH(AP69,CD:CD,0))) ->  | AM70: =IF(ISBLANK(AP69)," ",INDEX('Startgeld Damen'!$C:$C,MATCH(AL70,'Startgeld Damen'!$A:$A,0))) ->  | AP70: =AP69 -> 0 | AU70: =IF(ISBLANK(AQ70)," ",AQ70+(AR70-AS70)*50+IF(COUNT(AQ69:AQ72)=3,(AS69+AS71+AS72)*40,(AS69+AS71+AS72)*30)) ->  | AV70: 0 | AW70: =IF(COUNTIF(AX$13:AX70,AX70)>1,"X","") -> X | AX70: =IF(ISBLANK(BB69)," ",INDEX(CK:CK,MATCH(BB69,CI:CI,0))) ->  | AY70: =IF(ISBLANK(BB69)," ",INDEX('Startgeld Damen'!$C:$C,MATCH(AX70,'Startgeld Damen'!$A:$A,0))) ->  | BB70: =BB69 -> 0 | BG70: =IF(ISBLANK(BC70)," ",BC70+(BD70-BE70)*50+IF(COUNT(BC69:BC72)=3,(BE69+BE71+BE72)*40,(BE69+BE71+BE72)*30)) ->  | BH70: 0
A71: =IF(COUNTIF(B$13:B71,B71)>1,"X","") -> X | B71: =IF(ISBLANK(F69)," ",INDEX(BR:BR,MATCH(F69,BO:BO,0))) ->  | C71: =IF(ISBLANK(F69)," ",INDEX('Startgeld Damen'!$C:$C,MATCH($B71,'Startgeld Damen'!$A:$A,0))) ->  | F71: =F69 -> 0 | K71: =IF(ISBLANK(G71)," ",G71+(H71-I71)*50+IF(COUNT(G69:G72)=3,(I69+I70+I72)*40,(I69+I70+I72)*30)) ->  | L71: 0 | M71: =IF(COUNTIF(N$13:N71,N71)>1,"X","") -> X | N71: =IF(ISBLANK(R69)," ",INDEX(BW:BW,MATCH(R69,BT:BT,0))) ->  | O71: =IF(ISBLANK(R69)," ",INDEX('Startgeld Damen'!$C:$C,MATCH(N71,'Startgeld Damen'!$A:$A,0))) ->  | R71: =R69 -> 0 | W71: =IF(ISBLANK(S71)," ",S71+(T71-U71)*50+IF(COUNT(S69:S72)=3,(U69+U70+U72)*40,(U69+U70+U72)*30)) ->  | X71: 0 | Y71: =IF(COUNTIF(Z$13:Z71,Z71)>1,"X","") -> X | Z71: =IF(ISBLANK(AD69)," ",INDEX(CB:CB,MATCH(AD69,BY:BY,0))) ->  | AA71: =IF(ISBLANK(AD69)," ",INDEX('Startgeld Damen'!$C:$C,MATCH(Z71,'Startgeld Damen'!$A:$A,0))) ->  | AD71: =AD69 -> 0 | AI71: =IF(ISBLANK(AE71)," ",AE71+(AF71-AG71)*50+IF(COUNT(AE69:AE72)=3,(AG69+AG70+AG72)*40,(AG69+AG70+AG72)*30)) ->  | AJ71: 0 | AK71: =IF(COUNTIF(AL$13:AL71,AL71)>1,"X","") -> X | AL71: =IF(ISBLANK(AP69)," ",INDEX(CG:CG,MATCH(AP69,CD:CD,0))) ->  | AM71: =IF(ISBLANK(AP69)," ",INDEX('Startgeld Damen'!$C:$C,MATCH(AL71,'Startgeld Damen'!$A:$A,0))) ->  | AP71: =AP69 -> 0 | AU71: =IF(ISBLANK(AQ71)," ",AQ71+(AR71-AS71)*50+IF(COUNT(AQ69:AQ72)=3,(AS69+AS70+AS72)*40,(AS69+AS70+AS72)*30)) ->  | AV71: 0 | AW71: =IF(COUNTIF(AX$13:AX71,AX71)>1,"X","") -> X | AX71: =IF(ISBLANK(BB69)," ",INDEX(CL:CL,MATCH(BB69,CI:CI,0))) ->  | AY71: =IF(ISBLANK(BB69)," ",INDEX('Startgeld Damen'!$C:$C,MATCH(AX71,'Startgeld Damen'!$A:$A,0))) ->  | BB71: =BB69 -> 0 | BG71: =IF(ISBLANK(BC71)," ",BC71+(BD71-BE71)*50+IF(COUNT(BC69:BC72)=3,(BE69+BE70+BE72)*40,(BE69+BE70+BE72)*30)) ->  | BH71: 0
A72: =IF(COUNTIF(B$13:B72,B72)>1,"X","") -> X | B72: =IF(ISBLANK(F69)," ",INDEX(BS:BS,MATCH(F69,BO:BO,0))) ->  | C72: =IF(ISBLANK(F69)," ",INDEX('Startgeld Damen'!$C:$C,MATCH($B72,'Startgeld Damen'!$A:$A,0))) ->  | F72: =F69 -> 0 | K72: =IF(ISBLANK(G72)," ",G72+(H72-I72)*50+IF(COUNT(G69:G72)=3,(I69+I70+I71)*40,(I69+I70+I71)*30)) ->  | L72: 0 | M72: =IF(COUNTIF(N$13:N72,N72)>1,"X","") -> X | N72: =IF(ISBLANK(R69)," ",INDEX(BX:BX,MATCH(R69,BT:BT,0))) ->  | O72: =IF(ISBLANK(R69)," ",INDEX('Startgeld Damen'!$C:$C,MATCH(N72,'Startgeld Damen'!$A:$A,0))) ->  | R72: =R69 -> 0 | W72: =IF(ISBLANK(S72)," ",S72+(T72-U72)*50+IF(COUNT(S69:S72)=3,(U69+U70+U71)*40,(U69+U70+U71)*30)) ->  | X72: 0 | Y72: =IF(COUNTIF(Z$13:Z72,Z72)>1,"X","") -> X | Z72: =IF(ISBLANK(AD69)," ",INDEX(CC:CC,MATCH(AD69,BY:BY,0))) ->  | AA72: =IF(ISBLANK(AD69)," ",INDEX('Startgeld Damen'!$C:$C,MATCH(Z72,'Startgeld Damen'!$A:$A,0))) ->  | AD72: =AD69 -> 0 | AI72: =IF(ISBLANK(AE72)," ",AE72+(AF72-AG72)*50+IF(COUNT(AE69:AE72)=3,(AG69+AG70+AG71)*40,(AG69+AG70+AG71)*30)) ->  | AJ72: 0 | AK72: =IF(COUNTIF(AL$13:AL72,AL72)>1,"X","") -> X | AL72: =IF(ISBLANK(AP69)," ",INDEX(CH:CH,MATCH(AP69,CD:CD,0))) ->  | AM72: =IF(ISBLANK(AP69)," ",INDEX('Startgeld Damen'!$C:$C,MATCH(AL72,'Startgeld Damen'!$A:$A,0))) ->  | AP72: =AP69 -> 0 | AU72: =IF(ISBLANK(AQ72)," ",AQ72+(AR72-AS72)*50+IF(COUNT(AQ69:AQ72)=3,(AS69+AS70+AS71)*40,(AS69+AS70+AS71)*30)) ->  | AV72: 0 | AW72: =IF(COUNTIF(AX$13:AX72,AX72)>1,"X","") -> X | AX72: =IF(ISBLANK(BB69)," ",INDEX(CM:CM,MATCH(BB69,CI:CI,0))) ->  | AY72: =IF(ISBLANK(BB69)," ",INDEX('Startgeld Damen'!$C:$C,MATCH(AX72,'Startgeld Damen'!$A:$A,0))) ->  | BB72: =BB69 -> 0 | BG72: =IF(ISBLANK(BC72)," ",BC72+(BD72-BE72)*50+IF(COUNT(BC69:BC72)=3,(BE69+BE70+BE71)*40,(BE69+BE70+BE71)*30)) ->  | BH72: 0
A73: =IF(COUNTIF(B$13:B73,B73)>1,"X","") -> X | B73: =IF(ISBLANK(F73)," ",INDEX(BP:BP,MATCH(F73,BO:BO,0))) ->  | C73: =IF(ISBLANK(F73)," ",INDEX('Startgeld Damen'!$C:$C,MATCH($B73,'Startgeld Damen'!$A:$A,0))) ->  | K73: =IF(ISBLANK(G73)," ",G73+(H73-I73)*50+IF(COUNT(G73:G76)=3,(I74+I75+I76)*40,(I74+I75+I76)*30)) ->  | L73: 0 | M73: =IF(COUNTIF(N$13:N73,N73)>1,"X","") -> X | N73: =IF(ISBLANK(R73)," ",INDEX(BU:BU,MATCH(R73,BT:BT,0))) ->  | O73: =IF(ISBLANK(R73)," ",INDEX('Startgeld Damen'!$C:$C,MATCH(N73,'Startgeld Damen'!$A:$A,0))) ->  | W73: =IF(ISBLANK(S73)," ",S73+(T73-U73)*50+IF(COUNT(S73:S76)=3,(U74+U75+U76)*40,(U74+U75+U76)*30)) ->  | X73: 0 | Y73: =IF(COUNTIF(Z$13:Z73,Z73)>1,"X","") -> X | Z73: =IF(ISBLANK(AD73)," ",INDEX(BZ:BZ,MATCH(AD73,BY:BY,0))) ->  | AA73: =IF(ISBLANK(AD73)," ",INDEX('Startgeld Damen'!$C:$C,MATCH(Z73,'Startgeld Damen'!$A:$A,0))) ->  | AI73: =IF(ISBLANK(AE73)," ",AE73+(AF73-AG73)*50+IF(COUNT(AE73:AE76)=3,(AG74+AG75+AG76)*40,(AG74+AG75+AG76)*30)) ->  | AJ73: 0 | AK73: =IF(COUNTIF(AL$13:AL73,AL73)>1,"X","") -> X | AL73: =IF(ISBLANK(AP73)," ",INDEX(CE:CE,MATCH(AP73,CD:CD,0))) ->  | AM73: =IF(ISBLANK(AP73)," ",INDEX('Startgeld Damen'!$C:$C,MATCH(AL73,'Startgeld Damen'!$A:$A,0))) ->  | AU73: =IF(ISBLANK(AQ73)," ",AQ73+(AR73-AS73)*50+IF(COUNT(AQ73:AQ76)=3,(AS74+AS75+AS76)*40,(AS74+AS75+AS76)*30)) ->  | AV73: 0 | AW73: =IF(COUNTIF(AX$13:AX73,AX73)>1,"X","") -> X | AX73: =IF(ISBLANK(BB73)," ",INDEX(CJ:CJ,MATCH(BB73,CI:CI,0))) ->  | AY73: =IF(ISBLANK(BB73)," ",INDEX('Startgeld Damen'!$C:$C,MATCH(AX73,'Startgeld Damen'!$A:$A,0))) ->  | BG73: =IF(ISBLANK(BC73)," ",BC73+(BD73-BE73)*50+IF(COUNT(BC73:BC76)=3,(BE74+BE75+BE76)*40,(BE74+BE75+BE76)*30)) ->  | BH73: 0 | BK73: =SUM(L73:L76) -> 0 | BL73: =SUM(X73:X76) -> 0 | BM73: =SUM(AJ73:AJ76) -> 0 | BN73: =SUM(AV73:AV76) -> 0
A74: =IF(COUNTIF(B$13:B74,B74)>1,"X","") -> X | B74: =IF(ISBLANK(F73)," ",INDEX(BQ:BQ,MATCH(F73,BO:BO,0))) ->  | C74: =IF(ISBLANK(F73)," ",INDEX('Startgeld Damen'!$C:$C,MATCH($B74,'Startgeld Damen'!$A:$A,0))) ->  | F74: =F73 -> 0 | K74: =IF(ISBLANK(G74)," ",G74+(H74-I74)*50+IF(COUNT(G73:G76)=3,(I73+I75+I76)*40,(I73+I75+I76)*30)) ->  | L74: 0 | M74: =IF(COUNTIF(N$13:N74,N74)>1,"X","") -> X | N74: =IF(ISBLANK(R73)," ",INDEX(BV:BV,MATCH(R73,BT:BT,0))) ->  | O74: =IF(ISBLANK(R73)," ",INDEX('Startgeld Damen'!$C:$C,MATCH(N74,'Startgeld Damen'!$A:$A,0))) ->  | R74: =R73 -> 0 | W74: =IF(ISBLANK(S74)," ",S74+(T74-U74)*50+IF(COUNT(S73:S76)=3,(U73+U75+U76)*40,(U73+U75+U76)*30)) ->  | X74: 0 | Y74: =IF(COUNTIF(Z$13:Z74,Z74)>1,"X","") -> X | Z74: =IF(ISBLANK(AD73)," ",INDEX(CA:CA,MATCH(AD73,BY:BY,0))) ->  | AA74: =IF(ISBLANK(AD73)," ",INDEX('Startgeld Damen'!$C:$C,MATCH(Z74,'Startgeld Damen'!$A:$A,0))) ->  | AD74: =AD73 -> 0 | AI74: =IF(ISBLANK(AE74)," ",AE74+(AF74-AG74)*50+IF(COUNT(AE73:AE76)=3,(AG73+AG75+AG76)*40,(AG73+AG75+AG76)*30)) ->  | AJ74: 0 | AK74: =IF(COUNTIF(AL$13:AL74,AL74)>1,"X","") -> X | AL74: =IF(ISBLANK(AP73)," ",INDEX(CF:CF,MATCH(AP73,CD:CD,0))) ->  | AM74: =IF(ISBLANK(AP73)," ",INDEX('Startgeld Damen'!$C:$C,MATCH(AL74,'Startgeld Damen'!$A:$A,0))) ->  | AP74: =AP73 -> 0 | AU74: =IF(ISBLANK(AQ74)," ",AQ74+(AR74-AS74)*50+IF(COUNT(AQ73:AQ76)=3,(AS73+AS75+AS76)*40,(AS73+AS75+AS76)*30)) ->  | AV74: 0 | AW74: =IF(COUNTIF(AX$13:AX74,AX74)>1,"X","") -> X | AX74: =IF(ISBLANK(BB73)," ",INDEX(CK:CK,MATCH(BB73,CI:CI,0))) ->  | AY74: =IF(ISBLANK(BB73)," ",INDEX('Startgeld Damen'!$C:$C,MATCH(AX74,'Startgeld Damen'!$A:$A,0))) ->  | BB74: =BB73 -> 0 | BG74: =IF(ISBLANK(BC74)," ",BC74+(BD74-BE74)*50+IF(COUNT(BC73:BC76)=3,(BE73+BE75+BE76)*40,(BE73+BE75+BE76)*30)) ->  | BH74: 0
A75: =IF(COUNTIF(B$13:B75,B75)>1,"X","") -> X | B75: =IF(ISBLANK(F73)," ",INDEX(BR:BR,MATCH(F73,BO:BO,0))) ->  | C75: =IF(ISBLANK(F73)," ",INDEX('Startgeld Damen'!$C:$C,MATCH($B75,'Startgeld Damen'!$A:$A,0))) ->  | F75: =F73 -> 0 | K75: =IF(ISBLANK(G75)," ",G75+(H75-I75)*50+IF(COUNT(G73:G76)=3,(I73+I74+I76)*40,(I73+I74+I76)*30)) ->  | L75: 0 | M75: =IF(COUNTIF(N$13:N75,N75)>1,"X","") -> X | N75: =IF(ISBLANK(R73)," ",INDEX(BW:BW,MATCH(R73,BT:BT,0))) ->  | O75: =IF(ISBLANK(R73)," ",INDEX('Startgeld Damen'!$C:$C,MATCH(N75,'Startgeld Damen'!$A:$A,0))) ->  | R75: =R73 -> 0 | W75: =IF(ISBLANK(S75)," ",S75+(T75-U75)*50+IF(COUNT(S73:S76)=3,(U73+U74+U76)*40,(U73+U74+U76)*30)) ->  | X75: 0 | Y75: =IF(COUNTIF(Z$13:Z75,Z75)>1,"X","") -> X | Z75: =IF(ISBLANK(AD73)," ",INDEX(CB:CB,MATCH(AD73,BY:BY,0))) ->  | AA75: =IF(ISBLANK(AD73)," ",INDEX('Startgeld Damen'!$C:$C,MATCH(Z75,'Startgeld Damen'!$A:$A,0))) ->  | AD75: =AD73 -> 0 | AI75: =IF(ISBLANK(AE75)," ",AE75+(AF75-AG75)*50+IF(COUNT(AE73:AE76)=3,(AG73+AG74+AG76)*40,(AG73+AG74+AG76)*30)) ->  | AJ75: 0 | AK75: =IF(COUNTIF(AL$13:AL75,AL75)>1,"X","") -> X | AL75: =IF(ISBLANK(AP73)," ",INDEX(CG:CG,MATCH(AP73,CD:CD,0))) ->  | AM75: =IF(ISBLANK(AP73)," ",INDEX('Startgeld Damen'!$C:$C,MATCH(AL75,'Startgeld Damen'!$A:$A,0))) ->  | AP75: =AP73 -> 0 | AU75: =IF(ISBLANK(AQ75)," ",AQ75+(AR75-AS75)*50+IF(COUNT(AQ73:AQ76)=3,(AS73+AS74+AS76)*40,(AS73+AS74+AS76)*30)) ->  | AV75: 0 | AW75: =IF(COUNTIF(AX$13:AX75,AX75)>1,"X","") -> X | AX75: =IF(ISBLANK(BB73)," ",INDEX(CL:CL,MATCH(BB73,CI:CI,0))) ->  | AY75: =IF(ISBLANK(BB73)," ",INDEX('Startgeld Damen'!$C:$C,MATCH(AX75,'Startgeld Damen'!$A:$A,0))) ->  | BB75: =BB73 -> 0 | BG75: =IF(ISBLANK(BC75)," ",BC75+(BD75-BE75)*50+IF(COUNT(BC73:BC76)=3,(BE73+BE74+BE76)*40,(BE73+BE74+BE76)*30)) ->  | BH75: 0
A76: =IF(COUNTIF(B$13:B76,B76)>1,"X","") -> X | B76: =IF(ISBLANK(F73)," ",INDEX(BS:BS,MATCH(F73,BO:BO,0))) ->  | C76: =IF(ISBLANK(F73)," ",INDEX('Startgeld Damen'!$C:$C,MATCH($B76,'Startgeld Damen'!$A:$A,0))) ->  | F76: =F73 -> 0 | K76: =IF(ISBLANK(G76)," ",G76+(H76-I76)*50+IF(COUNT(G73:G76)=3,(I73+I74+I75)*40,(I73+I74+I75)*30)) ->  | L76: 0 | M76: =IF(COUNTIF(N$13:N76,N76)>1,"X","") -> X | N76: =IF(ISBLANK(R73)," ",INDEX(BX:BX,MATCH(R73,BT:BT,0))) ->  | O76: =IF(ISBLANK(R73)," ",INDEX('Startgeld Damen'!$C:$C,MATCH(N76,'Startgeld Damen'!$A:$A,0))) ->  | R76: =R73 -> 0 | W76: =IF(ISBLANK(S76)," ",S76+(T76-U76)*50+IF(COUNT(S73:S76)=3,(U73+U74+U75)*40,(U73+U74+U75)*30)) ->  | X76: 0 | Y76: =IF(COUNTIF(Z$13:Z76,Z76)>1,"X","") -> X | Z76: =IF(ISBLANK(AD73)," ",INDEX(CC:CC,MATCH(AD73,BY:BY,0))) ->  | AA76: =IF(ISBLANK(AD73)," ",INDEX('Startgeld Damen'!$C:$C,MATCH(Z76,'Startgeld Damen'!$A:$A,0))) ->  | AD76: =AD73 -> 0 | AI76: =IF(ISBLANK(AE76)," ",AE76+(AF76-AG76)*50+IF(COUNT(AE73:AE76)=3,(AG73+AG74+AG75)*40,(AG73+AG74+AG75)*30)) ->  | AJ76: 0 | AK76: =IF(COUNTIF(AL$13:AL76,AL76)>1,"X","") -> X | AL76: =IF(ISBLANK(AP73)," ",INDEX(CH:CH,MATCH(AP73,CD:CD,0))) ->  | AM76: =IF(ISBLANK(AP73)," ",INDEX('Startgeld Damen'!$C:$C,MATCH(AL76,'Startgeld Damen'!$A:$A,0))) ->  | AP76: =AP73 -> 0 | AU76: =IF(ISBLANK(AQ76)," ",AQ76+(AR76-AS76)*50+IF(COUNT(AQ73:AQ76)=3,(AS73+AS74+AS75)*40,(AS73+AS74+AS75)*30)) ->  | AV76: 0 | AW76: =IF(COUNTIF(AX$13:AX76,AX76)>1,"X","") -> X | AX76: =IF(ISBLANK(BB73)," ",INDEX(CM:CM,MATCH(BB73,CI:CI,0))) ->  | AY76: =IF(ISBLANK(BB73)," ",INDEX('Startgeld Damen'!$C:$C,MATCH(AX76,'Startgeld Damen'!$A:$A,0))) ->  | BB76: =BB73 -> 0 | BG76: =IF(ISBLANK(BC76)," ",BC76+(BD76-BE76)*50+IF(COUNT(BC73:BC76)=3,(BE73+BE74+BE75)*40,(BE73+BE74+BE75)*30)) ->  | BH76: 0
A77: =IF(COUNTIF(B$13:B77,B77)>1,"X","") -> X | B77: =IF(ISBLANK(F77)," ",INDEX(BP:BP,MATCH(F77,BO:BO,0))) ->  | C77: =IF(ISBLANK(F77)," ",INDEX('Startgeld Damen'!$C:$C,MATCH($B77,'Startgeld Damen'!$A:$A,0))) ->  | K77: =IF(ISBLANK(G77)," ",G77+(H77-I77)*50+IF(COUNT(G77:G80)=3,(I78+I79+I80)*40,(I78+I79+I80)*30)) ->  | L77: =IF(I77<4,I77*1,IF(I77>3,I77*1)) -> 0 | M77: =IF(COUNTIF(N$13:N77,N77)>1,"X","") -> X | N77: =IF(ISBLANK(R77)," ",INDEX(BU:BU,MATCH(R77,BT:BT,0))) ->  | O77: =IF(ISBLANK(R77)," ",INDEX('Startgeld Damen'!$C:$C,MATCH(N77,'Startgeld Damen'!$A:$A,0))) ->  | W77: =IF(ISBLANK(S77)," ",S77+(T77-U77)*50+IF(COUNT(S77:S80)=3,(U78+U79+U80)*40,(U78+U79+U80)*30)) ->  | X77: =IF(U77<4,U77*1,IF(U77>3,U77*1)) -> 0 | Y77: =IF(COUNTIF(Z$13:Z77,Z77)>1,"X","") -> X | Z77: =IF(ISBLANK(AD77)," ",INDEX(BZ:BZ,MATCH(AD77,BY:BY,0))) ->  | AA77: =IF(ISBLANK(AD77)," ",INDEX('Startgeld Damen'!$C:$C,MATCH(Z77,'Startgeld Damen'!$A:$A,0))) ->  | AI77: =IF(ISBLANK(AE77)," ",AE77+(AF77-AG77)*50+IF(COUNT(AE77:AE80)=3,(AG78+AG79+AG80)*40,(AG78+AG79+AG80)*30)) ->  | AJ77: =IF(AG77<4,AG77*1,IF(AG77>3,AG77*1)) -> 0 | AK77: =IF(COUNTIF(AL$13:AL77,AL77)>1,"X","") -> X | AL77: =IF(ISBLANK(AP77)," ",INDEX(CE:CE,MATCH(AP77,CD:CD,0))) ->  | AM77: =IF(ISBLANK(AP77)," ",INDEX('Startgeld Damen'!$C:$C,MATCH(AL77,'Startgeld Damen'!$A:$A,0))) ->  | AU77: =IF(ISBLANK(AQ77)," ",AQ77+(AR77-AS77)*50+IF(COUNT(AQ77:AQ80)=3,(AS78+AS79+AS80)*40,(AS78+AS79+AS80)*30)) ->  | AV77: =IF(AS77<4,AS77*1,IF(AS77>3,AS77*1)) -> 0 | AW77: =IF(COUNTIF(AX$13:AX77,AX77)>1,"X","") -> X | AX77: =IF(ISBLANK(BB77)," ",INDEX(CJ:CJ,MATCH(BB77,CI:CI,0))) ->  | AY77: =IF(ISBLANK(BB77)," ",INDEX('Startgeld Damen'!$C:$C,MATCH(AX77,'Startgeld Damen'!$A:$A,0))) ->  | BG77: =IF(ISBLANK(BC77)," ",BC77+(BD77-BE77)*50+IF(COUNT(BC77:BC80)=3,(BE78+BE79+BE80)*40,(BE78+BE79+BE80)*30)) ->  | BH77: =IF(BE77<4,BE77*1,IF(BE77>3,BE77*1)) -> 0 | BK77: =SUM(L77:L80) -> 0 | BL77: =SUM(X77:X80) -> 0 | BM77: =SUM(AJ77:AJ80) -> 0 | BN77: =SUM(AV77:AV80) -> 0
A78: =IF(COUNTIF(B$13:B78,B78)>1,"X","") -> X | B78: =IF(ISBLANK(F77)," ",INDEX(BQ:BQ,MATCH(F77,BO:BO,0))) ->  | C78: =IF(ISBLANK(F77)," ",INDEX('Startgeld Damen'!$C:$C,MATCH($B78,'Startgeld Damen'!$A:$A,0))) ->  | F78: =F77 -> 0 | K78: =IF(ISBLANK(G78)," ",G78+(H78-I78)*50+IF(COUNT(G77:G80)=3,(I77+I79+I80)*40,(I77+I79+I80)*30)) ->  | L78: 0 | M78: =IF(COUNTIF(N$13:N78,N78)>1,"X","") -> X | N78: =IF(ISBLANK(R77)," ",INDEX(BV:BV,MATCH(R77,BT:BT,0))) ->  | O78: =IF(ISBLANK(R77)," ",INDEX('Startgeld Damen'!$C:$C,MATCH(N78,'Startgeld Damen'!$A:$A,0))) ->  | R78: =R77 -> 0 | W78: =IF(ISBLANK(S78)," ",S78+(T78-U78)*50+IF(COUNT(S77:S80)=3,(U77+U79+U80)*40,(U77+U79+U80)*30)) ->  | X78: 0 | Y78: =IF(COUNTIF(Z$13:Z78,Z78)>1,"X","") -> X | Z78: =IF(ISBLANK(AD77)," ",INDEX(CA:CA,MATCH(AD77,BY:BY,0))) ->  | AA78: =IF(ISBLANK(AD77)," ",INDEX('Startgeld Damen'!$C:$C,MATCH(Z78,'Startgeld Damen'!$A:$A,0))) ->  | AD78: =AD77 -> 0 | AI78: =IF(ISBLANK(AE78)," ",AE78+(AF78-AG78)*50+IF(COUNT(AE77:AE80)=3,(AG77+AG79+AG80)*40,(AG77+AG79+AG80)*30)) ->  | AJ78: 0 | AK78: =IF(COUNTIF(AL$13:AL78,AL78)>1,"X","") -> X | AL78: =IF(ISBLANK(AP77)," ",INDEX(CF:CF,MATCH(AP77,CD:CD,0))) ->  | AM78: =IF(ISBLANK(AP77)," ",INDEX('Startgeld Damen'!$C:$C,MATCH(AL78,'Startgeld Damen'!$A:$A,0))) ->  | AP78: =AP77 -> 0 | AU78: =IF(ISBLANK(AQ78)," ",AQ78+(AR78-AS78)*50+IF(COUNT(AQ77:AQ80)=3,(AS77+AS79+AS80)*40,(AS77+AS79+AS80)*30)) ->  | AV78: 0 | AW78: =IF(COUNTIF(AX$13:AX78,AX78)>1,"X","") -> X | AX78: =IF(ISBLANK(BB77)," ",INDEX(CK:CK,MATCH(BB77,CI:CI,0))) ->  | AY78: =IF(ISBLANK(BB77)," ",INDEX('Startgeld Damen'!$C:$C,MATCH(AX78,'Startgeld Damen'!$A:$A,0))) ->  | BB78: =BB77 -> 0 | BG78: =IF(ISBLANK(BC78)," ",BC78+(BD78-BE78)*50+IF(COUNT(BC77:BC80)=3,(BE77+BE79+BE80)*40,(BE77+BE79+BE80)*30)) ->  | BH78: 0
A79: =IF(COUNTIF(B$13:B79,B79)>1,"X","") -> X | B79: =IF(ISBLANK(F77)," ",INDEX(BR:BR,MATCH(F77,BO:BO,0))) ->  | C79: =IF(ISBLANK(F77)," ",INDEX('Startgeld Damen'!$C:$C,MATCH($B79,'Startgeld Damen'!$A:$A,0))) ->  | F79: =F77 -> 0 | K79: =IF(ISBLANK(G79)," ",G79+(H79-I79)*50+IF(COUNT(G77:G80)=3,(I77+I78+I80)*40,(I77+I78+I80)*30)) ->  | L79: 0 | M79: =IF(COUNTIF(N$13:N79,N79)>1,"X","") -> X | N79: =IF(ISBLANK(R77)," ",INDEX(BW:BW,MATCH(R77,BT:BT,0))) ->  | O79: =IF(ISBLANK(R77)," ",INDEX('Startgeld Damen'!$C:$C,MATCH(N79,'Startgeld Damen'!$A:$A,0))) ->  | R79: =R77 -> 0 | W79: =IF(ISBLANK(S79)," ",S79+(T79-U79)*50+IF(COUNT(S77:S80)=3,(U77+U78+U80)*40,(U77+U78+U80)*30)) ->  | X79: 0 | Y79: =IF(COUNTIF(Z$13:Z79,Z79)>1,"X","") -> X | Z79: =IF(ISBLANK(AD77)," ",INDEX(CB:CB,MATCH(AD77,BY:BY,0))) ->  | AA79: =IF(ISBLANK(AD77)," ",INDEX('Startgeld Damen'!$C:$C,MATCH(Z79,'Startgeld Damen'!$A:$A,0))) ->  | AD79: =AD77 -> 0 | AI79: =IF(ISBLANK(AE79)," ",AE79+(AF79-AG79)*50+IF(COUNT(AE77:AE80)=3,(AG77+AG78+AG80)*40,(AG77+AG78+AG80)*30)) ->  | AJ79: 0 | AK79: =IF(COUNTIF(AL$13:AL79,AL79)>1,"X","") -> X | AL79: =IF(ISBLANK(AP77)," ",INDEX(CG:CG,MATCH(AP77,CD:CD,0))) ->  | AM79: =IF(ISBLANK(AP77)," ",INDEX('Startgeld Damen'!$C:$C,MATCH(AL79,'Startgeld Damen'!$A:$A,0))) ->  | AP79: =AP77 -> 0 | AU79: =IF(ISBLANK(AQ79)," ",AQ79+(AR79-AS79)*50+IF(COUNT(AQ77:AQ80)=3,(AS77+AS78+AS80)*40,(AS77+AS78+AS80)*30)) ->  | AV79: 0 | AW79: =IF(COUNTIF(AX$13:AX79,AX79)>1,"X","") -> X | AX79: =IF(ISBLANK(BB77)," ",INDEX(CL:CL,MATCH(BB77,CI:CI,0))) ->  | AY79: =IF(ISBLANK(BB77)," ",INDEX('Startgeld Damen'!$C:$C,MATCH(AX79,'Startgeld Damen'!$A:$A,0))) ->  | BB79: =BB77 -> 0 | BG79: =IF(ISBLANK(BC79)," ",BC79+(BD79-BE79)*50+IF(COUNT(BC77:BC80)=3,(BE77+BE78+BE80)*40,(BE77+BE78+BE80)*30)) ->  | BH79: 0
A80: =IF(COUNTIF(B$13:B80,B80)>1,"X","") -> X | B80: =IF(ISBLANK(F77)," ",INDEX(BS:BS,MATCH(F77,BO:BO,0))) ->  | C80: =IF(ISBLANK(F77)," ",INDEX('Startgeld Damen'!$C:$C,MATCH($B80,'Startgeld Damen'!$A:$A,0))) ->  | F80: =F77 -> 0 | K80: =IF(ISBLANK(G80)," ",G80+(H80-I80)*50+IF(COUNT(G77:G80)=3,(I77+I78+I79)*40,(I77+I78+I79)*30)) ->  | L80: 0 | M80: =IF(COUNTIF(N$13:N80,N80)>1,"X","") -> X | N80: =IF(ISBLANK(R77)," ",INDEX(BX:BX,MATCH(R77,BT:BT,0))) ->  | O80: =IF(ISBLANK(R77)," ",INDEX('Startgeld Damen'!$C:$C,MATCH(N80,'Startgeld Damen'!$A:$A,0))) ->  | R80: =R77 -> 0 | W80: =IF(ISBLANK(S80)," ",S80+(T80-U80)*50+IF(COUNT(S77:S80)=3,(U77+U78+U79)*40,(U77+U78+U79)*30)) ->  | X80: 0 | Y80: =IF(COUNTIF(Z$13:Z80,Z80)>1,"X","") -> X | Z80: =IF(ISBLANK(AD77)," ",INDEX(CC:CC,MATCH(AD77,BY:BY,0))) ->  | AA80: =IF(ISBLANK(AD77)," ",INDEX('Startgeld Damen'!$C:$C,MATCH(Z80,'Startgeld Damen'!$A:$A,0))) ->  | AD80: =AD77 -> 0 | AI80: =IF(ISBLANK(AE80)," ",AE80+(AF80-AG80)*50+IF(COUNT(AE77:AE80)=3,(AG77+AG78+AG79)*40,(AG77+AG78+AG79)*30)) ->  | AJ80: 0 | AK80: =IF(COUNTIF(AL$13:AL80,AL80)>1,"X","") -> X | AL80: =IF(ISBLANK(AP77)," ",INDEX(CH:CH,MATCH(AP77,CD:CD,0))) ->  | AM80: =IF(ISBLANK(AP77)," ",INDEX('Startgeld Damen'!$C:$C,MATCH(AL80,'Startgeld Damen'!$A:$A,0))) ->  | AP80: =AP77 -> 0 | AU80: =IF(ISBLANK(AQ80)," ",AQ80+(AR80-AS80)*50+IF(COUNT(AQ77:AQ80)=3,(AS77+AS78+AS79)*40,(AS77+AS78+AS79)*30)) ->  | AV80: 0 | AW80: =IF(COUNTIF(AX$13:AX80,AX80)>1,"X","") -> X | AX80: =IF(ISBLANK(BB77)," ",INDEX(CM:CM,MATCH(BB77,CI:CI,0))) ->  | AY80: =IF(ISBLANK(BB77)," ",INDEX('Startgeld Damen'!$C:$C,MATCH(AX80,'Startgeld Damen'!$A:$A,0))) ->  | BB80: =BB77 -> 0 | BG80: =IF(ISBLANK(BC80)," ",BC80+(BD80-BE80)*50+IF(COUNT(BC77:BC80)=3,(BE77+BE78+BE79)*40,(BE77+BE78+BE79)*30)) ->  | BH80: 0
A81: =IF(COUNTIF(B$13:B81,B81)>1,"X","") -> X | B81: =IF(ISBLANK(F81)," ",INDEX(BP:BP,MATCH(F81,BO:BO,0))) ->  | C81: =IF(ISBLANK(F81)," ",INDEX('Startgeld Damen'!$C:$C,MATCH($B81,'Startgeld Damen'!$A:$A,0))) ->  | K81: =IF(ISBLANK(G81)," ",G81+(H81-I81)*50+IF(COUNT(G81:G84)=3,(I82+I83+I84)*40,(I82+I83+I84)*30)) ->  | L81: 0 | M81: =IF(COUNTIF(N$13:N81,N81)>1,"X","") -> X | N81: =IF(ISBLANK(R81)," ",INDEX(BU:BU,MATCH(R81,BT:BT,0))) ->  | O81: =IF(ISBLANK(R81)," ",INDEX('Startgeld Damen'!$C:$C,MATCH(N81,'Startgeld Damen'!$A:$A,0))) ->  | W81: =IF(ISBLANK(S81)," ",S81+(T81-U81)*50+IF(COUNT(S81:S84)=3,(U82+U83+U84)*40,(U82+U83+U84)*30)) ->  | X81: 0 | Y81: =IF(COUNTIF(Z$13:Z81,Z81)>1,"X","") -> X | Z81: =IF(ISBLANK(AD81)," ",INDEX(BZ:BZ,MATCH(AD81,BY:BY,0))) ->  | AA81: =IF(ISBLANK(AD81)," ",INDEX('Startgeld Damen'!$C:$C,MATCH(Z81,'Startgeld Damen'!$A:$A,0))) ->  | AI81: =IF(ISBLANK(AE81)," ",AE81+(AF81-AG81)*50+IF(COUNT(AE81:AE84)=3,(AG82+AG83+AG84)*40,(AG82+AG83+AG84)*30)) ->  | AJ81: 0 | AK81: =IF(COUNTIF(AL$13:AL81,AL81)>1,"X","") -> X | AL81: =IF(ISBLANK(AP81)," ",INDEX(CE:CE,MATCH(AP81,CD:CD,0))) ->  | AM81: =IF(ISBLANK(AP81)," ",INDEX('Startgeld Damen'!$C:$C,MATCH(AL81,'Startgeld Damen'!$A:$A,0))) ->  | AU81: =IF(ISBLANK(AQ81)," ",AQ81+(AR81-AS81)*50+IF(COUNT(AQ81:AQ84)=3,(AS82+AS83+AS84)*40,(AS82+AS83+AS84)*30)) ->  | AV81: 0 | AW81: =IF(COUNTIF(AX$13:AX81,AX81)>1,"X","") -> X | AX81: =IF(ISBLANK(BB81)," ",INDEX(CJ:CJ,MATCH(BB81,CI:CI,0))) ->  | AY81: =IF(ISBLANK(BB81)," ",INDEX('Startgeld Damen'!$C:$C,MATCH(AX81,'Startgeld Damen'!$A:$A,0))) ->  | BG81: =IF(ISBLANK(BC81)," ",BC81+(BD81-BE81)*50+IF(COUNT(BC81:BC84)=3,(BE82+BE83+BE84)*40,(BE82+BE83+BE84)*30)) ->  | BH81: 0 | BK81: =SUM(L81:L84) -> 0 | BL81: =SUM(X81:X84) -> 0 | BM81: =SUM(AJ81:AJ84) -> 0 | BN81: =SUM(AV81:AV84) -> 0
A82: =IF(COUNTIF(B$13:B82,B82)>1,"X","") -> X | B82: =IF(ISBLANK(F81)," ",INDEX(BQ:BQ,MATCH(F81,BO:BO,0))) ->  | C82: =IF(ISBLANK(F81)," ",INDEX('Startgeld Damen'!$C:$C,MATCH($B82,'Startgeld Damen'!$A:$A,0))) ->  | F82: =F81 -> 0 | K82: =IF(ISBLANK(G82)," ",G82+(H82-I82)*50+IF(COUNT(G81:G84)=3,(I81+I83+I84)*40,(I81+I83+I84)*30)) ->  | L82: 0 | M82: =IF(COUNTIF(N$13:N82,N82)>1,"X","") -> X | N82: =IF(ISBLANK(R81)," ",INDEX(BV:BV,MATCH(R81,BT:BT,0))) ->  | O82: =IF(ISBLANK(R81)," ",INDEX('Startgeld Damen'!$C:$C,MATCH(N82,'Startgeld Damen'!$A:$A,0))) ->  | R82: =R81 -> 0 | W82: =IF(ISBLANK(S82)," ",S82+(T82-U82)*50+IF(COUNT(S81:S84)=3,(U81+U83+U84)*40,(U81+U83+U84)*30)) ->  | X82: 0 | Y82: =IF(COUNTIF(Z$13:Z82,Z82)>1,"X","") -> X | Z82: =IF(ISBLANK(AD81)," ",INDEX(CA:CA,MATCH(AD81,BY:BY,0))) ->  | AA82: =IF(ISBLANK(AD81)," ",INDEX('Startgeld Damen'!$C:$C,MATCH(Z82,'Startgeld Damen'!$A:$A,0))) ->  | AD82: =AD81 -> 0 | AI82: =IF(ISBLANK(AE82)," ",AE82+(AF82-AG82)*50+IF(COUNT(AE81:AE84)=3,(AG81+AG83+AG84)*40,(AG81+AG83+AG84)*30)) ->  | AJ82: 0 | AK82: =IF(COUNTIF(AL$13:AL82,AL82)>1,"X","") -> X | AL82: =IF(ISBLANK(AP81)," ",INDEX(CF:CF,MATCH(AP81,CD:CD,0))) ->  | AM82: =IF(ISBLANK(AP81)," ",INDEX('Startgeld Damen'!$C:$C,MATCH(AL82,'Startgeld Damen'!$A:$A,0))) ->  | AP82: =AP81 -> 0 | AU82: =IF(ISBLANK(AQ82)," ",AQ82+(AR82-AS82)*50+IF(COUNT(AQ81:AQ84)=3,(AS81+AS83+AS84)*40,(AS81+AS83+AS84)*30)) ->  | AV82: 0 | AW82: =IF(COUNTIF(AX$13:AX82,AX82)>1,"X","") -> X | AX82: =IF(ISBLANK(BB81)," ",INDEX(CK:CK,MATCH(BB81,CI:CI,0))) ->  | AY82: =IF(ISBLANK(BB81)," ",INDEX('Startgeld Damen'!$C:$C,MATCH(AX82,'Startgeld Damen'!$A:$A,0))) ->  | BB82: =BB81 -> 0 | BG82: =IF(ISBLANK(BC82)," ",BC82+(BD82-BE82)*50+IF(COUNT(BC81:BC84)=3,(BE81+BE83+BE84)*40,(BE81+BE83+BE84)*30)) ->  | BH82: 0
A83: =IF(COUNTIF(B$13:B83,B83)>1,"X","") -> X | B83: =IF(ISBLANK(F81)," ",INDEX(BR:BR,MATCH(F81,BO:BO,0))) ->  | C83: =IF(ISBLANK(F81)," ",INDEX('Startgeld Damen'!$C:$C,MATCH($B83,'Startgeld Damen'!$A:$A,0))) ->  | F83: =F81 -> 0 | K83: =IF(ISBLANK(G83)," ",G83+(H83-I83)*50+IF(COUNT(G81:G84)=3,(I81+I82+I84)*40,(I81+I82+I84)*30)) ->  | L83: 0 | M83: =IF(COUNTIF(N$13:N83,N83)>1,"X","") -> X | N83: =IF(ISBLANK(R81)," ",INDEX(BW:BW,MATCH(R81,BT:BT,0))) ->  | O83: =IF(ISBLANK(R81)," ",INDEX('Startgeld Damen'!$C:$C,MATCH(N83,'Startgeld Damen'!$A:$A,0))) ->  | R83: =R81 -> 0 | W83: =IF(ISBLANK(S83)," ",S83+(T83-U83)*50+IF(COUNT(S81:S84)=3,(U81+U82+U84)*40,(U81+U82+U84)*30)) ->  | X83: 0 | Y83: =IF(COUNTIF(Z$13:Z83,Z83)>1,"X","") -> X | Z83: =IF(ISBLANK(AD81)," ",INDEX(CB:CB,MATCH(AD81,BY:BY,0))) ->  | AA83: =IF(ISBLANK(AD81)," ",INDEX('Startgeld Damen'!$C:$C,MATCH(Z83,'Startgeld Damen'!$A:$A,0))) ->  | AD83: =AD81 -> 0 | AI83: =IF(ISBLANK(AE83)," ",AE83+(AF83-AG83)*50+IF(COUNT(AE81:AE84)=3,(AG81+AG82+AG84)*40,(AG81+AG82+AG84)*30)) ->  | AJ83: 0 | AK83: =IF(COUNTIF(AL$13:AL83,AL83)>1,"X","") -> X | AL83: =IF(ISBLANK(AP81)," ",INDEX(CG:CG,MATCH(AP81,CD:CD,0))) ->  | AM83: =IF(ISBLANK(AP81)," ",INDEX('Startgeld Damen'!$C:$C,MATCH(AL83,'Startgeld Damen'!$A:$A,0))) ->  | AP83: =AP81 -> 0 | AU83: =IF(ISBLANK(AQ83)," ",AQ83+(AR83-AS83)*50+IF(COUNT(AQ81:AQ84)=3,(AS81+AS82+AS84)*40,(AS81+AS82+AS84)*30)) ->  | AV83: 0 | AW83: =IF(COUNTIF(AX$13:AX83,AX83)>1,"X","") -> X | AX83: =IF(ISBLANK(BB81)," ",INDEX(CL:CL,MATCH(BB81,CI:CI,0))) ->  | AY83: =IF(ISBLANK(BB81)," ",INDEX('Startgeld Damen'!$C:$C,MATCH(AX83,'Startgeld Damen'!$A:$A,0))) ->  | BB83: =BB81 -> 0 | BG83: =IF(ISBLANK(BC83)," ",BC83+(BD83-BE83)*50+IF(COUNT(BC81:BC84)=3,(BE81+BE82+BE84)*40,(BE81+BE82+BE84)*30)) ->  | BH83: 0
A84: =IF(COUNTIF(B$13:B84,B84)>1,"X","") -> X | B84: =IF(ISBLANK(F81)," ",INDEX(BS:BS,MATCH(F81,BO:BO,0))) ->  | C84: =IF(ISBLANK(F81)," ",INDEX('Startgeld Damen'!$C:$C,MATCH($B84,'Startgeld Damen'!$A:$A,0))) ->  | F84: =F81 -> 0 | K84: =IF(ISBLANK(G84)," ",G84+(H84-I84)*50+IF(COUNT(G81:G84)=3,(I81+I82+I83)*40,(I81+I82+I83)*30)) ->  | L84: 0 | M84: =IF(COUNTIF(N$13:N84,N84)>1,"X","") -> X | N84: =IF(ISBLANK(R81)," ",INDEX(BX:BX,MATCH(R81,BT:BT,0))) ->  | O84: =IF(ISBLANK(R81)," ",INDEX('Startgeld Damen'!$C:$C,MATCH(N84,'Startgeld Damen'!$A:$A,0))) ->  | R84: =R81 -> 0 | W84: =IF(ISBLANK(S84)," ",S84+(T84-U84)*50+IF(COUNT(S81:S84)=3,(U81+U82+U83)*40,(U81+U82+U83)*30)) ->  | X84: 0 | Y84: =IF(COUNTIF(Z$13:Z84,Z84)>1,"X","") -> X | Z84: =IF(ISBLANK(AD81)," ",INDEX(CC:CC,MATCH(AD81,BY:BY,0))) ->  | AA84: =IF(ISBLANK(AD81)," ",INDEX('Startgeld Damen'!$C:$C,MATCH(Z84,'Startgeld Damen'!$A:$A,0))) ->  | AD84: =AD81 -> 0 | AI84: =IF(ISBLANK(AE84)," ",AE84+(AF84-AG84)*50+IF(COUNT(AE81:AE84)=3,(AG81+AG82+AG83)*40,(AG81+AG82+AG83)*30)) ->  | AJ84: 0 | AK84: =IF(COUNTIF(AL$13:AL84,AL84)>1,"X","") -> X | AL84: =IF(ISBLANK(AP81)," ",INDEX(CH:CH,MATCH(AP81,CD:CD,0))) ->  | AM84: =IF(ISBLANK(AP81)," ",INDEX('Startgeld Damen'!$C:$C,MATCH(AL84,'Startgeld Damen'!$A:$A,0))) ->  | AP84: =AP81 -> 0 | AU84: =IF(ISBLANK(AQ84)," ",AQ84+(AR84-AS84)*50+IF(COUNT(AQ81:AQ84)=3,(AS81+AS82+AS83)*40,(AS81+AS82+AS83)*30)) ->  | AV84: 0 | AW84: =IF(COUNTIF(AX$13:AX84,AX84)>1,"X","") -> X | AX84: =IF(ISBLANK(BB81)," ",INDEX(CM:CM,MATCH(BB81,CI:CI,0))) ->  | AY84: =IF(ISBLANK(BB81)," ",INDEX('Startgeld Damen'!$C:$C,MATCH(AX84,'Startgeld Damen'!$A:$A,0))) ->  | BB84: =BB81 -> 0 | BG84: =IF(ISBLANK(BC84)," ",BC84+(BD84-BE84)*50+IF(COUNT(BC81:BC84)=3,(BE81+BE82+BE83)*40,(BE81+BE82+BE83)*30)) ->  | BH84: 0
A85: =IF(COUNTIF(B$13:B85,B85)>1,"X","") -> X | B85: =IF(ISBLANK(F85)," ",INDEX(BP:BP,MATCH(F85,BO:BO,0))) ->  | C85: =IF(ISBLANK(F85)," ",INDEX('Startgeld Damen'!$C:$C,MATCH($B85,'Startgeld Damen'!$A:$A,0))) ->  | K85: =IF(ISBLANK(G85)," ",G85+(H85-I85)*50+IF(COUNT(G85:G88)=3,(I86+I87+I88)*40,(I86+I87+I88)*30)) ->  | L85: 0 | M85: =IF(COUNTIF(N$13:N85,N85)>1,"X","") -> X | N85: =IF(ISBLANK(R85)," ",INDEX(BU:BU,MATCH(R85,BT:BT,0))) ->  | O85: =IF(ISBLANK(R85)," ",INDEX('Startgeld Damen'!$C:$C,MATCH(N85,'Startgeld Damen'!$A:$A,0))) ->  | W85: =IF(ISBLANK(S85)," ",S85+(T85-U85)*50+IF(COUNT(S85:S88)=3,(U86+U87+U88)*40,(U86+U87+U88)*30)) ->  | X85: 0 | Y85: =IF(COUNTIF(Z$13:Z85,Z85)>1,"X","") -> X | Z85: =IF(ISBLANK(AD85)," ",INDEX(BZ:BZ,MATCH(AD85,BY:BY,0))) ->  | AA85: =IF(ISBLANK(AD85)," ",INDEX('Startgeld Damen'!$C:$C,MATCH(Z85,'Startgeld Damen'!$A:$A,0))) ->  | AI85: =IF(ISBLANK(AE85)," ",AE85+(AF85-AG85)*50+IF(COUNT(AE85:AE88)=3,(AG86+AG87+AG88)*40,(AG86+AG87+AG88)*30)) ->  | AJ85: 0 | AK85: =IF(COUNTIF(AL$13:AL85,AL85)>1,"X","") -> X | AL85: =IF(ISBLANK(AP85)," ",INDEX(CE:CE,MATCH(AP85,CD:CD,0))) ->  | AM85: =IF(ISBLANK(AP85)," ",INDEX('Startgeld Damen'!$C:$C,MATCH(AL85,'Startgeld Damen'!$A:$A,0))) ->  | AU85: =IF(ISBLANK(AQ85)," ",AQ85+(AR85-AS85)*50+IF(COUNT(AQ85:AQ88)=3,(AS86+AS87+AS88)*40,(AS86+AS87+AS88)*30)) ->  | AV85: 0 | AW85: =IF(COUNTIF(AX$13:AX85,AX85)>1,"X","") -> X | AX85: =IF(ISBLANK(BB85)," ",INDEX(CJ:CJ,MATCH(BB85,CI:CI,0))) ->  | AY85: =IF(ISBLANK(BB85)," ",INDEX('Startgeld Damen'!$C:$C,MATCH(AX85,'Startgeld Damen'!$A:$A,0))) ->  | BG85: =IF(ISBLANK(BC85)," ",BC85+(BD85-BE85)*50+IF(COUNT(BC85:BC88)=3,(BE86+BE87+BE88)*40,(BE86+BE87+BE88)*30)) ->  | BH85: 0 | BK85: =SUM(L85:L88) -> 0 | BL85: =SUM(X85:X88) -> 0 | BM85: =SUM(AJ85:AJ88) -> 0 | BN85: =SUM(AV85:AV88) -> 0
A86: =IF(COUNTIF(B$13:B86,B86)>1,"X","") -> X | B86: =IF(ISBLANK(F85)," ",INDEX(BQ:BQ,MATCH(F85,BO:BO,0))) ->  | C86: =IF(ISBLANK(F85)," ",INDEX('Startgeld Damen'!$C:$C,MATCH($B86,'Startgeld Damen'!$A:$A,0))) ->  | F86: =F85 -> 0 | K86: =IF(ISBLANK(G86)," ",G86+(H86-I86)*50+IF(COUNT(G85:G88)=3,(I85+I87+I88)*40,(I85+I87+I88)*30)) ->  | L86: 0 | M86: =IF(COUNTIF(N$13:N86,N86)>1,"X","") -> X | N86: =IF(ISBLANK(R85)," ",INDEX(BV:BV,MATCH(R85,BT:BT,0))) ->  | O86: =IF(ISBLANK(R85)," ",INDEX('Startgeld Damen'!$C:$C,MATCH(N86,'Startgeld Damen'!$A:$A,0))) ->  | R86: =R85 -> 0 | W86: =IF(ISBLANK(S86)," ",S86+(T86-U86)*50+IF(COUNT(S85:S88)=3,(U85+U87+U88)*40,(U85+U87+U88)*30)) ->  | X86: 0 | Y86: =IF(COUNTIF(Z$13:Z86,Z86)>1,"X","") -> X | Z86: =IF(ISBLANK(AD85)," ",INDEX(CA:CA,MATCH(AD85,BY:BY,0))) ->  | AA86: =IF(ISBLANK(AD85)," ",INDEX('Startgeld Damen'!$C:$C,MATCH(Z86,'Startgeld Damen'!$A:$A,0))) ->  | AD86: =AD85 -> 0 | AI86: =IF(ISBLANK(AE86)," ",AE86+(AF86-AG86)*50+IF(COUNT(AE85:AE88)=3,(AG85+AG87+AG88)*40,(AG85+AG87+AG88)*30)) ->  | AJ86: 0 | AK86: =IF(COUNTIF(AL$13:AL86,AL86)>1,"X","") -> X | AL86: =IF(ISBLANK(AP85)," ",INDEX(CF:CF,MATCH(AP85,CD:CD,0))) ->  | AM86: =IF(ISBLANK(AP85)," ",INDEX('Startgeld Damen'!$C:$C,MATCH(AL86,'Startgeld Damen'!$A:$A,0))) ->  | AP86: =AP85 -> 0 | AU86: =IF(ISBLANK(AQ86)," ",AQ86+(AR86-AS86)*50+IF(COUNT(AQ85:AQ88)=3,(AS85+AS87+AS88)*40,(AS85+AS87+AS88)*30)) ->  | AV86: 0 | AW86: =IF(COUNTIF(AX$13:AX86,AX86)>1,"X","") -> X | AX86: =IF(ISBLANK(BB85)," ",INDEX(CK:CK,MATCH(BB85,CI:CI,0))) ->  | AY86: =IF(ISBLANK(BB85)," ",INDEX('Startgeld Damen'!$C:$C,MATCH(AX86,'Startgeld Damen'!$A:$A,0))) ->  | BB86: =BB85 -> 0 | BG86: =IF(ISBLANK(BC86)," ",BC86+(BD86-BE86)*50+IF(COUNT(BC85:BC88)=3,(BE85+BE87+BE88)*40,(BE85+BE87+BE88)*30)) ->  | BH86: 0
A87: =IF(COUNTIF(B$13:B87,B87)>1,"X","") -> X | B87: =IF(ISBLANK(F85)," ",INDEX(BR:BR,MATCH(F85,BO:BO,0))) ->  | C87: =IF(ISBLANK(F85)," ",INDEX('Startgeld Damen'!$C:$C,MATCH($B87,'Startgeld Damen'!$A:$A,0))) ->  | F87: =F85 -> 0 | K87: =IF(ISBLANK(G87)," ",G87+(H87-I87)*50+IF(COUNT(G85:G88)=3,(I85+I86+I88)*40,(I85+I86+I88)*30)) ->  | L87: 0 | M87: =IF(COUNTIF(N$13:N87,N87)>1,"X","") -> X | N87: =IF(ISBLANK(R85)," ",INDEX(BW:BW,MATCH(R85,BT:BT,0))) ->  | O87: =IF(ISBLANK(R85)," ",INDEX('Startgeld Damen'!$C:$C,MATCH(N87,'Startgeld Damen'!$A:$A,0))) ->  | R87: =R85 -> 0 | W87: =IF(ISBLANK(S87)," ",S87+(T87-U87)*50+IF(COUNT(S85:S88)=3,(U85+U86+U88)*40,(U85+U86+U88)*30)) ->  | X87: 0 | Y87: =IF(COUNTIF(Z$13:Z87,Z87)>1,"X","") -> X | Z87: =IF(ISBLANK(AD85)," ",INDEX(CB:CB,MATCH(AD85,BY:BY,0))) ->  | AA87: =IF(ISBLANK(AD85)," ",INDEX('Startgeld Damen'!$C:$C,MATCH(Z87,'Startgeld Damen'!$A:$A,0))) ->  | AD87: =AD85 -> 0 | AI87: =IF(ISBLANK(AE87)," ",AE87+(AF87-AG87)*50+IF(COUNT(AE85:AE88)=3,(AG85+AG86+AG88)*40,(AG85+AG86+AG88)*30)) ->  | AJ87: 0 | AK87: =IF(COUNTIF(AL$13:AL87,AL87)>1,"X","") -> X | AL87: =IF(ISBLANK(AP85)," ",INDEX(CG:CG,MATCH(AP85,CD:CD,0))) ->  | AM87: =IF(ISBLANK(AP85)," ",INDEX('Startgeld Damen'!$C:$C,MATCH(AL87,'Startgeld Damen'!$A:$A,0))) ->  | AP87: =AP85 -> 0 | AU87: =IF(ISBLANK(AQ87)," ",AQ87+(AR87-AS87)*50+IF(COUNT(AQ85:AQ88)=3,(AS85+AS86+AS88)*40,(AS85+AS86+AS88)*30)) ->  | AV87: 0 | AW87: =IF(COUNTIF(AX$13:AX87,AX87)>1,"X","") -> X | AX87: =IF(ISBLANK(BB85)," ",INDEX(CL:CL,MATCH(BB85,CI:CI,0))) ->  | AY87: =IF(ISBLANK(BB85)," ",INDEX('Startgeld Damen'!$C:$C,MATCH(AX87,'Startgeld Damen'!$A:$A,0))) ->  | BB87: =BB85 -> 0 | BG87: =IF(ISBLANK(BC87)," ",BC87+(BD87-BE87)*50+IF(COUNT(BC85:BC88)=3,(BE85+BE86+BE88)*40,(BE85+BE86+BE88)*30)) ->  | BH87: 0
A88: =IF(COUNTIF(B$13:B88,B88)>1,"X","") -> X | B88: =IF(ISBLANK(F85)," ",INDEX(BS:BS,MATCH(F85,BO:BO,0))) ->  | C88: =IF(ISBLANK(F85)," ",INDEX('Startgeld Damen'!$C:$C,MATCH($B88,'Startgeld Damen'!$A:$A,0))) ->  | F88: =F85 -> 0 | K88: =IF(ISBLANK(G88)," ",G88+(H88-I88)*50+IF(COUNT(G85:G88)=3,(I85+I86+I87)*40,(I85+I86+I87)*30)) ->  | L88: 0 | M88: =IF(COUNTIF(N$13:N88,N88)>1,"X","") -> X | N88: =IF(ISBLANK(R85)," ",INDEX(BX:BX,MATCH(R85,BT:BT,0))) ->  | O88: =IF(ISBLANK(R85)," ",INDEX('Startgeld Damen'!$C:$C,MATCH(N88,'Startgeld Damen'!$A:$A,0))) ->  | R88: =R85 -> 0 | W88: =IF(ISBLANK(S88)," ",S88+(T88-U88)*50+IF(COUNT(S85:S88)=3,(U85+U86+U87)*40,(U85+U86+U87)*30)) ->  | X88: 0 | Y88: =IF(COUNTIF(Z$13:Z88,Z88)>1,"X","") -> X | Z88: =IF(ISBLANK(AD85)," ",INDEX(CC:CC,MATCH(AD85,BY:BY,0))) ->  | AA88: =IF(ISBLANK(AD85)," ",INDEX('Startgeld Damen'!$C:$C,MATCH(Z88,'Startgeld Damen'!$A:$A,0))) ->  | AD88: =AD85 -> 0 | AI88: =IF(ISBLANK(AE88)," ",AE88+(AF88-AG88)*50+IF(COUNT(AE85:AE88)=3,(AG85+AG86+AG87)*40,(AG85+AG86+AG87)*30)) ->  | AJ88: 0 | AK88: =IF(COUNTIF(AL$13:AL88,AL88)>1,"X","") -> X | AL88: =IF(ISBLANK(AP85)," ",INDEX(CH:CH,MATCH(AP85,CD:CD,0))) ->  | AM88: =IF(ISBLANK(AP85)," ",INDEX('Startgeld Damen'!$C:$C,MATCH(AL88,'Startgeld Damen'!$A:$A,0))) ->  | AP88: =AP85 -> 0 | AU88: =IF(ISBLANK(AQ88)," ",AQ88+(AR88-AS88)*50+IF(COUNT(AQ85:AQ88)=3,(AS85+AS86+AS87)*40,(AS85+AS86+AS87)*30)) ->  | AV88: 0 | AW88: =IF(COUNTIF(AX$13:AX88,AX88)>1,"X","") -> X | AX88: =IF(ISBLANK(BB85)," ",INDEX(CM:CM,MATCH(BB85,CI:CI,0))) ->  | AY88: =IF(ISBLANK(BB85)," ",INDEX('Startgeld Damen'!$C:$C,MATCH(AX88,'Startgeld Damen'!$A:$A,0))) ->  | BB88: =BB85 -> 0 | BG88: =IF(ISBLANK(BC88)," ",BC88+(BD88-BE88)*50+IF(COUNT(BC85:BC88)=3,(BE85+BE86+BE87)*40,(BE85+BE86+BE87)*30)) ->  | BH88: 0
A89: =IF(COUNTIF(B$13:B89,B89)>1,"X","") -> X | B89: =IF(ISBLANK(F89)," ",INDEX(BP:BP,MATCH(F89,BO:BO,0))) ->  | C89: =IF(ISBLANK(F89)," ",INDEX('Startgeld Damen'!$C:$C,MATCH($B89,'Startgeld Damen'!$A:$A,0))) ->  | K89: =IF(ISBLANK(G89)," ",G89+(H89-I89)*50+IF(COUNT(G89:G92)=3,(I90+I91+I92)*40,(I90+I91+I92)*30)) ->  | L89: 0 | M89: =IF(COUNTIF(N$13:N89,N89)>1,"X","") -> X | N89: =IF(ISBLANK(R89)," ",INDEX(BU:BU,MATCH(R89,BT:BT,0))) ->  | O89: =IF(ISBLANK(R89)," ",INDEX('Startgeld Damen'!$C:$C,MATCH(N89,'Startgeld Damen'!$A:$A,0))) ->  | W89: =IF(ISBLANK(S89)," ",S89+(T89-U89)*50+IF(COUNT(S89:S92)=3,(U90+U91+U92)*40,(U90+U91+U92)*30)) ->  | X89: 0 | Y89: =IF(COUNTIF(Z$13:Z89,Z89)>1,"X","") -> X | Z89: =IF(ISBLANK(AD89)," ",INDEX(BZ:BZ,MATCH(AD89,BY:BY,0))) ->  | AA89: =IF(ISBLANK(AD89)," ",INDEX('Startgeld Damen'!$C:$C,MATCH(Z89,'Startgeld Damen'!$A:$A,0))) ->  | AI89: =IF(ISBLANK(AE89)," ",AE89+(AF89-AG89)*50+IF(COUNT(AE89:AE92)=3,(AG90+AG91+AG92)*40,(AG90+AG91+AG92)*30)) ->  | AJ89: 0 | AK89: =IF(COUNTIF(AL$13:AL89,AL89)>1,"X","") -> X | AL89: =IF(ISBLANK(AP89)," ",INDEX(CE:CE,MATCH(AP89,CD:CD,0))) ->  | AM89: =IF(ISBLANK(AP89)," ",INDEX('Startgeld Damen'!$C:$C,MATCH(AL89,'Startgeld Damen'!$A:$A,0))) ->  | AU89: =IF(ISBLANK(AQ89)," ",AQ89+(AR89-AS89)*50+IF(COUNT(AQ89:AQ92)=3,(AS90+AS91+AS92)*40,(AS90+AS91+AS92)*30)) ->  | AV89: 0 | AW89: =IF(COUNTIF(AX$13:AX89,AX89)>1,"X","") -> X | AX89: =IF(ISBLANK(BB89)," ",INDEX(CJ:CJ,MATCH(BB89,CI:CI,0))) ->  | AY89: =IF(ISBLANK(BB89)," ",INDEX('Startgeld Damen'!$C:$C,MATCH(AX89,'Startgeld Damen'!$A:$A,0))) ->  | BG89: =IF(ISBLANK(BC89)," ",BC89+(BD89-BE89)*50+IF(COUNT(BC89:BC92)=3,(BE90+BE91+BE92)*40,(BE90+BE91+BE92)*30)) ->  | BH89: 0 | BK89: =SUM(L89:L92) -> 0 | BL89: =SUM(X89:X92) -> 0 | BM89: =SUM(AJ89:AJ92) -> 0 | BN89: =SUM(AV89:AV92) -> 0
A90: =IF(COUNTIF(B$13:B90,B90)>1,"X","") -> X | B90: =IF(ISBLANK(F89)," ",INDEX(BQ:BQ,MATCH(F89,BO:BO,0))) ->  | C90: =IF(ISBLANK(F89)," ",INDEX('Startgeld Damen'!$C:$C,MATCH($B90,'Startgeld Damen'!$A:$A,0))) ->  | F90: =F89 -> 0 | K90: =IF(ISBLANK(G90)," ",G90+(H90-I90)*50+IF(COUNT(G89:G92)=3,(I89+I91+I92)*40,(I89+I91+I92)*30)) ->  | L90: 0 | M90: =IF(COUNTIF(N$13:N90,N90)>1,"X","") -> X | N90: =IF(ISBLANK(R89)," ",INDEX(BV:BV,MATCH(R89,BT:BT,0))) ->  | O90: =IF(ISBLANK(R89)," ",INDEX('Startgeld Damen'!$C:$C,MATCH(N90,'Startgeld Damen'!$A:$A,0))) ->  | R90: =R89 -> 0 | W90: =IF(ISBLANK(S90)," ",S90+(T90-U90)*50+IF(COUNT(S89:S92)=3,(U89+U91+U92)*40,(U89+U91+U92)*30)) ->  | X90: 0 | Y90: =IF(COUNTIF(Z$13:Z90,Z90)>1,"X","") -> X | Z90: =IF(ISBLANK(AD89)," ",INDEX(CA:CA,MATCH(AD89,BY:BY,0))) ->  | AA90: =IF(ISBLANK(AD89)," ",INDEX('Startgeld Damen'!$C:$C,MATCH(Z90,'Startgeld Damen'!$A:$A,0))) ->  | AD90: =AD89 -> 0 | AI90: =IF(ISBLANK(AE90)," ",AE90+(AF90-AG90)*50+IF(COUNT(AE89:AE92)=3,(AG89+AG91+AG92)*40,(AG89+AG91+AG92)*30)) ->  | AJ90: 0 | AK90: =IF(COUNTIF(AL$13:AL90,AL90)>1,"X","") -> X | AL90: =IF(ISBLANK(AP89)," ",INDEX(CF:CF,MATCH(AP89,CD:CD,0))) ->  | AM90: =IF(ISBLANK(AP89)," ",INDEX('Startgeld Damen'!$C:$C,MATCH(AL90,'Startgeld Damen'!$A:$A,0))) ->  | AP90: =AP89 -> 0 | AU90: =IF(ISBLANK(AQ90)," ",AQ90+(AR90-AS90)*50+IF(COUNT(AQ89:AQ92)=3,(AS89+AS91+AS92)*40,(AS89+AS91+AS92)*30)) ->  | AV90: 0 | AW90: =IF(COUNTIF(AX$13:AX90,AX90)>1,"X","") -> X | AX90: =IF(ISBLANK(BB89)," ",INDEX(CK:CK,MATCH(BB89,CI:CI,0))) ->  | AY90: =IF(ISBLANK(BB89)," ",INDEX('Startgeld Damen'!$C:$C,MATCH(AX90,'Startgeld Damen'!$A:$A,0))) ->  | BB90: =BB89 -> 0 | BG90: =IF(ISBLANK(BC90)," ",BC90+(BD90-BE90)*50+IF(COUNT(BC89:BC92)=3,(BE89+BE91+BE92)*40,(BE89+BE91+BE92)*30)) ->  | BH90: 0
A91: =IF(COUNTIF(B$13:B91,B91)>1,"X","") -> X | B91: =IF(ISBLANK(F89)," ",INDEX(BR:BR,MATCH(F89,BO:BO,0))) ->  | C91: =IF(ISBLANK(F89)," ",INDEX('Startgeld Damen'!$C:$C,MATCH($B91,'Startgeld Damen'!$A:$A,0))) ->  | F91: =F89 -> 0 | K91: =IF(ISBLANK(G91)," ",G91+(H91-I91)*50+IF(COUNT(G89:G92)=3,(I89+I90+I92)*40,(I89+I90+I92)*30)) ->  | L91: 0 | M91: =IF(COUNTIF(N$13:N91,N91)>1,"X","") -> X | N91: =IF(ISBLANK(R89)," ",INDEX(BW:BW,MATCH(R89,BT:BT,0))) ->  | O91: =IF(ISBLANK(R89)," ",INDEX('Startgeld Damen'!$C:$C,MATCH(N91,'Startgeld Damen'!$A:$A,0))) ->  | R91: =R89 -> 0 | W91: =IF(ISBLANK(S91)," ",S91+(T91-U91)*50+IF(COUNT(S89:S92)=3,(U89+U90+U92)*40,(U89+U90+U92)*30)) ->  | X91: 0 | Y91: =IF(COUNTIF(Z$13:Z91,Z91)>1,"X","") -> X | Z91: =IF(ISBLANK(AD89)," ",INDEX(CB:CB,MATCH(AD89,BY:BY,0))) ->  | AA91: =IF(ISBLANK(AD89)," ",INDEX('Startgeld Damen'!$C:$C,MATCH(Z91,'Startgeld Damen'!$A:$A,0))) ->  | AD91: =AD89 -> 0 | AI91: =IF(ISBLANK(AE91)," ",AE91+(AF91-AG91)*50+IF(COUNT(AE89:AE92)=3,(AG89+AG90+AG92)*40,(AG89+AG90+AG92)*30)) ->  | AJ91: 0 | AK91: =IF(COUNTIF(AL$13:AL91,AL91)>1,"X","") -> X | AL91: =IF(ISBLANK(AP89)," ",INDEX(CG:CG,MATCH(AP89,CD:CD,0))) ->  | AM91: =IF(ISBLANK(AP89)," ",INDEX('Startgeld Damen'!$C:$C,MATCH(AL91,'Startgeld Damen'!$A:$A,0))) ->  | AP91: =AP89 -> 0 | AU91: =IF(ISBLANK(AQ91)," ",AQ91+(AR91-AS91)*50+IF(COUNT(AQ89:AQ92)=3,(AS89+AS90+AS92)*40,(AS89+AS90+AS92)*30)) ->  | AV91: 0 | AW91: =IF(COUNTIF(AX$13:AX91,AX91)>1,"X","") -> X | AX91: =IF(ISBLANK(BB89)," ",INDEX(CL:CL,MATCH(BB89,CI:CI,0))) ->  | AY91: =IF(ISBLANK(BB89)," ",INDEX('Startgeld Damen'!$C:$C,MATCH(AX91,'Startgeld Damen'!$A:$A,0))) ->  | BB91: =BB89 -> 0 | BG91: =IF(ISBLANK(BC91)," ",BC91+(BD91-BE91)*50+IF(COUNT(BC89:BC92)=3,(BE89+BE90+BE92)*40,(BE89+BE90+BE92)*30)) ->  | BH91: 0
A92: =IF(COUNTIF(B$13:B92,B92)>1,"X","") -> X | B92: =IF(ISBLANK(F89)," ",INDEX(BS:BS,MATCH(F89,BO:BO,0))) ->  | C92: =IF(ISBLANK(F89)," ",INDEX('Startgeld Damen'!$C:$C,MATCH($B92,'Startgeld Damen'!$A:$A,0))) ->  | F92: =F89 -> 0 | K92: =IF(ISBLANK(G92)," ",G92+(H92-I92)*50+IF(COUNT(G89:G92)=3,(I89+I90+I91)*40,(I89+I90+I91)*30)) ->  | L92: 0 | M92: =IF(COUNTIF(N$13:N92,N92)>1,"X","") -> X | N92: =IF(ISBLANK(R89)," ",INDEX(BX:BX,MATCH(R89,BT:BT,0))) ->  | O92: =IF(ISBLANK(R89)," ",INDEX('Startgeld Damen'!$C:$C,MATCH(N92,'Startgeld Damen'!$A:$A,0))) ->  | R92: =R89 -> 0 | W92: =IF(ISBLANK(S92)," ",S92+(T92-U92)*50+IF(COUNT(S89:S92)=3,(U89+U90+U91)*40,(U89+U90+U91)*30)) ->  | X92: 0 | Y92: =IF(COUNTIF(Z$13:Z92,Z92)>1,"X","") -> X | Z92: =IF(ISBLANK(AD89)," ",INDEX(CC:CC,MATCH(AD89,BY:BY,0))) ->  | AA92: =IF(ISBLANK(AD89)," ",INDEX('Startgeld Damen'!$C:$C,MATCH(Z92,'Startgeld Damen'!$A:$A,0))) ->  | AD92: =AD89 -> 0 | AI92: =IF(ISBLANK(AE92)," ",AE92+(AF92-AG92)*50+IF(COUNT(AE89:AE92)=3,(AG89+AG90+AG91)*40,(AG89+AG90+AG91)*30)) ->  | AJ92: 0 | AK92: =IF(COUNTIF(AL$13:AL92,AL92)>1,"X","") -> X | AL92: =IF(ISBLANK(AP89)," ",INDEX(CH:CH,MATCH(AP89,CD:CD,0))) ->  | AM92: =IF(ISBLANK(AP89)," ",INDEX('Startgeld Damen'!$C:$C,MATCH(AL92,'Startgeld Damen'!$A:$A,0))) ->  | AP92: =AP89 -> 0 | AU92: =IF(ISBLANK(AQ92)," ",AQ92+(AR92-AS92)*50+IF(COUNT(AQ89:AQ92)=3,(AS89+AS90+AS91)*40,(AS89+AS90+AS91)*30)) ->  | AV92: 0 | AW92: =IF(COUNTIF(AX$13:AX92,AX92)>1,"X","") -> X | AX92: =IF(ISBLANK(BB89)," ",INDEX(CM:CM,MATCH(BB89,CI:CI,0))) ->  | AY92: =IF(ISBLANK(BB89)," ",INDEX('Startgeld Damen'!$C:$C,MATCH(AX92,'Startgeld Damen'!$A:$A,0))) ->  | BB92: =BB89 -> 0 | BG92: =IF(ISBLANK(BC92)," ",BC92+(BD92-BE92)*50+IF(COUNT(BC89:BC92)=3,(BE89+BE90+BE91)*40,(BE89+BE90+BE91)*30)) ->  | BH92: 0
A93: =IF(COUNTIF(B$13:B93,B93)>1,"X","") -> X | B93: =IF(ISBLANK(F93)," ",INDEX(BP:BP,MATCH(F93,BO:BO,0))) ->  | C93: =IF(ISBLANK(F93)," ",INDEX('Startgeld Damen'!$C:$C,MATCH($B93,'Startgeld Damen'!$A:$A,0))) ->  | K93: =IF(ISBLANK(G93)," ",G93+(H93-I93)*50+IF(COUNT(G93:G96)=3,(I94+I95+I96)*40,(I94+I95+I96)*30)) ->  | L93: 0 | M93: =IF(COUNTIF(N$13:N93,N93)>1,"X","") -> X | N93: =IF(ISBLANK(R93)," ",INDEX(BU:BU,MATCH(R93,BT:BT,0))) ->  | O93: =IF(ISBLANK(R93)," ",INDEX('Startgeld Damen'!$C:$C,MATCH(N93,'Startgeld Damen'!$A:$A,0))) ->  | W93: =IF(ISBLANK(S93)," ",S93+(T93-U93)*50+IF(COUNT(S93:S96)=3,(U94+U95+U96)*40,(U94+U95+U96)*30)) ->  | X93: 0 | Y93: =IF(COUNTIF(Z$13:Z93,Z93)>1,"X","") -> X | Z93: =IF(ISBLANK(AD93)," ",INDEX(BZ:BZ,MATCH(AD93,BY:BY,0))) ->  | AA93: =IF(ISBLANK(AD93)," ",INDEX('Startgeld Damen'!$C:$C,MATCH(Z93,'Startgeld Damen'!$A:$A,0))) ->  | AI93: =IF(ISBLANK(AE93)," ",AE93+(AF93-AG93)*50+IF(COUNT(AE93:AE96)=3,(AG94+AG95+AG96)*40,(AG94+AG95+AG96)*30)) ->  | AJ93: 0 | AK93: =IF(COUNTIF(AL$13:AL93,AL93)>1,"X","") -> X | AL93: =IF(ISBLANK(AP93)," ",INDEX(CE:CE,MATCH(AP93,CD:CD,0))) ->  | AM93: =IF(ISBLANK(AP93)," ",INDEX('Startgeld Damen'!$C:$C,MATCH(AL93,'Startgeld Damen'!$A:$A,0))) ->  | AU93: =IF(ISBLANK(AQ93)," ",AQ93+(AR93-AS93)*50+IF(COUNT(AQ93:AQ96)=3,(AS94+AS95+AS96)*40,(AS94+AS95+AS96)*30)) ->  | AV93: 0 | AW93: =IF(COUNTIF(AX$13:AX93,AX93)>1,"X","") -> X | AX93: =IF(ISBLANK(BB93)," ",INDEX(CJ:CJ,MATCH(BB93,CI:CI,0))) ->  | AY93: =IF(ISBLANK(BB93)," ",INDEX('Startgeld Damen'!$C:$C,MATCH(AX93,'Startgeld Damen'!$A:$A,0))) ->  | BG93: =IF(ISBLANK(BC93)," ",BC93+(BD93-BE93)*50+IF(COUNT(BC93:BC96)=3,(BE94+BE95+BE96)*40,(BE94+BE95+BE96)*30)) ->  | BH93: 0 | BK93: =SUM(L93:L96) -> 0 | BL93: =SUM(X93:X96) -> 0 | BM93: =SUM(AJ93:AJ96) -> 0 | BN93: =SUM(AV93:AV96) -> 0
A94: =IF(COUNTIF(B$13:B94,B94)>1,"X","") -> X | B94: =IF(ISBLANK(F93)," ",INDEX(BQ:BQ,MATCH(F93,BO:BO,0))) ->  | C94: =IF(ISBLANK(F93)," ",INDEX('Startgeld Damen'!$C:$C,MATCH($B94,'Startgeld Damen'!$A:$A,0))) ->  | F94: =F93 -> 0 | K94: =IF(ISBLANK(G94)," ",G94+(H94-I94)*50+IF(COUNT(G93:G96)=3,(I93+I95+I96)*40,(I93+I95+I96)*30)) ->  | L94: 0 | M94: =IF(COUNTIF(N$13:N94,N94)>1,"X","") -> X | N94: =IF(ISBLANK(R93)," ",INDEX(BV:BV,MATCH(R93,BT:BT,0))) ->  | O94: =IF(ISBLANK(R93)," ",INDEX('Startgeld Damen'!$C:$C,MATCH(N94,'Startgeld Damen'!$A:$A,0))) ->  | R94: =R93 -> 0 | W94: =IF(ISBLANK(S94)," ",S94+(T94-U94)*50+IF(COUNT(S93:S96)=3,(U93+U95+U96)*40,(U93+U95+U96)*30)) ->  | X94: 0 | Y94: =IF(COUNTIF(Z$13:Z94,Z94)>1,"X","") -> X | Z94: =IF(ISBLANK(AD93)," ",INDEX(CA:CA,MATCH(AD93,BY:BY,0))) ->  | AA94: =IF(ISBLANK(AD93)," ",INDEX('Startgeld Damen'!$C:$C,MATCH(Z94,'Startgeld Damen'!$A:$A,0))) ->  | AD94: =AD93 -> 0 | AI94: =IF(ISBLANK(AE94)," ",AE94+(AF94-AG94)*50+IF(COUNT(AE93:AE96)=3,(AG93+AG95+AG96)*40,(AG93+AG95+AG96)*30)) ->  | AJ94: 0 | AK94: =IF(COUNTIF(AL$13:AL94,AL94)>1,"X","") -> X | AL94: =IF(ISBLANK(AP93)," ",INDEX(CF:CF,MATCH(AP93,CD:CD,0))) ->  | AM94: =IF(ISBLANK(AP93)," ",INDEX('Startgeld Damen'!$C:$C,MATCH(AL94,'Startgeld Damen'!$A:$A,0))) ->  | AP94: =AP93 -> 0 | AU94: =IF(ISBLANK(AQ94)," ",AQ94+(AR94-AS94)*50+IF(COUNT(AQ93:AQ96)=3,(AS93+AS95+AS96)*40,(AS93+AS95+AS96)*30)) ->  | AV94: 0 | AW94: =IF(COUNTIF(AX$13:AX94,AX94)>1,"X","") -> X | AX94: =IF(ISBLANK(BB93)," ",INDEX(CK:CK,MATCH(BB93,CI:CI,0))) ->  | AY94: =IF(ISBLANK(BB93)," ",INDEX('Startgeld Damen'!$C:$C,MATCH(AX94,'Startgeld Damen'!$A:$A,0))) ->  | BB94: =BB93 -> 0 | BG94: =IF(ISBLANK(BC94)," ",BC94+(BD94-BE94)*50+IF(COUNT(BC93:BC96)=3,(BE93+BE95+BE96)*40,(BE93+BE95+BE96)*30)) ->  | BH94: 0
A95: =IF(COUNTIF(B$13:B95,B95)>1,"X","") -> X | B95: =IF(ISBLANK(F93)," ",INDEX(BR:BR,MATCH(F93,BO:BO,0))) ->  | C95: =IF(ISBLANK(F93)," ",INDEX('Startgeld Damen'!$C:$C,MATCH($B95,'Startgeld Damen'!$A:$A,0))) ->  | F95: =F93 -> 0 | K95: =IF(ISBLANK(G95)," ",G95+(H95-I95)*50+IF(COUNT(G93:G96)=3,(I93+I94+I96)*40,(I93+I94+I96)*30)) ->  | L95: 0 | M95: =IF(COUNTIF(N$13:N95,N95)>1,"X","") -> X | N95: =IF(ISBLANK(R93)," ",INDEX(BW:BW,MATCH(R93,BT:BT,0))) ->  | O95: =IF(ISBLANK(R93)," ",INDEX('Startgeld Damen'!$C:$C,MATCH(N95,'Startgeld Damen'!$A:$A,0))) ->  | R95: =R93 -> 0 | W95: =IF(ISBLANK(S95)," ",S95+(T95-U95)*50+IF(COUNT(S93:S96)=3,(U93+U94+U96)*40,(U93+U94+U96)*30)) ->  | X95: 0 | Y95: =IF(COUNTIF(Z$13:Z95,Z95)>1,"X","") -> X | Z95: =IF(ISBLANK(AD93)," ",INDEX(CB:CB,MATCH(AD93,BY:BY,0))) ->  | AA95: =IF(ISBLANK(AD93)," ",INDEX('Startgeld Damen'!$C:$C,MATCH(Z95,'Startgeld Damen'!$A:$A,0))) ->  | AD95: =AD93 -> 0 | AI95: =IF(ISBLANK(AE95)," ",AE95+(AF95-AG95)*50+IF(COUNT(AE93:AE96)=3,(AG93+AG94+AG96)*40,(AG93+AG94+AG96)*30)) ->  | AJ95: 0 | AK95: =IF(COUNTIF(AL$13:AL95,AL95)>1,"X","") -> X | AL95: =IF(ISBLANK(AP93)," ",INDEX(CG:CG,MATCH(AP93,CD:CD,0))) ->  | AM95: =IF(ISBLANK(AP93)," ",INDEX('Startgeld Damen'!$C:$C,MATCH(AL95,'Startgeld Damen'!$A:$A,0))) ->  | AP95: =AP93 -> 0 | AU95: =IF(ISBLANK(AQ95)," ",AQ95+(AR95-AS95)*50+IF(COUNT(AQ93:AQ96)=3,(AS93+AS94+AS96)*40,(AS93+AS94+AS96)*30)) ->  | AV95: 0 | AW95: =IF(COUNTIF(AX$13:AX95,AX95)>1,"X","") -> X | AX95: =IF(ISBLANK(BB93)," ",INDEX(CL:CL,MATCH(BB93,CI:CI,0))) ->  | AY95: =IF(ISBLANK(BB93)," ",INDEX('Startgeld Damen'!$C:$C,MATCH(AX95,'Startgeld Damen'!$A:$A,0))) ->  | BB95: =BB93 -> 0 | BG95: =IF(ISBLANK(BC95)," ",BC95+(BD95-BE95)*50+IF(COUNT(BC93:BC96)=3,(BE93+BE94+BE96)*40,(BE93+BE94+BE96)*30)) ->  | BH95: 0
A96: =IF(COUNTIF(B$13:B96,B96)>1,"X","") -> X | B96: =IF(ISBLANK(F93)," ",INDEX(BS:BS,MATCH(F93,BO:BO,0))) ->  | C96: =IF(ISBLANK(F93)," ",INDEX('Startgeld Damen'!$C:$C,MATCH($B96,'Startgeld Damen'!$A:$A,0))) ->  | F96: =F93 -> 0 | K96: =IF(ISBLANK(G96)," ",G96+(H96-I96)*50+IF(COUNT(G93:G96)=3,(I93+I94+I95)*40,(I93+I94+I95)*30)) ->  | L96: 0 | M96: =IF(COUNTIF(N$13:N96,N96)>1,"X","") -> X | N96: =IF(ISBLANK(R93)," ",INDEX(BX:BX,MATCH(R93,BT:BT,0))) ->  | O96: =IF(ISBLANK(R93)," ",INDEX('Startgeld Damen'!$C:$C,MATCH(N96,'Startgeld Damen'!$A:$A,0))) ->  | R96: =R93 -> 0 | W96: =IF(ISBLANK(S96)," ",S96+(T96-U96)*50+IF(COUNT(S93:S96)=3,(U93+U94+U95)*40,(U93+U94+U95)*30)) ->  | X96: 0 | Y96: =IF(COUNTIF(Z$13:Z96,Z96)>1,"X","") -> X | Z96: =IF(ISBLANK(AD93)," ",INDEX(CC:CC,MATCH(AD93,BY:BY,0))) ->  | AA96: =IF(ISBLANK(AD93)," ",INDEX('Startgeld Damen'!$C:$C,MATCH(Z96,'Startgeld Damen'!$A:$A,0))) ->  | AD96: =AD93 -> 0 | AI96: =IF(ISBLANK(AE96)," ",AE96+(AF96-AG96)*50+IF(COUNT(AE93:AE96)=3,(AG93+AG94+AG95)*40,(AG93+AG94+AG95)*30)) ->  | AJ96: 0 | AK96: =IF(COUNTIF(AL$13:AL96,AL96)>1,"X","") -> X | AL96: =IF(ISBLANK(AP93)," ",INDEX(CH:CH,MATCH(AP93,CD:CD,0))) ->  | AM96: =IF(ISBLANK(AP93)," ",INDEX('Startgeld Damen'!$C:$C,MATCH(AL96,'Startgeld Damen'!$A:$A,0))) ->  | AP96: =AP93 -> 0 | AU96: =IF(ISBLANK(AQ96)," ",AQ96+(AR96-AS96)*50+IF(COUNT(AQ93:AQ96)=3,(AS93+AS94+AS95)*40,(AS93+AS94+AS95)*30)) ->  | AV96: 0 | AW96: =IF(COUNTIF(AX$13:AX96,AX96)>1,"X","") -> X | AX96: =IF(ISBLANK(BB93)," ",INDEX(CM:CM,MATCH(BB93,CI:CI,0))) ->  | AY96: =IF(ISBLANK(BB93)," ",INDEX('Startgeld Damen'!$C:$C,MATCH(AX96,'Startgeld Damen'!$A:$A,0))) ->  | BB96: =BB93 -> 0 | BG96: =IF(ISBLANK(BC96)," ",BC96+(BD96-BE96)*50+IF(COUNT(BC93:BC96)=3,(BE93+BE94+BE95)*40,(BE93+BE94+BE95)*30)) ->  | BH96: 0
A97: =IF(COUNTIF(B$13:B97,B97)>1,"X","") -> X | B97: =IF(ISBLANK(F97)," ",INDEX(BP:BP,MATCH(F97,BO:BO,0))) ->  | C97: =IF(ISBLANK(F97)," ",INDEX('Startgeld Damen'!$C:$C,MATCH($B97,'Startgeld Damen'!$A:$A,0))) ->  | K97: =IF(ISBLANK(G97)," ",G97+(H97-I97)*50+IF(COUNT(G97:G100)=3,(I98+I99+I100)*40,(I98+I99+I100)*30)) ->  | L97: 0 | M97: =IF(COUNTIF(N$13:N97,N97)>1,"X","") -> X | N97: =IF(ISBLANK(R97)," ",INDEX(BU:BU,MATCH(R97,BT:BT,0))) ->  | O97: =IF(ISBLANK(R97)," ",INDEX('Startgeld Damen'!$C:$C,MATCH(N97,'Startgeld Damen'!$A:$A,0))) ->  | W97: =IF(ISBLANK(S97)," ",S97+(T97-U97)*50+IF(COUNT(S97:S100)=3,(U98+U99+U100)*40,(U98+U99+U100)*30)) ->  | X97: 0 | Y97: =IF(COUNTIF(Z$13:Z97,Z97)>1,"X","") -> X | Z97: =IF(ISBLANK(AD97)," ",INDEX(BZ:BZ,MATCH(AD97,BY:BY,0))) ->  | AA97: =IF(ISBLANK(AD97)," ",INDEX('Startgeld Damen'!$C:$C,MATCH(Z97,'Startgeld Damen'!$A:$A,0))) ->  | AI97: =IF(ISBLANK(AE97)," ",AE97+(AF97-AG97)*50+IF(COUNT(AE97:AE100)=3,(AG98+AG99+AG100)*40,(AG98+AG99+AG100)*30)) ->  | AJ97: 0 | AK97: =IF(COUNTIF(AL$13:AL97,AL97)>1,"X","") -> X | AL97: =IF(ISBLANK(AP97)," ",INDEX(CE:CE,MATCH(AP97,CD:CD,0))) ->  | AM97: =IF(ISBLANK(AP97)," ",INDEX('Startgeld Damen'!$C:$C,MATCH(AL97,'Startgeld Damen'!$A:$A,0))) ->  | AU97: =IF(ISBLANK(AQ97)," ",AQ97+(AR97-AS97)*50+IF(COUNT(AQ97:AQ100)=3,(AS98+AS99+AS100)*40,(AS98+AS99+AS100)*30)) ->  | AV97: 0 | AW97: =IF(COUNTIF(AX$13:AX97,AX97)>1,"X","") -> X | AX97: =IF(ISBLANK(BB97)," ",INDEX(CJ:CJ,MATCH(BB97,CI:CI,0))) ->  | AY97: =IF(ISBLANK(BB97)," ",INDEX('Startgeld Damen'!$C:$C,MATCH(AX97,'Startgeld Damen'!$A:$A,0))) ->  | BG97: =IF(ISBLANK(BC97)," ",BC97+(BD97-BE97)*50+IF(COUNT(BC97:BC100)=3,(BE98+BE99+BE100)*40,(BE98+BE99+BE100)*30)) ->  | BH97: 0 | BK97: =SUM(L97:L100) -> 0 | BL97: =SUM(X97:X100) -> 0 | BM97: =SUM(AJ97:AJ100) -> 0 | BN97: =SUM(AV97:AV100) -> 0
A98: =IF(COUNTIF(B$13:B98,B98)>1,"X","") -> X | B98: =IF(ISBLANK(F97)," ",INDEX(BQ:BQ,MATCH(F97,BO:BO,0))) ->  | C98: =IF(ISBLANK(F97)," ",INDEX('Startgeld Damen'!$C:$C,MATCH($B98,'Startgeld Damen'!$A:$A,0))) ->  | F98: =F97 -> 0 | K98: =IF(ISBLANK(G98)," ",G98+(H98-I98)*50+IF(COUNT(G97:G100)=3,(I97+I99+I100)*40,(I97+I99+I100)*30)) ->  | L98: 0 | M98: =IF(COUNTIF(N$13:N98,N98)>1,"X","") -> X | N98: =IF(ISBLANK(R97)," ",INDEX(BV:BV,MATCH(R97,BT:BT,0))) ->  | O98: =IF(ISBLANK(R97)," ",INDEX('Startgeld Damen'!$C:$C,MATCH(N98,'Startgeld Damen'!$A:$A,0))) ->  | R98: =R97 -> 0 | W98: =IF(ISBLANK(S98)," ",S98+(T98-U98)*50+IF(COUNT(S97:S100)=3,(U97+U99+U100)*40,(U97+U99+U100)*30)) ->  | X98: 0 | Y98: =IF(COUNTIF(Z$13:Z98,Z98)>1,"X","") -> X | Z98: =IF(ISBLANK(AD97)," ",INDEX(CA:CA,MATCH(AD97,BY:BY,0))) ->  | AA98: =IF(ISBLANK(AD97)," ",INDEX('Startgeld Damen'!$C:$C,MATCH(Z98,'Startgeld Damen'!$A:$A,0))) ->  | AD98: =AD97 -> 0 | AI98: =IF(ISBLANK(AE98)," ",AE98+(AF98-AG98)*50+IF(COUNT(AE97:AE100)=3,(AG97+AG99+AG100)*40,(AG97+AG99+AG100)*30)) ->  | AJ98: 0 | AK98: =IF(COUNTIF(AL$13:AL98,AL98)>1,"X","") -> X | AL98: =IF(ISBLANK(AP97)," ",INDEX(CF:CF,MATCH(AP97,CD:CD,0))) ->  | AM98: =IF(ISBLANK(AP97)," ",INDEX('Startgeld Damen'!$C:$C,MATCH(AL98,'Startgeld Damen'!$A:$A,0))) ->  | AP98: =AP97 -> 0 | AU98: =IF(ISBLANK(AQ98)," ",AQ98+(AR98-AS98)*50+IF(COUNT(AQ97:AQ100)=3,(AS97+AS99+AS100)*40,(AS97+AS99+AS100)*30)) ->  | AV98: 0 | AW98: =IF(COUNTIF(AX$13:AX98,AX98)>1,"X","") -> X | AX98: =IF(ISBLANK(BB97)," ",INDEX(CK:CK,MATCH(BB97,CI:CI,0))) ->  | AY98: =IF(ISBLANK(BB97)," ",INDEX('Startgeld Damen'!$C:$C,MATCH(AX98,'Startgeld Damen'!$A:$A,0))) ->  | BB98: =BB97 -> 0 | BG98: =IF(ISBLANK(BC98)," ",BC98+(BD98-BE98)*50+IF(COUNT(BC97:BC100)=3,(BE97+BE99+BE100)*40,(BE97+BE99+BE100)*30)) ->  | BH98: 0
A99: =IF(COUNTIF(B$13:B99,B99)>1,"X","") -> X | B99: =IF(ISBLANK(F97)," ",INDEX(BR:BR,MATCH(F97,BO:BO,0))) ->  | C99: =IF(ISBLANK(F97)," ",INDEX('Startgeld Damen'!$C:$C,MATCH($B99,'Startgeld Damen'!$A:$A,0))) ->  | F99: =F97 -> 0 | K99: =IF(ISBLANK(G99)," ",G99+(H99-I99)*50+IF(COUNT(G97:G100)=3,(I97+I98+I100)*40,(I97+I98+I100)*30)) ->  | L99: 0 | M99: =IF(COUNTIF(N$13:N99,N99)>1,"X","") -> X | N99: =IF(ISBLANK(R97)," ",INDEX(BW:BW,MATCH(R97,BT:BT,0))) ->  | O99: =IF(ISBLANK(R97)," ",INDEX('Startgeld Damen'!$C:$C,MATCH(N99,'Startgeld Damen'!$A:$A,0))) ->  | R99: =R97 -> 0 | W99: =IF(ISBLANK(S99)," ",S99+(T99-U99)*50+IF(COUNT(S97:S100)=3,(U97+U98+U100)*40,(U97+U98+U100)*30)) ->  | X99: 0 | Y99: =IF(COUNTIF(Z$13:Z99,Z99)>1,"X","") -> X | Z99: =IF(ISBLANK(AD97)," ",INDEX(CB:CB,MATCH(AD97,BY:BY,0))) ->  | AA99: =IF(ISBLANK(AD97)," ",INDEX('Startgeld Damen'!$C:$C,MATCH(Z99,'Startgeld Damen'!$A:$A,0))) ->  | AD99: =AD97 -> 0 | AI99: =IF(ISBLANK(AE99)," ",AE99+(AF99-AG99)*50+IF(COUNT(AE97:AE100)=3,(AG97+AG98+AG100)*40,(AG97+AG98+AG100)*30)) ->  | AJ99: 0 | AK99: =IF(COUNTIF(AL$13:AL99,AL99)>1,"X","") -> X | AL99: =IF(ISBLANK(AP97)," ",INDEX(CG:CG,MATCH(AP97,CD:CD,0))) ->  | AM99: =IF(ISBLANK(AP97)," ",INDEX('Startgeld Damen'!$C:$C,MATCH(AL99,'Startgeld Damen'!$A:$A,0))) ->  | AP99: =AP97 -> 0 | AU99: =IF(ISBLANK(AQ99)," ",AQ99+(AR99-AS99)*50+IF(COUNT(AQ97:AQ100)=3,(AS97+AS98+AS100)*40,(AS97+AS98+AS100)*30)) ->  | AV99: 0 | AW99: =IF(COUNTIF(AX$13:AX99,AX99)>1,"X","") -> X | AX99: =IF(ISBLANK(BB97)," ",INDEX(CL:CL,MATCH(BB97,CI:CI,0))) ->  | AY99: =IF(ISBLANK(BB97)," ",INDEX('Startgeld Damen'!$C:$C,MATCH(AX99,'Startgeld Damen'!$A:$A,0))) ->  | BB99: =BB97 -> 0 | BG99: =IF(ISBLANK(BC99)," ",BC99+(BD99-BE99)*50+IF(COUNT(BC97:BC100)=3,(BE97+BE98+BE100)*40,(BE97+BE98+BE100)*30)) ->  | BH99: 0
A100: =IF(COUNTIF(B$13:B100,B100)>1,"X","") -> X | B100: =IF(ISBLANK(F97)," ",INDEX(BS:BS,MATCH(F97,BO:BO,0))) ->  | C100: =IF(ISBLANK(F97)," ",INDEX('Startgeld Damen'!$C:$C,MATCH($B100,'Startgeld Damen'!$A:$A,0))) ->  | F100: =F97 -> 0 | K100: =IF(ISBLANK(G100)," ",G100+(H100-I100)*50+IF(COUNT(G97:G100)=3,(I97+I98+I99)*40,(I97+I98+I99)*30)) ->  | L100: 0 | M100: =IF(COUNTIF(N$13:N100,N100)>1,"X","") -> X | N100: =IF(ISBLANK(R97)," ",INDEX(BX:BX,MATCH(R97,BT:BT,0))) ->  | O100: =IF(ISBLANK(R97)," ",INDEX('Startgeld Damen'!$C:$C,MATCH(N100,'Startgeld Damen'!$A:$A,0))) ->  | R100: =R97 -> 0 | W100: =IF(ISBLANK(S100)," ",S100+(T100-U100)*50+IF(COUNT(S97:S100)=3,(U97+U98+U99)*40,(U97+U98+U99)*30)) ->  | X100: 0 | Y100: =IF(COUNTIF(Z$13:Z100,Z100)>1,"X","") -> X | Z100: =IF(ISBLANK(AD97)," ",INDEX(CC:CC,MATCH(AD97,BY:BY,0))) ->  | AA100: =IF(ISBLANK(AD97)," ",INDEX('Startgeld Damen'!$C:$C,MATCH(Z100,'Startgeld Damen'!$A:$A,0))) ->  | AD100: =AD97 -> 0 | AI100: =IF(ISBLANK(AE100)," ",AE100+(AF100-AG100)*50+IF(COUNT(AE97:AE100)=3,(AG97+AG98+AG99)*40,(AG97+AG98+AG99)*30)) ->  | AJ100: 0 | AK100: =IF(COUNTIF(AL$13:AL100,AL100)>1,"X","") -> X | AL100: =IF(ISBLANK(AP97)," ",INDEX(CH:CH,MATCH(AP97,CD:CD,0))) ->  | AM100: =IF(ISBLANK(AP97)," ",INDEX('Startgeld Damen'!$C:$C,MATCH(AL100,'Startgeld Damen'!$A:$A,0))) ->  | AP100: =AP97 -> 0 | AU100: =IF(ISBLANK(AQ100)," ",AQ100+(AR100-AS100)*50+IF(COUNT(AQ97:AQ100)=3,(AS97+AS98+AS99)*40,(AS97+AS98+AS99)*30)) ->  | AV100: 0 | AW100: =IF(COUNTIF(AX$13:AX100,AX100)>1,"X","") -> X | AX100: =IF(ISBLANK(BB97)," ",INDEX(CM:CM,MATCH(BB97,CI:CI,0))) ->  | AY100: =IF(ISBLANK(BB97)," ",INDEX('Startgeld Damen'!$C:$C,MATCH(AX100,'Startgeld Damen'!$A:$A,0))) ->  | BB100: =BB97 -> 0 | BG100: =IF(ISBLANK(BC100)," ",BC100+(BD100-BE100)*50+IF(COUNT(BC97:BC100)=3,(BE97+BE98+BE99)*40,(BE97+BE98+BE99)*30)) ->  | BH100: 0
A101: =IF(COUNTIF(B$13:B101,B101)>1,"X","") -> X | B101: =IF(ISBLANK(F101)," ",INDEX(BP:BP,MATCH(F101,BO:BO,0))) ->  | C101: =IF(ISBLANK(F101)," ",INDEX('Startgeld Damen'!$C:$C,MATCH($B101,'Startgeld Damen'!$A:$A,0))) ->  | K101: =IF(ISBLANK(G101)," ",G101+(H101-I101)*50+IF(COUNT(G101:G104)=3,(I102+I103+I104)*40,(I102+I103+I104)*30)) ->  | L101: 0 | M101: =IF(COUNTIF(N$13:N101,N101)>1,"X","") -> X | N101: =IF(ISBLANK(R101)," ",INDEX(BU:BU,MATCH(R101,BT:BT,0))) ->  | O101: =IF(ISBLANK(R101)," ",INDEX('Startgeld Damen'!$C:$C,MATCH(N101,'Startgeld Damen'!$A:$A,0))) ->  | W101: =IF(ISBLANK(S101)," ",S101+(T101-U101)*50+IF(COUNT(S101:S104)=3,(U102+U103+U104)*40,(U102+U103+U104)*30)) ->  | X101: 0 | Y101: =IF(COUNTIF(Z$13:Z101,Z101)>1,"X","") -> X | Z101: =IF(ISBLANK(AD101)," ",INDEX(BZ:BZ,MATCH(AD101,BY:BY,0))) ->  | AA101: =IF(ISBLANK(AD101)," ",INDEX('Startgeld Damen'!$C:$C,MATCH(Z101,'Startgeld Damen'!$A:$A,0))) ->  | AI101: =IF(ISBLANK(AE101)," ",AE101+(AF101-AG101)*50+IF(COUNT(AE101:AE104)=3,(AG102+AG103+AG104)*40,(AG102+AG103+AG104)*30)) ->  | AJ101: 0 | AK101: =IF(COUNTIF(AL$13:AL101,AL101)>1,"X","") -> X | AL101: =IF(ISBLANK(AP101)," ",INDEX(CE:CE,MATCH(AP101,CD:CD,0))) ->  | AM101: =IF(ISBLANK(AP101)," ",INDEX('Startgeld Damen'!$C:$C,MATCH(AL101,'Startgeld Damen'!$A:$A,0))) ->  | AU101: =IF(ISBLANK(AQ101)," ",AQ101+(AR101-AS101)*50+IF(COUNT(AQ101:AQ104)=3,(AS102+AS103+AS104)*40,(AS102+AS103+AS104)*30)) ->  | AV101: 0 | AW101: =IF(COUNTIF(AX$13:AX101,AX101)>1,"X","") -> X | AX101: =IF(ISBLANK(BB101)," ",INDEX(CJ:CJ,MATCH(BB101,CI:CI,0))) ->  | AY101: =IF(ISBLANK(BB101)," ",INDEX('Startgeld Damen'!$C:$C,MATCH(AX101,'Startgeld Damen'!$A:$A,0))) ->  | BG101: =IF(ISBLANK(BC101)," ",BC101+(BD101-BE101)*50+IF(COUNT(BC101:BC104)=3,(BE102+BE103+BE104)*40,(BE102+BE103+BE104)*30)) ->  | BH101: 0 | BK101: =SUM(L101:L104) -> 0 | BL101: =SUM(X101:X104) -> 0 | BM101: =SUM(AJ101:AJ104) -> 0 | BN101: =SUM(AV101:AV104) -> 0
A102: =IF(COUNTIF(B$13:B102,B102)>1,"X","") -> X | B102: =IF(ISBLANK(F101)," ",INDEX(BQ:BQ,MATCH(F101,BO:BO,0))) ->  | C102: =IF(ISBLANK(F101)," ",INDEX('Startgeld Damen'!$C:$C,MATCH($B102,'Startgeld Damen'!$A:$A,0))) ->  | F102: =F101 -> 0 | K102: =IF(ISBLANK(G102)," ",G102+(H102-I102)*50+IF(COUNT(G101:G104)=3,(I101+I103+I104)*40,(I101+I103+I104)*30)) ->  | L102: 0 | M102: =IF(COUNTIF(N$13:N102,N102)>1,"X","") -> X | N102: =IF(ISBLANK(R101)," ",INDEX(BV:BV,MATCH(R101,BT:BT,0))) ->  | O102: =IF(ISBLANK(R101)," ",INDEX('Startgeld Damen'!$C:$C,MATCH(N102,'Startgeld Damen'!$A:$A,0))) ->  | R102: =R101 -> 0 | W102: =IF(ISBLANK(S102)," ",S102+(T102-U102)*50+IF(COUNT(S101:S104)=3,(U101+U103+U104)*40,(U101+U103+U104)*30)) ->  | X102: 0 | Y102: =IF(COUNTIF(Z$13:Z102,Z102)>1,"X","") -> X | Z102: =IF(ISBLANK(AD101)," ",INDEX(CA:CA,MATCH(AD101,BY:BY,0))) ->  | AA102: =IF(ISBLANK(AD101)," ",INDEX('Startgeld Damen'!$C:$C,MATCH(Z102,'Startgeld Damen'!$A:$A,0))) ->  | AD102: =AD101 -> 0 | AI102: =IF(ISBLANK(AE102)," ",AE102+(AF102-AG102)*50+IF(COUNT(AE101:AE104)=3,(AG101+AG103+AG104)*40,(AG101+AG103+AG104)*30)) ->  | AJ102: 0 | AK102: =IF(COUNTIF(AL$13:AL102,AL102)>1,"X","") -> X | AL102: =IF(ISBLANK(AP101)," ",INDEX(CF:CF,MATCH(AP101,CD:CD,0))) ->  | AM102: =IF(ISBLANK(AP101)," ",INDEX('Startgeld Damen'!$C:$C,MATCH(AL102,'Startgeld Damen'!$A:$A,0))) ->  | AP102: =AP101 -> 0 | AU102: =IF(ISBLANK(AQ102)," ",AQ102+(AR102-AS102)*50+IF(COUNT(AQ101:AQ104)=3,(AS101+AS103+AS104)*40,(AS101+AS103+AS104)*30)) ->  | AV102: 0 | AW102: =IF(COUNTIF(AX$13:AX102,AX102)>1,"X","") -> X | AX102: =IF(ISBLANK(BB101)," ",INDEX(CK:CK,MATCH(BB101,CI:CI,0))) ->  | AY102: =IF(ISBLANK(BB101)," ",INDEX('Startgeld Damen'!$C:$C,MATCH(AX102,'Startgeld Damen'!$A:$A,0))) ->  | BB102: =BB101 -> 0 | BG102: =IF(ISBLANK(BC102)," ",BC102+(BD102-BE102)*50+IF(COUNT(BC101:BC104)=3,(BE101+BE103+BE104)*40,(BE101+BE103+BE104)*30)) ->  | BH102: 0
A103: =IF(COUNTIF(B$13:B103,B103)>1,"X","") -> X | B103: =IF(ISBLANK(F101)," ",INDEX(BR:BR,MATCH(F101,BO:BO,0))) ->  | C103: =IF(ISBLANK(F101)," ",INDEX('Startgeld Damen'!$C:$C,MATCH($B103,'Startgeld Damen'!$A:$A,0))) ->  | F103: =F101 -> 0 | K103: =IF(ISBLANK(G103)," ",G103+(H103-I103)*50+IF(COUNT(G101:G104)=3,(I101+I102+I104)*40,(I101+I102+I104)*30)) ->  | L103: 0 | M103: =IF(COUNTIF(N$13:N103,N103)>1,"X","") -> X | N103: =IF(ISBLANK(R101)," ",INDEX(BW:BW,MATCH(R101,BT:BT,0))) ->  | O103: =IF(ISBLANK(R101)," ",INDEX('Startgeld Damen'!$C:$C,MATCH(N103,'Startgeld Damen'!$A:$A,0))) ->  | R103: =R101 -> 0 | W103: =IF(ISBLANK(S103)," ",S103+(T103-U103)*50+IF(COUNT(S101:S104)=3,(U101+U102+U104)*40,(U101+U102+U104)*30)) ->  | X103: 0 | Y103: =IF(COUNTIF(Z$13:Z103,Z103)>1,"X","") -> X | Z103: =IF(ISBLANK(AD101)," ",INDEX(CB:CB,MATCH(AD101,BY:BY,0))) ->  | AA103: =IF(ISBLANK(AD101)," ",INDEX('Startgeld Damen'!$C:$C,MATCH(Z103,'Startgeld Damen'!$A:$A,0))) ->  | AD103: =AD101 -> 0 | AI103: =IF(ISBLANK(AE103)," ",AE103+(AF103-AG103)*50+IF(COUNT(AE101:AE104)=3,(AG101+AG102+AG104)*40,(AG101+AG102+AG104)*30)) ->  | AJ103: 0 | AK103: =IF(COUNTIF(AL$13:AL103,AL103)>1,"X","") -> X | AL103: =IF(ISBLANK(AP101)," ",INDEX(CG:CG,MATCH(AP101,CD:CD,0))) ->  | AM103: =IF(ISBLANK(AP101)," ",INDEX('Startgeld Damen'!$C:$C,MATCH(AL103,'Startgeld Damen'!$A:$A,0))) ->  | AP103: =AP101 -> 0 | AU103: =IF(ISBLANK(AQ103)," ",AQ103+(AR103-AS103)*50+IF(COUNT(AQ101:AQ104)=3,(AS101+AS102+AS104)*40,(AS101+AS102+AS104)*30)) ->  | AV103: 0 | AW103: =IF(COUNTIF(AX$13:AX103,AX103)>1,"X","") -> X | AX103: =IF(ISBLANK(BB101)," ",INDEX(CL:CL,MATCH(BB101,CI:CI,0))) ->  | AY103: =IF(ISBLANK(BB101)," ",INDEX('Startgeld Damen'!$C:$C,MATCH(AX103,'Startgeld Damen'!$A:$A,0))) ->  | BB103: =BB101 -> 0 | BG103: =IF(ISBLANK(BC103)," ",BC103+(BD103-BE103)*50+IF(COUNT(BC101:BC104)=3,(BE101+BE102+BE104)*40,(BE101+BE102+BE104)*30)) ->  | BH103: 0
A104: =IF(COUNTIF(B$13:B104,B104)>1,"X","") -> X | B104: =IF(ISBLANK(F101)," ",INDEX(BS:BS,MATCH(F101,BO:BO,0))) ->  | C104: =IF(ISBLANK(F101)," ",INDEX('Startgeld Damen'!$C:$C,MATCH($B104,'Startgeld Damen'!$A:$A,0))) ->  | F104: =F101 -> 0 | K104: =IF(ISBLANK(G104)," ",G104+(H104-I104)*50+IF(COUNT(G101:G104)=3,(I101+I102+I103)*40,(I101+I102+I103)*30)) ->  | L104: 0 | M104: =IF(COUNTIF(N$13:N104,N104)>1,"X","") -> X | N104: =IF(ISBLANK(R101)," ",INDEX(BX:BX,MATCH(R101,BT:BT,0))) ->  | O104: =IF(ISBLANK(R101)," ",INDEX('Startgeld Damen'!$C:$C,MATCH(N104,'Startgeld Damen'!$A:$A,0))) ->  | R104: =R101 -> 0 | W104: =IF(ISBLANK(S104)," ",S104+(T104-U104)*50+IF(COUNT(S101:S104)=3,(U101+U102+U103)*40,(U101+U102+U103)*30)) ->  | X104: 0 | Y104: =IF(COUNTIF(Z$13:Z104,Z104)>1,"X","") -> X | Z104: =IF(ISBLANK(AD101)," ",INDEX(CC:CC,MATCH(AD101,BY:BY,0))) ->  | AA104: =IF(ISBLANK(AD101)," ",INDEX('Startgeld Damen'!$C:$C,MATCH(Z104,'Startgeld Damen'!$A:$A,0))) ->  | AD104: =AD101 -> 0 | AI104: =IF(ISBLANK(AE104)," ",AE104+(AF104-AG104)*50+IF(COUNT(AE101:AE104)=3,(AG101+AG102+AG103)*40,(AG101+AG102+AG103)*30)) ->  | AJ104: 0 | AK104: =IF(COUNTIF(AL$13:AL104,AL104)>1,"X","") -> X | AL104: =IF(ISBLANK(AP101)," ",INDEX(CH:CH,MATCH(AP101,CD:CD,0))) ->  | AM104: =IF(ISBLANK(AP101)," ",INDEX('Startgeld Damen'!$C:$C,MATCH(AL104,'Startgeld Damen'!$A:$A,0))) ->  | AP104: =AP101 -> 0 | AU104: =IF(ISBLANK(AQ104)," ",AQ104+(AR104-AS104)*50+IF(COUNT(AQ101:AQ104)=3,(AS101+AS102+AS103)*40,(AS101+AS102+AS103)*30)) ->  | AV104: 0 | AW104: =IF(COUNTIF(AX$13:AX104,AX104)>1,"X","") -> X | AX104: =IF(ISBLANK(BB101)," ",INDEX(CM:CM,MATCH(BB101,CI:CI,0))) ->  | AY104: =IF(ISBLANK(BB101)," ",INDEX('Startgeld Damen'!$C:$C,MATCH(AX104,'Startgeld Damen'!$A:$A,0))) ->  | BB104: =BB101 -> 0 | BG104: =IF(ISBLANK(BC104)," ",BC104+(BD104-BE104)*50+IF(COUNT(BC101:BC104)=3,(BE101+BE102+BE103)*40,(BE101+BE102+BE103)*30)) ->  | BH104: 0
A105: =IF(COUNTIF(B$13:B105,B105)>1,"X","") -> X | B105: =IF(ISBLANK(F105)," ",INDEX(BP:BP,MATCH(F105,BO:BO,0))) ->  | C105: =IF(ISBLANK(F105)," ",INDEX('Startgeld Damen'!$C:$C,MATCH($B105,'Startgeld Damen'!$A:$A,0))) ->  | K105: =IF(ISBLANK(G105)," ",G105+(H105-I105)*50+IF(COUNT(G105:G108)=3,(I106+I107+I108)*40,(I106+I107+I108)*30)) ->  | L105: 0 | M105: =IF(COUNTIF(N$13:N105,N105)>1,"X","") -> X | N105: =IF(ISBLANK(R105)," ",INDEX(BU:BU,MATCH(R105,BT:BT,0))) ->  | O105: =IF(ISBLANK(R105)," ",INDEX('Startgeld Damen'!$C:$C,MATCH(N105,'Startgeld Damen'!$A:$A,0))) ->  | W105: =IF(ISBLANK(S105)," ",S105+(T105-U105)*50+IF(COUNT(S105:S108)=3,(U106+U107+U108)*40,(U106+U107+U108)*30)) ->  | X105: 0 | Y105: =IF(COUNTIF(Z$13:Z105,Z105)>1,"X","") -> X | Z105: =IF(ISBLANK(AD105)," ",INDEX(BZ:BZ,MATCH(AD105,BY:BY,0))) ->  | AA105: =IF(ISBLANK(AD105)," ",INDEX('Startgeld Damen'!$C:$C,MATCH(Z105,'Startgeld Damen'!$A:$A,0))) ->  | AI105: =IF(ISBLANK(AE105)," ",AE105+(AF105-AG105)*50+IF(COUNT(AE105:AE108)=3,(AG106+AG107+AG108)*40,(AG106+AG107+AG108)*30)) ->  | AJ105: 0 | AK105: =IF(COUNTIF(AL$13:AL105,AL105)>1,"X","") -> X | AL105: =IF(ISBLANK(AP105)," ",INDEX(CE:CE,MATCH(AP105,CD:CD,0))) ->  | AM105: =IF(ISBLANK(AP105)," ",INDEX('Startgeld Damen'!$C:$C,MATCH(AL105,'Startgeld Damen'!$A:$A,0))) ->  | AU105: =IF(ISBLANK(AQ105)," ",AQ105+(AR105-AS105)*50+IF(COUNT(AQ105:AQ108)=3,(AS106+AS107+AS108)*40,(AS106+AS107+AS108)*30)) ->  | AV105: 0 | AW105: =IF(COUNTIF(AX$13:AX105,AX105)>1,"X","") -> X | AX105: =IF(ISBLANK(BB105)," ",INDEX(CJ:CJ,MATCH(BB105,CI:CI,0))) ->  | AY105: =IF(ISBLANK(BB105)," ",INDEX('Startgeld Damen'!$C:$C,MATCH(AX105,'Startgeld Damen'!$A:$A,0))) ->  | BG105: =IF(ISBLANK(BC105)," ",BC105+(BD105-BE105)*50+IF(COUNT(BC105:BC108)=3,(BE106+BE107+BE108)*40,(BE106+BE107+BE108)*30)) ->  | BH105: 0 | BK105: =SUM(L105:L108) -> 0 | BL105: =SUM(X105:X108) -> 0 | BM105: =SUM(AJ105:AJ108) -> 0 | BN105: =SUM(AV105:AV108) -> 0
A106: =IF(COUNTIF(B$13:B106,B106)>1,"X","") -> X | B106: =IF(ISBLANK(F105)," ",INDEX(BQ:BQ,MATCH(F105,BO:BO,0))) ->  | C106: =IF(ISBLANK(F105)," ",INDEX('Startgeld Damen'!$C:$C,MATCH($B106,'Startgeld Damen'!$A:$A,0))) ->  | F106: =F105 -> 0 | K106: =IF(ISBLANK(G106)," ",G106+(H106-I106)*50+IF(COUNT(G105:G108)=3,(I105+I107+I108)*40,(I105+I107+I108)*30)) ->  | L106: 0 | M106: =IF(COUNTIF(N$13:N106,N106)>1,"X","") -> X | N106: =IF(ISBLANK(R105)," ",INDEX(BV:BV,MATCH(R105,BT:BT,0))) ->  | O106: =IF(ISBLANK(R105)," ",INDEX('Startgeld Damen'!$C:$C,MATCH(N106,'Startgeld Damen'!$A:$A,0))) ->  | R106: =R105 -> 0 | W106: =IF(ISBLANK(S106)," ",S106+(T106-U106)*50+IF(COUNT(S105:S108)=3,(U105+U107+U108)*40,(U105+U107+U108)*30)) ->  | X106: 0 | Y106: =IF(COUNTIF(Z$13:Z106,Z106)>1,"X","") -> X | Z106: =IF(ISBLANK(AD105)," ",INDEX(CA:CA,MATCH(AD105,BY:BY,0))) ->  | AA106: =IF(ISBLANK(AD105)," ",INDEX('Startgeld Damen'!$C:$C,MATCH(Z106,'Startgeld Damen'!$A:$A,0))) ->  | AD106: =AD105 -> 0 | AI106: =IF(ISBLANK(AE106)," ",AE106+(AF106-AG106)*50+IF(COUNT(AE105:AE108)=3,(AG105+AG107+AG108)*40,(AG105+AG107+AG108)*30)) ->  | AJ106: 0 | AK106: =IF(COUNTIF(AL$13:AL106,AL106)>1,"X","") -> X | AL106: =IF(ISBLANK(AP105)," ",INDEX(CF:CF,MATCH(AP105,CD:CD,0))) ->  | AM106: =IF(ISBLANK(AP105)," ",INDEX('Startgeld Damen'!$C:$C,MATCH(AL106,'Startgeld Damen'!$A:$A,0))) ->  | AP106: =AP105 -> 0 | AU106: =IF(ISBLANK(AQ106)," ",AQ106+(AR106-AS106)*50+IF(COUNT(AQ105:AQ108)=3,(AS105+AS107+AS108)*40,(AS105+AS107+AS108)*30)) ->  | AV106: 0 | AW106: =IF(COUNTIF(AX$13:AX106,AX106)>1,"X","") -> X | AX106: =IF(ISBLANK(BB105)," ",INDEX(CK:CK,MATCH(BB105,CI:CI,0))) ->  | AY106: =IF(ISBLANK(BB105)," ",INDEX('Startgeld Damen'!$C:$C,MATCH(AX106,'Startgeld Damen'!$A:$A,0))) ->  | BB106: =BB105 -> 0 | BG106: =IF(ISBLANK(BC106)," ",BC106+(BD106-BE106)*50+IF(COUNT(BC105:BC108)=3,(BE105+BE107+BE108)*40,(BE105+BE107+BE108)*30)) ->  | BH106: 0
A107: =IF(COUNTIF(B$13:B107,B107)>1,"X","") -> X | B107: =IF(ISBLANK(F105)," ",INDEX(BR:BR,MATCH(F105,BO:BO,0))) ->  | C107: =IF(ISBLANK(F105)," ",INDEX('Startgeld Damen'!$C:$C,MATCH($B107,'Startgeld Damen'!$A:$A,0))) ->  | F107: =F105 -> 0 | K107: =IF(ISBLANK(G107)," ",G107+(H107-I107)*50+IF(COUNT(G105:G108)=3,(I105+I106+I108)*40,(I105+I106+I108)*30)) ->  | L107: 0 | M107: =IF(COUNTIF(N$13:N107,N107)>1,"X","") -> X | N107: =IF(ISBLANK(R105)," ",INDEX(BW:BW,MATCH(R105,BT:BT,0))) ->  | O107: =IF(ISBLANK(R105)," ",INDEX('Startgeld Damen'!$C:$C,MATCH(N107,'Startgeld Damen'!$A:$A,0))) ->  | R107: =R105 -> 0 | W107: =IF(ISBLANK(S107)," ",S107+(T107-U107)*50+IF(COUNT(S105:S108)=3,(U105+U106+U108)*40,(U105+U106+U108)*30)) ->  | X107: 0 | Y107: =IF(COUNTIF(Z$13:Z107,Z107)>1,"X","") -> X | Z107: =IF(ISBLANK(AD105)," ",INDEX(CB:CB,MATCH(AD105,BY:BY,0))) ->  | AA107: =IF(ISBLANK(AD105)," ",INDEX('Startgeld Damen'!$C:$C,MATCH(Z107,'Startgeld Damen'!$A:$A,0))) ->  | AD107: =AD105 -> 0 | AI107: =IF(ISBLANK(AE107)," ",AE107+(AF107-AG107)*50+IF(COUNT(AE105:AE108)=3,(AG105+AG106+AG108)*40,(AG105+AG106+AG108)*30)) ->  | AJ107: 0 | AK107: =IF(COUNTIF(AL$13:AL107,AL107)>1,"X","") -> X | AL107: =IF(ISBLANK(AP105)," ",INDEX(CG:CG,MATCH(AP105,CD:CD,0))) ->  | AM107: =IF(ISBLANK(AP105)," ",INDEX('Startgeld Damen'!$C:$C,MATCH(AL107,'Startgeld Damen'!$A:$A,0))) ->  | AP107: =AP105 -> 0 | AU107: =IF(ISBLANK(AQ107)," ",AQ107+(AR107-AS107)*50+IF(COUNT(AQ105:AQ108)=3,(AS105+AS106+AS108)*40,(AS105+AS106+AS108)*30)) ->  | AV107: 0 | AW107: =IF(COUNTIF(AX$13:AX107,AX107)>1,"X","") -> X | AX107: =IF(ISBLANK(BB105)," ",INDEX(CL:CL,MATCH(BB105,CI:CI,0))) ->  | AY107: =IF(ISBLANK(BB105)," ",INDEX('Startgeld Damen'!$C:$C,MATCH(AX107,'Startgeld Damen'!$A:$A,0))) ->  | BB107: =BB105 -> 0 | BG107: =IF(ISBLANK(BC107)," ",BC107+(BD107-BE107)*50+IF(COUNT(BC105:BC108)=3,(BE105+BE106+BE108)*40,(BE105+BE106+BE108)*30)) ->  | BH107: 0
A108: =IF(COUNTIF(B$13:B108,B108)>1,"X","") -> X | B108: =IF(ISBLANK(F105)," ",INDEX(BS:BS,MATCH(F105,BO:BO,0))) ->  | C108: =IF(ISBLANK(F105)," ",INDEX('Startgeld Damen'!$C:$C,MATCH($B108,'Startgeld Damen'!$A:$A,0))) ->  | F108: =F105 -> 0 | K108: =IF(ISBLANK(G108)," ",G108+(H108-I108)*50+IF(COUNT(G105:G108)=3,(I105+I106+I107)*40,(I105+I106+I107)*30)) ->  | L108: 0 | M108: =IF(COUNTIF(N$13:N108,N108)>1,"X","") -> X | N108: =IF(ISBLANK(R105)," ",INDEX(BX:BX,MATCH(R105,BT:BT,0))) ->  | O108: =IF(ISBLANK(R105)," ",INDEX('Startgeld Damen'!$C:$C,MATCH(N108,'Startgeld Damen'!$A:$A,0))) ->  | R108: =R105 -> 0 | W108: =IF(ISBLANK(S108)," ",S108+(T108-U108)*50+IF(COUNT(S105:S108)=3,(U105+U106+U107)*40,(U105+U106+U107)*30)) ->  | X108: 0 | Y108: =IF(COUNTIF(Z$13:Z108,Z108)>1,"X","") -> X | Z108: =IF(ISBLANK(AD105)," ",INDEX(CC:CC,MATCH(AD105,BY:BY,0))) ->  | AA108: =IF(ISBLANK(AD105)," ",INDEX('Startgeld Damen'!$C:$C,MATCH(Z108,'Startgeld Damen'!$A:$A,0))) ->  | AD108: =AD105 -> 0 | AI108: =IF(ISBLANK(AE108)," ",AE108+(AF108-AG108)*50+IF(COUNT(AE105:AE108)=3,(AG105+AG106+AG107)*40,(AG105+AG106+AG107)*30)) ->  | AJ108: 0 | AK108: =IF(COUNTIF(AL$13:AL108,AL108)>1,"X","") -> X | AL108: =IF(ISBLANK(AP105)," ",INDEX(CH:CH,MATCH(AP105,CD:CD,0))) ->  | AM108: =IF(ISBLANK(AP105)," ",INDEX('Startgeld Damen'!$C:$C,MATCH(AL108,'Startgeld Damen'!$A:$A,0))) ->  | AP108: =AP105 -> 0 | AU108: =IF(ISBLANK(AQ108)," ",AQ108+(AR108-AS108)*50+IF(COUNT(AQ105:AQ108)=3,(AS105+AS106+AS107)*40,(AS105+AS106+AS107)*30)) ->  | AV108: 0 | AW108: =IF(COUNTIF(AX$13:AX108,AX108)>1,"X","") -> X | AX108: =IF(ISBLANK(BB105)," ",INDEX(CM:CM,MATCH(BB105,CI:CI,0))) ->  | AY108: =IF(ISBLANK(BB105)," ",INDEX('Startgeld Damen'!$C:$C,MATCH(AX108,'Startgeld Damen'!$A:$A,0))) ->  | BB108: =BB105 -> 0 | BG108: =IF(ISBLANK(BC108)," ",BC108+(BD108-BE108)*50+IF(COUNT(BC105:BC108)=3,(BE105+BE106+BE107)*40,(BE105+BE106+BE107)*30)) ->  | BH108: 0
A109: =IF(COUNTIF(B$13:B109,B109)>1,"X","") -> X | B109: =IF(ISBLANK(F109)," ",INDEX(BP:BP,MATCH(F109,BO:BO,0))) ->  | C109: =IF(ISBLANK(F109)," ",INDEX('Startgeld Damen'!$C:$C,MATCH($B109,'Startgeld Damen'!$A:$A,0))) ->  | K109: =IF(ISBLANK(G109)," ",G109+(H109-I109)*50+IF(COUNT(G109:G112)=3,(I110+I111+I112)*40,(I110+I111+I112)*30)) ->  | L109: 0 | M109: =IF(COUNTIF(N$13:N109,N109)>1,"X","") -> X | N109: =IF(ISBLANK(R109)," ",INDEX(BU:BU,MATCH(R109,BT:BT,0))) ->  | O109: =IF(ISBLANK(R109)," ",INDEX('Startgeld Damen'!$C:$C,MATCH(N109,'Startgeld Damen'!$A:$A,0))) ->  | W109: =IF(ISBLANK(S109)," ",S109+(T109-U109)*50+IF(COUNT(S109:S112)=3,(U110+U111+U112)*40,(U110+U111+U112)*30)) ->  | X109: 0 | Y109: =IF(COUNTIF(Z$13:Z109,Z109)>1,"X","") -> X | Z109: =IF(ISBLANK(AD109)," ",INDEX(BZ:BZ,MATCH(AD109,BY:BY,0))) ->  | AA109: =IF(ISBLANK(AD109)," ",INDEX('Startgeld Damen'!$C:$C,MATCH(Z109,'Startgeld Damen'!$A:$A,0))) ->  | AI109: =IF(ISBLANK(AE109)," ",AE109+(AF109-AG109)*50+IF(COUNT(AE109:AE112)=3,(AG110+AG111+AG112)*40,(AG110+AG111+AG112)*30)) ->  | AJ109: 0 | AK109: =IF(COUNTIF(AL$13:AL109,AL109)>1,"X","") -> X | AL109: =IF(ISBLANK(AP109)," ",INDEX(CE:CE,MATCH(AP109,CD:CD,0))) ->  | AM109: =IF(ISBLANK(AP109)," ",INDEX('Startgeld Damen'!$C:$C,MATCH(AL109,'Startgeld Damen'!$A:$A,0))) ->  | AU109: =IF(ISBLANK(AQ109)," ",AQ109+(AR109-AS109)*50+IF(COUNT(AQ109:AQ112)=3,(AS110+AS111+AS112)*40,(AS110+AS111+AS112)*30)) ->  | AV109: 0 | AW109: =IF(COUNTIF(AX$13:AX109,AX109)>1,"X","") -> X | AX109: =IF(ISBLANK(BB109)," ",INDEX(CJ:CJ,MATCH(BB109,CI:CI,0))) ->  | AY109: =IF(ISBLANK(BB109)," ",INDEX('Startgeld Damen'!$C:$C,MATCH(AX109,'Startgeld Damen'!$A:$A,0))) ->  | BG109: =IF(ISBLANK(BC109)," ",BC109+(BD109-BE109)*50+IF(COUNT(BC109:BC112)=3,(BE110+BE111+BE112)*40,(BE110+BE111+BE112)*30)) ->  | BH109: 0 | BK109: =SUM(L109:L112) -> 0 | BL109: =SUM(X109:X112) -> 0 | BM109: =SUM(AJ109:AJ112) -> 0 | BN109: =SUM(AV109:AV112) -> 0
A110: =IF(COUNTIF(B$13:B110,B110)>1,"X","") -> X | B110: =IF(ISBLANK(F109)," ",INDEX(BQ:BQ,MATCH(F109,BO:BO,0))) ->  | C110: =IF(ISBLANK(F109)," ",INDEX('Startgeld Damen'!$C:$C,MATCH($B110,'Startgeld Damen'!$A:$A,0))) ->  | F110: =F109 -> 0 | K110: =IF(ISBLANK(G110)," ",G110+(H110-I110)*50+IF(COUNT(G109:G112)=3,(I109+I111+I112)*40,(I109+I111+I112)*30)) ->  | L110: 0 | M110: =IF(COUNTIF(N$13:N110,N110)>1,"X","") -> X | N110: =IF(ISBLANK(R109)," ",INDEX(BV:BV,MATCH(R109,BT:BT,0))) ->  | O110: =IF(ISBLANK(R109)," ",INDEX('Startgeld Damen'!$C:$C,MATCH(N110,'Startgeld Damen'!$A:$A,0))) ->  | R110: =R109 -> 0 | W110: =IF(ISBLANK(S110)," ",S110+(T110-U110)*50+IF(COUNT(S109:S112)=3,(U109+U111+U112)*40,(U109+U111+U112)*30)) ->  | X110: 0 | Y110: =IF(COUNTIF(Z$13:Z110,Z110)>1,"X","") -> X | Z110: =IF(ISBLANK(AD109)," ",INDEX(CA:CA,MATCH(AD109,BY:BY,0))) ->  | AA110: =IF(ISBLANK(AD109)," ",INDEX('Startgeld Damen'!$C:$C,MATCH(Z110,'Startgeld Damen'!$A:$A,0))) ->  | AD110: =AD109 -> 0 | AI110: =IF(ISBLANK(AE110)," ",AE110+(AF110-AG110)*50+IF(COUNT(AE109:AE112)=3,(AG109+AG111+AG112)*40,(AG109+AG111+AG112)*30)) ->  | AJ110: 0 | AK110: =IF(COUNTIF(AL$13:AL110,AL110)>1,"X","") -> X | AL110: =IF(ISBLANK(AP109)," ",INDEX(CF:CF,MATCH(AP109,CD:CD,0))) ->  | AM110: =IF(ISBLANK(AP109)," ",INDEX('Startgeld Damen'!$C:$C,MATCH(AL110,'Startgeld Damen'!$A:$A,0))) ->  | AP110: =AP109 -> 0 | AU110: =IF(ISBLANK(AQ110)," ",AQ110+(AR110-AS110)*50+IF(COUNT(AQ109:AQ112)=3,(AS109+AS111+AS112)*40,(AS109+AS111+AS112)*30)) ->  | AV110: 0 | AW110: =IF(COUNTIF(AX$13:AX110,AX110)>1,"X","") -> X | AX110: =IF(ISBLANK(BB109)," ",INDEX(CK:CK,MATCH(BB109,CI:CI,0))) ->  | AY110: =IF(ISBLANK(BB109)," ",INDEX('Startgeld Damen'!$C:$C,MATCH(AX110,'Startgeld Damen'!$A:$A,0))) ->  | BB110: =BB109 -> 0 | BG110: =IF(ISBLANK(BC110)," ",BC110+(BD110-BE110)*50+IF(COUNT(BC109:BC112)=3,(BE109+BE111+BE112)*40,(BE109+BE111+BE112)*30)) ->  | BH110: 0
A111: =IF(COUNTIF(B$13:B111,B111)>1,"X","") -> X | B111: =IF(ISBLANK(F109)," ",INDEX(BR:BR,MATCH(F109,BO:BO,0))) ->  | C111: =IF(ISBLANK(F109)," ",INDEX('Startgeld Damen'!$C:$C,MATCH($B111,'Startgeld Damen'!$A:$A,0))) ->  | F111: =F109 -> 0 | K111: =IF(ISBLANK(G111)," ",G111+(H111-I111)*50+IF(COUNT(G109:G112)=3,(I109+I110+I112)*40,(I109+I110+I112)*30)) ->  | L111: 0 | M111: =IF(COUNTIF(N$13:N111,N111)>1,"X","") -> X | N111: =IF(ISBLANK(R109)," ",INDEX(BW:BW,MATCH(R109,BT:BT,0))) ->  | O111: =IF(ISBLANK(R109)," ",INDEX('Startgeld Damen'!$C:$C,MATCH(N111,'Startgeld Damen'!$A:$A,0))) ->  | R111: =R109 -> 0 | W111: =IF(ISBLANK(S111)," ",S111+(T111-U111)*50+IF(COUNT(S109:S112)=3,(U109+U110+U112)*40,(U109+U110+U112)*30)) ->  | X111: 0 | Y111: =IF(COUNTIF(Z$13:Z111,Z111)>1,"X","") -> X | Z111: =IF(ISBLANK(AD109)," ",INDEX(CB:CB,MATCH(AD109,BY:BY,0))) ->  | AA111: =IF(ISBLANK(AD109)," ",INDEX('Startgeld Damen'!$C:$C,MATCH(Z111,'Startgeld Damen'!$A:$A,0))) ->  | AD111: =AD109 -> 0 | AI111: =IF(ISBLANK(AE111)," ",AE111+(AF111-AG111)*50+IF(COUNT(AE109:AE112)=3,(AG109+AG110+AG112)*40,(AG109+AG110+AG112)*30)) ->  | AJ111: 0 | AK111: =IF(COUNTIF(AL$13:AL111,AL111)>1,"X","") -> X | AL111: =IF(ISBLANK(AP109)," ",INDEX(CG:CG,MATCH(AP109,CD:CD,0))) ->  | AM111: =IF(ISBLANK(AP109)," ",INDEX('Startgeld Damen'!$C:$C,MATCH(AL111,'Startgeld Damen'!$A:$A,0))) ->  | AP111: =AP109 -> 0 | AU111: =IF(ISBLANK(AQ111)," ",AQ111+(AR111-AS111)*50+IF(COUNT(AQ109:AQ112)=3,(AS109+AS110+AS112)*40,(AS109+AS110+AS112)*30)) ->  | AV111: 0 | AW111: =IF(COUNTIF(AX$13:AX111,AX111)>1,"X","") -> X | AX111: =IF(ISBLANK(BB109)," ",INDEX(CL:CL,MATCH(BB109,CI:CI,0))) ->  | AY111: =IF(ISBLANK(BB109)," ",INDEX('Startgeld Damen'!$C:$C,MATCH(AX111,'Startgeld Damen'!$A:$A,0))) ->  | BB111: =BB109 -> 0 | BG111: =IF(ISBLANK(BC111)," ",BC111+(BD111-BE111)*50+IF(COUNT(BC109:BC112)=3,(BE109+BE110+BE112)*40,(BE109+BE110+BE112)*30)) ->  | BH111: 0
A112: =IF(COUNTIF(B$13:B112,B112)>1,"X","") -> X | B112: =IF(ISBLANK(F109)," ",INDEX(BS:BS,MATCH(F109,BO:BO,0))) ->  | C112: =IF(ISBLANK(F109)," ",INDEX('Startgeld Damen'!$C:$C,MATCH($B112,'Startgeld Damen'!$A:$A,0))) ->  | F112: =F109 -> 0 | K112: =IF(ISBLANK(G112)," ",G112+(H112-I112)*50+IF(COUNT(G109:G112)=3,(I109+I110+I111)*40,(I109+I110+I111)*30)) ->  | L112: 0 | M112: =IF(COUNTIF(N$13:N112,N112)>1,"X","") -> X | N112: =IF(ISBLANK(R109)," ",INDEX(BX:BX,MATCH(R109,BT:BT,0))) ->  | O112: =IF(ISBLANK(R109)," ",INDEX('Startgeld Damen'!$C:$C,MATCH(N112,'Startgeld Damen'!$A:$A,0))) ->  | R112: =R109 -> 0 | W112: =IF(ISBLANK(S112)," ",S112+(T112-U112)*50+IF(COUNT(S109:S112)=3,(U109+U110+U111)*40,(U109+U110+U111)*30)) ->  | X112: 0 | Y112: =IF(COUNTIF(Z$13:Z112,Z112)>1,"X","") -> X | Z112: =IF(ISBLANK(AD109)," ",INDEX(CC:CC,MATCH(AD109,BY:BY,0))) ->  | AA112: =IF(ISBLANK(AD109)," ",INDEX('Startgeld Damen'!$C:$C,MATCH(Z112,'Startgeld Damen'!$A:$A,0))) ->  | AD112: =AD109 -> 0 | AI112: =IF(ISBLANK(AE112)," ",AE112+(AF112-AG112)*50+IF(COUNT(AE109:AE112)=3,(AG109+AG110+AG111)*40,(AG109+AG110+AG111)*30)) ->  | AJ112: 0 | AK112: =IF(COUNTIF(AL$13:AL112,AL112)>1,"X","") -> X | AL112: =IF(ISBLANK(AP109)," ",INDEX(CH:CH,MATCH(AP109,CD:CD,0))) ->  | AM112: =IF(ISBLANK(AP109)," ",INDEX('Startgeld Damen'!$C:$C,MATCH(AL112,'Startgeld Damen'!$A:$A,0))) ->  | AP112: =AP109 -> 0 | AU112: =IF(ISBLANK(AQ112)," ",AQ112+(AR112-AS112)*50+IF(COUNT(AQ109:AQ112)=3,(AS109+AS110+AS111)*40,(AS109+AS110+AS111)*30)) ->  | AV112: 0 | AW112: =IF(COUNTIF(AX$13:AX112,AX112)>1,"X","") -> X | AX112: =IF(ISBLANK(BB109)," ",INDEX(CM:CM,MATCH(BB109,CI:CI,0))) ->  | AY112: =IF(ISBLANK(BB109)," ",INDEX('Startgeld Damen'!$C:$C,MATCH(AX112,'Startgeld Damen'!$A:$A,0))) ->  | BB112: =BB109 -> 0 | BG112: =IF(ISBLANK(BC112)," ",BC112+(BD112-BE112)*50+IF(COUNT(BC109:BC112)=3,(BE109+BE110+BE111)*40,(BE109+BE110+BE111)*30)) ->  | BH112: 0
A113: =IF(COUNTIF(B$13:B113,B113)>1,"X","") -> X | B113: =IF(ISBLANK(F113)," ",INDEX(BP:BP,MATCH(F113,BO:BO,0))) ->  | C113: =IF(ISBLANK(F113)," ",INDEX('Startgeld Damen'!$C:$C,MATCH($B113,'Startgeld Damen'!$A:$A,0))) ->  | K113: =IF(ISBLANK(G113)," ",G113+(H113-I113)*50+IF(COUNT(G113:G116)=3,(I114+I115+I116)*40,(I114+I115+I116)*30)) ->  | L113: 0 | M113: =IF(COUNTIF(N$13:N113,N113)>1,"X","") -> X | N113: =IF(ISBLANK(R113)," ",INDEX(BU:BU,MATCH(R113,BT:BT,0))) ->  | O113: =IF(ISBLANK(R113)," ",INDEX('Startgeld Damen'!$C:$C,MATCH(N113,'Startgeld Damen'!$A:$A,0))) ->  | W113: =IF(ISBLANK(S113)," ",S113+(T113-U113)*50+IF(COUNT(S113:S116)=3,(U114+U115+U116)*40,(U114+U115+U116)*30)) ->  | X113: 0 | Y113: =IF(COUNTIF(Z$13:Z113,Z113)>1,"X","") -> X | Z113: =IF(ISBLANK(AD113)," ",INDEX(BZ:BZ,MATCH(AD113,BY:BY,0))) ->  | AA113: =IF(ISBLANK(AD113)," ",INDEX('Startgeld Damen'!$C:$C,MATCH(Z113,'Startgeld Damen'!$A:$A,0))) ->  | AI113: =IF(ISBLANK(AE113)," ",AE113+(AF113-AG113)*50+IF(COUNT(AE113:AE116)=3,(AG114+AG115+AG116)*40,(AG114+AG115+AG116)*30)) ->  | AJ113: 0 | AK113: =IF(COUNTIF(AL$13:AL113,AL113)>1,"X","") -> X | AL113: =IF(ISBLANK(AP113)," ",INDEX(CE:CE,MATCH(AP113,CD:CD,0))) ->  | AM113: =IF(ISBLANK(AP113)," ",INDEX('Startgeld Damen'!$C:$C,MATCH(AL113,'Startgeld Damen'!$A:$A,0))) ->  | AU113: =IF(ISBLANK(AQ113)," ",AQ113+(AR113-AS113)*50+IF(COUNT(AQ113:AQ116)=3,(AS114+AS115+AS116)*40,(AS114+AS115+AS116)*30)) ->  | AV113: 0 | AW113: =IF(COUNTIF(AX$13:AX113,AX113)>1,"X","") -> X | AX113: =IF(ISBLANK(BB113)," ",INDEX(CJ:CJ,MATCH(BB113,CI:CI,0))) ->  | AY113: =IF(ISBLANK(BB113)," ",INDEX('Startgeld Damen'!$C:$C,MATCH(AX113,'Startgeld Damen'!$A:$A,0))) ->  | BG113: =IF(ISBLANK(BC113)," ",BC113+(BD113-BE113)*50+IF(COUNT(BC113:BC116)=3,(BE114+BE115+BE116)*40,(BE114+BE115+BE116)*30)) ->  | BH113: 0 | BK113: =SUM(L113:L116) -> 0 | BL113: =SUM(X113:X116) -> 0 | BM113: =SUM(AJ113:AJ116) -> 0 | BN113: =SUM(AV113:AV116) -> 0
